Workbook

Sheet cálculos1 (hidden)
C1: 0.9 | E1: 0.95
A2: Regional | B2: Município | C2: Cobertura Vacinal BCG | D2: Cobertura Vacinal Rotavírus | E2: Cobertura Vacinal Pentavalente | F2: Cobertura Vacinal Poliomielite | G2: Cobertura Vacinal Pneumo 10 | H2: Cobertura Vacinal Tríplice Viral | I2: Cobertura Vacinal Meningo C | J2: Cobertura Vacinal Febre Amarela | K2: Cobertura Vacinal Hepatite A | L2: Cobertura Varicela | M2: META 90% | N2: META 95% | O2: ATINGIRAM META | P2: PQA-VS
A3: Metropolitana | B3: Afonso Cláudio | C3: ='CV Rotina <2A - procedência'!K3 -> 0.7159090909 | D3: ='CV Rotina <2A - procedência'!AC3 -> 0.9090909091 | E3: ='CV Rotina <2A - procedência'!M3 -> 0.7840909091 | F3: ='CV Rotina <2A - procedência'!O3 -> 0.7613636364 | G3: ='CV Rotina <2A - procedência'!Q3 -> 0.9318181818 | H3: ='CV Rotina <2A - procedência'!Y3 -> 1.022727273 | I3: ='CV Rotina <2A - procedência'!S3 -> 0.8409090909 | J3: ='CV Rotina <2A - procedência'!U3 -> 1.102272727 | K3: ='CV Rotina <2A - procedência'!W3 -> 1.056818182 | L3: ='CV Rotina <2A - procedência'!AA3 -> 1 | M3: =COUNTIF(C3:D3,">=0,9") -> 1 | N3: =COUNTIFS(E3:L3,">=0,95") -> 4 | O3: =SUM(M3:N3) -> 5 | P3: =COUNTIF(E3:H3,">=0,95") -> 1
A4: Norte | B4: Água Doce do Norte | C4: ='CV Rotina <2A - procedência'!K4 -> 0.4736842105 | D4: ='CV Rotina <2A - procedência'!AC4 -> 1.157894737 | E4: ='CV Rotina <2A - procedência'!M4 -> 0.8421052632 | F4: ='CV Rotina <2A - procedência'!O4 -> 0.8947368421 | G4: ='CV Rotina <2A - procedência'!Q4 -> 1.105263158 | H4: ='CV Rotina <2A - procedência'!Y4 -> 1.026315789 | I4: ='CV Rotina <2A - procedência'!S4 -> 0.9473684211 | J4: ='CV Rotina <2A - procedência'!U4 -> 0.6578947368 | K4: ='CV Rotina <2A - procedência'!W4 -> 1.078947368 | L4: ='CV Rotina <2A - procedência'!AA4 -> 0.9736842105 | M4: 1 | N4: 4 | O4: =SUM(M4:N4) -> 5 | P4: =COUNTIF(E4:H4,">=0,95") -> 2
A5: Central | B5: Águia Branca | C5: ='CV Rotina <2A - procedência'!K5 -> 0.5576923077 | D5: ='CV Rotina <2A - procedência'!AC5 -> 0.7115384615 | E5: ='CV Rotina <2A - procedência'!M5 -> 0.9038461538 | F5: ='CV Rotina <2A - procedência'!O5 -> 0.9038461538 | G5: ='CV Rotina <2A - procedência'!Q5 -> 0.6923076923 | H5: ='CV Rotina <2A - procedência'!Y5 -> 0.7307692308 | I5: ='CV Rotina <2A - procedência'!S5 -> 0.7692307692 | J5: ='CV Rotina <2A - procedência'!U5 -> 0.8846153846 | K5: ='CV Rotina <2A - procedência'!W5 -> 0.4615384615 | L5: ='CV Rotina <2A - procedência'!AA5 -> 0.5384615385 | M5: 0 | N5: 0 | O5: 0 | P5: 0
A6: Sul | B6: Alegre | C6: ='CV Rotina <2A - procedência'!K6 -> 0.48 | D6: ='CV Rotina <2A - procedência'!AC6 -> 0.8533333333 | E6: ='CV Rotina <2A - procedência'!M6 -> 1.066666667 | F6: ='CV Rotina <2A - procedência'!O6 -> 1.053333333 | G6: ='CV Rotina <2A - procedência'!Q6 -> 0.8933333333 | H6: ='CV Rotina <2A - procedência'!Y6 -> 0.9733333333 | I6: ='CV Rotina <2A - procedência'!S6 -> 0.84 | J6: ='CV Rotina <2A - procedência'!U6 -> 1.093333333 | K6: ='CV Rotina <2A - procedência'!W6 -> 1.013333333 | L6: ='CV Rotina <2A - procedência'!AA6 -> 0.96 | M6: 0 | N6: 6 | O6: 6 | P6: 3
A7: Sul | B7: Alfredo Chaves | C7: ='CV Rotina <2A - procedência'!K7 -> 0.375 | D7: ='CV Rotina <2A - procedência'!AC7 -> 0.8125 | E7: ='CV Rotina <2A - procedência'!M7 -> 0.8125 | F7: ='CV Rotina <2A - procedência'!O7 -> 0.78125 | G7: ='CV Rotina <2A - procedência'!Q7 -> 0.65625 | H7: ='CV Rotina <2A - procedência'!Y7 -> 1.15625 | I7: ='CV Rotina <2A - procedência'!S7 -> 0.625 | J7: ='CV Rotina <2A - procedência'!U7 -> 0.78125 | K7: ='CV Rotina <2A - procedência'!W7 -> 0.75 | L7: ='CV Rotina <2A - procedência'!AA7 -> 0.90625 | M7: 0 | N7: 1 | O7: 1 | P7: 1
A8: Central | B8: Alto Rio Novo | C8: ='CV Rotina <2A - procedência'!K8 -> 0.2916666667 | D8: ='CV Rotina <2A - procedência'!AC8 -> 0.8333333333 | E8: ='CV Rotina <2A - procedência'!M8 -> 1.041666667 | F8: ='CV Rotina <2A - procedência'!O8 -> 1.041666667 | G8: ='CV Rotina <2A - procedência'!Q8 -> 0.8333333333 | H8: ='CV Rotina <2A - procedência'!Y8 -> 0.8333333333 | I8: ='CV Rotina <2A - procedência'!S8 -> 1.083333333 | J8: ='CV Rotina <2A - procedência'!U8 -> 1.041666667 | K8: ='CV Rotina <2A - procedência'!W8 -> 0.75 | L8: ='CV Rotina <2A - procedência'!AA8 -> 0.7916666667 | M8: 0 | N8: 4 | O8: 4 | P8: 2
A9: Sul | B9: Anchieta | C9: ='CV Rotina <2A - procedência'!K9 -> 0.4174757282 | D9: ='CV Rotina <2A - procedência'!AC9 -> 0.786407767 | E9: ='CV Rotina <2A - procedência'!M9 -> 0.7281553398 | F9: ='CV Rotina <2A - procedência'!O9 -> 0.6893203883 | G9: ='CV Rotina <2A - procedência'!Q9 -> 0.7572815534 | H9: ='CV Rotina <2A - procedência'!Y9 -> 0.9514563107 | I9: ='CV Rotina <2A - procedência'!S9 -> 0.6796116505 | J9: ='CV Rotina <2A - procedência'!U9 -> 0.7766990291 | K9: ='CV Rotina <2A - procedência'!W9 -> 1.077669903 | L9: ='CV Rotina <2A - procedência'!AA9 -> 1.165048544 | M9: 0 | N9: 3 | O9: 3 | P9: 1
A10: Sul | B10: Apiacá | C10: ='CV Rotina <2A - procedência'!K10 -> 1.818181818 | D10: ='CV Rotina <2A - procedência'!AC10 -> 1.727272727 | E10: ='CV Rotina <2A - procedência'!M10 -> 1.454545455 | F10: ='CV Rotina <2A - procedência'!O10 -> 1.181818182 | G10: ='CV Rotina <2A - procedência'!Q10 -> 1.727272727 | H10: ='CV Rotina <2A - procedência'!Y10 -> 2.090909091 | I10: ='CV Rotina <2A - procedência'!S10 -> 2.090909091 | J10: ='CV Rotina <2A - procedência'!U10 -> 1.272727273 | K10: ='CV Rotina <2A - procedência'!W10 -> 1.818181818 | L10: ='CV Rotina <2A - procedência'!AA10 -> 1.272727273 | M10: 2 | N10: 8 | O10: 10 | P10: 4
A11: Metropolitana | B11: Aracruz | C11: ='CV Rotina <2A - procedência'!K11 -> 0.8139534884 | D11: ='CV Rotina <2A - procedência'!AC11 -> 0.8062015504 | E11: ='CV Rotina <2A - procedência'!M11 -> 0.8992248062 | F11: ='CV Rotina <2A - procedência'!O11 -> 0.8682170543 | G11: ='CV Rotina <2A - procedência'!Q11 -> 0.7726098191 | H11: ='CV Rotina <2A - procedência'!Y11 -> 0.9586563307 | I11: ='CV Rotina <2A - procedência'!S11 -> 0.8217054264 | J11: ='CV Rotina <2A - procedência'!U11 -> 0.7777777778 | K11: ='CV Rotina <2A - procedência'!W11 -> 0.8242894057 | L11: ='CV Rotina <2A - procedência'!AA11 -> 0.8165374677 | M11: 0 | N11: 1 | O11: 1 | P11: 1
A12: Sul | B12: Atilio Vivacqua | C12: ='CV Rotina <2A - procedência'!K12 -> 0.02127659574 | D12: ='CV Rotina <2A - procedência'!AC12 -> 0.5106382979 | E12: ='CV Rotina <2A - procedência'!M12 -> 0.6808510638 | F12: ='CV Rotina <2A - procedência'!O12 -> 0.6808510638 | G12: ='CV Rotina <2A - procedência'!Q12 -> 0.5106382979 | H12: ='CV Rotina <2A - procedência'!Y12 -> 1.042553191 | I12: ='CV Rotina <2A - procedência'!S12 -> 0.7021276596 | J12: ='CV Rotina <2A - procedência'!U12 -> 0.829787234 | K12: ='CV Rotina <2A - procedência'!W12 -> 0.9574468085 | L12: ='CV Rotina <2A - procedência'!AA12 -> 1.042553191 | M12: 0 | N12: 3 | O12: 3 | P12: 1
A13: Central | B13: Baixo Guandu | C13: ='CV Rotina <2A - procedência'!K13 -> 0.393258427 | D13: ='CV Rotina <2A - procedência'!AC13 -> 1 | E13: ='CV Rotina <2A - procedência'!M13 -> 0.9101123596 | F13: ='CV Rotina <2A - procedência'!O13 -> 0.8876404494 | G13: ='CV Rotina <2A - procedência'!Q13 -> 1.02247191 | H13: ='CV Rotina <2A - procedência'!Y13 -> 1.033707865 | I13: ='CV Rotina <2A - procedência'!S13 -> 0.9775280899 | J13: ='CV Rotina <2A - procedência'!U13 -> 1.179775281 | K13: ='CV Rotina <2A - procedência'!W13 -> 0.8426966292 | L13: ='CV Rotina <2A - procedência'!AA13 -> 0.9438202247 | M13: 1 | N13: 4 | O13: 5 | P13: 2
A14: Norte | B14: Barra de São Francisco | C14: ='CV Rotina <2A - procedência'!K14 -> 0.3860759494 | D14: ='CV Rotina <2A - procedência'!AC14 -> 0.8670886076 | E14: ='CV Rotina <2A - procedência'!M14 -> 0.8037974684 | F14: ='CV Rotina <2A - procedência'!O14 -> 0.8164556962 | G14: ='CV Rotina <2A - procedência'!Q14 -> 0.8607594937 | H14: ='CV Rotina <2A - procedência'!Y14 -> 0.8670886076 | I14: ='CV Rotina <2A - procedência'!S14 -> 0.7911392405 | J14: ='CV Rotina <2A - procedência'!U14 -> 0.8987341772 | K14: ='CV Rotina <2A - procedência'!W14 -> 0.6898734177 | L14: ='CV Rotina <2A - procedência'!AA14 -> 0.6898734177 | M14: 0 | N14: 0 | O14: 0 | P14: 0
A15: Norte | B15: Boa Esperança | C15: ='CV Rotina <2A - procedência'!K15 -> 0.2909090909 | D15: ='CV Rotina <2A - procedência'!AC15 -> 1.036363636 | E15: ='CV Rotina <2A - procedência'!M15 -> 0.9090909091 | F15: ='CV Rotina <2A - procedência'!O15 -> 0.8 | G15: ='CV Rotina <2A - procedência'!Q15 -> 1 | H15: ='CV Rotina <2A - procedência'!Y15 -> 1.054545455 | I15: ='CV Rotina <2A - procedência'!S15 -> 0.9818181818 | J15: ='CV Rotina <2A - procedência'!U15 -> 0.9454545455 | K15: ='CV Rotina <2A - procedência'!W15 -> 0.9090909091 | L15: ='CV Rotina <2A - procedência'!AA15 -> 0.8545454545 | M15: 1 | N15: 3 | O15: 4 | P15: 2
A16: Sul | B16: Bom Jesus do Norte | C16: ='CV Rotina <2A - procedência'!K16 -> 4.4 | D16: ='CV Rotina <2A - procedência'!AC16 -> 7.2 | E16: ='CV Rotina <2A - procedência'!M16 -> 5.2 | F16: ='CV Rotina <2A - procedência'!O16 -> 5.4 | G16: ='CV Rotina <2A - procedência'!Q16 -> 6.2 | H16: ='CV Rotina <2A - procedência'!Y16 -> 4.4 | I16: ='CV Rotina <2A - procedência'!S16 -> 6.6 | J16: ='CV Rotina <2A - procedência'!U16 -> 4.4 | K16: ='CV Rotina <2A - procedência'!W16 -> 3.6 | L16: ='CV Rotina <2A - procedência'!AA16 -> 3 | M16: 2 | N16: 8 | O16: 10 | P16: 4
A17: Metropolitana | B17: Brejetuba | C17: ='CV Rotina <2A - procedência'!K17 -> 0.8679245283 | D17: ='CV Rotina <2A - procedência'!AC17 -> 1.339622642 | E17: ='CV Rotina <2A - procedência'!M17 -> 1.433962264 | F17: ='CV Rotina <2A - procedência'!O17 -> 1.396226415 | G17: ='CV Rotina <2A - procedência'!Q17 -> 1.320754717 | H17: ='CV Rotina <2A - procedência'!Y17 -> 1.433962264 | I17: ='CV Rotina <2A - procedência'!S17 -> 1.320754717 | J17: ='CV Rotina <2A - procedência'!U17 -> 1.150943396 | K17: ='CV Rotina <2A - procedência'!W17 -> 1.41509434 | L17: ='CV Rotina <2A - procedência'!AA17 -> 1.283018868 | M17: 1 | N17: 8 | O17: 9 | P17: 4
A18: Sul | B18: Cachoeiro de Itapemirim | C18: ='CV Rotina <2A - procedência'!K18 -> 2.193771626 | D18: ='CV Rotina <2A - procedência'!AC18 -> 0.9965397924 | E18: ='CV Rotina <2A - procedência'!M18 -> 1.027681661 | F18: ='CV Rotina <2A - procedência'!O18 -> 1.012110727 | G18: ='CV Rotina <2A - procedência'!Q18 -> 0.9688581315 | H18: ='CV Rotina <2A - procedência'!Y18 -> 0.9446366782 | I18: ='CV Rotina <2A - procedência'!S18 -> 0.9688581315 | J18: ='CV Rotina <2A - procedência'!U18 -> 0.7716262976 | K18: ='CV Rotina <2A - procedência'!W18 -> 0.8408304498 | L18: ='CV Rotina <2A - procedência'!AA18 -> 0.8667820069 | M18: 2 | N18: 4 | O18: 6 | P18: 3
A19: Metropolitana | B19: Cariacica | C19: ='CV Rotina <2A - procedência'!K19 -> 0.3918469218 | D19: ='CV Rotina <2A - procedência'!AC19 -> 0.8960066556 | E19: ='CV Rotina <2A - procedência'!M19 -> 0.8336106489 | F19: ='CV Rotina <2A - procedência'!O19 -> 0.8236272879 | G19: ='CV Rotina <2A - procedência'!Q19 -> 0.8452579035 | H19: ='CV Rotina <2A - procedência'!Y19 -> 0.9891846922 | I19: ='CV Rotina <2A - procedência'!S19 -> 0.8760399334 | J19: ='CV Rotina <2A - procedência'!U19 -> 0.7762063228 | K19: ='CV Rotina <2A - procedência'!W19 -> 0.8186356073 | L19: ='CV Rotina <2A - procedência'!AA19 -> 0.8161397671 | M19: 0 | N19: 1 | O19: 1 | P19: 1
A20: Sul | B20: Castelo | C20: ='CV Rotina <2A - procedência'!K20 -> 0.701754386 | D20: ='CV Rotina <2A - procedência'!AC20 -> 1.035087719 | E20: ='CV Rotina <2A - procedência'!M20 -> 0.9385964912 | F20: ='CV Rotina <2A - procedência'!O20 -> 0.9385964912 | G20: ='CV Rotina <2A - procedência'!Q20 -> 1.052631579 | H20: ='CV Rotina <2A - procedência'!Y20 -> 1.01754386 | I20: ='CV Rotina <2A - procedência'!S20 -> 0.9649122807 | J20: ='CV Rotina <2A - procedência'!U20 -> 0.8157894737 | K20: ='CV Rotina <2A - procedência'!W20 -> 0.8157894737 | L20: ='CV Rotina <2A - procedência'!AA20 -> 0.9035087719 | M20: 1 | N20: 3 | O20: 4 | P20: 2
A21: Central | B21: Colatina | C21: ='CV Rotina <2A - procedência'!K21 -> 2.538251366 | D21: ='CV Rotina <2A - procedência'!AC21 -> 1.005464481 | E21: ='CV Rotina <2A - procedência'!M21 -> 1.005464481 | F21: ='CV Rotina <2A - procedência'!O21 -> 1.005464481 | G21: ='CV Rotina <2A - procedência'!Q21 -> 1.013661202 | H21: ='CV Rotina <2A - procedência'!Y21 -> 0.8879781421 | I21: ='CV Rotina <2A - procedência'!S21 -> 0.9918032787 | J21: ='CV Rotina <2A - procedência'!U21 -> 0.8469945355 | K21: ='CV Rotina <2A - procedência'!W21 -> 0.849726776 | L21: ='CV Rotina <2A - procedência'!AA21 -> 0.8551912568 | M21: 2 | N21: 4 | O21: 6 | P21: 3
A22: Norte | B22: Conceição da Barra | C22: ='CV Rotina <2A - procedência'!K22 -> 0.07070707071 | D22: ='CV Rotina <2A - procedência'!AC22 -> 1.060606061 | E22: ='CV Rotina <2A - procedência'!M22 -> 0.9393939394 | F22: ='CV Rotina <2A - procedência'!O22 -> 0.9393939394 | G22: ='CV Rotina <2A - procedência'!Q22 -> 1.01010101 | H22: ='CV Rotina <2A - procedência'!Y22 -> 0.9090909091 | I22: ='CV Rotina <2A - procedência'!S22 -> 1.02020202 | J22: ='CV Rotina <2A - procedência'!U22 -> 1.222222222 | K22: ='CV Rotina <2A - procedência'!W22 -> 0.9797979798 | L22: ='CV Rotina <2A - procedência'!AA22 -> 1.121212121 | M22: 1 | N22: 5 | O22: 6 | P22: 1
A23: Metropolitana | B23: Conceição do Castelo | C23: ='CV Rotina <2A - procedência'!K23 -> 0.5609756098 | D23: ='CV Rotina <2A - procedência'!AC23 -> 1.097560976 | E23: ='CV Rotina <2A - procedência'!M23 -> 0.9024390244 | F23: ='CV Rotina <2A - procedência'!O23 -> 0.8780487805 | G23: ='CV Rotina <2A - procedência'!Q23 -> 0.9512195122 | H23: ='CV Rotina <2A - procedência'!Y23 -> 1.024390244 | I23: ='CV Rotina <2A - procedência'!S23 -> 0.9512195122 | J23: ='CV Rotina <2A - procedência'!U23 -> 0.8048780488 | K23: ='CV Rotina <2A - procedência'!W23 -> 0.9756097561 | L23: ='CV Rotina <2A - procedência'!AA23 -> 0.9512195122 | M23: 1 | N23: 5 | O23: 6 | P23: 2
A24: Sul | B24: Divino de São Lourenço | C24: ='CV Rotina <2A - procedência'!K24 -> 0.8333333333 | D24: ='CV Rotina <2A - procedência'!AC24 -> 2.25 | E24: ='CV Rotina <2A - procedência'!M24 -> 1.416666667 | F24: ='CV Rotina <2A - procedência'!O24 -> 1.416666667 | G24: ='CV Rotina <2A - procedência'!Q24 -> 2.25 | H24: ='CV Rotina <2A - procedência'!Y24 -> 1.25 | I24: ='CV Rotina <2A - procedência'!S24 -> 2.25 | J24: ='CV Rotina <2A - procedência'!U24 -> 1.25 | K24: ='CV Rotina <2A - procedência'!W24 -> 1 | L24: ='CV Rotina <2A - procedência'!AA24 -> 1.083333333 | M24: 1 | N24: 8 | O24: 9 | P24: 4
A25: Metropolitana | B25: Domingos Martins | C25: ='CV Rotina <2A - procedência'!K25 -> 0.1621621622 | D25: ='CV Rotina <2A - procedência'!AC25 -> 0.8738738739 | E25: ='CV Rotina <2A - procedência'!M25 -> 0.7657657658 | F25: ='CV Rotina <2A - procedência'!O25 -> 0.7477477477 | G25: ='CV Rotina <2A - procedência'!Q25 -> 0.8648648649 | H25: ='CV Rotina <2A - procedência'!Y25 -> 0.9279279279 | I25: ='CV Rotina <2A - procedência'!S25 -> 0.6666666667 | J25: ='CV Rotina <2A - procedência'!U25 -> 0.963963964 | K25: ='CV Rotina <2A - procedência'!W25 -> 0.9009009009 | L25: ='CV Rotina <2A - procedência'!AA25 -> 0.8018018018 | M25: 0 | N25: 1 | O25: 1 | P25: 0
A26: Sul | B26: Dores do Rio Preto | C26: ='CV Rotina <2A - procedência'!K26 -> 0.6 | D26: ='CV Rotina <2A - procedência'!AC26 -> 0.84 | E26: ='CV Rotina <2A - procedência'!M26 -> 1 | F26: ='CV Rotina <2A - procedência'!O26 -> 0.92 | G26: ='CV Rotina <2A - procedência'!Q26 -> 0.84 | H26: ='CV Rotina <2A - procedência'!Y26 -> 1.4 | I26: ='CV Rotina <2A - procedência'!S26 -> 1 | J26: ='CV Rotina <2A - procedência'!U26 -> 0.84 | K26: ='CV Rotina <2A - procedência'!W26 -> 1.16 | L26: ='CV Rotina <2A - procedência'!AA26 -> 1.04 | M26: 0 | N26: 5 | O26: 5 | P26: 2
A27: Norte | B27: Ecoporanga | C27: ='CV Rotina <2A - procedência'!K27 -> 0.3766233766 | D27: ='CV Rotina <2A - procedência'!AC27 -> 0.5974025974 | E27: ='CV Rotina <2A - procedência'!M27 -> 0.7532467532 | F27: ='CV Rotina <2A - procedência'!O27 -> 0.7792207792 | G27: ='CV Rotina <2A - procedência'!Q27 -> 0.5584415584 | H27: ='CV Rotina <2A - procedência'!Y27 -> 0.8311688312 | I27: ='CV Rotina <2A - procedência'!S27 -> 0.6883116883 | J27: ='CV Rotina <2A - procedência'!U27 -> 0.7922077922 | K27: ='CV Rotina <2A - procedência'!W27 -> 0.9220779221 | L27: ='CV Rotina <2A - procedência'!AA27 -> 0.7792207792 | M27: 0 | N27: 0 | O27: 0 | P27: 0
A28: Metropolitana | B28: Fundão | C28: ='CV Rotina <2A - procedência'!K28 -> 0.1363636364 | D28: ='CV Rotina <2A - procedência'!AC28 -> 0.7727272727 | E28: ='CV Rotina <2A - procedência'!M28 -> 0.7272727273 | F28: ='CV Rotina <2A - procedência'!O28 -> 0.7575757576 | G28: ='CV Rotina <2A - procedência'!Q28 -> 0.6666666667 | H28: ='CV Rotina <2A - procedência'!Y28 -> 1.060606061 | I28: ='CV Rotina <2A - procedência'!S28 -> 0.9242424242 | J28: ='CV Rotina <2A - procedência'!U28 -> 0.7727272727 | K28: ='CV Rotina <2A - procedência'!W28 -> 0.9090909091 | L28: ='CV Rotina <2A - procedência'!AA28 -> 0.9090909091 | M28: 0 | N28: 1 | O28: 1 | P28: 1
A29: Central | B29: Governador Lindenberg | C29: ='CV Rotina <2A - procedência'!K29 -> 0.2432432432 | D29: ='CV Rotina <2A - procedência'!AC29 -> 0.9189189189 | E29: ='CV Rotina <2A - procedência'!M29 -> 1.054054054 | F29: ='CV Rotina <2A - procedência'!O29 -> 1.081081081 | G29: ='CV Rotina <2A - procedência'!Q29 -> 0.7837837838 | H29: ='CV Rotina <2A - procedência'!Y29 -> 0.6486486486 | I29: ='CV Rotina <2A - procedência'!S29 -> 1.189189189 | J29: ='CV Rotina <2A - procedência'!U29 -> 0.7567567568 | K29: ='CV Rotina <2A - procedência'!W29 -> 0.7297297297 | L29: ='CV Rotina <2A - procedência'!AA29 -> 0.6756756757 | M29: 1 | N29: 3 | O29: 4 | P29: 2
A30: Sul | B30: Guaçuí | C30: ='CV Rotina <2A - procedência'!K30 -> 0.9113924051 | D30: ='CV Rotina <2A - procedência'!AC30 -> 1.240506329 | E30: ='CV Rotina <2A - procedência'!M30 -> 1.215189873 | F30: ='CV Rotina <2A - procedência'!O30 -> 1.215189873 | G30: ='CV Rotina <2A - procedência'!Q30 -> 1.215189873 | H30: ='CV Rotina <2A - procedência'!Y30 -> 1.012658228 | I30: ='CV Rotina <2A - procedência'!S30 -> 1.17721519 | J30: ='CV Rotina <2A - procedência'!U30 -> 1 | K30: ='CV Rotina <2A - procedência'!W30 -> 1 | L30: ='CV Rotina <2A - procedência'!AA30 -> 1.164556962 | M30: 2 | N30: 8 | O30: 10 | P30: 4
A31: Metropolitana | B31: Guarapari | C31: ='CV Rotina <2A - procedência'!K31 -> 0.7154989384 | D31: ='CV Rotina <2A - procedência'!AC31 -> 0.8365180467 | E31: ='CV Rotina <2A - procedência'!M31 -> 0.8152866242 | F31: ='CV Rotina <2A - procedência'!O31 -> 0.7940552017 | G31: ='CV Rotina <2A - procedência'!Q31 -> 0.83014862 | H31: ='CV Rotina <2A - procedência'!Y31 -> 0.8280254777 | I31: ='CV Rotina <2A - procedência'!S31 -> 0.821656051 | J31: ='CV Rotina <2A - procedência'!U31 -> 0.5923566879 | K31: ='CV Rotina <2A - procedência'!W31 -> 0.7261146497 | L31: ='CV Rotina <2A - procedência'!AA31 -> 0.5881104034 | M31: 0 | N31: 0 | O31: 0 | P31: 0
A32: Metropolitana | B32: Ibatiba | C32: ='CV Rotina <2A - procedência'!K32 -> 0.8192771084 | D32: ='CV Rotina <2A - procedência'!AC32 -> 1.373493976 | E32: ='CV Rotina <2A - procedência'!M32 -> 1.373493976 | F32: ='CV Rotina <2A - procedência'!O32 -> 1.373493976 | G32: ='CV Rotina <2A - procedência'!Q32 -> 1.385542169 | H32: ='CV Rotina <2A - procedência'!Y32 -> 1.253012048 | I32: ='CV Rotina <2A - procedência'!S32 -> 1.34939759 | J32: ='CV Rotina <2A - procedência'!U32 -> 1.253012048 | K32: ='CV Rotina <2A - procedência'!W32 -> 1.120481928 | L32: ='CV Rotina <2A - procedência'!AA32 -> 1.542168675 | M32: 1 | N32: 8 | O32: 9 | P32: 4
A33: Metropolitana | B33: Ibiraçu | C33: ='CV Rotina <2A - procedência'!K33 -> 0.5 | D33: ='CV Rotina <2A - procedência'!AC33 -> 1.269230769 | E33: ='CV Rotina <2A - procedência'!M33 -> 1.038461538 | F33: ='CV Rotina <2A - procedência'!O33 -> 1.038461538 | G33: ='CV Rotina <2A - procedência'!Q33 -> 1.230769231 | H33: ='CV Rotina <2A - procedência'!Y33 -> 1 | I33: ='CV Rotina <2A - procedência'!S33 -> 1.230769231 | J33: ='CV Rotina <2A - procedência'!U33 -> 1.115384615 | K33: ='CV Rotina <2A - procedência'!W33 -> 1.538461538 | L33: ='CV Rotina <2A - procedência'!AA33 -> 1.576923077 | M33: 1 | N33: 8 | O33: 9 | P33: 4
A34: Sul | B34: Ibitirama | C34: ='CV Rotina <2A - procedência'!K34 -> 0.8684210526 | D34: ='CV Rotina <2A - procedência'!AC34 -> 0.7631578947 | E34: ='CV Rotina <2A - procedência'!M34 -> 0.8684210526 | F34: ='CV Rotina <2A - procedência'!O34 -> 0.8684210526 | G34: ='CV Rotina <2A - procedência'!Q34 -> 0.7631578947 | H34: ='CV Rotina <2A - procedência'!Y34 -> 0.9736842105 | I34: ='CV Rotina <2A - procedência'!S34 -> 0.7105263158 | J34: ='CV Rotina <2A - procedência'!U34 -> 0.8157894737 | K34: ='CV Rotina <2A - procedência'!W34 -> 1.105263158 | L34: ='CV Rotina <2A - procedência'!AA34 -> 1.184210526 | M34: 0 | N34: 3 | O34: 3 | P34: 1
A35: Sul | B35: Iconha | C35: ='CV Rotina <2A - procedência'!K35 -> 0.5 | D35: ='CV Rotina <2A - procedência'!AC35 -> 1.192307692 | E35: ='CV Rotina <2A - procedência'!M35 -> 1.115384615 | F35: ='CV Rotina <2A - procedência'!O35 -> 1.076923077 | G35: ='CV Rotina <2A - procedência'!Q35 -> 1.115384615 | H35: ='CV Rotina <2A - procedência'!Y35 -> 1.192307692 | I35: ='CV Rotina <2A - procedência'!S35 -> 1.307692308 | J35: ='CV Rotina <2A - procedência'!U35 -> 1.384615385 | K35: ='CV Rotina <2A - procedência'!W35 -> 1.230769231 | L35: ='CV Rotina <2A - procedência'!AA35 -> 1.115384615 | M35: =COUNTIF(C35:D35,">=0,9") -> 1 | N35: =COUNTIFS(E35:L35,">=0,95") -> 8 | O35: 9 | P35: 4
A36: Sul | B36: Irupi | C36: ='CV Rotina <2A - procedência'!K36 -> 0.71875 | D36: ='CV Rotina <2A - procedência'!AC36 -> 1.84375 | E36: ='CV Rotina <2A - procedência'!M36 -> 2 | F36: ='CV Rotina <2A - procedência'!O36 -> 2.03125 | G36: ='CV Rotina <2A - procedência'!Q36 -> 1.84375 | H36: ='CV Rotina <2A - procedência'!Y36 -> 1.28125 | I36: ='CV Rotina <2A - procedência'!S36 -> 2 | J36: ='CV Rotina <2A - procedência'!U36 -> 1.8125 | K36: ='CV Rotina <2A - procedência'!W36 -> 0.96875 | L36: ='CV Rotina <2A - procedência'!AA36 -> 1.25 | M36: 1 | N36: 8 | O36: 9 | P36: 4
A37: Metropolitana | B37: Itaguaçu | C37: ='CV Rotina <2A - procedência'!K37 -> 0.1388888889 | D37: ='CV Rotina <2A - procedência'!AC37 -> 0.9444444444 | E37: ='CV Rotina <2A - procedência'!M37 -> 0.6666666667 | F37: ='CV Rotina <2A - procedência'!O37 -> 0.6666666667 | G37: ='CV Rotina <2A - procedência'!Q37 -> 0.8611111111 | H37: ='CV Rotina <2A - procedência'!Y37 -> 0.8055555556 | I37: ='CV Rotina <2A - procedência'!S37 -> 0.7222222222 | J37: ='CV Rotina <2A - procedência'!U37 -> 0.8055555556 | K37: ='CV Rotina <2A - procedência'!W37 -> 0.8055555556 | L37: ='CV Rotina <2A - procedência'!AA37 -> 0.8611111111 | M37: 1 | N37: 0 | O37: 1 | P37: 0
A38: Sul | B38: Itapemirim | C38: ='CV Rotina <2A - procedência'!K38 -> 0.5785714286 | D38: ='CV Rotina <2A - procedência'!AC38 -> 0.85 | E38: ='CV Rotina <2A - procedência'!M38 -> 0.8642857143 | F38: ='CV Rotina <2A - procedência'!O38 -> 0.8214285714 | G38: ='CV Rotina <2A - procedência'!Q38 -> 0.7928571429 | H38: ='CV Rotina <2A - procedência'!Y38 -> 1.064285714 | I38: ='CV Rotina <2A - procedência'!S38 -> 0.8357142857 | J38: ='CV Rotina <2A - procedência'!U38 -> 0.65 | K38: ='CV Rotina <2A - procedência'!W38 -> 0.9571428571 | L38: ='CV Rotina <2A - procedência'!AA38 -> 0.8571428571 | M38: 0 | N38: 2 | O38: 2 | P38: 1
A39: Metropolitana | B39: Itarana | C39: ='CV Rotina <2A - procedência'!K39 -> 0.1081081081 | D39: ='CV Rotina <2A - procedência'!AC39 -> 0.8918918919 | E39: ='CV Rotina <2A - procedência'!M39 -> 0.6486486486 | F39: ='CV Rotina <2A - procedência'!O39 -> 0.6756756757 | G39: ='CV Rotina <2A - procedência'!Q39 -> 0.8648648649 | H39: ='CV Rotina <2A - procedência'!Y39 -> 0.7027027027 | I39: ='CV Rotina <2A - procedência'!S39 -> 0.7837837838 | J39: ='CV Rotina <2A - procedência'!U39 -> 0.7567567568 | K39: ='CV Rotina <2A - procedência'!W39 -> 0.5675675676 | L39: ='CV Rotina <2A - procedência'!AA39 -> 0.5135135135 | M39: 0 | N39: 0 | O39: 0 | P39: 0
A40: Sul | B40: Iúna | C40: ='CV Rotina <2A - procedência'!K40 -> 0.8591549296 | D40: ='CV Rotina <2A - procedência'!AC40 -> 1.028169014 | E40: ='CV Rotina <2A - procedência'!M40 -> 1.197183099 | F40: ='CV Rotina <2A - procedência'!O40 -> 1.183098592 | G40: ='CV Rotina <2A - procedência'!Q40 -> 1 | H40: ='CV Rotina <2A - procedência'!Y40 -> 1.352112676 | I40: ='CV Rotina <2A - procedência'!S40 -> 1.197183099 | J40: ='CV Rotina <2A - procedência'!U40 -> 1.422535211 | K40: ='CV Rotina <2A - procedência'!W40 -> 1.309859155 | L40: ='CV Rotina <2A - procedência'!AA40 -> 1.422535211 | M40: 1 | N40: 8 | O40: 9 | P40: 4
A41: Norte | B41: Jaguaré | C41: ='CV Rotina <2A - procedência'!K41 -> 0.6879432624 | D41: ='CV Rotina <2A - procedência'!AC41 -> 0.8510638298 | E41: ='CV Rotina <2A - procedência'!M41 -> 0.695035461 | F41: ='CV Rotina <2A - procedência'!O41 -> 0.6808510638 | G41: ='CV Rotina <2A - procedência'!Q41 -> 0.8014184397 | H41: ='CV Rotina <2A - procedência'!Y41 -> 0.8510638298 | I41: ='CV Rotina <2A - procedência'!S41 -> 0.7092198582 | J41: ='CV Rotina <2A - procedência'!U41 -> 0.5744680851 | K41: ='CV Rotina <2A - procedência'!W41 -> 0.6524822695 | L41: ='CV Rotina <2A - procedência'!AA41 -> 0.7092198582 | M41: 0 | N41: 0 | O41: 0 | P41: 0
A42: Sul | B42: Jerônimo Monteiro | C42: ='CV Rotina <2A - procedência'!K42 -> 0.3 | D42: ='CV Rotina <2A - procedência'!AC42 -> 0.65 | E42: ='CV Rotina <2A - procedência'!M42 -> 0.725 | F42: ='CV Rotina <2A - procedência'!O42 -> 0.75 | G42: ='CV Rotina <2A - procedência'!Q42 -> 0.625 | H42: ='CV Rotina <2A - procedência'!Y42 -> 0.925 | I42: ='CV Rotina <2A - procedência'!S42 -> 0.7 | J42: ='CV Rotina <2A - procedência'!U42 -> 0.5 | K42: ='CV Rotina <2A - procedência'!W42 -> 0.8 | L42: ='CV Rotina <2A - procedência'!AA42 -> 0.875 | M42: 0 | N42: 0 | O42: 0 | P42: 0
A43: Metropolitana | B43: João Neiva | C43: ='CV Rotina <2A - procedência'!K43 -> 0.4473684211 | D43: ='CV Rotina <2A - procedência'!AC43 -> 0.9473684211 | E43: ='CV Rotina <2A - procedência'!M43 -> 0.7894736842 | F43: ='CV Rotina <2A - procedência'!O43 -> 0.7894736842 | G43: ='CV Rotina <2A - procedência'!Q43 -> 0.9210526316 | H43: ='CV Rotina <2A - procedência'!Y43 -> 0.6578947368 | I43: ='CV Rotina <2A - procedência'!S43 -> 0.8684210526 | J43: ='CV Rotina <2A - procedência'!U43 -> 1.052631579 | K43: ='CV Rotina <2A - procedência'!W43 -> 0.7368421053 | L43: ='CV Rotina <2A - procedência'!AA43 -> 0.7368421053 | M43: 1 | N43: 1 | O43: 2 | P43: 0
A44: Metropolitana | B44: Laranja da Terra | C44: ='CV Rotina <2A - procedência'!K44 -> 0.24 | D44: ='CV Rotina <2A - procedência'!AC44 -> 1.2 | E44: ='CV Rotina <2A - procedência'!M44 -> 1.08 | F44: ='CV Rotina <2A - procedência'!O44 -> 1.08 | G44: ='CV Rotina <2A - procedência'!Q44 -> 0.92 | H44: ='CV Rotina <2A - procedência'!Y44 -> 1.04 | I44: ='CV Rotina <2A - procedência'!S44 -> 0.76 | J44: ='CV Rotina <2A - procedência'!U44 -> 1.52 | K44: ='CV Rotina <2A - procedência'!W44 -> 1.36 | L44: ='CV Rotina <2A - procedência'!AA44 -> 1.44 | M44: 1 | N44: 6 | O44: 7 | P44: 3
A45: Central | B45: Linhares | C45: ='CV Rotina <2A - procedência'!K45 -> 1.322869955 | D45: ='CV Rotina <2A - procedência'!AC45 -> 0.8819133034 | E45: ='CV Rotina <2A - procedência'!M45 -> 0.9701046338 | F45: ='CV Rotina <2A - procedência'!O45 -> 0.9312406577 | G45: ='CV Rotina <2A - procedência'!Q45 -> 0.8669656203 | H45: ='CV Rotina <2A - procedência'!Y45 -> 0.8998505232 | I45: ='CV Rotina <2A - procedência'!S45 -> 0.9476831091 | J45: ='CV Rotina <2A - procedência'!U45 -> 0.692077728 | K45: ='CV Rotina <2A - procedência'!W45 -> 0.8385650224 | L45: ='CV Rotina <2A - procedência'!AA45 -> 0.8774289985 | M45: 1 | N45: 1 | O45: 2 | P45: 1
A46: Central | B46: Mantenópolis | C46: ='CV Rotina <2A - procedência'!K46 -> 0.3157894737 | D46: ='CV Rotina <2A - procedência'!AC46 -> 1.052631579 | E46: ='CV Rotina <2A - procedência'!M46 -> 0.9210526316 | F46: ='CV Rotina <2A - procedência'!O46 -> 0.8684210526 | G46: ='CV Rotina <2A - procedência'!Q46 -> 1.078947368 | H46: ='CV Rotina <2A - procedência'!Y46 -> 1 | I46: ='CV Rotina <2A - procedência'!S46 -> 1.026315789 | J46: ='CV Rotina <2A - procedência'!U46 -> 0.9210526316 | K46: ='CV Rotina <2A - procedência'!W46 -> 0.7105263158 | L46: ='CV Rotina <2A - procedência'!AA46 -> 0.6052631579 | M46: 1 | N46: 3 | O46: 4 | P46: 2
A47: Sul | B47: Marataízes | C47: ='CV Rotina <2A - procedência'!K47 -> 0.4129032258 | D47: ='CV Rotina <2A - procedência'!AC47 -> 1.04516129 | E47: ='CV Rotina <2A - procedência'!M47 -> 0.935483871 | F47: ='CV Rotina <2A - procedência'!O47 -> 0.9612903226 | G47: ='CV Rotina <2A - procedência'!Q47 -> 1.070967742 | H47: ='CV Rotina <2A - procedência'!Y47 -> 0.7935483871 | I47: ='CV Rotina <2A - procedência'!S47 -> 0.9677419355 | J47: ='CV Rotina <2A - procedência'!U47 -> 0.5032258065 | K47: ='CV Rotina <2A - procedência'!W47 -> 0.7870967742 | L47: ='CV Rotina <2A - procedência'!AA47 -> 0.7741935484 | M47: 1 | N47: 3 | O47: 4 | P47: 2
A48: Metropolitana | B48: Marechal Floriano | C48: ='CV Rotina <2A - procedência'!K48 -> 0.2272727273 | D48: ='CV Rotina <2A - procedência'!AC48 -> 0.9772727273 | E48: ='CV Rotina <2A - procedência'!M48 -> 1.159090909 | F48: ='CV Rotina <2A - procedência'!O48 -> 1.045454545 | G48: ='CV Rotina <2A - procedência'!Q48 -> 0.9090909091 | H48: ='CV Rotina <2A - procedência'!Y48 -> 1.272727273 | I48: ='CV Rotina <2A - procedência'!S48 -> 1.068181818 | J48: ='CV Rotina <2A - procedência'!U48 -> 1.204545455 | K48: ='CV Rotina <2A - procedência'!W48 -> 0.7272727273 | L48: ='CV Rotina <2A - procedência'!AA48 -> 0.8636363636 | M48: 1 | N48: 5 | O48: 6 | P48: 3
A49: Central | B49: Marilândia | C49: ='CV Rotina <2A - procedência'!K49 -> 0.3111111111 | D49: ='CV Rotina <2A - procedência'!AC49 -> 0.8 | E49: ='CV Rotina <2A - procedência'!M49 -> 0.6888888889 | F49: ='CV Rotina <2A - procedência'!O49 -> 0.7111111111 | G49: ='CV Rotina <2A - procedência'!Q49 -> 0.5777777778 | H49: ='CV Rotina <2A - procedência'!Y49 -> 0.7555555556 | I49: ='CV Rotina <2A - procedência'!S49 -> 0.5777777778 | J49: ='CV Rotina <2A - procedência'!U49 -> 1.022222222 | K49: ='CV Rotina <2A - procedência'!W49 -> 0.7777777778 | L49: ='CV Rotina <2A - procedência'!AA49 -> 0.8444444444 | M49: 0 | N49: 1 | O49: 1 | P49: 0
A50: Sul | B50: Mimoso do Sul | C50: ='CV Rotina <2A - procedência'!K50 -> 0.183908046 | D50: ='CV Rotina <2A - procedência'!AC50 -> 0.3793103448 | E50: ='CV Rotina <2A - procedência'!M50 -> 0.6666666667 | F50: ='CV Rotina <2A - procedência'!O50 -> 0.6896551724 | G50: ='CV Rotina <2A - procedência'!Q50 -> 0.3908045977 | H50: ='CV Rotina <2A - procedência'!Y50 -> 0.8850574713 | I50: ='CV Rotina <2A - procedência'!S50 -> 0.5402298851 | J50: ='CV Rotina <2A - procedência'!U50 -> 0.7471264368 | K50: ='CV Rotina <2A - procedência'!W50 -> 0.6206896552 | L50: ='CV Rotina <2A - procedência'!AA50 -> 0.5517241379 | M50: 0 | N50: 0 | O50: 0 | P50: 0
A51: Norte | B51: Montanha | C51: ='CV Rotina <2A - procedência'!K51 -> 0.380952381 | D51: ='CV Rotina <2A - procedência'!AC51 -> 1.928571429 | E51: ='CV Rotina <2A - procedência'!M51 -> 1.571428571 | F51: ='CV Rotina <2A - procedência'!O51 -> 1.619047619 | G51: ='CV Rotina <2A - procedência'!Q51 -> 2.023809524 | H51: ='CV Rotina <2A - procedência'!Y51 -> 1.30952381 | I51: ='CV Rotina <2A - procedência'!S51 -> 1.619047619 | J51: ='CV Rotina <2A - procedência'!U51 -> 1.428571429 | K51: ='CV Rotina <2A - procedência'!W51 -> 1.452380952 | L51: ='CV Rotina <2A - procedência'!AA51 -> 1.523809524 | M51: 1 | N51: 8 | O51: 9 | P51: 4
A52: Norte | B52: Mucurici | C52: ='CV Rotina <2A - procedência'!K52 -> 0 | D52: ='CV Rotina <2A - procedência'!AC52 -> 0.5 | E52: ='CV Rotina <2A - procedência'!M52 -> 0.35 | F52: ='CV Rotina <2A - procedência'!O52 -> 0.4 | G52: ='CV Rotina <2A - procedência'!Q52 -> 0.55 | H52: ='CV Rotina <2A - procedência'!Y52 -> 0.5 | I52: ='CV Rotina <2A - procedência'!S52 -> 0.6 | J52: ='CV Rotina <2A - procedência'!U52 -> 0.65 | K52: ='CV Rotina <2A - procedência'!W52 -> 0.9 | L52: ='CV Rotina <2A - procedência'!AA52 -> 0.85 | M52: 0 | N52: 0 | O52: 0 | P52: 0
A53: Sul | B53: Muniz Freire | C53: ='CV Rotina <2A - procedência'!K53 -> 0.693877551 | D53: ='CV Rotina <2A - procedência'!AC53 -> 1.265306122 | E53: ='CV Rotina <2A - procedência'!M53 -> 1.755102041 | F53: ='CV Rotina <2A - procedência'!O53 -> 1.734693878 | G53: ='CV Rotina <2A - procedência'!Q53 -> 1.244897959 | H53: ='CV Rotina <2A - procedência'!Y53 -> 1.285714286 | I53: ='CV Rotina <2A - procedência'!S53 -> 1.408163265 | J53: ='CV Rotina <2A - procedência'!U53 -> 1.265306122 | K53: ='CV Rotina <2A - procedência'!W53 -> 1.163265306 | L53: ='CV Rotina <2A - procedência'!AA53 -> 2.040816327 | M53: 1 | N53: 8 | O53: 9 | P53: 4
A54: Sul | B54: Muqui | C54: ='CV Rotina <2A - procedência'!K54 -> 0.243902439 | D54: ='CV Rotina <2A - procedência'!AC54 -> 0.6097560976 | E54: ='CV Rotina <2A - procedência'!M54 -> 0.8048780488 | F54: ='CV Rotina <2A - procedência'!O54 -> 0.7804878049 | G54: ='CV Rotina <2A - procedência'!Q54 -> 0.6097560976 | H54: ='CV Rotina <2A - procedência'!Y54 -> 1 | I54: ='CV Rotina <2A - procedência'!S54 -> 0.6829268293 | J54: ='CV Rotina <2A - procedência'!U54 -> 1.024390244 | K54: ='CV Rotina <2A - procedência'!W54 -> 0.9024390244 | L54: ='CV Rotina <2A - procedência'!AA54 -> 0.8292682927 | M54: 0 | N54: 2 | O54: 2 | P54: 1
A55: Norte | B55: Nova Venécia | C55: ='CV Rotina <2A - procedência'!K55 -> 0.5315789474 | D55: ='CV Rotina <2A - procedência'!AC55 -> 0.8947368421 | E55: ='CV Rotina <2A - procedência'!M55 -> 0.8473684211 | F55: ='CV Rotina <2A - procedência'!O55 -> 0.8473684211 | G55: ='CV Rotina <2A - procedência'!Q55 -> 0.8736842105 | H55: ='CV Rotina <2A - procedência'!Y55 -> 0.9736842105 | I55: ='CV Rotina <2A - procedência'!S55 -> 0.9473684211 | J55: ='CV Rotina <2A - procedência'!U55 -> 0.8105263158 | K55: ='CV Rotina <2A - procedência'!W55 -> 0.8736842105 | L55: ='CV Rotina <2A - procedência'!AA55 -> 0.9842105263 | M55: 0 | N55: 2 | O55: 2 | P55: 1
A56: Central | B56: Pancas | C56: ='CV Rotina <2A - procedência'!K56 -> 0.1607142857 | D56: ='CV Rotina <2A - procedência'!AC56 -> 0.8035714286 | E56: ='CV Rotina <2A - procedência'!M56 -> 0.8928571429 | F56: ='CV Rotina <2A - procedência'!O56 -> 0.875 | G56: ='CV Rotina <2A - procedência'!Q56 -> 0.75 | H56: ='CV Rotina <2A - procedência'!Y56 -> 1.214285714 | I56: ='CV Rotina <2A - procedência'!S56 -> 0.7857142857 | J56: ='CV Rotina <2A - procedência'!U56 -> 1.125 | K56: ='CV Rotina <2A - procedência'!W56 -> 0.9285714286 | L56: ='CV Rotina <2A - procedência'!AA56 -> 0.9642857143 | M56: 0 | N56: 3 | O56: 3 | P56: 1
A57: Norte | B57: Pedro Canário | C57: ='CV Rotina <2A - procedência'!K57 -> 0.05194805195 | D57: ='CV Rotina <2A - procedência'!AC57 -> 1.051948052 | E57: ='CV Rotina <2A - procedência'!M57 -> 1.220779221 | F57: ='CV Rotina <2A - procedência'!O57 -> 1.12987013 | G57: ='CV Rotina <2A - procedência'!Q57 -> 1.064935065 | H57: ='CV Rotina <2A - procedência'!Y57 -> 1.233766234 | I57: ='CV Rotina <2A - procedência'!S57 -> 0.961038961 | J57: ='CV Rotina <2A - procedência'!U57 -> 0.9090909091 | K57: ='CV Rotina <2A - procedência'!W57 -> 0.974025974 | L57: ='CV Rotina <2A - procedência'!AA57 -> 1.103896104 | M57: 1 | N57: 7 | O57: 8 | P57: 4
A58: Norte | B58: Pinheiros | C58: ='CV Rotina <2A - procedência'!K58 -> 0.07216494845 | D58: ='CV Rotina <2A - procedência'!AC58 -> 0.8041237113 | E58: ='CV Rotina <2A - procedência'!M58 -> 0.8556701031 | F58: ='CV Rotina <2A - procedência'!O58 -> 0.8350515464 | G58: ='CV Rotina <2A - procedência'!Q58 -> 0.7216494845 | H58: ='CV Rotina <2A - procedência'!Y58 -> 0.6701030928 | I58: ='CV Rotina <2A - procedência'!S58 -> 0.8659793814 | J58: ='CV Rotina <2A - procedência'!U58 -> 0.5670103093 | K58: ='CV Rotina <2A - procedência'!W58 -> 0.6804123711 | L58: ='CV Rotina <2A - procedência'!AA58 -> 0.5567010309 | M58: 0 | N58: 0 | O58: 0 | P58: 0
A59: Sul | B59: Piúma | C59: ='CV Rotina <2A - procedência'!K59 -> 0.243902439 | D59: ='CV Rotina <2A - procedência'!AC59 -> 0.743902439 | E59: ='CV Rotina <2A - procedência'!M59 -> 0.756097561 | F59: ='CV Rotina <2A - procedência'!O59 -> 0.756097561 | G59: ='CV Rotina <2A - procedência'!Q59 -> 0.743902439 | H59: ='CV Rotina <2A - procedência'!Y59 -> 0.9512195122 | I59: ='CV Rotina <2A - procedência'!S59 -> 0.8170731707 | J59: ='CV Rotina <2A - procedência'!U59 -> 0.8292682927 | K59: ='CV Rotina <2A - procedência'!W59 -> 0.9268292683 | L59: ='CV Rotina <2A - procedência'!AA59 -> 0.9024390244 | M59: 0 | N59: 1 | O59: 1 | P59: 1
A60: Norte | B60: Ponto Belo | C60: ='CV Rotina <2A - procedência'!K60 -> 0.4285714286 | D60: ='CV Rotina <2A - procedência'!AC60 -> 1.857142857 | E60: ='CV Rotina <2A - procedência'!M60 -> 1.357142857 | F60: ='CV Rotina <2A - procedência'!O60 -> 0.9285714286 | G60: ='CV Rotina <2A - procedência'!Q60 -> 1.785714286 | H60: ='CV Rotina <2A - procedência'!Y60 -> 1.142857143 | I60: ='CV Rotina <2A - procedência'!S60 -> 1.285714286 | J60: ='CV Rotina <2A - procedência'!U60 -> 1.571428571 | K60: ='CV Rotina <2A - procedência'!W60 -> 1.5 | L60: ='CV Rotina <2A - procedência'!AA60 -> 1.714285714 | M60: 1 | N60: 7 | O60: 8 | P60: 3
A61: Sul | B61: Presidente Kennedy | C61: ='CV Rotina <2A - procedência'!K61 -> 0.186440678 | D61: ='CV Rotina <2A - procedência'!AC61 -> 0.6949152542 | E61: ='CV Rotina <2A - procedência'!M61 -> 0.7796610169 | F61: ='CV Rotina <2A - procedência'!O61 -> 0.7796610169 | G61: ='CV Rotina <2A - procedência'!Q61 -> 0.6779661017 | H61: ='CV Rotina <2A - procedência'!Y61 -> 1.305084746 | I61: ='CV Rotina <2A - procedência'!S61 -> 0.7796610169 | J61: ='CV Rotina <2A - procedência'!U61 -> 0.7457627119 | K61: ='CV Rotina <2A - procedência'!W61 -> 0.9661016949 | L61: ='CV Rotina <2A - procedência'!AA61 -> 0.8813559322 | M61: 0 | N61: 2 | O61: 2 | P61: 1
A62: Central | B62: Rio Bananal | C62: ='CV Rotina <2A - procedência'!K62 -> 0.1025641026 | D62: ='CV Rotina <2A - procedência'!AC62 -> 0.8461538462 | E62: ='CV Rotina <2A - procedência'!M62 -> 0.8974358974 | F62: ='CV Rotina <2A - procedência'!O62 -> 0.8974358974 | G62: ='CV Rotina <2A - procedência'!Q62 -> 0.7948717949 | H62: ='CV Rotina <2A - procedência'!Y62 -> 0.8846153846 | I62: ='CV Rotina <2A - procedência'!S62 -> 0.7435897436 | J62: ='CV Rotina <2A - procedência'!U62 -> 0.7307692308 | K62: ='CV Rotina <2A - procedência'!W62 -> 0.858974359 | L62: ='CV Rotina <2A - procedência'!AA62 -> 1.294871795 | M62: 0 | N62: 1 | O62: 1 | P62: 0
A63: Sul | B63: Rio Novo do Sul | C63: ='CV Rotina <2A - procedência'!K63 -> 0.4516129032 | D63: ='CV Rotina <2A - procedência'!AC63 -> 1.064516129 | E63: ='CV Rotina <2A - procedência'!M63 -> 0.8387096774 | F63: ='CV Rotina <2A - procedência'!O63 -> 0.8387096774 | G63: ='CV Rotina <2A - procedência'!Q63 -> 0.935483871 | H63: ='CV Rotina <2A - procedência'!Y63 -> 1.387096774 | I63: ='CV Rotina <2A - procedência'!S63 -> 0.8387096774 | J63: ='CV Rotina <2A - procedência'!U63 -> 0.7419354839 | K63: ='CV Rotina <2A - procedência'!W63 -> 0.9032258065 | L63: ='CV Rotina <2A - procedência'!AA63 -> 0.8064516129 | M63: 1 | N63: 1 | O63: 2 | P63: 1
A64: Metropolitana | B64: Santa Leopoldina | C64: ='CV Rotina <2A - procedência'!K64 -> 0.1935483871 | D64: ='CV Rotina <2A - procedência'!AC64 -> 0.5161290323 | E64: ='CV Rotina <2A - procedência'!M64 -> 0.5483870968 | F64: ='CV Rotina <2A - procedência'!O64 -> 0.5483870968 | G64: ='CV Rotina <2A - procedência'!Q64 -> 0.4838709677 | H64: ='CV Rotina <2A - procedência'!Y64 -> 0.5806451613 | I64: ='CV Rotina <2A - procedência'!S64 -> 0.4838709677 | J64: ='CV Rotina <2A - procedência'!U64 -> 0.7096774194 | K64: ='CV Rotina <2A - procedência'!W64 -> 0.8064516129 | L64: ='CV Rotina <2A - procedência'!AA64 -> 0.7419354839 | M64: 0 | N64: 0 | O64: 0 | P64: 0
A65: Metropolitana | B65: Santa Maria de Jetibá | C65: ='CV Rotina <2A - procedência'!K65 -> 0.6257309942 | D65: ='CV Rotina <2A - procedência'!AC65 -> 1.052631579 | E65: ='CV Rotina <2A - procedência'!M65 -> 1.122807018 | F65: ='CV Rotina <2A - procedência'!O65 -> 1.134502924 | G65: ='CV Rotina <2A - procedência'!Q65 -> 1.040935673 | H65: ='CV Rotina <2A - procedência'!Y65 -> 1.023391813 | I65: ='CV Rotina <2A - procedência'!S65 -> 1.087719298 | J65: ='CV Rotina <2A - procedência'!U65 -> 0.918128655 | K65: ='CV Rotina <2A - procedência'!W65 -> 1.005847953 | L65: ='CV Rotina <2A - procedência'!AA65 -> 1.093567251 | M65: 1 | N65: 7 | O65: 8 | P65: 4
A66: Metropolitana | B66: Santa Teresa | C66: ='CV Rotina <2A - procedência'!K66 -> 2.608108108 | D66: ='CV Rotina <2A - procedência'!AC66 -> 0.8783783784 | E66: ='CV Rotina <2A - procedência'!M66 -> 0.8513513514 | F66: ='CV Rotina <2A - procedência'!O66 -> 0.8513513514 | G66: ='CV Rotina <2A - procedência'!Q66 -> 0.9324324324 | H66: ='CV Rotina <2A - procedência'!Y66 -> 0.9459459459 | I66: ='CV Rotina <2A - procedência'!S66 -> 0.7567567568 | J66: ='CV Rotina <2A - procedência'!U66 -> 0.8243243243 | K66: ='CV Rotina <2A - procedência'!W66 -> 0.8783783784 | L66: ='CV Rotina <2A - procedência'!AA66 -> 0.7567567568 | M66: 1 | N66: 0 | O66: 1 | P66: 0
A67: Central | B67: São Domingos do Norte | C67: ='CV Rotina <2A - procedência'!K67 -> 0.4482758621 | D67: ='CV Rotina <2A - procedência'!AC67 -> 1.172413793 | E67: ='CV Rotina <2A - procedência'!M67 -> 1.172413793 | F67: ='CV Rotina <2A - procedência'!O67 -> 1.137931034 | G67: ='CV Rotina <2A - procedência'!Q67 -> 0.9655172414 | H67: ='CV Rotina <2A - procedência'!Y67 -> 1.034482759 | I67: ='CV Rotina <2A - procedência'!S67 -> 1.310344828 | J67: ='CV Rotina <2A - procedência'!U67 -> 0.724137931 | K67: ='CV Rotina <2A - procedência'!W67 -> 0.8275862069 | L67: ='CV Rotina <2A - procedência'!AA67 -> 0.7586206897 | M67: =COUNTIF(C67:D67,">=0,9") -> 1 | N67: =COUNTIFS(E67:L67,">=0,95") -> 5 | O67: 6 | P67: 4
A68: Central | B68: São Gabriel da Palha | C68: ='CV Rotina <2A - procedência'!K68 -> 0.5789473684 | D68: ='CV Rotina <2A - procedência'!AC68 -> 1.175438596 | E68: ='CV Rotina <2A - procedência'!M68 -> 0.798245614 | F68: ='CV Rotina <2A - procedência'!O68 -> 0.7807017544 | G68: ='CV Rotina <2A - procedência'!Q68 -> 1.236842105 | H68: ='CV Rotina <2A - procedência'!Y68 -> 0.7631578947 | I68: ='CV Rotina <2A - procedência'!S68 -> 0.9649122807 | J68: ='CV Rotina <2A - procedência'!U68 -> 0.8947368421 | K68: ='CV Rotina <2A - procedência'!W68 -> 0.7192982456 | L68: ='CV Rotina <2A - procedência'!AA68 -> 0.8421052632 | M68: 1 | N68: 2 | O68: =SUM(M68:N68) -> 3 | P68: =COUNTIF(E68:H68,">=0,95") -> 1
A69: Sul | B69: São José do Calçado | C69: ='CV Rotina <2A - procedência'!K69 -> 1.315789474 | D69: ='CV Rotina <2A - procedência'!AC69 -> 1.368421053 | E69: ='CV Rotina <2A - procedência'!M69 -> 1.210526316 | F69: ='CV Rotina <2A - procedência'!O69 -> 1.210526316 | G69: ='CV Rotina <2A - procedência'!Q69 -> 1.315789474 | H69: ='CV Rotina <2A - procedência'!Y69 -> 1.368421053 | I69: ='CV Rotina <2A - procedência'!S69 -> 1.315789474 | J69: ='CV Rotina <2A - procedência'!U69 -> 0.8421052632 | K69: ='CV Rotina <2A - procedência'!W69 -> 0.7894736842 | L69: ='CV Rotina <2A - procedência'!AA69 -> 0.4210526316 | M69: 2 | N69: 5 | O69: 7 | P69: 4
A70: Norte | B70: São Mateus | C70: ='CV Rotina <2A - procedência'!K70 -> 1.361396304 | D70: ='CV Rotina <2A - procedência'!AC70 -> 1.106776181 | E70: ='CV Rotina <2A - procedência'!M70 -> 0.9917864476 | F70: ='CV Rotina <2A - procedência'!O70 -> 0.9671457906 | G70: ='CV Rotina <2A - procedência'!Q70 -> 1.108829569 | H70: ='CV Rotina <2A - procedência'!Y70 -> 0.8932238193 | I70: ='CV Rotina <2A - procedência'!S70 -> 1.022587269 | J70: ='CV Rotina <2A - procedência'!U70 -> 0.7802874743 | K70: ='CV Rotina <2A - procedência'!W70 -> 0.8069815195 | L70: ='CV Rotina <2A - procedência'!AA70 -> 0.7351129363 | M70: 2 | N70: 4 | O70: 6 | P70: 3
A71: Central | B71: São Roque do Canaã | C71: ='CV Rotina <2A - procedência'!K71 -> 0.25 | D71: ='CV Rotina <2A - procedência'!AC71 -> 1.125 | E71: ='CV Rotina <2A - procedência'!M71 -> 0.875 | F71: ='CV Rotina <2A - procedência'!O71 -> 0.875 | G71: ='CV Rotina <2A - procedência'!Q71 -> 1.0625 | H71: ='CV Rotina <2A - procedência'!Y71 -> 1.15625 | I71: ='CV Rotina <2A - procedência'!S71 -> 0.8125 | J71: ='CV Rotina <2A - procedência'!U71 -> 1.15625 | K71: ='CV Rotina <2A - procedência'!W71 -> 0.875 | L71: ='CV Rotina <2A - procedência'!AA71 -> 0.84375 | M71: 1 | N71: 3 | O71: 4 | P71: 2
A72: Metropolitana | B72: Serra | C72: ='CV Rotina <2A - procedência'!K72 -> 1.217204301 | D72: ='CV Rotina <2A - procedência'!AC72 -> 0.9365591398 | E72: ='CV Rotina <2A - procedência'!M72 -> 0.9279569892 | F72: ='CV Rotina <2A - procedência'!O72 -> 0.9279569892 | G72: ='CV Rotina <2A - procedência'!Q72 -> 0.8887096774 | H72: ='CV Rotina <2A - procedência'!Y72 -> 0.9091397849 | I72: ='CV Rotina <2A - procedência'!S72 -> 0.8951612903 | J72: ='CV Rotina <2A - procedência'!U72 -> 0.7161290323 | K72: ='CV Rotina <2A - procedência'!W72 -> 0.852688172 | L72: ='CV Rotina <2A - procedência'!AA72 -> 0.7951612903 | M72: 2 | N72: 0 | O72: 2 | P72: 0
A73: Central | B73: Sooretama | C73: ='CV Rotina <2A - procedência'!K73 -> 0.07291666667 | D73: ='CV Rotina <2A - procedência'!AC73 -> 1.28125 | E73: ='CV Rotina <2A - procedência'!M73 -> 1.125 | F73: ='CV Rotina <2A - procedência'!O73 -> 1.052083333 | G73: ='CV Rotina <2A - procedência'!Q73 -> 1.229166667 | H73: ='CV Rotina <2A - procedência'!Y73 -> 1.135416667 | I73: ='CV Rotina <2A - procedência'!S73 -> 1.1875 | J73: ='CV Rotina <2A - procedência'!U73 -> 0.9895833333 | K73: ='CV Rotina <2A - procedência'!W73 -> 0.96875 | L73: ='CV Rotina <2A - procedência'!AA73 -> 0.84375 | M73: 1 | N73: 7 | O73: 8 | P73: 4
A74: Sul | B74: Vargem Alta | C74: ='CV Rotina <2A - procedência'!K74 -> 0.1643835616 | D74: ='CV Rotina <2A - procedência'!AC74 -> 0.7260273973 | E74: ='CV Rotina <2A - procedência'!M74 -> 0.7945205479 | F74: ='CV Rotina <2A - procedência'!O74 -> 0.7945205479 | G74: ='CV Rotina <2A - procedência'!Q74 -> 0.7260273973 | H74: ='CV Rotina <2A - procedência'!Y74 -> 1.01369863 | I74: ='CV Rotina <2A - procedência'!S74 -> 0.7260273973 | J74: ='CV Rotina <2A - procedência'!U74 -> 1.109589041 | K74: ='CV Rotina <2A - procedência'!W74 -> 0.8219178082 | L74: ='CV Rotina <2A - procedência'!AA74 -> 0.8630136986 | M74: 0 | N74: 2 | O74: 2 | P74: 1
A75: Metropolitana | B75: Venda Nova do Imigrante | C75: ='CV Rotina <2A - procedência'!K75 -> 1.047619048 | D75: ='CV Rotina <2A - procedência'!AC75 -> 0.8452380952 | E75: ='CV Rotina <2A - procedência'!M75 -> 1.107142857 | F75: ='CV Rotina <2A - procedência'!O75 -> 1.095238095 | G75: ='CV Rotina <2A - procedência'!Q75 -> 0.8095238095 | H75: ='CV Rotina <2A - procedência'!Y75 -> 0.9047619048 | I75: ='CV Rotina <2A - procedência'!S75 -> 0.869047619 | J75: ='CV Rotina <2A - procedência'!U75 -> 1.011904762 | K75: ='CV Rotina <2A - procedência'!W75 -> 1.05952381 | L75: ='CV Rotina <2A - procedência'!AA75 -> 1.30952381 | M75: 1 | N75: 5 | O75: 6 | P75: 2
A76: Metropolitana | B76: Viana | C76: ='CV Rotina <2A - procedência'!K76 -> 0.4768518519 | D76: ='CV Rotina <2A - procedência'!AC76 -> 1.060185185 | E76: ='CV Rotina <2A - procedência'!M76 -> 1.023148148 | F76: ='CV Rotina <2A - procedência'!O76 -> 0.9953703704 | G76: ='CV Rotina <2A - procedência'!Q76 -> 1.050925926 | H76: ='CV Rotina <2A - procedência'!Y76 -> 1.092592593 | I76: ='CV Rotina <2A - procedência'!S76 -> 0.9722222222 | J76: ='CV Rotina <2A - procedência'!U76 -> 0.8796296296 | K76: ='CV Rotina <2A - procedência'!W76 -> 1.060185185 | L76: ='CV Rotina <2A - procedência'!AA76 -> 1.166666667 | M76: 1 | N76: 7 | O76: 8 | P76: 4
A77: Norte | B77: Vila Pavão | C77: ='CV Rotina <2A - procedência'!K77 -> 0.2894736842 | D77: ='CV Rotina <2A - procedência'!AC77 -> 0.7368421053 | E77: ='CV Rotina <2A - procedência'!M77 -> 0.8421052632 | F77: ='CV Rotina <2A - procedência'!O77 -> 0.7894736842 | G77: ='CV Rotina <2A - procedência'!Q77 -> 0.6842105263 | H77: ='CV Rotina <2A - procedência'!Y77 -> 0.8421052632 | I77: ='CV Rotina <2A - procedência'!S77 -> 0.7631578947 | J77: ='CV Rotina <2A - procedência'!U77 -> 1.026315789 | K77: ='CV Rotina <2A - procedência'!W77 -> 0.7894736842 | L77: ='CV Rotina <2A - procedência'!AA77 -> 1.157894737 | M77: 0 | N77: 2 | O77: 2 | P77: 0
A78: Central | B78: Vila Valério | C78: ='CV Rotina <2A - procedência'!K78 -> 0.2424242424 | D78: ='CV Rotina <2A - procedência'!AC78 -> 1 | E78: ='CV Rotina <2A - procedência'!M78 -> 0.8939393939 | F78: ='CV Rotina <2A - procedência'!O78 -> 0.8939393939 | G78: ='CV Rotina <2A - procedência'!Q78 -> 0.8939393939 | H78: ='CV Rotina <2A - procedência'!Y78 -> 0.6666666667 | I78: ='CV Rotina <2A - procedência'!S78 -> 0.8181818182 | J78: ='CV Rotina <2A - procedência'!U78 -> 0.8939393939 | K78: ='CV Rotina <2A - procedência'!W78 -> 0.7575757576 | L78: ='CV Rotina <2A - procedência'!AA78 -> 0.7575757576 | M78: 1 | N78: 0 | O78: 1 | P78: 0
A79: Metropolitana | B79: Vila Velha | C79: ='CV Rotina <2A - procedência'!K79 -> 0.6882845188 | D79: ='CV Rotina <2A - procedência'!AC79 -> 0.8814504881 | E79: ='CV Rotina <2A - procedência'!M79 -> 0.7663877266 | F79: ='CV Rotina <2A - procedência'!O79 -> 0.7419804742 | G79: ='CV Rotina <2A - procedência'!Q79 -> 0.8584379358 | H79: ='CV Rotina <2A - procedência'!Y79 -> 0.8723849372 | I79: ='CV Rotina <2A - procedência'!S79 -> 0.8479776848 | J79: ='CV Rotina <2A - procedência'!U79 -> 0.6687587169 | K79: ='CV Rotina <2A - procedência'!W79 -> 0.7782426778 | L79: ='CV Rotina <2A - procedência'!AA79 -> 0.7322175732 | M79: 0 | N79: 0 | O79: 0 | P79: 0
A80: Metropolitana | B80: Vitória | C80: ='CV Rotina <2A - procedência'!K80 -> 1.949381327 | D80: ='CV Rotina <2A - procedência'!AC80 -> 1.214848144 | E80: ='CV Rotina <2A - procedência'!M80 -> 1.226096738 | F80: ='CV Rotina <2A - procedência'!O80 -> 1.215973003 | G80: ='CV Rotina <2A - procedência'!Q80 -> 1.293588301 | H80: ='CV Rotina <2A - procedência'!Y80 -> 1.043869516 | I80: ='CV Rotina <2A - procedência'!S80 -> 1.265466817 | J80: ='CV Rotina <2A - procedência'!U80 -> 0.6794150731 | K80: ='CV Rotina <2A - procedência'!W80 -> 1.044994376 | L80: ='CV Rotina <2A - procedência'!AA80 -> 1.12935883 | M80: 2 | N80: 7 | O80: 9 | P80: 4
B82: Total Norte | C82: ='CV Rotina <2A - procedência'!K82 -> 0.6757990868 | D82: ='CV Rotina <2A - procedência'!AC82 -> 0.9928245271 | E82: ='CV Rotina <2A - procedência'!M82 -> 0.9151989563 | F82: ='CV Rotina <2A - procedência'!O82 -> 0.8969341161 | G82: ='CV Rotina <2A - procedência'!Q82 -> 0.9745596869 | H82: ='CV Rotina <2A - procedência'!Y82 -> 0.9138943249 | I82: ='CV Rotina <2A - procedência'!S82 -> 0.9341161122 | J82: ='CV Rotina <2A - procedência'!U82 -> 0.831702544 | K82: ='CV Rotina <2A - procedência'!W82 -> 0.8414872798 | L82: ='CV Rotina <2A - procedência'!AA82 -> 0.8460534899 | M82: =COUNTIF(C82:D82,">=0,9") -> 1 | N82: =COUNTIFS(E82:L82,">=0,95") -> 1 | O82: =SUM(M82:N82) -> 2 | P82: =COUNTIF(E82:H82,">=0,95") -> 1
B83: Total Central | C83: ='CV Rotina <2A - procedência'!K83 -> 1.142936907 | D83: ='CV Rotina <2A - procedência'!AC83 -> 0.9592406477 | E83: ='CV Rotina <2A - procedência'!M83 -> 0.9575656058 | F83: ='CV Rotina <2A - procedência'!O83 -> 0.9357900614 | G83: ='CV Rotina <2A - procedência'!Q83 -> 0.936906756 | H83: ='CV Rotina <2A - procedência'!Y83 -> 0.9028475712 | I83: ='CV Rotina <2A - procedência'!S83 -> 0.9508654383 | J83: ='CV Rotina <2A - procedência'!U83 -> 0.8330541597 | K83: ='CV Rotina <2A - procedência'!W83 -> 0.8230039084 | L83: ='CV Rotina <2A - procedência'!AA83 -> 0.864321608 | M83: =COUNTIF(C83:D83,">=0,9") -> 2 | N83: =COUNTIFS(E83:L83,">=0,95") -> 2 | O83: =SUM(M83:N83) -> 4 | P83: =COUNTIF(E83:H83,">=0,95") -> 1
B84: Total Metropolitana | C84: ='CV Rotina <2A - procedência'!K84 -> 0.9221909736 | D84: ='CV Rotina <2A - procedência'!AC84 -> 0.9504486407 | E84: ='CV Rotina <2A - procedência'!M84 -> 0.9169679925 | F84: ='CV Rotina <2A - procedência'!O84 -> 0.904647114 | G84: ='CV Rotina <2A - procedência'!Q84 -> 0.9288871033 | H84: ='CV Rotina <2A - procedência'!Y84 -> 0.9465648855 | I84: ='CV Rotina <2A - procedência'!S84 -> 0.9267443418 | J84: ='CV Rotina <2A - procedência'!U84 -> 0.7490290612 | K84: ='CV Rotina <2A - procedência'!W84 -> 0.8706307754 | L84: ='CV Rotina <2A - procedência'!AA84 -> 0.8571045935 | M84: =COUNTIF(C84:D84,">=0,9") -> 2 | N84: =COUNTIFS(E84:L84,">=0,95") -> 0 | O84: =SUM(M84:N84) -> 2 | P84: =COUNTIF(E84:H84,">=0,95") -> 0
B85: Total Sul | C85: ='CV Rotina <2A - procedência'!K85 -> 0.9920948617 | D85: ='CV Rotina <2A - procedência'!AC85 -> 0.9500988142 | E85: ='CV Rotina <2A - procedência'!M85 -> 0.9841897233 | F85: ='CV Rotina <2A - procedência'!O85 -> 0.9738142292 | G85: ='CV Rotina <2A - procedência'!Q85 -> 0.9298418972 | H85: ='CV Rotina <2A - procedência'!Y85 -> 1.031126482 | I85: ='CV Rotina <2A - procedência'!S85 -> 0.9500988142 | J85: ='CV Rotina <2A - procedência'!U85 -> 0.8557312253 | K85: ='CV Rotina <2A - procedência'!W85 -> 0.9204545455 | L85: ='CV Rotina <2A - procedência'!AA85 -> 0.95256917 | M85: =COUNTIF(C85:D85,">=0,9") -> 2 | N85: =COUNTIFS(E85:L85,">=0,95") -> 5 | O85: =SUM(M85:N85) -> 7 | P85: =COUNTIF(E85:H85,">=0,95") -> 3
B86: Total Espírito Santo | C86: ='CV Rotina <2A - procedência'!K86 -> 0.9346078814 | D86: ='CV Rotina <2A - procedência'!AC86 -> 0.9566913773 | E86: ='CV Rotina <2A - procedência'!M86 -> 0.9330472103 | F86: ='CV Rotina <2A - procedência'!O86 -> 0.9190011705 | G86: ='CV Rotina <2A - procedência'!Q86 -> 0.9356223176 | H86: ='CV Rotina <2A - procedência'!Y86 -> 0.9499024581 | I86: ='CV Rotina <2A - procedência'!S86 -> 0.9346859149 | J86: ='CV Rotina <2A - procedência'!U86 -> 0.7875146313 | K86: ='CV Rotina <2A - procedência'!W86 -> 0.8683573937 | L86: ='CV Rotina <2A - procedência'!AA86 -> 0.8718689036 | M86: =COUNTIF(C86:D86,">=0,9") -> 2 | N86: =COUNTIFS(E86:L86,">=0,95") -> 0 | O86: =SUM(M86:N86) -> 2 | P86: =COUNTIF(E86:H86,">=0,95") -> 0
A89: Fonte: SIPNI/DATASUS, em 09 de junho de 2023.*
A90: Vacina e Confia, em 12 de junho de 2023.**
A91: *Dados referentes às doses aplicadas pelas clínicas particulares de janeiro a maio de 2023
A92: **Dados referente às doses aplicadas no período de janeiro a maio de 2023
A93: Cobertura Calculada por município de vacinação
A94: 1 População proporcional extraída do MS/SVS/DASIS - Sistema de Informações sobre Nascidos Vivos - SINASC
A95: 2000 a 2021 – Estimativas preliminares elaboradas pelo Ministério da Saúde/SVS/DASNT/CGIAE
A96: Nota: Dados preliminares 2021

Sheet CV Rotina <2A - procedência
D1: AO NASCER | L1: MENOR DE 1 ANO | V1: 1 ANO | AB1: MENOR DE 2 ANOS | AE1: MENOR DE 1 ANO
A2: Regional | B2: Município | C2: ¹População < 1 ano e 1 ano | D2: Doses Aplicadas HB ≤30 dias | E2: Cobertura Vacinal HB até 30 dias | F2: Doses Aplicadas HB ≤2 dias | G2: Cobertura Vacinal HB até 2 dias | H2: Doses Aplicadas HB ≤1 dia | I2: Cobertura Vacinal HB até 1 dia | J2: Doses Aplicadas BCG | K2: Cobertura Vacinal BCG | L2: Doses Aplicadas Pentavalente | M2: Cobertura Vacinal Pentavalente | N2: Doses Aplicadas Poliomielite | O2: Cobertura Vacinal Poliomielite | P2: Doses Aplicadas Pneumo 10 | Q2: Cobertura Vacinal Pneumo 10 | R2: Doses Aplicadas Meningo C | S2: Cobertura Vacinal Meningo C | T2: Doses Aplicadas Febre Amarela | U2: Cobertura Vacinal Febre Amarela | V2: Doses Aplicadas Hepatite A | W2: Cobertura Vacinal Hepatite A | X2: Doses Aplicadas de Tríplice Viral | Y2: Cobertura Vacinal Tríplice Viral | Z2: Doses Aplicadas Varicela | AA2: Cobertura Varicela | AB2: Doses Aplicadas Rotavírus | AC2: Cobertura Vacinal Rotavírus | AE2: Doses Aplicadas COVID-19 | AF2: Cobertura Vacinal COVID-19 | AH2: VACINAS QUE ATINGIRAM A META DE CV | AI2: HOMOGENEIDADE ENTRE AS 10 VACINAS | AJ2: VACINAS DO PQA-VS QUE ATINGIRAM A META DE CV | AK2: HOMOGENEIDADE ENTRE AS VACINAS DO PQA-VS
A3: Metropolitana | B3: Afonso Cláudio | C3: 88 | D3: 63 | E3: =D3/C3 -> 0.7159090909 | F3: 47 | G3: =F3/C3 -> 0.5340909091 | H3: 30 | I3: =H3/C3 -> 0.3409090909 | J3: 63 | K3: =J3/C3 -> 0.7159090909 | L3: 69 | M3: =L3/C3 -> 0.7840909091 | N3: 67 | O3: =N3/C3 -> 0.7613636364 | P3: 82 | Q3: =P3/C3 -> 0.9318181818 | R3: 74 | S3: =R3/C3 -> 0.8409090909 | T3: 97 | U3: =T3/C3 -> 1.102272727 | V3: 93 | W3: =V3/C3 -> 1.056818182 | X3: 90 | Y3: =X3/C3 -> 1.022727273 | Z3: 88 | AA3: =Z3/C3 -> 1 | AB3: 80 | AC3: =AB3/C3 -> 0.9090909091 | AE3: 0 | AF3: =AE3/C3 -> 0 | AH3: =cálculos1!O3 -> 5 | AI3: =AH3*0.1 -> 0.5 | AJ3: =cálculos1!P3 -> 1 | AK3: =AJ3*0.25 -> 0.25 | AM3: LEGENDA / HOMOGENEIDADE PQA-VS
A4: Norte | B4: Água Doce do Norte | C4: 38 | D4: 16 | E4: =D4/C4 -> 0.4210526316 | F4: 0 | G4: =F4/C4 -> 0 | H4: 0 | I4: =H4/C4 -> 0 | J4: 18 | K4: 0.4736842105 | L4: 32 | M4: 0.8421052632 | N4: 34 | O4: 0.8947368421 | P4: 42 | Q4: 1.105263158 | R4: 36 | S4: 0.9473684211 | T4: 25 | U4: 0.6578947368 | V4: 41 | W4: 1.078947368 | X4: 39 | Y4: 1.026315789 | Z4: 37 | AA4: 0.9736842105 | AB4: 44 | AC4: =AB4/C4 -> 1.157894737 | AE4: 0 | AF4: 0 | AH4: =cálculos1!O4 -> 5 | AI4: =AH4*0.1 -> 0.5 | AJ4: =cálculos1!P4 -> 2 | AK4: =AJ4*0.25 -> 0.5 | AM4: PERCENTUAL | AN4: Nº DE MUNICÍPIOS
A5: Central | B5: Águia Branca | C5: 52 | D5: 29 | E5: 0.5576923077 | F5: 2 | G5: 0.03846153846 | H5: 0 | I5: 0 | J5: 29 | K5: 0.5576923077 | L5: 47 | M5: 0.9038461538 | N5: 47 | O5: 0.9038461538 | P5: 36 | Q5: 0.6923076923 | R5: 40 | S5: 0.7692307692 | T5: 46 | U5: 0.8846153846 | V5: 24 | W5: 0.4615384615 | X5: 38 | Y5: 0.7307692308 | Z5: 28 | AA5: 0.5384615385 | AB5: 37 | AC5: 0.7115384615 | AE5: 3 | AF5: 0.05769230769 | AH5: =cálculos1!O5 -> 0 | AI5: 0 | AJ5: =cálculos1!P5 -> 0 | AK5: 0 | AM5: 0 | AN5: =COUNTIF($AK$3:$AK$80,"=0") -> 21
A6: Sul | B6: Alegre | C6: 75 | D6: 34 | E6: 0.4533333333 | F6: 4 | G6: 0.05333333333 | H6: 1 | I6: 0.01333333333 | J6: 36 | K6: 0.48 | L6: 80 | M6: 1.066666667 | N6: 79 | O6: 1.053333333 | P6: 67 | Q6: 0.8933333333 | R6: 63 | S6: 0.84 | T6: 82 | U6: 1.093333333 | V6: 76 | W6: 1.013333333 | X6: 73 | Y6: 0.9733333333 | Z6: 72 | AA6: 0.96 | AB6: 64 | AC6: 0.8533333333 | AE6: 9 | AF6: 0.12 | AH6: =cálculos1!O6 -> 6 | AI6: 0.6 | AJ6: =cálculos1!P6 -> 3 | AK6: 0.75 | AM6: 0.25 | AN6: =COUNTIF($AK$3:$AK$80,"=0,25") -> 19
A7: Sul | B7: Alfredo Chaves | C7: 32 | D7: 1 | E7: 0.03125 | F7: 0 | G7: 0 | H7: 0 | I7: 0 | J7: 12 | K7: 0.375 | L7: 26 | M7: 0.8125 | N7: 25 | O7: 0.78125 | P7: 21 | Q7: 0.65625 | R7: 20 | S7: 0.625 | T7: 25 | U7: 0.78125 | V7: 24 | W7: 0.75 | X7: 37 | Y7: 1.15625 | Z7: 29 | AA7: 0.90625 | AB7: 26 | AC7: 0.8125 | AE7: 0 | AF7: 0 | AH7: =cálculos1!O7 -> 1 | AI7: 0.1 | AJ7: =cálculos1!P7 -> 1 | AK7: 0.25 | AM7: 0.5 | AN7: =COUNTIF($AK$3:$AK$80,"=0,5") -> 12
A8: Central | B8: Alto Rio Novo | C8: 24 | D8: 7 | E8: 0.2916666667 | F8: 0 | G8: 0 | H8: 0 | I8: 0 | J8: 7 | K8: 0.2916666667 | L8: 25 | M8: 1.041666667 | N8: 25 | O8: 1.041666667 | P8: 20 | Q8: 0.8333333333 | R8: 26 | S8: 1.083333333 | T8: 25 | U8: 1.041666667 | V8: 18 | W8: 0.75 | X8: 20 | Y8: 0.8333333333 | Z8: 19 | AA8: 0.7916666667 | AB8: 20 | AC8: 0.8333333333 | AE8: 0 | AF8: 0 | AH8: =cálculos1!O8 -> 4 | AI8: 0.4 | AJ8: =cálculos1!P8 -> 2 | AK8: 0.5 | AM8: 0.75 | AN8: =COUNTIF($AK$3:$AK$80,"=0,75") -> 7
A9: Sul | B9: Anchieta | C9: 103 | D9: 14 | E9: 0.1359223301 | F9: 0 | G9: 0 | H9: 0 | I9: 0 | J9: 43 | K9: 0.4174757282 | L9: 75 | M9: 0.7281553398 | N9: 71 | O9: 0.6893203883 | P9: 78 | Q9: 0.7572815534 | R9: 70 | S9: 0.6796116505 | T9: 80 | U9: 0.7766990291 | V9: 111 | W9: 1.077669903 | X9: 98 | Y9: 0.9514563107 | Z9: 120 | AA9: 1.165048544 | AB9: 81 | AC9: 0.786407767 | AE9: 0 | AF9: 0 | AH9: =cálculos1!O9 -> 3 | AI9: 0.3 | AJ9: =cálculos1!P9 -> 1 | AK9: 0.25 | AM9: 1 | AN9: =COUNTIF($AK$3:$AK$80,"=1,0") -> 19
A10: Sul | B10: Apiacá | C10: 11 | D10: 4 | E10: 0.3636363636 | F10: 0 | G10: 0 | H10: 0 | I10: 0 | J10: 20 | K10: 1.818181818 | L10: 16 | M10: 1.454545455 | N10: 13 | O10: 1.181818182 | P10: 19 | Q10: 1.727272727 | R10: 23 | S10: 2.090909091 | T10: 14 | U10: 1.272727273 | V10: 20 | W10: 1.818181818 | X10: 23 | Y10: 2.090909091 | Z10: 14 | AA10: 1.272727273 | AB10: 19 | AC10: 1.727272727 | AE10: 0 | AF10: 0 | AH10: =cálculos1!O10 -> 10 | AI10: 1 | AJ10: =cálculos1!P10 -> 4 | AK10: 1
A11: Metropolitana | B11: Aracruz | C11: 387 | D11: 307 | E11: 0.7932816537 | F11: 126 | G11: 0.3255813953 | H11: 71 | I11: 0.1834625323 | J11: 315 | K11: 0.8139534884 | L11: 348 | M11: 0.8992248062 | N11: 336 | O11: 0.8682170543 | P11: 299 | Q11: 0.7726098191 | R11: 318 | S11: 0.8217054264 | T11: 301 | U11: 0.7777777778 | V11: 319 | W11: 0.8242894057 | X11: 371 | Y11: 0.9586563307 | Z11: 316 | AA11: 0.8165374677 | AB11: 312 | AC11: 0.8062015504 | AE11: 12 | AF11: 0.03100775194 | AH11: =cálculos1!O11 -> 1 | AI11: 0.1 | AJ11: =cálculos1!P11 -> 1 | AK11: 0.25
A12: Sul | B12: Atilio Vivacqua | C12: 47 | D12: 1 | E12: 0.02127659574 | F12: 0 | G12: 0 | H12: 0 | I12: 0 | J12: 1 | K12: 0.02127659574 | L12: 32 | M12: 0.6808510638 | N12: 32 | O12: 0.6808510638 | P12: 24 | Q12: 0.5106382979 | R12: 33 | S12: 0.7021276596 | T12: 39 | U12: 0.829787234 | V12: 45 | W12: 0.9574468085 | X12: 49 | Y12: 1.042553191 | Z12: 49 | AA12: 1.042553191 | AB12: 24 | AC12: 0.5106382979 | AE12: 0 | AF12: 0 | AH12: =cálculos1!O12 -> 3 | AI12: 0.3 | AJ12: =cálculos1!P12 -> 1 | AK12: 0.25 | AM12: LEGENDA / HOMOGENEIDADE 10 VACINAS
A13: Central | B13: Baixo Guandu | C13: 89 | D13: 14 | E13: 0.1573033708 | F13: 1 | G13: 0.01123595506 | H13: 1 | I13: 0.01123595506 | J13: 35 | K13: 0.393258427 | L13: 81 | M13: 0.9101123596 | N13: 79 | O13: 0.8876404494 | P13: 91 | Q13: 1.02247191 | R13: 87 | S13: 0.9775280899 | T13: 105 | U13: 1.179775281 | V13: 75 | W13: 0.8426966292 | X13: 92 | Y13: 1.033707865 | Z13: 84 | AA13: 0.9438202247 | AB13: 89 | AC13: 1 | AE13: 0 | AF13: 0 | AH13: =cálculos1!O13 -> 5 | AI13: 0.5 | AJ13: =cálculos1!P13 -> 2 | AK13: 0.5 | AM13: PERCENTUAL | AN13: Nº DE MUNICÍPIOS
A14: Norte | B14: Barra de São Francisco | C14: 158 | D14: 59 | E14: 0.3734177215 | F14: 8 | G14: 0.05063291139 | H14: 2 | I14: 0.01265822785 | J14: 61 | K14: 0.3860759494 | L14: 127 | M14: 0.8037974684 | N14: 129 | O14: 0.8164556962 | P14: 136 | Q14: 0.8607594937 | R14: 125 | S14: 0.7911392405 | T14: 142 | U14: 0.8987341772 | V14: 109 | W14: 0.6898734177 | X14: 137 | Y14: 0.8670886076 | Z14: 109 | AA14: 0.6898734177 | AB14: 137 | AC14: 0.8670886076 | AE14: 0 | AF14: 0 | AH14: =cálculos1!O14 -> 0 | AI14: 0 | AJ14: =cálculos1!P14 -> 0 | AK14: 0 | AM14: 0 | AN14: =COUNTIF($AI$3:$AI$80,"=0") -> 12
A15: Norte | B15: Boa Esperança | C15: 55 | D15: 1 | E15: 0.01818181818 | F15: 1 | G15: 0.01818181818 | H15: 1 | I15: 0.01818181818 | J15: 16 | K15: 0.2909090909 | L15: 50 | M15: 0.9090909091 | N15: 44 | O15: 0.8 | P15: 55 | Q15: 1 | R15: 54 | S15: 0.9818181818 | T15: 52 | U15: 0.9454545455 | V15: 50 | W15: 0.9090909091 | X15: 58 | Y15: 1.054545455 | Z15: 47 | AA15: 0.8545454545 | AB15: 57 | AC15: 1.036363636 | AE15: 0 | AF15: 0 | AH15: =cálculos1!O15 -> 4 | AI15: 0.4 | AJ15: =cálculos1!P15 -> 2 | AK15: 0.5 | AM15: 0.1 | AN15: =COUNTIFS($AI$3:$AI$80,">=0,10",$AI$3:$AI$80,"<0,20") -> 11
A16: Sul | B16: Bom Jesus do Norte | C16: 5 | D16: 8 | E16: 1.6 | F16: 0 | G16: 0 | H16: 0 | I16: 0 | J16: 22 | K16: 4.4 | L16: 26 | M16: 5.2 | N16: 27 | O16: 5.4 | P16: 31 | Q16: 6.2 | R16: 33 | S16: 6.6 | T16: 22 | U16: 4.4 | V16: 18 | W16: 3.6 | X16: 22 | Y16: 4.4 | Z16: 15 | AA16: 3 | AB16: 36 | AC16: 7.2 | AE16: 0 | AF16: 0 | AH16: =cálculos1!O16 -> 10 | AI16: 1 | AJ16: =cálculos1!P16 -> 4 | AK16: 1 | AM16: 0.2 | AN16: =COUNTIFS($AI$3:$AI$80,">=0,20",$AI$3:$AI$80,"<0,30") -> 10
A17: Metropolitana | B17: Brejetuba | C17: 53 | D17: 8 | E17: 0.1509433962 | F17: 0 | G17: 0 | H17: 0 | I17: 0 | J17: 46 | K17: 0.8679245283 | L17: 76 | M17: 1.433962264 | N17: 74 | O17: 1.396226415 | P17: 70 | Q17: 1.320754717 | R17: 70 | S17: 1.320754717 | T17: 61 | U17: 1.150943396 | V17: 75 | W17: 1.41509434 | X17: 76 | Y17: 1.433962264 | Z17: 68 | AA17: 1.283018868 | AB17: 71 | AC17: 1.339622642 | AE17: 0 | AF17: 0 | AH17: =cálculos1!O17 -> 9 | AI17: 0.9 | AJ17: =cálculos1!P17 -> 4 | AK17: 1 | AM17: 0.3 | AN17: =COUNTIFS($AI$3:$AI$80,">=0,30",$AI$3:$AI$80,"<0,40") -> 5
A18: Sul | B18: Cachoeiro de Itapemirim | C18: 578 | D18: 1275 | E18: 2.205882353 | F18: 1141 | G18: 1.974048443 | H18: 667 | I18: 1.153979239 | J18: 1268 | K18: 2.193771626 | L18: 594 | M18: 1.027681661 | N18: 585 | O18: 1.012110727 | P18: 560 | Q18: 0.9688581315 | R18: 560 | S18: 0.9688581315 | T18: 446 | U18: 0.7716262976 | V18: 486 | W18: 0.8408304498 | X18: 546 | Y18: 0.9446366782 | Z18: 501 | AA18: 0.8667820069 | AB18: 576 | AC18: 0.9965397924 | AE18: 12 | AF18: 0.02076124567 | AH18: =cálculos1!O18 -> 6 | AI18: 0.6 | AJ18: =cálculos1!P18 -> 3 | AK18: 0.75 | AM18: 0.4 | AN18: =COUNTIFS($AI$3:$AI$80,">=0,40",$AI$3:$AI$80,"<0,50") -> 7
A19: Metropolitana | B19: Cariacica | C19: 1202 | D19: 484 | E19: 0.4026622296 | F19: 12 | G19: 0.009983361065 | H19: 3 | I19: 0.002495840266 | J19: 471 | K19: 0.3918469218 | L19: 1002 | M19: 0.8336106489 | N19: 990 | O19: 0.8236272879 | P19: 1016 | Q19: 0.8452579035 | R19: 1053 | S19: 0.8760399334 | T19: 933 | U19: 0.7762063228 | V19: 984 | W19: 0.8186356073 | X19: 1189 | Y19: 0.9891846922 | Z19: 981 | AA19: 0.8161397671 | AB19: 1077 | AC19: 0.8960066556 | AE19: 20 | AF19: 0.01663893511 | AH19: =cálculos1!O19 -> 1 | AI19: 0.1 | AJ19: =cálculos1!P19 -> 1 | AK19: 0.25 | AM19: 0.5 | AN19: =COUNTIFS($AI$3:$AI$80,">=0,50",$AI$3:$AI$80,"<0,60") -> 4
A20: Sul | B20: Castelo | C20: 114 | D20: 72 | E20: 0.6315789474 | F20: 51 | G20: 0.4473684211 | H20: 29 | I20: 0.2543859649 | J20: 80 | K20: 0.701754386 | L20: 107 | M20: 0.9385964912 | N20: 107 | O20: 0.9385964912 | P20: 120 | Q20: 1.052631579 | R20: 110 | S20: 0.9649122807 | T20: 93 | U20: 0.8157894737 | V20: 93 | W20: 0.8157894737 | X20: 116 | Y20: 1.01754386 | Z20: 103 | AA20: 0.9035087719 | AB20: 118 | AC20: 1.035087719 | AE20: 1 | AF20: 0.008771929825 | AH20: =cálculos1!O20 -> 4 | AI20: 0.4 | AJ20: =cálculos1!P20 -> 2 | AK20: 0.5 | AM20: 0.6 | AN20: =COUNTIFS($AI$3:$AI$80,">=0,60",$AI$3:$AI$80,"<0,70") -> 9
A21: Central | B21: Colatina | C21: 366 | D21: 936 | E21: 2.557377049 | F21: 700 | G21: 1.912568306 | H21: 556 | I21: 1.519125683 | J21: 929 | K21: 2.538251366 | L21: 368 | M21: 1.005464481 | N21: 368 | O21: 1.005464481 | P21: 371 | Q21: 1.013661202 | R21: 363 | S21: 0.9918032787 | T21: 310 | U21: 0.8469945355 | V21: 311 | W21: 0.849726776 | X21: 325 | Y21: 0.8879781421 | Z21: 313 | AA21: 0.8551912568 | AB21: 368 | AC21: 1.005464481 | AE21: 8 | AF21: 0.0218579235 | AH21: =cálculos1!O21 -> 6 | AI21: 0.6 | AJ21: =cálculos1!P21 -> 3 | AK21: 0.75 | AM21: 0.7 | AN21: =COUNTIFS($AI$3:$AI$80,">=0,70",$AI$3:$AI$80,"<0,80") -> 2
A22: Norte | B22: Conceição da Barra | C22: 99 | D22: 3 | E22: 0.0303030303 | F22: 0 | G22: 0 | H22: 0 | I22: 0 | J22: 7 | K22: 0.07070707071 | L22: 93 | M22: 0.9393939394 | N22: 93 | O22: 0.9393939394 | P22: 100 | Q22: 1.01010101 | R22: 101 | S22: 1.02020202 | T22: 121 | U22: 1.222222222 | V22: 97 | W22: 0.9797979798 | X22: 90 | Y22: 0.9090909091 | Z22: 111 | AA22: 1.121212121 | AB22: 105 | AC22: 1.060606061 | AE22: 0 | AF22: 0 | AH22: =cálculos1!O22 -> 6 | AI22: 0.6 | AJ22: =cálculos1!P22 -> 1 | AK22: 0.25 | AM22: 0.8 | AN22: =COUNTIFS($AI$3:$AI$80,">=0,80",$AI$3:$AI$80,"<0,90") -> 5
A23: Metropolitana | B23: Conceição do Castelo | C23: 41 | D23: 2 | E23: 0.0487804878 | F23: 0 | G23: 0 | H23: 0 | I23: 0 | J23: 23 | K23: 0.5609756098 | L23: 37 | M23: 0.9024390244 | N23: 36 | O23: 0.8780487805 | P23: 39 | Q23: 0.9512195122 | R23: 39 | S23: 0.9512195122 | T23: 33 | U23: 0.8048780488 | V23: 40 | W23: 0.9756097561 | X23: 42 | Y23: 1.024390244 | Z23: 39 | AA23: 0.9512195122 | AB23: 45 | AC23: 1.097560976 | AE23: 1 | AF23: 0.0243902439 | AH23: =cálculos1!O23 -> 6 | AI23: 0.6 | AJ23: =cálculos1!P23 -> 2 | AK23: 0.5 | AM23: 0.9 | AN23: =COUNTIFS($AI$3:$AI$80,">=0,90",$AI$3:$AI$80,"<1,0") -> 10
A24: Sul | B24: Divino de São Lourenço | C24: 12 | D24: 8 | E24: 0.6666666667 | F24: 0 | G24: 0 | H24: 0 | I24: 0 | J24: 10 | K24: 0.8333333333 | L24: 17 | M24: 1.416666667 | N24: 17 | O24: 1.416666667 | P24: 27 | Q24: 2.25 | R24: 27 | S24: 2.25 | T24: 15 | U24: 1.25 | V24: 12 | W24: 1 | X24: 15 | Y24: 1.25 | Z24: 13 | AA24: 1.083333333 | AB24: 27 | AC24: 2.25 | AE24: 1 | AF24: 0.08333333333 | AH24: =cálculos1!O24 -> 9 | AI24: 0.9 | AJ24: =cálculos1!P24 -> 4 | AK24: 1 | AM24: 1 | AN24: =COUNTIF($AI$3:$AI$80,">=1,0") -> 3
A25: Metropolitana | B25: Domingos Martins | C25: 111 | D25: 11 | E25: 0.0990990991 | F25: 1 | G25: 0.009009009009 | H25: 0 | I25: 0 | J25: 18 | K25: 0.1621621622 | L25: 85 | M25: 0.7657657658 | N25: 83 | O25: 0.7477477477 | P25: 96 | Q25: 0.8648648649 | R25: 74 | S25: 0.6666666667 | T25: 107 | U25: 0.963963964 | V25: 100 | W25: 0.9009009009 | X25: 103 | Y25: 0.9279279279 | Z25: 89 | AA25: 0.8018018018 | AB25: 97 | AC25: 0.8738738739 | AE25: 9 | AF25: 0.08108108108 | AH25: =cálculos1!O25 -> 1 | AI25: 0.1 | AJ25: =cálculos1!P25 -> 0 | AK25: 0
A26: Sul | B26: Dores do Rio Preto | C26: 25 | D26: 11 | E26: 0.44 | F26: 0 | G26: 0 | H26: 0 | I26: 0 | J26: 15 | K26: 0.6 | L26: 25 | M26: 1 | N26: 23 | O26: 0.92 | P26: 21 | Q26: 0.84 | R26: 25 | S26: 1 | T26: 21 | U26: 0.84 | V26: 29 | W26: 1.16 | X26: 35 | Y26: 1.4 | Z26: 26 | AA26: 1.04 | AB26: 21 | AC26: 0.84 | AE26: 2 | AF26: 0.08 | AH26: =cálculos1!O26 -> 5 | AI26: 0.5 | AJ26: =cálculos1!P26 -> 2 | AK26: 0.5
A27: Norte | B27: Ecoporanga | C27: 77 | D27: 25 | E27: 0.3246753247 | F27: 0 | G27: 0 | H27: 0 | I27: 0 | J27: 29 | K27: 0.3766233766 | L27: 58 | M27: 0.7532467532 | N27: 60 | O27: 0.7792207792 | P27: 43 | Q27: 0.5584415584 | R27: 53 | S27: 0.6883116883 | T27: 61 | U27: 0.7922077922 | V27: 71 | W27: 0.9220779221 | X27: 64 | Y27: 0.8311688312 | Z27: 60 | AA27: 0.7792207792 | AB27: 46 | AC27: 0.5974025974 | AE27: 1 | AF27: 0.01298701299 | AH27: =cálculos1!O27 -> 0 | AI27: 0 | AJ27: =cálculos1!P27 -> 0 | AK27: 0
A28: Metropolitana | B28: Fundão | C28: 66 | D28: 10 | E28: 0.1515151515 | F28: 1 | G28: 0.01515151515 | H28: 0 | I28: 0 | J28: 9 | K28: 0.1363636364 | L28: 48 | M28: 0.7272727273 | N28: 50 | O28: 0.7575757576 | P28: 44 | Q28: 0.6666666667 | R28: 61 | S28: 0.9242424242 | T28: 51 | U28: 0.7727272727 | V28: 60 | W28: 0.9090909091 | X28: 70 | Y28: 1.060606061 | Z28: 60 | AA28: 0.9090909091 | AB28: 51 | AC28: 0.7727272727 | AE28: 5 | AF28: 0.07575757576 | AH28: =cálculos1!O28 -> 1 | AI28: 0.1 | AJ28: =cálculos1!P28 -> 1 | AK28: 0.25
A29: Central | B29: Governador Lindenberg | C29: 37 | D29: 13 | E29: 0.3513513514 | F29: 0 | G29: 0 | H29: 0 | I29: 0 | J29: 9 | K29: 0.2432432432 | L29: 39 | M29: 1.054054054 | N29: 40 | O29: 1.081081081 | P29: 29 | Q29: 0.7837837838 | R29: 44 | S29: 1.189189189 | T29: 28 | U29: 0.7567567568 | V29: 27 | W29: 0.7297297297 | X29: 24 | Y29: 0.6486486486 | Z29: 25 | AA29: 0.6756756757 | AB29: 34 | AC29: 0.9189189189 | AE29: 0 | AF29: 0 | AH29: =cálculos1!O29 -> 4 | AI29: 0.4 | AJ29: =cálculos1!P29 -> 2 | AK29: 0.5
A30: Sul | B30: Guaçuí | C30: 79 | D30: 70 | E30: 0.8860759494 | F30: 7 | G30: 0.08860759494 | H30: 4 | I30: 0.05063291139 | J30: 72 | K30: 0.9113924051 | L30: 96 | M30: 1.215189873 | N30: 96 | O30: 1.215189873 | P30: 96 | Q30: 1.215189873 | R30: 93 | S30: 1.17721519 | T30: 79 | U30: 1 | V30: 79 | W30: 1 | X30: 80 | Y30: 1.012658228 | Z30: 92 | AA30: 1.164556962 | AB30: 98 | AC30: 1.240506329 | AE30: 0 | AF30: 0 | AH30: =cálculos1!O30 -> 10 | AI30: 1 | AJ30: =cálculos1!P30 -> 4 | AK30: 1
A31: Metropolitana | B31: Guarapari | C31: 471 | D31: 350 | E31: 0.7430997877 | F31: 316 | G31: 0.6709129512 | H31: 301 | I31: 0.6390658174 | J31: 337 | K31: 0.7154989384 | L31: 384 | M31: 0.8152866242 | N31: 374 | O31: 0.7940552017 | P31: 391 | Q31: 0.83014862 | R31: 387 | S31: 0.821656051 | T31: 279 | U31: 0.5923566879 | V31: 342 | W31: 0.7261146497 | X31: 390 | Y31: 0.8280254777 | Z31: 277 | AA31: 0.5881104034 | AB31: 394 | AC31: 0.8365180467 | AE31: 4 | AF31: 0.008492569002 | AH31: =cálculos1!O31 -> 0 | AI31: 0 | AJ31: =cálculos1!P31 -> 0 | AK31: 0
A32: Metropolitana | B32: Ibatiba | C32: 83 | D32: 60 | E32: 0.7228915663 | F32: 1 | G32: 0.01204819277 | H32: 0 | I32: 0 | J32: 68 | K32: 0.8192771084 | L32: 114 | M32: 1.373493976 | N32: 114 | O32: 1.373493976 | P32: 115 | Q32: 1.385542169 | R32: 112 | S32: 1.34939759 | T32: 104 | U32: 1.253012048 | V32: 93 | W32: 1.120481928 | X32: 104 | Y32: 1.253012048 | Z32: 128 | AA32: 1.542168675 | AB32: 114 | AC32: 1.373493976 | AE32: 0 | AF32: 0 | AH32: =cálculos1!O32 -> 9 | AI32: 0.9 | AJ32: =cálculos1!P32 -> 4 | AK32: 1
A33: Metropolitana | B33: Ibiraçu | C33: 26 | D33: 12 | E33: 0.4615384615 | F33: 0 | G33: 0 | H33: 0 | I33: 0 | J33: 13 | K33: 0.5 | L33: 27 | M33: 1.038461538 | N33: 27 | O33: 1.038461538 | P33: 32 | Q33: 1.230769231 | R33: 32 | S33: 1.230769231 | T33: 29 | U33: 1.115384615 | V33: 40 | W33: 1.538461538 | X33: 26 | Y33: 1 | Z33: 41 | AA33: 1.576923077 | AB33: 33 | AC33: 1.269230769 | AE33: 0 | AF33: 0 | AH33: =cálculos1!O33 -> 9 | AI33: 0.9 | AJ33: =cálculos1!P33 -> 4 | AK33: 1
A34: Sul | B34: Ibitirama | C34: 38 | D34: 28 | E34: 0.7368421053 | F34: 1 | G34: 0.02631578947 | H34: 0 | I34: 0 | J34: 33 | K34: 0.8684210526 | L34: 33 | M34: 0.8684210526 | N34: 33 | O34: 0.8684210526 | P34: 29 | Q34: 0.7631578947 | R34: 27 | S34: 0.7105263158 | T34: 31 | U34: 0.8157894737 | V34: 42 | W34: 1.105263158 | X34: 37 | Y34: 0.9736842105 | Z34: 45 | AA34: 1.184210526 | AB34: 29 | AC34: 0.7631578947 | AE34: 2 | AF34: 0.05263157895 | AH34: =cálculos1!O34 -> 3 | AI34: 0.3 | AJ34: =cálculos1!P34 -> 1 | AK34: 0.25
A35: Sul | B35: Iconha | C35: 26 | D35: 8 | E35: 0.3076923077 | F35: 0 | G35: 0 | H35: 0 | I35: 0 | J35: 13 | K35: =J35/C35 -> 0.5 | L35: 29 | M35: =L35/C35 -> 1.115384615 | N35: 28 | O35: =N35/C35 -> 1.076923077 | P35: 29 | Q35: =P35/C35 -> 1.115384615 | R35: 34 | S35: =R35/C35 -> 1.307692308 | T35: 36 | U35: =T35/C35 -> 1.384615385 | V35: 32 | W35: =V35/C35 -> 1.230769231 | X35: 31 | Y35: =X35/C35 -> 1.192307692 | Z35: 29 | AA35: =Z35/C35 -> 1.115384615 | AB35: 31 | AC35: 1.192307692 | AE35: 1 | AF35: =AE35/C35 -> 0.03846153846 | AH35: =cálculos1!O35 -> 9 | AI35: 0.9 | AJ35: =cálculos1!P35 -> 4 | AK35: 1
A36: Sul | B36: Irupi | C36: 32 | D36: 20 | E36: 0.625 | F36: 2 | G36: 0.0625 | H36: 2 | I36: 0.0625 | J36: 23 | K36: 0.71875 | L36: 64 | M36: 2 | N36: 65 | O36: 2.03125 | P36: 59 | Q36: 1.84375 | R36: 64 | S36: 2 | T36: 58 | U36: 1.8125 | V36: 31 | W36: 0.96875 | X36: 41 | Y36: 1.28125 | Z36: 40 | AA36: 1.25 | AB36: 59 | AC36: 1.84375 | AE36: 1 | AF36: 0.03125 | AH36: =cálculos1!O36 -> 9 | AI36: 0.9 | AJ36: =cálculos1!P36 -> 4 | AK36: 1
A37: Metropolitana | B37: Itaguaçu | C37: 36 | D37: 4 | E37: 0.1111111111 | F37: 0 | G37: 0 | H37: 0 | I37: 0 | J37: 5 | K37: 0.1388888889 | L37: 24 | M37: 0.6666666667 | N37: 24 | O37: 0.6666666667 | P37: 31 | Q37: 0.8611111111 | R37: 26 | S37: 0.7222222222 | T37: 29 | U37: 0.8055555556 | V37: 29 | W37: 0.8055555556 | X37: 29 | Y37: 0.8055555556 | Z37: 31 | AA37: 0.8611111111 | AB37: 34 | AC37: 0.9444444444 | AE37: 0 | AF37: 0 | AH37: =cálculos1!O37 -> 1 | AI37: 0.1 | AJ37: =cálculos1!P37 -> 0 | AK37: 0
A38: Sul | B38: Itapemirim | C38: 140 | D38: 188 | E38: 1.342857143 | F38: 173 | G38: 1.235714286 | H38: 173 | I38: 1.235714286 | J38: 81 | K38: 0.5785714286 | L38: 121 | M38: 0.8642857143 | N38: 115 | O38: 0.8214285714 | P38: 111 | Q38: 0.7928571429 | R38: 117 | S38: 0.8357142857 | T38: 91 | U38: 0.65 | V38: 134 | W38: 0.9571428571 | X38: 149 | Y38: 1.064285714 | Z38: 120 | AA38: 0.8571428571 | AB38: 119 | AC38: 0.85 | AE38: 0 | AF38: 0 | AH38: =cálculos1!O38 -> 2 | AI38: 0.2 | AJ38: =cálculos1!P38 -> 1 | AK38: 0.25
A39: Metropolitana | B39: Itarana | C39: 37 | D39: 4 | E39: 0.1081081081 | F39: 0 | G39: 0 | H39: 0 | I39: 0 | J39: 4 | K39: 0.1081081081 | L39: 24 | M39: 0.6486486486 | N39: 25 | O39: 0.6756756757 | P39: 32 | Q39: 0.8648648649 | R39: 29 | S39: 0.7837837838 | T39: 28 | U39: 0.7567567568 | V39: 21 | W39: 0.5675675676 | X39: 26 | Y39: 0.7027027027 | Z39: 19 | AA39: 0.5135135135 | AB39: 33 | AC39: 0.8918918919 | AE39: 0 | AF39: 0 | AH39: =cálculos1!O39 -> 0 | AI39: 0 | AJ39: =cálculos1!P39 -> 0 | AK39: 0
A40: Sul | B40: Iúna | C40: 71 | D40: 55 | E40: 0.7746478873 | F40: 2 | G40: 0.02816901408 | H40: 0 | I40: 0 | J40: 61 | K40: 0.8591549296 | L40: 85 | M40: 1.197183099 | N40: 84 | O40: 1.183098592 | P40: 71 | Q40: 1 | R40: 85 | S40: 1.197183099 | T40: 101 | U40: 1.422535211 | V40: 93 | W40: 1.309859155 | X40: 96 | Y40: 1.352112676 | Z40: 101 | AA40: 1.422535211 | AB40: 73 | AC40: 1.028169014 | AE40: 0 | AF40: 0 | AH40: =cálculos1!O40 -> 9 | AI40: 0.9 | AJ40: =cálculos1!P40 -> 4 | AK40: 1
A41: Norte | B41: Jaguaré | C41: 141 | D41: 101 | E41: 0.7163120567 | F41: 88 | G41: 0.6241134752 | H41: 88 | I41: 0.6241134752 | J41: 97 | K41: 0.6879432624 | L41: 98 | M41: 0.695035461 | N41: 96 | O41: 0.6808510638 | P41: 113 | Q41: 0.8014184397 | R41: 100 | S41: 0.7092198582 | T41: 81 | U41: 0.5744680851 | V41: 92 | W41: 0.6524822695 | X41: 120 | Y41: 0.8510638298 | Z41: 100 | AA41: 0.7092198582 | AB41: 120 | AC41: 0.8510638298 | AE41: 1 | AF41: 0.007092198582 | AH41: =cálculos1!O41 -> 0 | AI41: 0 | AJ41: =cálculos1!P41 -> 0 | AK41: 0
A42: Sul | B42: Jerônimo Monteiro | C42: 40 | D42: 11 | E42: 0.275 | F42: 0 | G42: 0 | H42: 0 | I42: 0 | J42: 12 | K42: 0.3 | L42: 29 | M42: 0.725 | N42: 30 | O42: 0.75 | P42: 25 | Q42: 0.625 | R42: 28 | S42: 0.7 | T42: 20 | U42: 0.5 | V42: 32 | W42: 0.8 | X42: 37 | Y42: 0.925 | Z42: 35 | AA42: 0.875 | AB42: 26 | AC42: 0.65 | AE42: 1 | AF42: 0.025 | AH42: =cálculos1!O42 -> 0 | AI42: 0 | AJ42: =cálculos1!P42 -> 0 | AK42: 0
A43: Metropolitana | B43: João Neiva | C43: 38 | D43: 18 | E43: 0.4736842105 | F43: 3 | G43: 0.07894736842 | H43: 1 | I43: 0.02631578947 | J43: 17 | K43: 0.4473684211 | L43: 30 | M43: 0.7894736842 | N43: 30 | O43: 0.7894736842 | P43: 35 | Q43: 0.9210526316 | R43: 33 | S43: 0.8684210526 | T43: 40 | U43: 1.052631579 | V43: 28 | W43: 0.7368421053 | X43: 25 | Y43: 0.6578947368 | Z43: 28 | AA43: 0.7368421053 | AB43: 36 | AC43: 0.9473684211 | AE43: 0 | AF43: 0 | AH43: =cálculos1!O43 -> 2 | AI43: 0.2 | AJ43: =cálculos1!P43 -> 0 | AK43: 0
A44: Metropolitana | B44: Laranja da Terra | C44: 25 | D44: 1 | E44: 0.04 | F44: 0 | G44: 0 | H44: 0 | I44: 0 | J44: 6 | K44: 0.24 | L44: 27 | M44: 1.08 | N44: 27 | O44: 1.08 | P44: 23 | Q44: 0.92 | R44: 19 | S44: 0.76 | T44: 38 | U44: 1.52 | V44: 34 | W44: 1.36 | X44: 26 | Y44: 1.04 | Z44: 36 | AA44: 1.44 | AB44: 30 | AC44: 1.2 | AE44: 3 | AF44: 0.12 | AH44: =cálculos1!O44 -> 7 | AI44: 0.7 | AJ44: =cálculos1!P44 -> 3 | AK44: 0.75
A45: Central | B45: Linhares | C45: 669 | D45: 883 | E45: 1.319880419 | F45: 682 | G45: 1.019431988 | H45: 546 | I45: 0.8161434978 | J45: 885 | K45: 1.322869955 | L45: 649 | M45: 0.9701046338 | N45: 623 | O45: 0.9312406577 | P45: 580 | Q45: 0.8669656203 | R45: 634 | S45: 0.9476831091 | T45: 463 | U45: 0.692077728 | V45: 561 | W45: 0.8385650224 | X45: 602 | Y45: 0.8998505232 | Z45: 587 | AA45: 0.8774289985 | AB45: 590 | AC45: 0.8819133034 | AE45: 3 | AF45: 0.004484304933 | AH45: =cálculos1!O45 -> 2 | AI45: 0.2 | AJ45: =cálculos1!P45 -> 1 | AK45: 0.25
A46: Central | B46: Mantenópolis | C46: 38 | D46: 13 | E46: 0.3421052632 | F46: 0 | G46: 0 | H46: 0 | I46: 0 | J46: 12 | K46: 0.3157894737 | L46: 35 | M46: 0.9210526316 | N46: 33 | O46: 0.8684210526 | P46: 41 | Q46: 1.078947368 | R46: 39 | S46: 1.026315789 | T46: 35 | U46: 0.9210526316 | V46: 27 | W46: 0.7105263158 | X46: 38 | Y46: 1 | Z46: 23 | AA46: 0.6052631579 | AB46: 40 | AC46: 1.052631579 | AE46: 0 | AF46: 0 | AH46: =cálculos1!O46 -> 4 | AI46: 0.4 | AJ46: =cálculos1!P46 -> 2 | AK46: 0.5
A47: Sul | B47: Marataízes | C47: 155 | D47: 12 | E47: 0.07741935484 | F47: 0 | G47: 0 | H47: 0 | I47: 0 | J47: 64 | K47: 0.4129032258 | L47: 145 | M47: 0.935483871 | N47: 149 | O47: 0.9612903226 | P47: 166 | Q47: 1.070967742 | R47: 150 | S47: 0.9677419355 | T47: 78 | U47: 0.5032258065 | V47: 122 | W47: 0.7870967742 | X47: 123 | Y47: 0.7935483871 | Z47: 120 | AA47: 0.7741935484 | AB47: 162 | AC47: 1.04516129 | AE47: 0 | AF47: 0 | AH47: =cálculos1!O47 -> 4 | AI47: 0.4 | AJ47: =cálculos1!P47 -> 2 | AK47: 0.5
A48: Metropolitana | B48: Marechal Floriano | C48: 44 | D48: 8 | E48: 0.1818181818 | F48: 0 | G48: 0 | H48: 0 | I48: 0 | J48: 10 | K48: 0.2272727273 | L48: 51 | M48: 1.159090909 | N48: 46 | O48: 1.045454545 | P48: 40 | Q48: 0.9090909091 | R48: 47 | S48: 1.068181818 | T48: 53 | U48: 1.204545455 | V48: 32 | W48: 0.7272727273 | X48: 56 | Y48: 1.272727273 | Z48: 38 | AA48: 0.8636363636 | AB48: 43 | AC48: 0.9772727273 | AE48: 2 | AF48: 0.04545454545 | AH48: =cálculos1!O48 -> 6 | AI48: 0.6 | AJ48: =cálculos1!P48 -> 3 | AK48: 0.75
A49: Central | B49: Marilândia | C49: 45 | D49: 11 | E49: 0.2444444444 | F49: 1 | G49: 0.02222222222 | H49: 0 | I49: 0 | J49: 14 | K49: 0.3111111111 | L49: 31 | M49: 0.6888888889 | N49: 32 | O49: 0.7111111111 | P49: 26 | Q49: 0.5777777778 | R49: 26 | S49: 0.5777777778 | T49: 46 | U49: 1.022222222 | V49: 35 | W49: 0.7777777778 | X49: 34 | Y49: 0.7555555556 | Z49: 38 | AA49: 0.8444444444 | AB49: 36 | AC49: 0.8 | AE49: 7 | AF49: 0.1555555556 | AH49: =cálculos1!O49 -> 1 | AI49: 0.1 | AJ49: =cálculos1!P49 -> 0 | AK49: 0
A50: Sul | B50: Mimoso do Sul | C50: 87 | D50: 8 | E50: 0.09195402299 | F50: 2 | G50: 0.02298850575 | H50: 0 | I50: 0 | J50: 16 | K50: 0.183908046 | L50: 58 | M50: 0.6666666667 | N50: 60 | O50: 0.6896551724 | P50: 34 | Q50: 0.3908045977 | R50: 47 | S50: 0.5402298851 | T50: 65 | U50: 0.7471264368 | V50: 54 | W50: 0.6206896552 | X50: 77 | Y50: 0.8850574713 | Z50: 48 | AA50: 0.5517241379 | AB50: 33 | AC50: 0.3793103448 | AE50: 0 | AF50: 0 | AH50: =cálculos1!O50 -> 0 | AI50: 0 | AJ50: =cálculos1!P50 -> 0 | AK50: 0
A51: Norte | B51: Montanha | C51: 42 | D51: 16 | E51: 0.380952381 | F51: 0 | G51: 0 | H51: 0 | I51: 0 | J51: 16 | K51: 0.380952381 | L51: 66 | M51: 1.571428571 | N51: 68 | O51: 1.619047619 | P51: 85 | Q51: 2.023809524 | R51: 68 | S51: 1.619047619 | T51: 60 | U51: 1.428571429 | V51: 61 | W51: 1.452380952 | X51: 55 | Y51: 1.30952381 | Z51: 64 | AA51: 1.523809524 | AB51: 81 | AC51: 1.928571429 | AE51: 0 | AF51: 0 | AH51: =cálculos1!O51 -> 9 | AI51: 0.9 | AJ51: =cálculos1!P51 -> 4 | AK51: 1
A52: Norte | B52: Mucurici | C52: 20 | D52: 1 | E52: 0.05 | F52: 1 | G52: 0.05 | H52: 0 | I52: 0 | J52: 0 | K52: 0 | L52: 7 | M52: 0.35 | N52: 8 | O52: 0.4 | P52: 11 | Q52: 0.55 | R52: 12 | S52: =R52/C52 -> 0.6 | T52: 13 | U52: 0.65 | V52: 18 | W52: 0.9 | X52: 10 | Y52: 0.5 | Z52: 17 | AA52: 0.85 | AB52: 10 | AC52: 0.5 | AE52: 0 | AF52: 0 | AH52: =cálculos1!O52 -> 0 | AI52: 0 | AJ52: =cálculos1!P52 -> 0 | AK52: 0
A53: Sul | B53: Muniz Freire | C53: 49 | D53: 24 | E53: 0.4897959184 | F53: 1 | G53: 0.02040816327 | H53: 0 | I53: 0 | J53: 34 | K53: 0.693877551 | L53: 86 | M53: 1.755102041 | N53: 85 | O53: 1.734693878 | P53: 61 | Q53: 1.244897959 | R53: 69 | S53: 1.408163265 | T53: 62 | U53: 1.265306122 | V53: 57 | W53: 1.163265306 | X53: 63 | Y53: 1.285714286 | Z53: 100 | AA53: 2.040816327 | AB53: 62 | AC53: 1.265306122 | AE53: 0 | AF53: 0 | AH53: =cálculos1!O53 -> 9 | AI53: 0.9 | AJ53: =cálculos1!P53 -> 4 | AK53: 1
A54: Sul | B54: Muqui | C54: 41 | D54: 9 | E54: 0.2195121951 | F54: 0 | G54: 0 | H54: 0 | I54: 0 | J54: 10 | K54: 0.243902439 | L54: 33 | M54: 0.8048780488 | N54: 32 | O54: 0.7804878049 | P54: 25 | Q54: 0.6097560976 | R54: 28 | S54: 0.6829268293 | T54: 42 | U54: 1.024390244 | V54: 37 | W54: 0.9024390244 | X54: 41 | Y54: 1 | Z54: 34 | AA54: 0.8292682927 | AB54: 25 | AC54: 0.6097560976 | AE54: 3 | AF54: 0.07317073171 | AH54: =cálculos1!O54 -> 2 | AI54: 0.2 | AJ54: =cálculos1!P54 -> 1 | AK54: 0.25
A55: Norte | B55: Nova Venécia | C55: 190 | D55: 133 | E55: 0.7 | F55: 114 | G55: 0.6 | H55: 113 | I55: 0.5947368421 | J55: 101 | K55: 0.5315789474 | L55: 161 | M55: 0.8473684211 | N55: 161 | O55: 0.8473684211 | P55: 166 | Q55: 0.8736842105 | R55: 180 | S55: 0.9473684211 | T55: 154 | U55: 0.8105263158 | V55: 166 | W55: 0.8736842105 | X55: 185 | Y55: 0.9736842105 | Z55: 187 | AA55: 0.9842105263 | AB55: 170 | AC55: 0.8947368421 | AE55: 0 | AF55: 0 | AH55: =cálculos1!O55 -> 2 | AI55: 0.2 | AJ55: =cálculos1!P55 -> 1 | AK55: 0.25
A56: Central | B56: Pancas | C56: 56 | D56: 6 | E56: 0.1071428571 | F56: 0 | G56: 0 | H56: 0 | I56: 0 | J56: 9 | K56: 0.1607142857 | L56: 50 | M56: 0.8928571429 | N56: 49 | O56: 0.875 | P56: 42 | Q56: 0.75 | R56: 44 | S56: 0.7857142857 | T56: 63 | U56: 1.125 | V56: 52 | W56: 0.9285714286 | X56: 68 | Y56: 1.214285714 | Z56: 54 | AA56: 0.9642857143 | AB56: 45 | AC56: 0.8035714286 | AE56: 2 | AF56: 0.03571428571 | AH56: =cálculos1!O56 -> 3 | AI56: 0.3 | AJ56: =cálculos1!P56 -> 1 | AK56: 0.25
A57: Norte | B57: Pedro Canário | C57: 77 | D57: 3 | E57: 0.03896103896 | F57: 0 | G57: 0 | H57: 0 | I57: 0 | J57: 4 | K57: 0.05194805195 | L57: 94 | M57: 1.220779221 | N57: 87 | O57: 1.12987013 | P57: 82 | Q57: 1.064935065 | R57: 74 | S57: 0.961038961 | T57: 70 | U57: 0.9090909091 | V57: 75 | W57: 0.974025974 | X57: 95 | Y57: 1.233766234 | Z57: 85 | AA57: 1.103896104 | AB57: 81 | AC57: 1.051948052 | AE57: 0 | AF57: 0 | AH57: =cálculos1!O57 -> 8 | AI57: 0.8 | AJ57: =cálculos1!P57 -> 4 | AK57: 1
A58: Norte | B58: Pinheiros | C58: 97 | D58: 2 | E58: 0.0206185567 | F58: 0 | G58: 0 | H58: 0 | I58: 0 | J58: 7 | K58: 0.07216494845 | L58: 83 | M58: 0.8556701031 | N58: 81 | O58: 0.8350515464 | P58: 70 | Q58: 0.7216494845 | R58: 84 | S58: 0.8659793814 | T58: 55 | U58: 0.5670103093 | V58: 66 | W58: 0.6804123711 | X58: 65 | Y58: 0.6701030928 | Z58: 54 | AA58: 0.5567010309 | AB58: 78 | AC58: 0.8041237113 | AE58: 1 | AF58: 0.01030927835 | AH58: =cálculos1!O58 -> 0 | AI58: 0 | AJ58: =cálculos1!P58 -> 0 | AK58: 0
A59: Sul | B59: Piúma | C59: 82 | D59: 4 | E59: 0.0487804878 | F59: 0 | G59: 0 | H59: 0 | I59: 0 | J59: 20 | K59: 0.243902439 | L59: 62 | M59: 0.756097561 | N59: 62 | O59: 0.756097561 | P59: 61 | Q59: 0.743902439 | R59: 67 | S59: 0.8170731707 | T59: 68 | U59: 0.8292682927 | V59: 76 | W59: 0.9268292683 | X59: 78 | Y59: 0.9512195122 | Z59: 74 | AA59: 0.9024390244 | AB59: 61 | AC59: 0.743902439 | AE59: 8 | AF59: 0.09756097561 | AH59: =cálculos1!O59 -> 1 | AI59: 0.1 | AJ59: =cálculos1!P59 -> 1 | AK59: 0.25
A60: Norte | B60: Ponto Belo | C60: 14 | D60: 4 | E60: 0.2857142857 | F60: 0 | G60: 0 | H60: 0 | I60: 0 | J60: 6 | K60: 0.4285714286 | L60: 19 | M60: 1.357142857 | N60: 13 | O60: 0.9285714286 | P60: 25 | Q60: 1.785714286 | R60: 18 | S60: 1.285714286 | T60: 22 | U60: 1.571428571 | V60: 21 | W60: 1.5 | X60: 16 | Y60: 1.142857143 | Z60: 24 | AA60: 1.714285714 | AB60: 26 | AC60: 1.857142857 | AE60: 0 | AF60: 0 | AH60: =cálculos1!O60 -> 8 | AI60: 0.8 | AJ60: =cálculos1!P60 -> 3 | AK60: 0.75
A61: Sul | B61: Presidente Kennedy | C61: 59 | D61: 6 | E61: 0.1016949153 | F61: 0 | G61: 0 | H61: 0 | I61: 0 | J61: 11 | K61: 0.186440678 | L61: 46 | M61: 0.7796610169 | N61: 46 | O61: 0.7796610169 | P61: 40 | Q61: 0.6779661017 | R61: 46 | S61: 0.7796610169 | T61: 44 | U61: 0.7457627119 | V61: 57 | W61: 0.9661016949 | X61: 77 | Y61: 1.305084746 | Z61: 52 | AA61: 0.8813559322 | AB61: 41 | AC61: 0.6949152542 | AE61: 0 | AF61: 0 | AH61: =cálculos1!O61 -> 2 | AI61: 0.2 | AJ61: =cálculos1!P61 -> 1 | AK61: 0.25
A62: Central | B62: Rio Bananal | C62: 78 | D62: 14 | E62: 0.1794871795 | F62: 0 | G62: 0 | H62: 0 | I62: 0 | J62: 8 | K62: 0.1025641026 | L62: 70 | M62: 0.8974358974 | N62: 70 | O62: 0.8974358974 | P62: 62 | Q62: 0.7948717949 | R62: 58 | S62: 0.7435897436 | T62: 57 | U62: 0.7307692308 | V62: 67 | W62: 0.858974359 | X62: 69 | Y62: 0.8846153846 | Z62: 101 | AA62: 1.294871795 | AB62: 66 | AC62: 0.8461538462 | AE62: 3 | AF62: 0.03846153846 | AH62: =cálculos1!O62 -> 1 | AI62: 0.1 | AJ62: =cálculos1!P62 -> 0 | AK62: 0
A63: Sul | B63: Rio Novo do Sul | C63: 31 | D63: 8 | E63: 0.2580645161 | F63: 0 | G63: 0 | H63: 0 | I63: 0 | J63: 14 | K63: 0.4516129032 | L63: 26 | M63: 0.8387096774 | N63: 26 | O63: 0.8387096774 | P63: 29 | Q63: 0.935483871 | R63: 26 | S63: 0.8387096774 | T63: 23 | U63: 0.7419354839 | V63: 28 | W63: 0.9032258065 | X63: 43 | Y63: 1.387096774 | Z63: 25 | AA63: 0.8064516129 | AB63: 33 | AC63: 1.064516129 | AE63: 0 | AF63: 0 | AH63: =cálculos1!O63 -> 2 | AI63: 0.2 | AJ63: =cálculos1!P63 -> 1 | AK63: 0.25
A64: Metropolitana | B64: Santa Leopoldina | C64: 31 | D64: 5 | E64: 0.1612903226 | F64: 1 | G64: 0.03225806452 | H64: 1 | I64: 0.03225806452 | J64: 6 | K64: 0.1935483871 | L64: 17 | M64: 0.5483870968 | N64: 17 | O64: 0.5483870968 | P64: 15 | Q64: 0.4838709677 | R64: 15 | S64: 0.4838709677 | T64: 22 | U64: 0.7096774194 | V64: 25 | W64: 0.8064516129 | X64: 18 | Y64: 0.5806451613 | Z64: 23 | AA64: 0.7419354839 | AB64: 16 | AC64: 0.5161290323 | AE64: 0 | AF64: 0 | AH64: =cálculos1!O64 -> 0 | AI64: 0 | AJ64: =cálculos1!P64 -> 0 | AK64: 0
A65: Metropolitana | B65: Santa Maria de Jetibá | C65: 171 | D65: 105 | E65: 0.6140350877 | F65: 102 | G65: 0.5964912281 | H65: 102 | I65: 0.5964912281 | J65: 107 | K65: 0.6257309942 | L65: 192 | M65: 1.122807018 | N65: 194 | O65: 1.134502924 | P65: 178 | Q65: 1.040935673 | R65: 186 | S65: 1.087719298 | T65: 157 | U65: 0.918128655 | V65: 172 | W65: 1.005847953 | X65: 175 | Y65: 1.023391813 | Z65: 187 | AA65: 1.093567251 | AB65: 180 | AC65: 1.052631579 | AE65: 2 | AF65: 0.01169590643 | AH65: =cálculos1!O65 -> 8 | AI65: 0.8 | AJ65: =cálculos1!P65 -> 4 | AK65: 1
A66: Metropolitana | B66: Santa Teresa | C66: 74 | D66: 190 | E66: 2.567567568 | F66: 186 | G66: 2.513513514 | H66: 129 | I66: 1.743243243 | J66: 193 | K66: 2.608108108 | L66: 63 | M66: 0.8513513514 | N66: 63 | O66: 0.8513513514 | P66: 69 | Q66: 0.9324324324 | R66: 56 | S66: 0.7567567568 | T66: 61 | U66: 0.8243243243 | V66: 65 | W66: 0.8783783784 | X66: 70 | Y66: 0.9459459459 | Z66: 56 | AA66: 0.7567567568 | AB66: 65 | AC66: 0.8783783784 | AE66: 0 | AF66: 0 | AH66: =cálculos1!O66 -> 1 | AI66: 0.1 | AJ66: =cálculos1!P66 -> 0 | AK66: 0
A67: Central | B67: São Domingos do Norte | C67: 29 | D67: 12 | E67: 0.4137931034 | F67: 3 | G67: 0.1034482759 | H67: 1 | I67: 0.03448275862 | J67: 13 | K67: =J67/C67 -> 0.4482758621 | L67: 34 | M67: =L67/C67 -> 1.172413793 | N67: 33 | O67: =N67/C67 -> 1.137931034 | P67: 28 | Q67: =P67/C67 -> 0.9655172414 | R67: 38 | S67: =R67/C67 -> 1.310344828 | T67: 21 | U67: =T67/C67 -> 0.724137931 | V67: 24 | W67: =V67/C67 -> 0.8275862069 | X67: 30 | Y67: =X67/C67 -> 1.034482759 | Z67: 22 | AA67: =Z67/C67 -> 0.7586206897 | AB67: 34 | AC67: 1.172413793 | AE67: 0 | AF67: =AE67/C67 -> 0 | AH67: =cálculos1!O67 -> 6 | AI67: 0.6 | AJ67: =cálculos1!P67 -> 4 | AK67: 1
A68: Central | B68: São Gabriel da Palha | C68: 114 | D68: 59 | E68: =D68/C68 -> 0.5175438596 | F68: 5 | G68: =F68/C68 -> 0.04385964912 | H68: 0 | I68: =H68/C68 -> 0 | J68: 66 | K68: 0.5789473684 | L68: 91 | M68: 0.798245614 | N68: 89 | O68: 0.7807017544 | P68: 141 | Q68: 1.236842105 | R68: 110 | S68: 0.9649122807 | T68: 102 | U68: 0.8947368421 | V68: 82 | W68: 0.7192982456 | X68: 87 | Y68: 0.7631578947 | Z68: 96 | AA68: 0.8421052632 | AB68: 134 | AC68: =AB68/C68 -> 1.175438596 | AE68: 0 | AF68: 0 | AH68: =cálculos1!O68 -> 3 | AI68: =AH68*0.1 -> 0.3 | AJ68: =cálculos1!P68 -> 1 | AK68: =AJ68*0.25 -> 0.25
A69: Sul | B69: São José do Calçado | C69: 19 | D69: 17 | E69: 0.8947368421 | F69: 0 | G69: 0 | H69: 0 | I69: 0 | J69: 25 | K69: 1.315789474 | L69: 23 | M69: 1.210526316 | N69: 23 | O69: 1.210526316 | P69: 25 | Q69: 1.315789474 | R69: 25 | S69: 1.315789474 | T69: 16 | U69: 0.8421052632 | V69: 15 | W69: 0.7894736842 | X69: 26 | Y69: 1.368421053 | Z69: 8 | AA69: 0.4210526316 | AB69: 26 | AC69: 1.368421053 | AE69: 2 | AF69: 0.1052631579 | AH69: =cálculos1!O69 -> 7 | AI69: 0.7 | AJ69: =cálculos1!P69 -> 4 | AK69: 1
A70: Norte | B70: São Mateus | C70: 487 | D70: 722 | E70: 1.482546201 | F70: 704 | G70: 1.445585216 | H70: 701 | I70: 1.439425051 | J70: 663 | K70: 1.361396304 | L70: 483 | M70: 0.9917864476 | N70: 471 | O70: 0.9671457906 | P70: 540 | Q70: 1.108829569 | R70: 498 | S70: 1.022587269 | T70: 380 | U70: 0.7802874743 | V70: 393 | W70: 0.8069815195 | X70: 435 | Y70: 0.8932238193 | Z70: 358 | AA70: 0.7351129363 | AB70: 539 | AC70: 1.106776181 | AE70: 4 | AF70: 0.008213552361 | AH70: =cálculos1!O70 -> 6 | AI70: 0.6 | AJ70: =cálculos1!P70 -> 3 | AK70: 0.75
A71: Central | B71: São Roque do Canaã | C71: 32 | D71: 10 | E71: 0.3125 | F71: 2 | G71: 0.0625 | H71: 0 | I71: 0 | J71: 8 | K71: 0.25 | L71: 28 | M71: 0.875 | N71: 28 | O71: 0.875 | P71: 34 | Q71: 1.0625 | R71: 26 | S71: 0.8125 | T71: 37 | U71: 1.15625 | V71: 28 | W71: 0.875 | X71: 37 | Y71: 1.15625 | Z71: 27 | AA71: 0.84375 | AB71: 36 | AC71: 1.125 | AE71: 0 | AF71: 0 | AH71: =cálculos1!O71 -> 4 | AI71: 0.4 | AJ71: =cálculos1!P71 -> 2 | AK71: 0.5
A72: Metropolitana | B72: Serra | C72: 1860 | D72: 2381 | E72: 1.280107527 | F72: 2057 | G72: 1.105913978 | H72: 1521 | I72: 0.8177419355 | J72: 2264 | K72: 1.217204301 | L72: 1726 | M72: 0.9279569892 | N72: 1726 | O72: 0.9279569892 | P72: 1653 | Q72: 0.8887096774 | R72: 1665 | S72: 0.8951612903 | T72: 1332 | U72: 0.7161290323 | V72: 1586 | W72: 0.852688172 | X72: 1691 | Y72: 0.9091397849 | Z72: 1479 | AA72: 0.7951612903 | AB72: 1742 | AC72: 0.9365591398 | AE72: 32 | AF72: 0.01720430108 | AH72: =cálculos1!O72 -> 2 | AI72: 0.2 | AJ72: =cálculos1!P72 -> 0 | AK72: 0
A73: Central | B73: Sooretama | C73: 96 | D73: 5 | E73: 0.05208333333 | F73: 0 | G73: 0 | H73: 0 | I73: 0 | J73: 7 | K73: 0.07291666667 | L73: 108 | M73: 1.125 | N73: 101 | O73: 1.052083333 | P73: 118 | Q73: 1.229166667 | R73: 114 | S73: 1.1875 | T73: 95 | U73: 0.9895833333 | V73: 93 | W73: 0.96875 | X73: 109 | Y73: 1.135416667 | Z73: 81 | AA73: 0.84375 | AB73: 123 | AC73: 1.28125 | AE73: 0 | AF73: 0 | AH73: =cálculos1!O73 -> 8 | AI73: 0.8 | AJ73: =cálculos1!P73 -> 4 | AK73: 1
A74: Sul | B74: Vargem Alta | C74: 73 | D74: 9 | E74: 0.1232876712 | F74: 1 | G74: 0.01369863014 | H74: 1 | I74: 0.01369863014 | J74: 12 | K74: 0.1643835616 | L74: 58 | M74: 0.7945205479 | N74: 58 | O74: 0.7945205479 | P74: 53 | Q74: 0.7260273973 | R74: 53 | S74: 0.7260273973 | T74: 81 | U74: 1.109589041 | V74: 60 | W74: 0.8219178082 | X74: 74 | Y74: 1.01369863 | Z74: 63 | AA74: 0.8630136986 | AB74: 53 | AC74: 0.7260273973 | AE74: 1 | AF74: 0.01369863014 | AH74: =cálculos1!O74 -> 2 | AI74: 0.2 | AJ74: =cálculos1!P74 -> 1 | AK74: 0.25
A75: Metropolitana | B75: Venda Nova do Imigrante | C75: 84 | D75: 191 | E75: 2.273809524 | F75: 182 | G75: 2.166666667 | H75: 182 | I75: 2.166666667 | J75: 88 | K75: 1.047619048 | L75: 93 | M75: 1.107142857 | N75: 92 | O75: 1.095238095 | P75: 68 | Q75: 0.8095238095 | R75: 73 | S75: 0.869047619 | T75: 85 | U75: 1.011904762 | V75: 89 | W75: 1.05952381 | X75: 76 | Y75: 0.9047619048 | Z75: 110 | AA75: 1.30952381 | AB75: 71 | AC75: 0.8452380952 | AE75: 4 | AF75: 0.04761904762 | AH75: =cálculos1!O75 -> 6 | AI75: 0.6 | AJ75: =cálculos1!P75 -> 2 | AK75: 0.5
A76: Metropolitana | B76: Viana | C76: 216 | D76: 112 | E76: 0.5185185185 | F76: 1 | G76: 0.00462962963 | H76: 1 | I76: 0.00462962963 | J76: 103 | K76: 0.4768518519 | L76: 221 | M76: 1.023148148 | N76: 215 | O76: 0.9953703704 | P76: 227 | Q76: 1.050925926 | R76: 210 | S76: 0.9722222222 | T76: 190 | U76: 0.8796296296 | V76: 229 | W76: 1.060185185 | X76: 236 | Y76: 1.092592593 | Z76: 252 | AA76: 1.166666667 | AB76: 229 | AC76: 1.060185185 | AE76: 4 | AF76: 0.01851851852 | AH76: =cálculos1!O76 -> 8 | AI76: 0.8 | AJ76: =cálculos1!P76 -> 4 | AK76: 1
A77: Norte | B77: Vila Pavão | C77: 38 | D77: 6 | E77: 0.1578947368 | F77: 1 | G77: 0.02631578947 | H77: 0 | I77: 0 | J77: 11 | K77: 0.2894736842 | L77: 32 | M77: 0.8421052632 | N77: 30 | O77: 0.7894736842 | P77: 26 | Q77: 0.6842105263 | R77: 29 | S77: 0.7631578947 | T77: 39 | U77: 1.026315789 | V77: 30 | W77: 0.7894736842 | X77: 32 | Y77: 0.8421052632 | Z77: 44 | AA77: 1.157894737 | AB77: 28 | AC77: 0.7368421053 | AE77: 0 | AF77: 0 | AH77: =cálculos1!O77 -> 2 | AI77: 0.2 | AJ77: =cálculos1!P77 -> 0 | AK77: 0
A78: Central | B78: Vila Valério | C78: 66 | D78: 14 | E78: 0.2121212121 | F78: 0 | G78: 0 | H78: 0 | I78: 0 | J78: 16 | K78: 0.2424242424 | L78: 59 | M78: 0.8939393939 | N78: 59 | O78: 0.8939393939 | P78: 59 | Q78: 0.8939393939 | R78: 54 | S78: 0.8181818182 | T78: 59 | U78: 0.8939393939 | V78: 50 | W78: 0.7575757576 | X78: 44 | Y78: 0.6666666667 | Z78: 50 | AA78: 0.7575757576 | AB78: 66 | AC78: 1 | AE78: 0 | AF78: 0 | AH78: =cálculos1!O78 -> 1 | AI78: 0.1 | AJ78: =cálculos1!P78 -> 0 | AK78: 0
A79: Metropolitana | B79: Vila Velha | C79: 1434 | D79: 992 | E79: 0.6917712692 | F79: 665 | G79: 0.4637377964 | H79: 407 | I79: 0.2838214784 | J79: 987 | K79: 0.6882845188 | L79: 1099 | M79: 0.7663877266 | N79: 1064 | O79: 0.7419804742 | P79: 1231 | Q79: 0.8584379358 | R79: 1216 | S79: 0.8479776848 | T79: 959 | U79: 0.6687587169 | V79: 1116 | W79: 0.7782426778 | X79: 1251 | Y79: 0.8723849372 | Z79: 1050 | AA79: 0.7322175732 | AB79: 1264 | AC79: 0.8814504881 | AE79: 41 | AF79: 0.02859135286 | AH79: =cálculos1!O79 -> 0 | AI79: 0 | AJ79: =cálculos1!P79 -> 0 | AK79: 0
A80: Metropolitana | B80: Vitória | C80: 889 | D80: 1619 | E80: 1.821147357 | F80: 1452 | G80: 1.633295838 | H80: 1155 | I80: 1.299212598 | J80: 1733 | K80: 1.949381327 | L80: 1090 | M80: 1.226096738 | N80: 1081 | O80: 1.215973003 | P80: 1150 | Q80: 1.293588301 | R80: 1125 | S80: 1.265466817 | T80: 604 | U80: 0.6794150731 | V80: 929 | W80: 1.044994376 | X80: 928 | Y80: 1.043869516 | Z80: 1004 | AA80: 1.12935883 | AB80: 1080 | AC80: 1.214848144 | AE80: 48 | AF80: 0.05399325084 | AH80: =cálculos1!O80 -> 9 | AI80: 0.9 | AJ80: =cálculos1!P80 -> 4 | AK80: 1
B82: Total Norte | C82: =SUMIF($A$3:$A$80,"Norte",C$3:C$80) -> 1533 | D82: =SUMIF($A$3:$A$80,"Norte",D$3:D$80) -> 1092 | E82: =D82/C82 -> 0.7123287671 | F82: =SUMIF($A$3:$A$80,"Norte",F$3:F$80) -> 917 | G82: =F82/C82 -> 0.598173516 | H82: =SUMIF($A$3:$A$80,"Norte",H$3:H$80) -> 905 | I82: =H82/C82 -> 0.5903457273 | J82: =SUMIF($A$3:$A$80,"Norte",J$3:J$80) -> 1036 | K82: =J82/C82 -> 0.6757990868 | L82: =SUMIF($A$3:$A$80,"Norte",L$3:L$80) -> 1403 | M82: =L82/C82 -> 0.9151989563 | N82: =SUMIF($A$3:$A$80,"Norte",N$3:N$80) -> 1375 | O82: =N82/C82 -> 0.8969341161 | P82: =SUMIF($A$3:$A$80,"Norte",P$3:P$80) -> 1494 | Q82: =P82/C82 -> 0.9745596869 | R82: =SUMIF($A$3:$A$80,"Norte",R$3:R$80) -> 1432 | S82: =R82/C82 -> 0.9341161122 | T82: =SUMIF($A$3:$A$80,"Norte",T$3:T$80) -> 1275 | U82: =T82/C82 -> 0.831702544 | V82: =SUMIF($A$3:$A$80,"Norte",V$3:V$80) -> 1290 | W82: =V82/C82 -> 0.8414872798 | X82: =SUMIF($A$3:$A$80,"Norte",X$3:X$80) -> 1401 | Y82: =X82/C82 -> 0.9138943249 | Z82: =SUMIF($A$3:$A$80,"Norte",Z$3:Z$80) -> 1297 | AA82: =Z82/C82 -> 0.8460534899 | AB82: =SUMIF($A$3:$A$80,"Norte",AB$3:AB$80) -> 1522 | AC82: =AB82/C82 -> 0.9928245271 | AE82: =SUMIF($A$3:$A$80,"Norte",AE$3:AE$80) -> 7 | AF82: =AE82/C82 -> 0.004566210046 | AH82: =cálculos1!O82 -> 2 | AI82: =AH82*0.1 -> 0.2 | AJ82: =cálculos1!P82 -> 1 | AK82: 0.25
B83: Total Central | C83: =SUMIF($A$3:$A$80,"Central",C$3:C$80) -> 1791 | D83: =SUMIF($A$3:$A$80,"Central",D$3:D$80) -> 2026 | E83: =D83/C83 -> 1.131211614 | F83: =SUMIF($A$3:$A$80,"Central",F$3:F$80) -> 1396 | G83: =F83/C83 -> 0.7794528197 | H83: =SUMIF($A$3:$A$80,"Central",H$3:H$80) -> 1104 | I83: =H83/C83 -> 0.6164154104 | J83: =SUMIF($A$3:$A$80,"Central",J$3:J$80) -> 2047 | K83: =J83/C83 -> 1.142936907 | L83: =SUMIF($A$3:$A$80,"Central",L$3:L$80) -> 1715 | M83: =L83/C83 -> 0.9575656058 | N83: =SUMIF($A$3:$A$80,"Central",N$3:N$80) -> 1676 | O83: =N83/C83 -> 0.9357900614 | P83: =SUMIF($A$3:$A$80,"Central",P$3:P$80) -> 1678 | Q83: =P83/C83 -> 0.936906756 | R83: =SUMIF($A$3:$A$80,"Central",R$3:R$80) -> 1703 | S83: =R83/C83 -> 0.9508654383 | T83: =SUMIF($A$3:$A$80,"Central",T$3:T$80) -> 1492 | U83: =T83/C83 -> 0.8330541597 | V83: =SUMIF($A$3:$A$80,"Central",V$3:V$80) -> 1474 | W83: =V83/C83 -> 0.8230039084 | X83: =SUMIF($A$3:$A$80,"Central",X$3:X$80) -> 1617 | Y83: =X83/C83 -> 0.9028475712 | Z83: =SUMIF($A$3:$A$80,"Central",Z$3:Z$80) -> 1548 | AA83: =Z83/C83 -> 0.864321608 | AB83: =SUMIF($A$3:$A$80,"Central",AB$3:AB$80) -> 1718 | AC83: =AB83/C83 -> 0.9592406477 | AE83: =SUMIF($A$3:$A$80,"Central",AE$3:AE$80) -> 26 | AF83: =AE83/C83 -> 0.01451702959 | AH83: =cálculos1!O83 -> 4 | AI83: =AH83*0.1 -> 0.4 | AJ83: =cálculos1!P83 -> 1 | AK83: 0.25
B84: Total Metropolitana | C84: =SUMIF($A$3:$A$80,"Metropolitana",C$3:C$80) -> 7467 | D84: =SUMIF($A$3:$A$80,"Metropolitana",D$3:D$80) -> 6937 | E84: =D84/C84 -> 0.9290210258 | F84: =SUMIF($A$3:$A$80,"Metropolitana",F$3:F$80) -> 5153 | G84: =F84/C84 -> 0.6901031204 | H84: =SUMIF($A$3:$A$80,"Metropolitana",H$3:H$80) -> 3904 | I84: 0.5228338021 | J84: =SUMIF($A$3:$A$80,"Metropolitana",J$3:J$80) -> 6886 | K84: =J84/C84 -> 0.9221909736 | L84: =SUMIF($A$3:$A$80,"Metropolitana",L$3:L$80) -> 6847 | M84: =L84/C84 -> 0.9169679925 | N84: =SUMIF($A$3:$A$80,"Metropolitana",N$3:N$80) -> 6755 | O84: =N84/C84 -> 0.904647114 | P84: =SUMIF($A$3:$A$80,"Metropolitana",P$3:P$80) -> 6936 | Q84: =P84/C84 -> 0.9288871033 | R84: =SUMIF($A$3:$A$80,"Metropolitana",R$3:R$80) -> 6920 | S84: =R84/C84 -> 0.9267443418 | T84: =SUMIF($A$3:$A$80,"Metropolitana",T$3:T$80) -> 5593 | U84: =T84/C84 -> 0.7490290612 | V84: =SUMIF($A$3:$A$80,"Metropolitana",V$3:V$80) -> 6501 | W84: =V84/C84 -> 0.8706307754 | X84: =SUMIF($A$3:$A$80,"Metropolitana",X$3:X$80) -> 7068 | Y84: =X84/C84 -> 0.9465648855 | Z84: =SUMIF($A$3:$A$80,"Metropolitana",Z$3:Z$80) -> 6400 | AA84: =Z84/C84 -> 0.8571045935 | AB84: =SUMIF($A$3:$A$80,"Metropolitana",AB$3:AB$80) -> 7097 | AC84: 0.9504486407 | AE84: =SUMIF($A$3:$A$80,"Metropolitana",AE$3:AE$80) -> 187 | AF84: =AE84/C84 -> 0.02504352484 | AH84: =cálculos1!O84 -> 2 | AI84: 0.2 | AJ84: =cálculos1!P84 -> 0 | AK84: 0
B85: Total Sul | C85: =SUMIF($A$3:$A$80,"sul",C$3:C$80) -> 2024 | D85: =SUMIF($A$3:$A$80,"Sul",D$3:D$80) -> 1905 | E85: =D85/C85 -> 0.9412055336 | F85: =SUMIF($A$3:$A$80,"Sul",F$3:F$80) -> 1385 | G85: =F85/C85 -> 0.6842885375 | H85: =SUMIF($A$3:$A$80,"Sul",H$3:H$80) -> 877 | I85: 0.4333003953 | J85: =SUMIF($A$3:$A$80,"Sul",J$3:J$80) -> 2008 | K85: =J85/C85 -> 0.9920948617 | L85: =SUMIF($A$3:$A$80,"Sul",L$3:L$80) -> 1992 | M85: =L85/C85 -> 0.9841897233 | N85: =SUMIF($A$3:$A$80,"Sul",N$3:N$80) -> 1971 | O85: =N85/C85 -> 0.9738142292 | P85: =SUMIF($A$3:$A$80,"Sul",P$3:P$80) -> 1882 | Q85: =P85/C85 -> 0.9298418972 | R85: =SUMIF($A$3:$A$80,"Sul",R$3:R$80) -> 1923 | S85: =R85/C85 -> 0.9500988142 | T85: =SUMIF($A$3:$A$80,"Sul",T$3:T$80) -> 1732 | U85: =T85/C85 -> 0.8557312253 | V85: =SUMIF($A$3:$A$80,"Sul",V$3:V$80) -> 1863 | W85: =V85/C85 -> 0.9204545455 | X85: =SUMIF($A$3:$A$80,"Sul",X$3:X$80) -> 2087 | Y85: =X85/C85 -> 1.031126482 | Z85: =SUMIF($A$3:$A$80,"Sul",Z$3:Z$80) -> 1928 | AA85: =Z85/C85 -> 0.95256917 | AB85: =SUMIF($A$3:$A$80,"Sul",AB$3:AB$80) -> 1923 | AC85: 0.9500988142 | AE85: =SUMIF($A$3:$A$80,"Sul",AE$3:AE$80) -> 44 | AF85: =AE85/C85 -> 0.02173913043 | AH85: =cálculos1!O85 -> 7 | AI85: 0.7 | AJ85: =cálculos1!P85 -> 3 | AK85: 0.75
B86: Total Espírito Santo | C86: =SUM(C3:C80) -> 12815 | D86: =SUM(D82:D85) -> 11960 | E86: =D86/C86 -> 0.933281311 | F86: =SUM(F82:F85) -> 8851 | G86: =F86/C86 -> 0.6906749902 | H86: =SUM(H82:H85) -> 6790 | I86: 0.5298478346 | J86: =SUM(J82:J85) -> 11977 | K86: =J86/C86 -> 0.9346078814 | L86: =SUM(L82:L85) -> 11957 | M86: =L86/C86 -> 0.9330472103 | N86: =SUM(N82:N85) -> 11777 | O86: =N86/C86 -> 0.9190011705 | P86: =SUM(P82:P85) -> 11990 | Q86: =P86/C86 -> 0.9356223176 | R86: =SUM(R82:R85) -> 11978 | S86: =R86/C86 -> 0.9346859149 | T86: =SUM(T82:T85) -> 10092 | U86: =T86/C86 -> 0.7875146313 | V86: =SUM(V82:V85) -> 11128 | W86: =V86/C86 -> 0.8683573937 | X86: =SUM(X82:X85) -> 12173 | Y86: =X86/C86 -> 0.9499024581 | Z86: =SUM(Z82:Z85) -> 11173 | AA86: =Z86/C86 -> 0.8718689036 | AB86: =SUM(AB82:AB85) -> 12260 | AC86: 0.9566913773 | AE86: =SUM(AE82:AE85) -> 264 | AF86: =AE86/C86 -> 0.02060085837 | AH86: =cálculos1!O86 -> 2 | AI86: 0.2 | AJ86: =cálculos1!P86 -> 0 | AK86: 0
D87: =COUNTIF(E3:E80,">=0,95") -> 10 | F87: =COUNTIF(G3:G80,">=0,95") -> 9 | H87: =COUNTIF(I3:I80,">=0,95") -> 7 | J87: =COUNTIF(K3:K80,">=0,9") -> 12 | L87: =COUNTIF(M3:M80,">=0,95") -> 31 | N87: =COUNTIF(O3:O80,">=0,95") -> 29 | P87: =COUNTIF(Q3:Q80,">=0,95") -> 33 | R87: =COUNTIF(S3:S80,">=0,95") -> 35 | T87: =COUNTIF(U3:U80,">=0,95") -> 30 | V87: =COUNTIF(W3:W80,">=0,95") -> 31 | X87: =COUNTIF(Y3:Y80,">=0,95") -> 47 | Z87: =COUNTIF(AA3:AA80,">=0,95") -> 32 | AB87: =COUNTIF(AC3:AC80,">=0,9") -> 42 | AE87: =COUNTIF(AF3:AF80,">=0,9") -> 0
B88: HOMOGENEIDADE ENTRE MUNICÍPIOS | D88: =D87/78 -> 0.1282051282 | F88: =F87/78 -> 0.1153846154 | H88: =H87/78 -> 0.08974358974 | J88: =J87/78 -> 0.1538461538 | L88: =L87/78 -> 0.3974358974 | N88: =N87/78 -> 0.3717948718 | P88: =P87/78 -> 0.4230769231 | R88: =R87/78 -> 0.4487179487 | T88: =T87/78 -> 0.3846153846 | V88: =V87/78 -> 0.3974358974 | X88: =X87/78 -> 0.6025641026 | Z88: =Z87/78 -> 0.4102564103 | AB88: =AB87/78 -> 0.5384615385 | AE88: =AE87/78 -> 0
A91: Fonte: Vacina e Confia, em 15 de abril de 2026.**<https://vacinaeconfia.saude.es.gov.br/>
A92: **Dados referente às doses aplicadas de janeiro a março de 2026
A93: Cobertura Calculada por município de procedência/ocorrência da vacinação
A94: 1 População estimada extraída do MS/SVS/DASIS - SINASC/DASIS/SVS/MS 2025 referente ao período de janeiro de 2026 a fevereiro e março de 2025.
A95: Sinasc, atualizado em 06/04/2026
A96: Método de Cálculo Simples
A97: Homogeineidade: O cálculo da Homogeineidade entre vacinas é feito de acordo com a pactuação estabelecida no Plano Plurianual (PPA) vigente no período 2024-2027.
A100: Observações referente a distribuição de imunobiológicos que podem afetar a cobertura vacinal:
A102: 1. Vacinas que foram recebidas parcialmente pelo estado no mês de Março/2026, sendo distribuídos em quantidades reduzidas às regionais e municípios:
A103: IMUNOGLOBULINA ANTIRRÁBICA HUMANA; SORO ANTIRRÁBICO HUMANO
A104: 2. Vacinas indisponíveis no mês de março/2026, não sendo possível a distribuição às regionais e municípios:
A105: IMUNOGLOBULINA HUMANA ANTIVARICELA (ZOSTER) – 125UI
A106: 3. Vacinas enviadas por Pautas aguardando abastecimento do estoque estadual;
A107: VACINA COVID-19 PFIZER PEDIÁTRICA MENOR QUE 5 ANOS; VACINA COVID-19 PFIZER PEDIÁTRICA, VACINA COVID-19 PFIZER MAIORES QUE 12 ANOS, VACINA VÍRUS SINCICIAL RESPIRATÓRIO A E B - VSR
A109: Fonte: Informes situacionais de distribuição de imunobiológicos em https://saude.es.gov.br/GrupodeArquivos/informes-situacionais-de-distribuicao-de-imunobiologicos

Sheet cálculos2 (hidden)
C1: 0.9 | E1: 0.95
A2: Regional | B2: Município | C2: Cobertura Vacinal BCG | D2: Cobertura Vacinal Rotavírus | E2: Cobertura Vacinal Pentavalente | F2: Cobertura Vacinal Poliomielite | G2: Cobertura Vacinal Pneumo 10 | H2: Cobertura Vacinal Tríplice Viral | I2: Cobertura Vacinal Meningo C | J2: Cobertura Vacinal Febre Amarela | K2: Cobertura Vacinal Hepatite A | L2: Cobertura Varicela | M2: META 90% | N2: META 95% | O2: ATINGIRAM META | P2: PQA-VS
A3: Metropolitana | B3: Afonso Cláudio | C3: ='CV Rotina <2A - residência'!K3 -> 0.8181818182 | D3: ='CV Rotina <2A - residência'!AC3 -> 1.022727273 | E3: ='CV Rotina <2A - residência'!M3 -> 0.8636363636 | F3: ='CV Rotina <2A - residência'!O3 -> 0.8409090909 | G3: ='CV Rotina <2A - residência'!Q3 -> 1.022727273 | H3: ='CV Rotina <2A - residência'!Y3 -> 1.022727273 | I3: ='CV Rotina <2A - residência'!S3 -> 0.8863636364 | J3: ='CV Rotina <2A - residência'!U3 -> 1.079545455 | K3: ='CV Rotina <2A - residência'!W3 -> 1.056818182 | L3: ='CV Rotina <2A - residência'!AA3 -> 1.034090909 | M3: =COUNTIF(C3:D3,">=0,9") -> 1 | N3: =COUNTIFS(E3:L3,">=0,95") -> 5 | O3: =SUM(M3:N3) -> 6 | P3: =COUNTIF(E3:H3,">=0,95") -> 2
A4: Norte | B4: Água Doce do Norte | C4: ='CV Rotina <2A - residência'!K4 -> 0.8421052632 | D4: ='CV Rotina <2A - residência'!AC4 -> 1.105263158 | E4: ='CV Rotina <2A - residência'!M4 -> 0.7894736842 | F4: ='CV Rotina <2A - residência'!O4 -> 0.8421052632 | G4: ='CV Rotina <2A - residência'!Q4 -> 1.052631579 | H4: ='CV Rotina <2A - residência'!Y4 -> 0.8684210526 | I4: ='CV Rotina <2A - residência'!S4 -> 0.9736842105 | J4: ='CV Rotina <2A - residência'!U4 -> 0.5 | K4: ='CV Rotina <2A - residência'!W4 -> 1.078947368 | L4: ='CV Rotina <2A - residência'!AA4 -> 0.9210526316 | M4: 1 | N4: 3 | O4: =SUM(M4:N4) -> 4 | P4: =COUNTIF(E4:H4,">=0,95") -> 1
A5: Central | B5: Águia Branca | C5: ='CV Rotina <2A - residência'!K5 -> 0.8653846154 | D5: ='CV Rotina <2A - residência'!AC5 -> 0.6730769231 | E5: ='CV Rotina <2A - residência'!M5 -> 0.8846153846 | F5: ='CV Rotina <2A - residência'!O5 -> 0.8846153846 | G5: ='CV Rotina <2A - residência'!Q5 -> 0.6730769231 | H5: ='CV Rotina <2A - residência'!Y5 -> 0.7307692308 | I5: ='CV Rotina <2A - residência'!S5 -> 0.7307692308 | J5: ='CV Rotina <2A - residência'!U5 -> 0.8846153846 | K5: ='CV Rotina <2A - residência'!W5 -> 0.4615384615 | L5: ='CV Rotina <2A - residência'!AA5 -> 0.5769230769 | M5: 0 | N5: 0 | O5: 0 | P5: 0
A6: Sul | B6: Alegre | C6: ='CV Rotina <2A - residência'!K6 -> 0.84 | D6: ='CV Rotina <2A - residência'!AC6 -> 0.8266666667 | E6: ='CV Rotina <2A - residência'!M6 -> 1.08 | F6: ='CV Rotina <2A - residência'!O6 -> 1.066666667 | G6: ='CV Rotina <2A - residência'!Q6 -> 0.8266666667 | H6: ='CV Rotina <2A - residência'!Y6 -> 0.92 | I6: ='CV Rotina <2A - residência'!S6 -> 0.8266666667 | J6: ='CV Rotina <2A - residência'!U6 -> 1.013333333 | K6: ='CV Rotina <2A - residência'!W6 -> 1.013333333 | L6: ='CV Rotina <2A - residência'!AA6 -> 0.96 | M6: 0 | N6: 5 | O6: 5 | P6: 2
A7: Sul | B7: Alfredo Chaves | C7: ='CV Rotina <2A - residência'!K7 -> 0.9375 | D7: ='CV Rotina <2A - residência'!AC7 -> 0.78125 | E7: ='CV Rotina <2A - residência'!M7 -> 0.9375 | F7: ='CV Rotina <2A - residência'!O7 -> 0.90625 | G7: ='CV Rotina <2A - residência'!Q7 -> 0.71875 | H7: ='CV Rotina <2A - residência'!Y7 -> 1.09375 | I7: ='CV Rotina <2A - residência'!S7 -> 0.625 | J7: ='CV Rotina <2A - residência'!U7 -> 0.78125 | K7: ='CV Rotina <2A - residência'!W7 -> 0.75 | L7: ='CV Rotina <2A - residência'!AA7 -> 0.84375 | M7: 1 | N7: 1 | O7: 2 | P7: 1
A8: Central | B8: Alto Rio Novo | C8: ='CV Rotina <2A - residência'!K8 -> 1.208333333 | D8: ='CV Rotina <2A - residência'!AC8 -> 0.875 | E8: ='CV Rotina <2A - residência'!M8 -> 1.083333333 | F8: ='CV Rotina <2A - residência'!O8 -> 1.083333333 | G8: ='CV Rotina <2A - residência'!Q8 -> 0.875 | H8: ='CV Rotina <2A - residência'!Y8 -> 0.8333333333 | I8: ='CV Rotina <2A - residência'!S8 -> 1.083333333 | J8: ='CV Rotina <2A - residência'!U8 -> 0.9583333333 | K8: ='CV Rotina <2A - residência'!W8 -> 0.75 | L8: ='CV Rotina <2A - residência'!AA8 -> 0.6666666667 | M8: 1 | N8: 4 | O8: 5 | P8: 2
A9: Sul | B9: Anchieta | C9: ='CV Rotina <2A - residência'!K9 -> 0.854368932 | D9: ='CV Rotina <2A - residência'!AC9 -> 0.8349514563 | E9: ='CV Rotina <2A - residência'!M9 -> 0.7281553398 | F9: ='CV Rotina <2A - residência'!O9 -> 0.6893203883 | G9: ='CV Rotina <2A - residência'!Q9 -> 0.8349514563 | H9: ='CV Rotina <2A - residência'!Y9 -> 0.9611650485 | I9: ='CV Rotina <2A - residência'!S9 -> 0.7572815534 | J9: ='CV Rotina <2A - residência'!U9 -> 0.7766990291 | K9: ='CV Rotina <2A - residência'!W9 -> 1.077669903 | L9: ='CV Rotina <2A - residência'!AA9 -> 1.155339806 | M9: 0 | N9: 3 | O9: 3 | P9: 1
A10: Sul | B10: Apiacá | C10: ='CV Rotina <2A - residência'!K10 -> 2 | D10: ='CV Rotina <2A - residência'!AC10 -> 1.363636364 | E10: ='CV Rotina <2A - residência'!M10 -> 1.545454545 | F10: ='CV Rotina <2A - residência'!O10 -> 1.272727273 | G10: ='CV Rotina <2A - residência'!Q10 -> 1.363636364 | H10: ='CV Rotina <2A - residência'!Y10 -> 1.818181818 | I10: ='CV Rotina <2A - residência'!S10 -> 2 | J10: ='CV Rotina <2A - residência'!U10 -> 1 | K10: ='CV Rotina <2A - residência'!W10 -> 1.818181818 | L10: ='CV Rotina <2A - residência'!AA10 -> 1.090909091 | M10: 2 | N10: 8 | O10: 10 | P10: 4
A11: Metropolitana | B11: Aracruz | C11: ='CV Rotina <2A - residência'!K11 -> 0.9457364341 | D11: ='CV Rotina <2A - residência'!AC11 -> 0.8139534884 | E11: ='CV Rotina <2A - residência'!M11 -> 0.8992248062 | F11: ='CV Rotina <2A - residência'!O11 -> 0.8656330749 | G11: ='CV Rotina <2A - residência'!Q11 -> 0.7855297158 | H11: ='CV Rotina <2A - residência'!Y11 -> 0.9276485788 | I11: ='CV Rotina <2A - residência'!S11 -> 0.8397932817 | J11: ='CV Rotina <2A - residência'!U11 -> 0.7648578811 | K11: ='CV Rotina <2A - residência'!W11 -> 0.8242894057 | L11: ='CV Rotina <2A - residência'!AA11 -> 0.8320413437 | M11: 1 | N11: 0 | O11: 1 | P11: 0
A12: Sul | B12: Atilio Vivacqua | C12: ='CV Rotina <2A - residência'!K12 -> 0.7872340426 | D12: ='CV Rotina <2A - residência'!AC12 -> 0.4680851064 | E12: ='CV Rotina <2A - residência'!M12 -> 0.7021276596 | F12: ='CV Rotina <2A - residência'!O12 -> 0.7021276596 | G12: ='CV Rotina <2A - residência'!Q12 -> 0.4680851064 | H12: ='CV Rotina <2A - residência'!Y12 -> 1.106382979 | I12: ='CV Rotina <2A - residência'!S12 -> 0.6595744681 | J12: ='CV Rotina <2A - residência'!U12 -> 0.829787234 | K12: ='CV Rotina <2A - residência'!W12 -> 0.9574468085 | L12: ='CV Rotina <2A - residência'!AA12 -> 1.14893617 | M12: 0 | N12: 3 | O12: 3 | P12: 1
A13: Central | B13: Baixo Guandu | C13: ='CV Rotina <2A - residência'!K13 -> 1.011235955 | D13: ='CV Rotina <2A - residência'!AC13 -> 0.8876404494 | E13: ='CV Rotina <2A - residência'!M13 -> 0.8202247191 | F13: ='CV Rotina <2A - residência'!O13 -> 0.797752809 | G13: ='CV Rotina <2A - residência'!Q13 -> 0.8764044944 | H13: ='CV Rotina <2A - residência'!Y13 -> 0.9213483146 | I13: ='CV Rotina <2A - residência'!S13 -> 0.8651685393 | J13: ='CV Rotina <2A - residência'!U13 -> 1.123595506 | K13: ='CV Rotina <2A - residência'!W13 -> 0.8426966292 | L13: ='CV Rotina <2A - residência'!AA13 -> 0.8988764045 | M13: 1 | N13: 1 | O13: 2 | P13: 0
A14: Norte | B14: Barra de São Francisco | C14: ='CV Rotina <2A - residência'!K14 -> 0.7088607595 | D14: ='CV Rotina <2A - residência'!AC14 -> 0.8734177215 | E14: ='CV Rotina <2A - residência'!M14 -> 0.7784810127 | F14: ='CV Rotina <2A - residência'!O14 -> 0.7911392405 | G14: ='CV Rotina <2A - residência'!Q14 -> 0.8670886076 | H14: ='CV Rotina <2A - residência'!Y14 -> 0.8481012658 | I14: ='CV Rotina <2A - residência'!S14 -> 0.7658227848 | J14: ='CV Rotina <2A - residência'!U14 -> 0.9303797468 | K14: ='CV Rotina <2A - residência'!W14 -> 0.6898734177 | L14: ='CV Rotina <2A - residência'!AA14 -> 0.6708860759 | M14: 0 | N14: 0 | O14: 0 | P14: 0
A15: Norte | B15: Boa Esperança | C15: ='CV Rotina <2A - residência'!K15 -> 0.6727272727 | D15: ='CV Rotina <2A - residência'!AC15 -> 0.8909090909 | E15: ='CV Rotina <2A - residência'!M15 -> 0.8545454545 | F15: ='CV Rotina <2A - residência'!O15 -> 0.7818181818 | G15: ='CV Rotina <2A - residência'!Q15 -> 0.8909090909 | H15: ='CV Rotina <2A - residência'!Y15 -> 0.9818181818 | I15: ='CV Rotina <2A - residência'!S15 -> 0.9090909091 | J15: ='CV Rotina <2A - residência'!U15 -> 0.8363636364 | K15: ='CV Rotina <2A - residência'!W15 -> 0.9090909091 | L15: ='CV Rotina <2A - residência'!AA15 -> 0.9454545455 | M15: 0 | N15: 1 | O15: 1 | P15: 1
A16: Sul | B16: Bom Jesus do Norte | C16: ='CV Rotina <2A - residência'!K16 -> 3.2 | D16: ='CV Rotina <2A - residência'!AC16 -> 5.4 | E16: ='CV Rotina <2A - residência'!M16 -> 4.2 | F16: ='CV Rotina <2A - residência'!O16 -> 4.2 | G16: ='CV Rotina <2A - residência'!Q16 -> 4.8 | H16: ='CV Rotina <2A - residência'!Y16 -> 4 | I16: ='CV Rotina <2A - residência'!S16 -> 4.6 | J16: ='CV Rotina <2A - residência'!U16 -> 4.8 | K16: ='CV Rotina <2A - residência'!W16 -> 3.6 | L16: ='CV Rotina <2A - residência'!AA16 -> 2.8 | M16: 2 | N16: 8 | O16: 10 | P16: 4
A17: Metropolitana | B17: Brejetuba | C17: ='CV Rotina <2A - residência'!K17 -> 0.9811320755 | D17: ='CV Rotina <2A - residência'!AC17 -> 1.245283019 | E17: ='CV Rotina <2A - residência'!M17 -> 1.339622642 | F17: ='CV Rotina <2A - residência'!O17 -> 1.301886792 | G17: ='CV Rotina <2A - residência'!Q17 -> 1.245283019 | H17: ='CV Rotina <2A - residência'!Y17 -> 1.339622642 | I17: ='CV Rotina <2A - residência'!S17 -> 1.264150943 | J17: ='CV Rotina <2A - residência'!U17 -> 1.188679245 | K17: ='CV Rotina <2A - residência'!W17 -> 1.41509434 | L17: ='CV Rotina <2A - residência'!AA17 -> 1.113207547 | M17: 2 | N17: 8 | O17: 10 | P17: 4
A18: Sul | B18: Cachoeiro de Itapemirim | C18: ='CV Rotina <2A - residência'!K18 -> 1.012110727 | D18: ='CV Rotina <2A - residência'!AC18 -> 0.9740484429 | E18: ='CV Rotina <2A - residência'!M18 -> 0.9636678201 | F18: ='CV Rotina <2A - residência'!O18 -> 0.9498269896 | G18: ='CV Rotina <2A - residência'!Q18 -> 0.9307958478 | H18: ='CV Rotina <2A - residência'!Y18 -> 0.9204152249 | I18: ='CV Rotina <2A - residência'!S18 -> 0.9567474048 | J18: ='CV Rotina <2A - residência'!U18 -> 0.7698961938 | K18: ='CV Rotina <2A - residência'!W18 -> 0.8408304498 | L18: ='CV Rotina <2A - residência'!AA18 -> 0.8321799308 | M18: 2 | N18: 2 | O18: 4 | P18: 1
A19: Metropolitana | B19: Cariacica | C19: ='CV Rotina <2A - residência'!K19 -> 0.887687188 | D19: ='CV Rotina <2A - residência'!AC19 -> 0.8868552413 | E19: ='CV Rotina <2A - residência'!M19 -> 0.8485856905 | F19: ='CV Rotina <2A - residência'!O19 -> 0.8352745424 | G19: ='CV Rotina <2A - residência'!Q19 -> 0.8610648918 | H19: ='CV Rotina <2A - residência'!Y19 -> 0.9367720466 | I19: ='CV Rotina <2A - residência'!S19 -> 0.8826955075 | J19: ='CV Rotina <2A - residência'!U19 -> 0.7537437604 | K19: ='CV Rotina <2A - residência'!W19 -> 0.8186356073 | L19: ='CV Rotina <2A - residência'!AA19 -> 0.7936772047 | M19: 0 | N19: 0 | O19: 0 | P19: 0
A20: Sul | B20: Castelo | C20: ='CV Rotina <2A - residência'!K20 -> 0.8771929825 | D20: ='CV Rotina <2A - residência'!AC20 -> 1 | E20: ='CV Rotina <2A - residência'!M20 -> 0.8947368421 | F20: ='CV Rotina <2A - residência'!O20 -> 0.8947368421 | G20: ='CV Rotina <2A - residência'!Q20 -> 1.01754386 | H20: ='CV Rotina <2A - residência'!Y20 -> 0.9736842105 | I20: ='CV Rotina <2A - residência'!S20 -> 0.9122807018 | J20: ='CV Rotina <2A - residência'!U20 -> 0.8421052632 | K20: ='CV Rotina <2A - residência'!W20 -> 0.8157894737 | L20: ='CV Rotina <2A - residência'!AA20 -> 0.850877193 | M20: 1 | N20: 2 | O20: 3 | P20: 2
A21: Central | B21: Colatina | C21: ='CV Rotina <2A - residência'!K21 -> 1.06557377 | D21: ='CV Rotina <2A - residência'!AC21 -> 0.9398907104 | E21: ='CV Rotina <2A - residência'!M21 -> 0.9344262295 | F21: ='CV Rotina <2A - residência'!O21 -> 0.9371584699 | G21: ='CV Rotina <2A - residência'!Q21 -> 0.8879781421 | H21: ='CV Rotina <2A - residência'!Y21 -> 0.868852459 | I21: ='CV Rotina <2A - residência'!S21 -> 0.9043715847 | J21: ='CV Rotina <2A - residência'!U21 -> 0.8442622951 | K21: ='CV Rotina <2A - residência'!W21 -> 0.849726776 | L21: ='CV Rotina <2A - residência'!AA21 -> 0.8469945355 | M21: 2 | N21: 0 | O21: 2 | P21: 0
A22: Norte | B22: Conceição da Barra | C22: ='CV Rotina <2A - residência'!K22 -> 0.9393939394 | D22: ='CV Rotina <2A - residência'!AC22 -> 1.070707071 | E22: ='CV Rotina <2A - residência'!M22 -> 0.9595959596 | F22: ='CV Rotina <2A - residência'!O22 -> 0.9595959596 | G22: ='CV Rotina <2A - residência'!Q22 -> 1.04040404 | H22: ='CV Rotina <2A - residência'!Y22 -> 0.9494949495 | I22: ='CV Rotina <2A - residência'!S22 -> 1.050505051 | J22: ='CV Rotina <2A - residência'!U22 -> 1.161616162 | K22: ='CV Rotina <2A - residência'!W22 -> 0.9797979798 | L22: ='CV Rotina <2A - residência'!AA22 -> 1.131313131 | M22: 2 | N22: 7 | O22: 9 | P22: 3
A23: Metropolitana | B23: Conceição do Castelo | C23: ='CV Rotina <2A - residência'!K23 -> 0.8292682927 | D23: ='CV Rotina <2A - residência'!AC23 -> 0.9756097561 | E23: ='CV Rotina <2A - residência'!M23 -> 0.9512195122 | F23: ='CV Rotina <2A - residência'!O23 -> 0.9268292683 | G23: ='CV Rotina <2A - residência'!Q23 -> 0.9024390244 | H23: ='CV Rotina <2A - residência'!Y23 -> 1 | I23: ='CV Rotina <2A - residência'!S23 -> 0.9512195122 | J23: ='CV Rotina <2A - residência'!U23 -> 0.9024390244 | K23: ='CV Rotina <2A - residência'!W23 -> 0.9756097561 | L23: ='CV Rotina <2A - residência'!AA23 -> 0.9512195122 | M23: 1 | N23: 5 | O23: 6 | P23: 2
A24: Sul | B24: Divino de São Lourenço | C24: ='CV Rotina <2A - residência'!K24 -> 1.333333333 | D24: ='CV Rotina <2A - residência'!AC24 -> 2.166666667 | E24: ='CV Rotina <2A - residência'!M24 -> 1.333333333 | F24: ='CV Rotina <2A - residência'!O24 -> 1.333333333 | G24: ='CV Rotina <2A - residência'!Q24 -> 2.166666667 | H24: ='CV Rotina <2A - residência'!Y24 -> 1.166666667 | I24: ='CV Rotina <2A - residência'!S24 -> 2 | J24: ='CV Rotina <2A - residência'!U24 -> 1 | K24: ='CV Rotina <2A - residência'!W24 -> 1 | L24: ='CV Rotina <2A - residência'!AA24 -> 1.083333333 | M24: 2 | N24: 8 | O24: 10 | P24: 4
A25: Metropolitana | B25: Domingos Martins | C25: ='CV Rotina <2A - residência'!K25 -> 0.954954955 | D25: ='CV Rotina <2A - residência'!AC25 -> 0.9009009009 | E25: ='CV Rotina <2A - residência'!M25 -> 0.8738738739 | F25: ='CV Rotina <2A - residência'!O25 -> 0.8558558559 | G25: ='CV Rotina <2A - residência'!Q25 -> 0.9099099099 | H25: ='CV Rotina <2A - residência'!Y25 -> 0.8288288288 | I25: ='CV Rotina <2A - residência'!S25 -> 0.8018018018 | J25: ='CV Rotina <2A - residência'!U25 -> 0.9459459459 | K25: ='CV Rotina <2A - residência'!W25 -> 0.9009009009 | L25: ='CV Rotina <2A - residência'!AA25 -> 0.8288288288 | M25: 2 | N25: 0 | O25: 2 | P25: 0
A26: Sul | B26: Dores do Rio Preto | C26: ='CV Rotina <2A - residência'!K26 -> 0.56 | D26: ='CV Rotina <2A - residência'!AC26 -> 0.68 | E26: ='CV Rotina <2A - residência'!M26 -> 0.84 | F26: ='CV Rotina <2A - residência'!O26 -> 0.76 | G26: ='CV Rotina <2A - residência'!Q26 -> 0.72 | H26: ='CV Rotina <2A - residência'!Y26 -> 1.32 | I26: ='CV Rotina <2A - residência'!S26 -> 0.84 | J26: ='CV Rotina <2A - residência'!U26 -> 0.8 | K26: ='CV Rotina <2A - residência'!W26 -> 1.16 | L26: ='CV Rotina <2A - residência'!AA26 -> 0.84 | M26: 0 | N26: 2 | O26: 2 | P26: 1
A27: Norte | B27: Ecoporanga | C27: ='CV Rotina <2A - residência'!K27 -> 0.8311688312 | D27: ='CV Rotina <2A - residência'!AC27 -> 0.6233766234 | E27: ='CV Rotina <2A - residência'!M27 -> 0.7012987013 | F27: ='CV Rotina <2A - residência'!O27 -> 0.7142857143 | G27: ='CV Rotina <2A - residência'!Q27 -> 0.5714285714 | H27: ='CV Rotina <2A - residência'!Y27 -> 0.961038961 | I27: ='CV Rotina <2A - residência'!S27 -> 0.6883116883 | J27: ='CV Rotina <2A - residência'!U27 -> 0.7272727273 | K27: ='CV Rotina <2A - residência'!W27 -> 0.9220779221 | L27: ='CV Rotina <2A - residência'!AA27 -> 0.8181818182 | M27: 0 | N27: 1 | O27: 1 | P27: 1
A28: Metropolitana | B28: Fundão | C28: ='CV Rotina <2A - residência'!K28 -> 0.8636363636 | D28: ='CV Rotina <2A - residência'!AC28 -> 0.8181818182 | E28: ='CV Rotina <2A - residência'!M28 -> 0.6818181818 | F28: ='CV Rotina <2A - residência'!O28 -> 0.6818181818 | G28: ='CV Rotina <2A - residência'!Q28 -> 0.7727272727 | H28: ='CV Rotina <2A - residência'!Y28 -> 0.9242424242 | I28: ='CV Rotina <2A - residência'!S28 -> 0.7121212121 | J28: ='CV Rotina <2A - residência'!U28 -> 0.7424242424 | K28: ='CV Rotina <2A - residência'!W28 -> 0.9090909091 | L28: ='CV Rotina <2A - residência'!AA28 -> 0.8333333333 | M28: 0 | N28: 0 | O28: 0 | P28: 0
A29: Central | B29: Governador Lindenberg | C29: ='CV Rotina <2A - residência'!K29 -> 1.108108108 | D29: ='CV Rotina <2A - residência'!AC29 -> 0.9459459459 | E29: ='CV Rotina <2A - residência'!M29 -> 0.8918918919 | F29: ='CV Rotina <2A - residência'!O29 -> 0.9189189189 | G29: ='CV Rotina <2A - residência'!Q29 -> 0.9189189189 | H29: ='CV Rotina <2A - residência'!Y29 -> 0.6216216216 | I29: ='CV Rotina <2A - residência'!S29 -> 1.135135135 | J29: ='CV Rotina <2A - residência'!U29 -> 0.7297297297 | K29: ='CV Rotina <2A - residência'!W29 -> 0.7297297297 | L29: ='CV Rotina <2A - residência'!AA29 -> 0.6216216216 | M29: 2 | N29: 1 | O29: 3 | P29: 0
A30: Sul | B30: Guaçuí | C30: ='CV Rotina <2A - residência'!K30 -> 1.215189873 | D30: ='CV Rotina <2A - residência'!AC30 -> 1.392405063 | E30: ='CV Rotina <2A - residência'!M30 -> 1.316455696 | F30: ='CV Rotina <2A - residência'!O30 -> 1.329113924 | G30: ='CV Rotina <2A - residência'!Q30 -> 1.392405063 | H30: ='CV Rotina <2A - residência'!Y30 -> 1.012658228 | I30: ='CV Rotina <2A - residência'!S30 -> 1.316455696 | J30: ='CV Rotina <2A - residência'!U30 -> 1.037974684 | K30: ='CV Rotina <2A - residência'!W30 -> 1 | L30: ='CV Rotina <2A - residência'!AA30 -> 1.189873418 | M30: 2 | N30: 8 | O30: 10 | P30: 4
A31: Metropolitana | B31: Guarapari | C31: ='CV Rotina <2A - residência'!K31 -> 0.8089171975 | D31: ='CV Rotina <2A - residência'!AC31 -> 0.8450106157 | E31: ='CV Rotina <2A - residência'!M31 -> 0.8089171975 | F31: ='CV Rotina <2A - residência'!O31 -> 0.7898089172 | G31: ='CV Rotina <2A - residência'!Q31 -> 0.8407643312 | H31: ='CV Rotina <2A - residência'!Y31 -> 0.838641189 | I31: ='CV Rotina <2A - residência'!S31 -> 0.8407643312 | J31: ='CV Rotina <2A - residência'!U31 -> 0.5987261146 | K31: ='CV Rotina <2A - residência'!W31 -> 0.7261146497 | L31: ='CV Rotina <2A - residência'!AA31 -> 0.5944798301 | M31: 0 | N31: 0 | O31: 0 | P31: 0
A32: Metropolitana | B32: Ibatiba | C32: ='CV Rotina <2A - residência'!K32 -> 0.9879518072 | D32: ='CV Rotina <2A - residência'!AC32 -> 1.144578313 | E32: ='CV Rotina <2A - residência'!M32 -> 1.277108434 | F32: ='CV Rotina <2A - residência'!O32 -> 1.265060241 | G32: ='CV Rotina <2A - residência'!Q32 -> 1.144578313 | H32: ='CV Rotina <2A - residência'!Y32 -> 1.156626506 | I32: ='CV Rotina <2A - residência'!S32 -> 1.13253012 | J32: ='CV Rotina <2A - residência'!U32 -> 1.192771084 | K32: ='CV Rotina <2A - residência'!W32 -> 1.120481928 | L32: ='CV Rotina <2A - residência'!AA32 -> 1.43373494 | M32: 2 | N32: 8 | O32: 10 | P32: 4
A33: Metropolitana | B33: Ibiraçu | C33: ='CV Rotina <2A - residência'!K33 -> 1.038461538 | D33: ='CV Rotina <2A - residência'!AC33 -> 1.192307692 | E33: ='CV Rotina <2A - residência'!M33 -> 1.038461538 | F33: ='CV Rotina <2A - residência'!O33 -> 1.038461538 | G33: ='CV Rotina <2A - residência'!Q33 -> 1.153846154 | H33: ='CV Rotina <2A - residência'!Y33 -> 0.9615384615 | I33: ='CV Rotina <2A - residência'!S33 -> 1.192307692 | J33: ='CV Rotina <2A - residência'!U33 -> 1 | K33: ='CV Rotina <2A - residência'!W33 -> 1.538461538 | L33: ='CV Rotina <2A - residência'!AA33 -> 1.461538462 | M33: 2 | N33: 8 | O33: 10 | P33: 4
A34: Sul | B34: Ibitirama | C34: ='CV Rotina <2A - residência'!K34 -> 1.052631579 | D34: ='CV Rotina <2A - residência'!AC34 -> 0.8157894737 | E34: ='CV Rotina <2A - residência'!M34 -> 0.9210526316 | F34: ='CV Rotina <2A - residência'!O34 -> 0.9210526316 | G34: ='CV Rotina <2A - residência'!Q34 -> 0.8157894737 | H34: ='CV Rotina <2A - residência'!Y34 -> 1.131578947 | I34: ='CV Rotina <2A - residência'!S34 -> 0.7894736842 | J34: ='CV Rotina <2A - residência'!U34 -> 0.9473684211 | K34: ='CV Rotina <2A - residência'!W34 -> 1.105263158 | L34: ='CV Rotina <2A - residência'!AA34 -> 1.289473684 | M34: 1 | N34: 3 | O34: 4 | P34: 1
A35: Sul | B35: Iconha | C35: ='CV Rotina <2A - residência'!K35 -> 1.038461538 | D35: ='CV Rotina <2A - residência'!AC35 -> 1.384615385 | E35: ='CV Rotina <2A - residência'!M35 -> 1.307692308 | F35: ='CV Rotina <2A - residência'!O35 -> 1.269230769 | G35: ='CV Rotina <2A - residência'!Q35 -> 1.384615385 | H35: ='CV Rotina <2A - residência'!Y35 -> 1.192307692 | I35: ='CV Rotina <2A - residência'!S35 -> 1.461538462 | J35: ='CV Rotina <2A - residência'!U35 -> 1.230769231 | K35: ='CV Rotina <2A - residência'!W35 -> 1.230769231 | L35: ='CV Rotina <2A - residência'!AA35 -> 1.230769231 | M35: =COUNTIF(C35:D35,">=0,9") -> 2 | N35: 8 | O35: 10 | P35: 4
A36: Sul | B36: Irupi | C36: ='CV Rotina <2A - residência'!K36 -> 1.15625 | D36: ='CV Rotina <2A - residência'!AC36 -> 1.78125 | E36: ='CV Rotina <2A - residência'!M36 -> 2.03125 | F36: ='CV Rotina <2A - residência'!O36 -> 2.03125 | G36: ='CV Rotina <2A - residência'!Q36 -> 1.78125 | H36: ='CV Rotina <2A - residência'!Y36 -> 1.21875 | I36: ='CV Rotina <2A - residência'!S36 -> 1.96875 | J36: ='CV Rotina <2A - residência'!U36 -> 1.71875 | K36: ='CV Rotina <2A - residência'!W36 -> 0.96875 | L36: ='CV Rotina <2A - residência'!AA36 -> 1.25 | M36: 2 | N36: 8 | O36: 10 | P36: 4
A37: Metropolitana | B37: Itaguaçu | C37: ='CV Rotina <2A - residência'!K37 -> 0.7777777778 | D37: ='CV Rotina <2A - residência'!AC37 -> 1.111111111 | E37: ='CV Rotina <2A - residência'!M37 -> 0.6944444444 | F37: ='CV Rotina <2A - residência'!O37 -> 0.6944444444 | G37: ='CV Rotina <2A - residência'!Q37 -> 1.138888889 | H37: ='CV Rotina <2A - residência'!Y37 -> 0.8333333333 | I37: ='CV Rotina <2A - residência'!S37 -> 0.7777777778 | J37: ='CV Rotina <2A - residência'!U37 -> 0.8055555556 | K37: ='CV Rotina <2A - residência'!W37 -> 0.8055555556 | L37: ='CV Rotina <2A - residência'!AA37 -> 0.7777777778 | M37: 1 | N37: 1 | O37: 2 | P37: 1
A38: Sul | B38: Itapemirim | C38: ='CV Rotina <2A - residência'!K38 -> 1.057142857 | D38: ='CV Rotina <2A - residência'!AC38 -> 0.9214285714 | E38: ='CV Rotina <2A - residência'!M38 -> 0.9857142857 | F38: ='CV Rotina <2A - residência'!O38 -> 0.9357142857 | G38: ='CV Rotina <2A - residência'!Q38 -> 0.9 | H38: ='CV Rotina <2A - residência'!Y38 -> 1.078571429 | I38: ='CV Rotina <2A - residência'!S38 -> 0.8928571429 | J38: ='CV Rotina <2A - residência'!U38 -> 0.65 | K38: ='CV Rotina <2A - residência'!W38 -> 0.9571428571 | L38: ='CV Rotina <2A - residência'!AA38 -> 0.8857142857 | M38: 2 | N38: 3 | O38: 5 | P38: 2
A39: Metropolitana | B39: Itarana | C39: ='CV Rotina <2A - residência'!K39 -> 1.027027027 | D39: ='CV Rotina <2A - residência'!AC39 -> 1.054054054 | E39: ='CV Rotina <2A - residência'!M39 -> 0.8378378378 | F39: ='CV Rotina <2A - residência'!O39 -> 0.8378378378 | G39: ='CV Rotina <2A - residência'!Q39 -> 1.108108108 | H39: ='CV Rotina <2A - residência'!Y39 -> 0.7297297297 | I39: ='CV Rotina <2A - residência'!S39 -> 0.972972973 | J39: ='CV Rotina <2A - residência'!U39 -> 0.8918918919 | K39: ='CV Rotina <2A - residência'!W39 -> 0.5675675676 | L39: ='CV Rotina <2A - residência'!AA39 -> 0.6216216216 | M39: 2 | N39: 2 | O39: 4 | P39: 1
A40: Sul | B40: Iúna | C40: ='CV Rotina <2A - residência'!K40 -> 0.8873239437 | D40: ='CV Rotina <2A - residência'!AC40 -> 1.084507042 | E40: ='CV Rotina <2A - residência'!M40 -> 1.098591549 | F40: ='CV Rotina <2A - residência'!O40 -> 1.098591549 | G40: ='CV Rotina <2A - residência'!Q40 -> 1.056338028 | H40: ='CV Rotina <2A - residência'!Y40 -> 1.352112676 | I40: ='CV Rotina <2A - residência'!S40 -> 1.197183099 | J40: ='CV Rotina <2A - residência'!U40 -> 1.436619718 | K40: ='CV Rotina <2A - residência'!W40 -> 1.309859155 | L40: ='CV Rotina <2A - residência'!AA40 -> 1.338028169 | M40: 1 | N40: 8 | O40: 9 | P40: 4
A41: Norte | B41: Jaguaré | C41: ='CV Rotina <2A - residência'!K41 -> 0.9219858156 | D41: ='CV Rotina <2A - residência'!AC41 -> 0.9007092199 | E41: ='CV Rotina <2A - residência'!M41 -> 0.7659574468 | F41: ='CV Rotina <2A - residência'!O41 -> 0.7517730496 | G41: ='CV Rotina <2A - residência'!Q41 -> 0.8794326241 | H41: ='CV Rotina <2A - residência'!Y41 -> 0.865248227 | I41: ='CV Rotina <2A - residência'!S41 -> 0.8226950355 | J41: ='CV Rotina <2A - residência'!U41 -> 0.5744680851 | K41: ='CV Rotina <2A - residência'!W41 -> 0.6524822695 | L41: ='CV Rotina <2A - residência'!AA41 -> 0.6808510638 | M41: 2 | N41: 0 | O41: 2 | P41: 0
A42: Sul | B42: Jerônimo Monteiro | C42: ='CV Rotina <2A - residência'!K42 -> 1.275 | D42: ='CV Rotina <2A - residência'!AC42 -> 0.675 | E42: ='CV Rotina <2A - residência'!M42 -> 0.7 | F42: ='CV Rotina <2A - residência'!O42 -> 0.725 | G42: ='CV Rotina <2A - residência'!Q42 -> 0.65 | H42: ='CV Rotina <2A - residência'!Y42 -> 0.825 | I42: ='CV Rotina <2A - residência'!S42 -> 0.7 | J42: ='CV Rotina <2A - residência'!U42 -> 0.475 | K42: ='CV Rotina <2A - residência'!W42 -> 0.8 | L42: ='CV Rotina <2A - residência'!AA42 -> 0.875 | M42: 1 | N42: 0 | O42: 1 | P42: 0
A43: Metropolitana | B43: João Neiva | C43: ='CV Rotina <2A - residência'!K43 -> 0.8684210526 | D43: ='CV Rotina <2A - residência'!AC43 -> 1 | E43: ='CV Rotina <2A - residência'!M43 -> 0.8684210526 | F43: ='CV Rotina <2A - residência'!O43 -> 0.8947368421 | G43: ='CV Rotina <2A - residência'!Q43 -> 0.9210526316 | H43: ='CV Rotina <2A - residência'!Y43 -> 0.5263157895 | I43: ='CV Rotina <2A - residência'!S43 -> 0.8684210526 | J43: ='CV Rotina <2A - residência'!U43 -> 0.9210526316 | K43: ='CV Rotina <2A - residência'!W43 -> 0.7368421053 | L43: ='CV Rotina <2A - residência'!AA43 -> 0.6315789474 | M43: 1 | N43: 0 | O43: 1 | P43: 0
A44: Metropolitana | B44: Laranja da Terra | C44: ='CV Rotina <2A - residência'!K44 -> 1.12 | D44: ='CV Rotina <2A - residência'!AC44 -> 1.24 | E44: ='CV Rotina <2A - residência'!M44 -> 1.08 | F44: ='CV Rotina <2A - residência'!O44 -> 1.08 | G44: ='CV Rotina <2A - residência'!Q44 -> 1.04 | H44: ='CV Rotina <2A - residência'!Y44 -> 1.08 | I44: ='CV Rotina <2A - residência'!S44 -> 0.92 | J44: ='CV Rotina <2A - residência'!U44 -> 1.6 | K44: ='CV Rotina <2A - residência'!W44 -> 1.36 | L44: ='CV Rotina <2A - residência'!AA44 -> 1.4 | M44: 2 | N44: 7 | O44: 9 | P44: 4
A45: Central | B45: Linhares | C45: ='CV Rotina <2A - residência'!K45 -> 1.137518685 | D45: ='CV Rotina <2A - residência'!AC45 -> 0.9103139013 | E45: ='CV Rotina <2A - residência'!M45 -> 0.9745889387 | F45: ='CV Rotina <2A - residência'!O45 -> 0.9312406577 | G45: ='CV Rotina <2A - residência'!Q45 -> 0.8729446936 | H45: ='CV Rotina <2A - residência'!Y45 -> 0.8789237668 | I45: ='CV Rotina <2A - residência'!S45 -> 0.9357249626 | J45: ='CV Rotina <2A - residência'!U45 -> 0.6935724963 | K45: ='CV Rotina <2A - residência'!W45 -> 0.8385650224 | L45: ='CV Rotina <2A - residência'!AA45 -> 0.8729446936 | M45: 2 | N45: 1 | O45: 3 | P45: 1
A46: Central | B46: Mantenópolis | C46: ='CV Rotina <2A - residência'!K46 -> 1.026315789 | D46: ='CV Rotina <2A - residência'!AC46 -> 1.078947368 | E46: ='CV Rotina <2A - residência'!M46 -> 0.8421052632 | F46: ='CV Rotina <2A - residência'!O46 -> 0.7894736842 | G46: ='CV Rotina <2A - residência'!Q46 -> 1.131578947 | H46: ='CV Rotina <2A - residência'!Y46 -> 0.9473684211 | I46: ='CV Rotina <2A - residência'!S46 -> 1.078947368 | J46: ='CV Rotina <2A - residência'!U46 -> 0.9210526316 | K46: ='CV Rotina <2A - residência'!W46 -> 0.7105263158 | L46: ='CV Rotina <2A - residência'!AA46 -> 0.6315789474 | M46: 2 | N46: 2 | O46: 4 | P46: 1
A47: Sul | B47: Marataízes | C47: ='CV Rotina <2A - residência'!K47 -> 0.9225806452 | D47: ='CV Rotina <2A - residência'!AC47 -> 0.9935483871 | E47: ='CV Rotina <2A - residência'!M47 -> 0.8903225806 | F47: ='CV Rotina <2A - residência'!O47 -> 0.9096774194 | G47: ='CV Rotina <2A - residência'!Q47 -> 1 | H47: ='CV Rotina <2A - residência'!Y47 -> 0.7741935484 | I47: ='CV Rotina <2A - residência'!S47 -> 0.9225806452 | J47: ='CV Rotina <2A - residência'!U47 -> 0.4516129032 | K47: ='CV Rotina <2A - residência'!W47 -> 0.7870967742 | L47: ='CV Rotina <2A - residência'!AA47 -> 0.7483870968 | M47: 2 | N47: 1 | O47: 3 | P47: 1
A48: Metropolitana | B48: Marechal Floriano | C48: ='CV Rotina <2A - residência'!K48 -> 0.7727272727 | D48: ='CV Rotina <2A - residência'!AC48 -> 1 | E48: ='CV Rotina <2A - residência'!M48 -> 1 | F48: ='CV Rotina <2A - residência'!O48 -> 0.8636363636 | G48: ='CV Rotina <2A - residência'!Q48 -> 1.068181818 | H48: ='CV Rotina <2A - residência'!Y48 -> 1.181818182 | I48: ='CV Rotina <2A - residência'!S48 -> 0.9545454545 | J48: ='CV Rotina <2A - residência'!U48 -> 1.090909091 | K48: ='CV Rotina <2A - residência'!W48 -> 0.7272727273 | L48: ='CV Rotina <2A - residência'!AA48 -> 0.8409090909 | M48: 1 | N48: 5 | O48: 6 | P48: 3
A49: Central | B49: Marilândia | C49: ='CV Rotina <2A - residência'!K49 -> 0.8 | D49: ='CV Rotina <2A - residência'!AC49 -> 0.8444444444 | E49: ='CV Rotina <2A - residência'!M49 -> 0.8 | F49: ='CV Rotina <2A - residência'!O49 -> 0.8222222222 | G49: ='CV Rotina <2A - residência'!Q49 -> 0.8888888889 | H49: ='CV Rotina <2A - residência'!Y49 -> 0.8666666667 | I49: ='CV Rotina <2A - residência'!S49 -> 0.7555555556 | J49: ='CV Rotina <2A - residência'!U49 -> 1.022222222 | K49: ='CV Rotina <2A - residência'!W49 -> 0.7777777778 | L49: ='CV Rotina <2A - residência'!AA49 -> 0.9111111111 | M49: 0 | N49: 1 | O49: 1 | P49: 0
A50: Sul | B50: Mimoso do Sul | C50: ='CV Rotina <2A - residência'!K50 -> 0.8505747126 | D50: ='CV Rotina <2A - residência'!AC50 -> 0.4597701149 | E50: ='CV Rotina <2A - residência'!M50 -> 0.7471264368 | F50: ='CV Rotina <2A - residência'!O50 -> 0.7701149425 | G50: ='CV Rotina <2A - residência'!Q50 -> 0.4827586207 | H50: ='CV Rotina <2A - residência'!Y50 -> 0.9195402299 | I50: ='CV Rotina <2A - residência'!S50 -> 0.5632183908 | J50: ='CV Rotina <2A - residência'!U50 -> 0.7931034483 | K50: ='CV Rotina <2A - residência'!W50 -> 0.6206896552 | L50: ='CV Rotina <2A - residência'!AA50 -> 0.5977011494 | M50: 0 | N50: 0 | O50: 0 | P50: 0
A51: Norte | B51: Montanha | C51: ='CV Rotina <2A - residência'!K51 -> 1 | D51: ='CV Rotina <2A - residência'!AC51 -> 1.714285714 | E51: ='CV Rotina <2A - residência'!M51 -> 1.428571429 | F51: ='CV Rotina <2A - residência'!O51 -> 1.476190476 | G51: ='CV Rotina <2A - residência'!Q51 -> 1.69047619 | H51: ='CV Rotina <2A - residência'!Y51 -> 1.214285714 | I51: ='CV Rotina <2A - residência'!S51 -> 1.5 | J51: ='CV Rotina <2A - residência'!U51 -> 1.428571429 | K51: ='CV Rotina <2A - residência'!W51 -> 1.452380952 | L51: ='CV Rotina <2A - residência'!AA51 -> 1.452380952 | M51: 2 | N51: 8 | O51: 10 | P51: 4
A52: Norte | B52: Mucurici | C52: ='CV Rotina <2A - residência'!K52 -> 0.5 | D52: ='CV Rotina <2A - residência'!AC52 -> 0.5 | E52: ='CV Rotina <2A - residência'!M52 -> 0.3 | F52: ='CV Rotina <2A - residência'!O52 -> 0.35 | G52: ='CV Rotina <2A - residência'!Q52 -> 0.5 | H52: ='CV Rotina <2A - residência'!Y52 -> 0.5 | I52: ='CV Rotina <2A - residência'!S52 -> 0.5 | J52: ='CV Rotina <2A - residência'!U52 -> 0.7 | K52: ='CV Rotina <2A - residência'!W52 -> 0.9 | L52: ='CV Rotina <2A - residência'!AA52 -> 0.7 | M52: 0 | N52: 0 | O52: 0 | P52: 0
A53: Sul | B53: Muniz Freire | C53: ='CV Rotina <2A - residência'!K53 -> 1.448979592 | D53: ='CV Rotina <2A - residência'!AC53 -> 1.224489796 | E53: ='CV Rotina <2A - residência'!M53 -> 1.714285714 | F53: ='CV Rotina <2A - residência'!O53 -> 1.693877551 | G53: ='CV Rotina <2A - residência'!Q53 -> 1.204081633 | H53: ='CV Rotina <2A - residência'!Y53 -> 1.326530612 | I53: ='CV Rotina <2A - residência'!S53 -> 1.408163265 | J53: ='CV Rotina <2A - residência'!U53 -> 1.204081633 | K53: ='CV Rotina <2A - residência'!W53 -> 1.163265306 | L53: ='CV Rotina <2A - residência'!AA53 -> 2.102040816 | M53: 2 | N53: 8 | O53: 10 | P53: 4
A54: Sul | B54: Muqui | C54: ='CV Rotina <2A - residência'!K54 -> 0.8780487805 | D54: ='CV Rotina <2A - residência'!AC54 -> 0.6829268293 | E54: ='CV Rotina <2A - residência'!M54 -> 0.9024390244 | F54: ='CV Rotina <2A - residência'!O54 -> 0.8780487805 | G54: ='CV Rotina <2A - residência'!Q54 -> 0.6829268293 | H54: ='CV Rotina <2A - residência'!Y54 -> 1.146341463 | I54: ='CV Rotina <2A - residência'!S54 -> 0.8048780488 | J54: ='CV Rotina <2A - residência'!U54 -> 1.073170732 | K54: ='CV Rotina <2A - residência'!W54 -> 0.9024390244 | L54: ='CV Rotina <2A - residência'!AA54 -> 0.756097561 | M54: 0 | N54: 2 | O54: 2 | P54: 1
A55: Norte | B55: Nova Venécia | C55: ='CV Rotina <2A - residência'!K55 -> 0.8578947368 | D55: ='CV Rotina <2A - residência'!AC55 -> 0.9315789474 | E55: ='CV Rotina <2A - residência'!M55 -> 0.9631578947 | F55: ='CV Rotina <2A - residência'!O55 -> 0.9736842105 | G55: ='CV Rotina <2A - residência'!Q55 -> 0.9210526316 | H55: ='CV Rotina <2A - residência'!Y55 -> 1.005263158 | I55: ='CV Rotina <2A - residência'!S55 -> 0.9789473684 | J55: ='CV Rotina <2A - residência'!U55 -> 0.8473684211 | K55: ='CV Rotina <2A - residência'!W55 -> 0.8736842105 | L55: ='CV Rotina <2A - residência'!AA55 -> 1.031578947 | M55: 1 | N55: 5 | O55: 6 | P55: 3
A56: Central | B56: Pancas | C56: ='CV Rotina <2A - residência'!K56 -> 0.6964285714 | D56: ='CV Rotina <2A - residência'!AC56 -> 0.9285714286 | E56: ='CV Rotina <2A - residência'!M56 -> 1.035714286 | F56: ='CV Rotina <2A - residência'!O56 -> 1.017857143 | G56: ='CV Rotina <2A - residência'!Q56 -> 0.9107142857 | H56: ='CV Rotina <2A - residência'!Y56 -> 1.142857143 | I56: ='CV Rotina <2A - residência'!S56 -> 0.9821428571 | J56: ='CV Rotina <2A - residência'!U56 -> 1.017857143 | K56: ='CV Rotina <2A - residência'!W56 -> 0.9285714286 | L56: ='CV Rotina <2A - residência'!AA56 -> 0.9464285714 | M56: 1 | N56: 5 | O56: 6 | P56: 3
A57: Norte | B57: Pedro Canário | C57: ='CV Rotina <2A - residência'!K57 -> 0.8441558442 | D57: ='CV Rotina <2A - residência'!AC57 -> 1.064935065 | E57: ='CV Rotina <2A - residência'!M57 -> 1.324675325 | F57: ='CV Rotina <2A - residência'!O57 -> 1.233766234 | G57: ='CV Rotina <2A - residência'!Q57 -> 1.116883117 | H57: ='CV Rotina <2A - residência'!Y57 -> 1.168831169 | I57: ='CV Rotina <2A - residência'!S57 -> 1.038961039 | J57: ='CV Rotina <2A - residência'!U57 -> 0.8571428571 | K57: ='CV Rotina <2A - residência'!W57 -> 0.974025974 | L57: ='CV Rotina <2A - residência'!AA57 -> 1 | M57: 1 | N57: 7 | O57: 8 | P57: 4
A58: Norte | B58: Pinheiros | C58: ='CV Rotina <2A - residência'!K58 -> 0.5979381443 | D58: ='CV Rotina <2A - residência'!AC58 -> 0.9690721649 | E58: ='CV Rotina <2A - residência'!M58 -> 0.9896907216 | F58: ='CV Rotina <2A - residência'!O58 -> 0.9484536082 | G58: ='CV Rotina <2A - residência'!Q58 -> 0.9175257732 | H58: ='CV Rotina <2A - residência'!Y58 -> 0.8350515464 | I58: ='CV Rotina <2A - residência'!S58 -> 1 | J58: ='CV Rotina <2A - residência'!U58 -> 0.7422680412 | K58: ='CV Rotina <2A - residência'!W58 -> 0.6804123711 | L58: ='CV Rotina <2A - residência'!AA58 -> 0.7010309278 | M58: 1 | N58: 2 | O58: 3 | P58: 1
A59: Sul | B59: Piúma | C59: ='CV Rotina <2A - residência'!K59 -> 0.6829268293 | D59: ='CV Rotina <2A - residência'!AC59 -> 0.6829268293 | E59: ='CV Rotina <2A - residência'!M59 -> 0.8048780488 | F59: ='CV Rotina <2A - residência'!O59 -> 0.8048780488 | G59: ='CV Rotina <2A - residência'!Q59 -> 0.7195121951 | H59: ='CV Rotina <2A - residência'!Y59 -> 0.987804878 | I59: ='CV Rotina <2A - residência'!S59 -> 0.7804878049 | J59: ='CV Rotina <2A - residência'!U59 -> 0.8170731707 | K59: ='CV Rotina <2A - residência'!W59 -> 0.9268292683 | L59: ='CV Rotina <2A - residência'!AA59 -> 0.9268292683 | M59: 0 | N59: 1 | O59: 1 | P59: 1
A60: Norte | B60: Ponto Belo | C60: ='CV Rotina <2A - residência'!K60 -> 0.8571428571 | D60: ='CV Rotina <2A - residência'!AC60 -> 1.714285714 | E60: ='CV Rotina <2A - residência'!M60 -> 1.071428571 | F60: ='CV Rotina <2A - residência'!O60 -> 0.7142857143 | G60: ='CV Rotina <2A - residência'!Q60 -> 1.785714286 | H60: ='CV Rotina <2A - residência'!Y60 -> 1 | I60: ='CV Rotina <2A - residência'!S60 -> 1.214285714 | J60: ='CV Rotina <2A - residência'!U60 -> 1.285714286 | K60: ='CV Rotina <2A - residência'!W60 -> 1.5 | L60: ='CV Rotina <2A - residência'!AA60 -> 1.642857143 | M60: 1 | N60: 7 | O60: 8 | P60: 3
A61: Sul | B61: Presidente Kennedy | C61: ='CV Rotina <2A - residência'!K61 -> 0.9152542373 | D61: ='CV Rotina <2A - residência'!AC61 -> 0.7457627119 | E61: ='CV Rotina <2A - residência'!M61 -> 0.8474576271 | F61: ='CV Rotina <2A - residência'!O61 -> 0.8305084746 | G61: ='CV Rotina <2A - residência'!Q61 -> 0.7457627119 | H61: ='CV Rotina <2A - residência'!Y61 -> 1.203389831 | I61: ='CV Rotina <2A - residência'!S61 -> 0.8474576271 | J61: ='CV Rotina <2A - residência'!U61 -> 0.7288135593 | K61: ='CV Rotina <2A - residência'!W61 -> 0.9661016949 | L61: ='CV Rotina <2A - residência'!AA61 -> 0.9322033898 | M61: 1 | N61: 2 | O61: 3 | P61: 1
A62: Central | B62: Rio Bananal | C62: ='CV Rotina <2A - residência'!K62 -> 0.8076923077 | D62: ='CV Rotina <2A - residência'!AC62 -> 0.9230769231 | E62: ='CV Rotina <2A - residência'!M62 -> 1.012820513 | F62: ='CV Rotina <2A - residência'!O62 -> 1.012820513 | G62: ='CV Rotina <2A - residência'!Q62 -> 0.9615384615 | H62: ='CV Rotina <2A - residência'!Y62 -> 0.8717948718 | I62: ='CV Rotina <2A - residência'!S62 -> 0.8717948718 | J62: ='CV Rotina <2A - residência'!U62 -> 0.7435897436 | K62: ='CV Rotina <2A - residência'!W62 -> 0.858974359 | L62: ='CV Rotina <2A - residência'!AA62 -> 1.346153846 | M62: 1 | N62: 4 | O62: 5 | P62: 3
A63: Sul | B63: Rio Novo do Sul | C63: ='CV Rotina <2A - residência'!K63 -> 0.9677419355 | D63: ='CV Rotina <2A - residência'!AC63 -> 1 | E63: ='CV Rotina <2A - residência'!M63 -> 0.7419354839 | F63: ='CV Rotina <2A - residência'!O63 -> 0.7419354839 | G63: ='CV Rotina <2A - residência'!Q63 -> 0.9032258065 | H63: ='CV Rotina <2A - residência'!Y63 -> 1.193548387 | I63: ='CV Rotina <2A - residência'!S63 -> 0.8709677419 | J63: ='CV Rotina <2A - residência'!U63 -> 0.6774193548 | K63: ='CV Rotina <2A - residência'!W63 -> 0.9032258065 | L63: ='CV Rotina <2A - residência'!AA63 -> 0.8064516129 | M63: 2 | N63: 1 | O63: 3 | P63: 1
A64: Metropolitana | B64: Santa Leopoldina | C64: ='CV Rotina <2A - residência'!K64 -> 0.7741935484 | D64: ='CV Rotina <2A - residência'!AC64 -> 0.6774193548 | E64: ='CV Rotina <2A - residência'!M64 -> 0.9032258065 | F64: ='CV Rotina <2A - residência'!O64 -> 0.9032258065 | G64: ='CV Rotina <2A - residência'!Q64 -> 0.6774193548 | H64: ='CV Rotina <2A - residência'!Y64 -> 0.7741935484 | I64: ='CV Rotina <2A - residência'!S64 -> 0.6774193548 | J64: ='CV Rotina <2A - residência'!U64 -> 1 | K64: ='CV Rotina <2A - residência'!W64 -> 0.8064516129 | L64: ='CV Rotina <2A - residência'!AA64 -> 0.8709677419 | M64: 0 | N64: 1 | O64: 1 | P64: 0
A65: Metropolitana | B65: Santa Maria de Jetibá | C65: ='CV Rotina <2A - residência'!K65 -> 0.9122807018 | D65: ='CV Rotina <2A - residência'!AC65 -> 1.005847953 | E65: ='CV Rotina <2A - residência'!M65 -> 1.029239766 | F65: ='CV Rotina <2A - residência'!O65 -> 1.052631579 | G65: ='CV Rotina <2A - residência'!Q65 -> 1.005847953 | H65: ='CV Rotina <2A - residência'!Y65 -> 1 | I65: ='CV Rotina <2A - residência'!S65 -> 1.01754386 | J65: ='CV Rotina <2A - residência'!U65 -> 0.8713450292 | K65: ='CV Rotina <2A - residência'!W65 -> 1.005847953 | L65: ='CV Rotina <2A - residência'!AA65 -> 1.064327485 | M65: 2 | N65: 7 | O65: 9 | P65: 4
A66: Metropolitana | B66: Santa Teresa | C66: ='CV Rotina <2A - residência'!K66 -> 0.972972973 | D66: ='CV Rotina <2A - residência'!AC66 -> 0.7972972973 | E66: ='CV Rotina <2A - residência'!M66 -> 0.8378378378 | F66: ='CV Rotina <2A - residência'!O66 -> 0.8378378378 | G66: ='CV Rotina <2A - residência'!Q66 -> 0.7972972973 | H66: ='CV Rotina <2A - residência'!Y66 -> 1.040540541 | I66: ='CV Rotina <2A - residência'!S66 -> 0.7432432432 | J66: ='CV Rotina <2A - residência'!U66 -> 0.8513513514 | K66: ='CV Rotina <2A - residência'!W66 -> 0.8783783784 | L66: ='CV Rotina <2A - residência'!AA66 -> 0.9054054054 | M66: 1 | N66: 1 | O66: 2 | P66: 1
A67: Central | B67: São Domingos do Norte | C67: ='CV Rotina <2A - residência'!K67 -> 1.034482759 | D67: ='CV Rotina <2A - residência'!AC67 -> 1.275862069 | E67: ='CV Rotina <2A - residência'!M67 -> 1.24137931 | F67: ='CV Rotina <2A - residência'!O67 -> 1.206896552 | G67: ='CV Rotina <2A - residência'!Q67 -> 1.206896552 | H67: ='CV Rotina <2A - residência'!Y67 -> 1.137931034 | I67: ='CV Rotina <2A - residência'!S67 -> 1.482758621 | J67: ='CV Rotina <2A - residência'!U67 -> 0.6896551724 | K67: ='CV Rotina <2A - residência'!W67 -> 0.8275862069 | L67: ='CV Rotina <2A - residência'!AA67 -> 0.9655172414 | M67: =COUNTIF(C67:D67,">=0,9") -> 2 | N67: =COUNTIFS(E67:L67,">=0,95") -> 6 | O67: 8 | P67: 4
A68: Central | B68: São Gabriel da Palha | C68: ='CV Rotina <2A - residência'!K68 -> 1.210526316 | D68: ='CV Rotina <2A - residência'!AC68 -> 1.122807018 | E68: ='CV Rotina <2A - residência'!M68 -> 0.8070175439 | F68: ='CV Rotina <2A - residência'!O68 -> 0.7894736842 | G68: ='CV Rotina <2A - residência'!Q68 -> 1.114035088 | H68: ='CV Rotina <2A - residência'!Y68 -> 0.6842105263 | I68: ='CV Rotina <2A - residência'!S68 -> 0.9122807018 | J68: ='CV Rotina <2A - residência'!U68 -> 0.8859649123 | K68: ='CV Rotina <2A - residência'!W68 -> 0.7192982456 | L68: ='CV Rotina <2A - residência'!AA68 -> 0.8333333333 | M68: 2 | N68: 1 | O68: =SUM(M68:N68) -> 3 | P68: =COUNTIF(E68:H68,">=0,95") -> 1
A69: Sul | B69: São José do Calçado | C69: ='CV Rotina <2A - residência'!K69 -> 1.842105263 | D69: ='CV Rotina <2A - residência'!AC69 -> 1.526315789 | E69: ='CV Rotina <2A - residência'!M69 -> 1.157894737 | F69: ='CV Rotina <2A - residência'!O69 -> 1.157894737 | G69: ='CV Rotina <2A - residência'!Q69 -> 1.421052632 | H69: ='CV Rotina <2A - residência'!Y69 -> 1.368421053 | I69: ='CV Rotina <2A - residência'!S69 -> 1.368421053 | J69: ='CV Rotina <2A - residência'!U69 -> 0.8947368421 | K69: ='CV Rotina <2A - residência'!W69 -> 0.7894736842 | L69: ='CV Rotina <2A - residência'!AA69 -> 0.5789473684 | M69: 2 | N69: 5 | O69: 7 | P69: 4
A70: Norte | B70: São Mateus | C70: ='CV Rotina <2A - residência'!K70 -> 0.7905544148 | D70: ='CV Rotina <2A - residência'!AC70 -> 1.024640657 | E70: ='CV Rotina <2A - residência'!M70 -> 0.9014373717 | F70: ='CV Rotina <2A - residência'!O70 -> 0.8788501027 | G70: ='CV Rotina <2A - residência'!Q70 -> 1.002053388 | H70: ='CV Rotina <2A - residência'!Y70 -> 0.8583162218 | I70: ='CV Rotina <2A - residência'!S70 -> 0.9383983573 | J70: ='CV Rotina <2A - residência'!U70 -> 0.7618069815 | K70: ='CV Rotina <2A - residência'!W70 -> 0.8069815195 | L70: ='CV Rotina <2A - residência'!AA70 -> 0.6919917864 | M70: 1 | N70: 1 | O70: 2 | P70: 1
A71: Central | B71: São Roque do Canaã | C71: ='CV Rotina <2A - residência'!K71 -> 0.71875 | D71: ='CV Rotina <2A - residência'!AC71 -> 1.03125 | E71: ='CV Rotina <2A - residência'!M71 -> 1.03125 | F71: ='CV Rotina <2A - residência'!O71 -> 1.03125 | G71: ='CV Rotina <2A - residência'!Q71 -> 1.0625 | H71: ='CV Rotina <2A - residência'!Y71 -> 1.1875 | I71: ='CV Rotina <2A - residência'!S71 -> 0.90625 | J71: ='CV Rotina <2A - residência'!U71 -> 1.25 | K71: ='CV Rotina <2A - residência'!W71 -> 0.875 | L71: ='CV Rotina <2A - residência'!AA71 -> 0.84375 | M71: 1 | N71: 5 | O71: 6 | P71: 4
A72: Metropolitana | B72: Serra | C72: ='CV Rotina <2A - residência'!K72 -> 0.9553763441 | D72: ='CV Rotina <2A - residência'!AC72 -> 0.9430107527 | E72: ='CV Rotina <2A - residência'!M72 -> 0.9403225806 | F72: ='CV Rotina <2A - residência'!O72 -> 0.9430107527 | G72: ='CV Rotina <2A - residência'!Q72 -> 0.9182795699 | H72: ='CV Rotina <2A - residência'!Y72 -> 0.9037634409 | I72: ='CV Rotina <2A - residência'!S72 -> 0.9333333333 | J72: ='CV Rotina <2A - residência'!U72 -> 0.7102150538 | K72: ='CV Rotina <2A - residência'!W72 -> 0.852688172 | L72: ='CV Rotina <2A - residência'!AA72 -> 0.8005376344 | M72: 2 | N72: 0 | O72: 2 | P72: 0
A73: Central | B73: Sooretama | C73: ='CV Rotina <2A - residência'!K73 -> 0.6875 | D73: ='CV Rotina <2A - residência'!AC73 -> 1.135416667 | E73: ='CV Rotina <2A - residência'!M73 -> 1.010416667 | F73: ='CV Rotina <2A - residência'!O73 -> 0.9895833333 | G73: ='CV Rotina <2A - residência'!Q73 -> 1.114583333 | H73: ='CV Rotina <2A - residência'!Y73 -> 1.010416667 | I73: ='CV Rotina <2A - residência'!S73 -> 1.145833333 | J73: ='CV Rotina <2A - residência'!U73 -> 0.90625 | K73: ='CV Rotina <2A - residência'!W73 -> 0.96875 | L73: ='CV Rotina <2A - residência'!AA73 -> 0.8645833333 | M73: 1 | N73: 6 | O73: 7 | P73: 4
A74: Sul | B74: Vargem Alta | C74: ='CV Rotina <2A - residência'!K74 -> 0.9315068493 | D74: ='CV Rotina <2A - residência'!AC74 -> 0.7945205479 | E74: ='CV Rotina <2A - residência'!M74 -> 0.7808219178 | F74: ='CV Rotina <2A - residência'!O74 -> 0.7945205479 | G74: ='CV Rotina <2A - residência'!Q74 -> 0.7945205479 | H74: ='CV Rotina <2A - residência'!Y74 -> 1 | I74: ='CV Rotina <2A - residência'!S74 -> 0.698630137 | J74: ='CV Rotina <2A - residência'!U74 -> 1.109589041 | K74: ='CV Rotina <2A - residência'!W74 -> 0.8219178082 | L74: ='CV Rotina <2A - residência'!AA74 -> 0.8493150685 | M74: 1 | N74: 2 | O74: 3 | P74: 1
A75: Metropolitana | B75: Venda Nova do Imigrante | C75: ='CV Rotina <2A - residência'!K75 -> 0.9642857143 | D75: ='CV Rotina <2A - residência'!AC75 -> 0.8452380952 | E75: ='CV Rotina <2A - residência'!M75 -> 1.119047619 | F75: ='CV Rotina <2A - residência'!O75 -> 1.107142857 | G75: ='CV Rotina <2A - residência'!Q75 -> 0.8095238095 | H75: ='CV Rotina <2A - residência'!Y75 -> 1.011904762 | I75: ='CV Rotina <2A - residência'!S75 -> 0.8452380952 | J75: ='CV Rotina <2A - residência'!U75 -> 1.011904762 | K75: ='CV Rotina <2A - residência'!W75 -> 1.05952381 | L75: ='CV Rotina <2A - residência'!AA75 -> 1.357142857 | M75: 1 | N75: 6 | O75: 7 | P75: 3
A76: Metropolitana | B76: Viana | C76: ='CV Rotina <2A - residência'!K76 -> 0.9768518519 | D76: ='CV Rotina <2A - residência'!AC76 -> 1.013888889 | E76: ='CV Rotina <2A - residência'!M76 -> 0.9814814815 | F76: ='CV Rotina <2A - residência'!O76 -> 0.9583333333 | G76: ='CV Rotina <2A - residência'!Q76 -> 1.013888889 | H76: ='CV Rotina <2A - residência'!Y76 -> 1.018518519 | I76: ='CV Rotina <2A - residência'!S76 -> 0.9259259259 | J76: ='CV Rotina <2A - residência'!U76 -> 0.8101851852 | K76: ='CV Rotina <2A - residência'!W76 -> 1.060185185 | L76: ='CV Rotina <2A - residência'!AA76 -> 1.106481481 | M76: 2 | N76: 6 | O76: 8 | P76: 4
A77: Norte | B77: Vila Pavão | C77: ='CV Rotina <2A - residência'!K77 -> 0.7368421053 | D77: ='CV Rotina <2A - residência'!AC77 -> 0.7631578947 | E77: ='CV Rotina <2A - residência'!M77 -> 0.8157894737 | F77: ='CV Rotina <2A - residência'!O77 -> 0.7631578947 | G77: ='CV Rotina <2A - residência'!Q77 -> 0.7368421053 | H77: ='CV Rotina <2A - residência'!Y77 -> 0.7368421053 | I77: ='CV Rotina <2A - residência'!S77 -> 0.7631578947 | J77: ='CV Rotina <2A - residência'!U77 -> 0.7368421053 | K77: ='CV Rotina <2A - residência'!W77 -> 0.7894736842 | L77: ='CV Rotina <2A - residência'!AA77 -> 1.078947368 | M77: 0 | N77: 1 | O77: 1 | P77: 0
A78: Central | B78: Vila Valério | C78: ='CV Rotina <2A - residência'!K78 -> 0.8181818182 | D78: ='CV Rotina <2A - residência'!AC78 -> 1.015151515 | E78: ='CV Rotina <2A - residência'!M78 -> 0.9696969697 | F78: ='CV Rotina <2A - residência'!O78 -> 0.9696969697 | G78: ='CV Rotina <2A - residência'!Q78 -> 1.015151515 | H78: ='CV Rotina <2A - residência'!Y78 -> 0.7424242424 | I78: ='CV Rotina <2A - residência'!S78 -> 0.9545454545 | J78: ='CV Rotina <2A - residência'!U78 -> 0.9545454545 | K78: ='CV Rotina <2A - residência'!W78 -> 0.7575757576 | L78: ='CV Rotina <2A - residência'!AA78 -> 0.8181818182 | M78: 1 | N78: 5 | O78: 6 | P78: 3
A79: Metropolitana | B79: Vila Velha | C79: ='CV Rotina <2A - residência'!K79 -> 0.8640167364 | D79: ='CV Rotina <2A - residência'!AC79 -> 0.8382147838 | E79: ='CV Rotina <2A - residência'!M79 -> 0.7517433752 | F79: ='CV Rotina <2A - residência'!O79 -> 0.7280334728 | G79: ='CV Rotina <2A - residência'!Q79 -> 0.8186889819 | H79: ='CV Rotina <2A - residência'!Y79 -> 0.839609484 | I79: ='CV Rotina <2A - residência'!S79 -> 0.8319386332 | J79: ='CV Rotina <2A - residência'!U79 -> 0.6359832636 | K79: ='CV Rotina <2A - residência'!W79 -> 0.7782426778 | L79: ='CV Rotina <2A - residência'!AA79 -> 0.6854951185 | M79: 0 | N79: 0 | O79: 0 | P79: 0
A80: Metropolitana | B80: Vitória | C80: ='CV Rotina <2A - residência'!K80 -> 0.9876265467 | D80: ='CV Rotina <2A - residência'!AC80 -> 1.155230596 | E80: ='CV Rotina <2A - residência'!M80 -> 1.122609674 | F80: ='CV Rotina <2A - residência'!O80 -> 1.107986502 | G80: ='CV Rotina <2A - residência'!Q80 -> 1.122609674 | H80: ='CV Rotina <2A - residência'!Y80 -> 1.143982002 | I80: ='CV Rotina <2A - residência'!S80 -> 1.103487064 | J80: ='CV Rotina <2A - residência'!U80 -> 0.727784027 | K80: ='CV Rotina <2A - residência'!W80 -> 1.044994376 | L80: ='CV Rotina <2A - residência'!AA80 -> 1.140607424 | M80: 2 | N80: 7 | O80: 9 | P80: 4
B82: Total Norte | C82: ='CV Rotina <2A - residência'!K82 -> 0.8030006523 | D82: ='CV Rotina <2A - residência'!AC82 -> 0.9765166341 | E82: ='CV Rotina <2A - residência'!M82 -> 0.9060665362 | F82: ='CV Rotina <2A - residência'!O82 -> 0.8897586432 | G82: ='CV Rotina <2A - residência'!Q82 -> 0.9582517939 | H82: ='CV Rotina <2A - residência'!Y82 -> 0.9093281148 | I82: ='CV Rotina <2A - residência'!S82 -> 0.9262883235 | J82: ='CV Rotina <2A - residência'!U82 -> 0.8180039139 | K82: ='CV Rotina <2A - residência'!W82 -> 0.8414872798 | L82: ='CV Rotina <2A - residência'!AA82 -> 0.8356164384 | M82: =COUNTIF(C82:D82,">=0,9") -> 1 | N82: =COUNTIFS(E82:L82,">=0,95") -> 1 | O82: =SUM(M82:N82) -> 2 | P82: =COUNTIF(E82:H82,">=0,95") -> 1
B83: Total Central | C83: ='CV Rotina <2A - residência'!K83 -> 1.029592406 | D83: ='CV Rotina <2A - residência'!AC83 -> 0.9491903964 | E83: ='CV Rotina <2A - residência'!M83 -> 0.9486320491 | F83: ='CV Rotina <2A - residência'!O83 -> 0.9285315466 | G83: ='CV Rotina <2A - residência'!Q83 -> 0.9246231156 | H83: ='CV Rotina <2A - residência'!Y83 -> 0.8771635958 | I83: ='CV Rotina <2A - residência'!S83 -> 0.9419318816 | J83: ='CV Rotina <2A - residência'!U83 -> 0.824120603 | K83: ='CV Rotina <2A - residência'!W83 -> 0.8230039084 | L83: ='CV Rotina <2A - residência'!AA83 -> 0.8671133445 | M83: =COUNTIF(C83:D83,">=0,9") -> 2 | N83: =COUNTIFS(E83:L83,">=0,95") -> 0 | O83: =SUM(M83:N83) -> 2 | P83: =COUNTIF(E83:H83,">=0,95") -> 0
B84: Total Metropolitana | C84: ='CV Rotina <2A - residência'!K84 -> 0.9164323021 | D84: ='CV Rotina <2A - residência'!AC84 -> 0.9337083166 | E84: ='CV Rotina <2A - residência'!M84 -> 0.9062541851 | F84: ='CV Rotina <2A - residência'!O84 -> 0.8935315388 | G84: ='CV Rotina <2A - residência'!Q84 -> 0.9125485469 | H84: ='CV Rotina <2A - residência'!Y84 -> 0.9362528459 | I84: ='CV Rotina <2A - residência'!S84 -> 0.9133520825 | J84: ='CV Rotina <2A - residência'!U84 -> 0.7400562475 | K84: ='CV Rotina <2A - residência'!W84 -> 0.8706307754 | L84: ='CV Rotina <2A - residência'!AA84 -> 0.8451854828 | M84: =COUNTIF(C84:D84,">=0,9") -> 2 | N84: =COUNTIFS(E84:L84,">=0,95") -> 0 | O84: =SUM(M84:N84) -> 2 | P84: =COUNTIF(E84:H84,">=0,95") -> 0
B85: Total Sul | C85: ='CV Rotina <2A - residência'!K85 -> 0.9881422925 | D85: ='CV Rotina <2A - residência'!AC85 -> 0.9505928854 | E85: ='CV Rotina <2A - residência'!M85 -> 0.9767786561 | F85: ='CV Rotina <2A - residência'!O85 -> 0.9659090909 | G85: ='CV Rotina <2A - residência'!Q85 -> 0.9342885375 | H85: ='CV Rotina <2A - residência'!Y85 -> 1.016798419 | I85: ='CV Rotina <2A - residência'!S85 -> 0.9500988142 | J85: ='CV Rotina <2A - residência'!U85 -> 0.847826087 | K85: ='CV Rotina <2A - residência'!W85 -> 0.9204545455 | L85: ='CV Rotina <2A - residência'!AA85 -> 0.9436758893 | M85: =COUNTIF(C85:D85,">=0,9") -> 2 | N85: =COUNTIFS(E85:L85,">=0,95") -> 4 | O85: =SUM(M85:N85) -> 6 | P85: =COUNTIF(E85:H85,">=0,95") -> 3
B86: Total Espírito Santo | C86: ='CV Rotina <2A - residência'!K86 -> 0.9300039017 | D86: ='CV Rotina <2A - residência'!AC86 -> 0.9436597737 | E86: ='CV Rotina <2A - residência'!M86 -> 0.923293016 | F86: ='CV Rotina <2A - residência'!O86 -> 0.9094030433 | G86: ='CV Rotina <2A - residência'!Q86 -> 0.9231369489 | H86: ='CV Rotina <2A - residência'!Y86 -> 0.9374951229 | I86: ='CV Rotina <2A - residência'!S86 -> 0.92469762 | J86: ='CV Rotina <2A - residência'!U86 -> 0.7781506048 | K86: ='CV Rotina <2A - residência'!W86 -> 0.8683573937 | L86: ='CV Rotina <2A - residência'!AA86 -> 0.8626609442 | M86: =COUNTIF(C86:D86,">=0,9") -> 2 | N86: =COUNTIFS(E86:L86,">=0,95") -> 0 | O86: =SUM(M86:N86) -> 2 | P86: =COUNTIF(E86:H86,">=0,95") -> 0
A89: Fonte: SIPNI/DATASUS, em 09 de junho de 2023.*
A90: Vacina e Confia, em 12 de junho de 2023.**
A91: *Dados referentes às doses aplicadas pelas clínicas particulares de janeiro a maio de 2023
A92: **Dados referente às doses aplicadas no período de janeiro a maio de 2023
A93: Cobertura Calculada por município de vacinação
A94: 1 População proporcional extraída do MS/SVS/DASIS - Sistema de Informações sobre Nascidos Vivos - SINASC
A95: 2000 a 2021 – Estimativas preliminares elaboradas pelo Ministério da Saúde/SVS/DASNT/CGIAE
A96: Nota: Dados preliminares 2021

Sheet CV Rotina <2A - residência
D1: AO NASCER | L1: MENOR DE 1 ANO | V1: 1 ANO | AB1: MENOR DE 2 ANOS | AE1: MENOR DE 1 ANO
A2: Regional | B2: Município | C2: ¹População < 1 ano e 1 ano | D2: Doses Aplicadas HB ≤30 dias | E2: Cobertura Vacinal HB até 30 dias | F2: Doses Aplicadas HB ≤2 dias | G2: Cobertura Vacinal HB até 2 dias | H2: Doses Aplicadas HB ≤1 dia | I2: Cobertura Vacinal HB até 1 dia | J2: Doses Aplicadas BCG | K2: Cobertura Vacinal BCG | L2: Doses Aplicadas Pentavalente | M2: Cobertura Vacinal Pentavalente | N2: Doses Aplicadas Poliomielite | O2: Cobertura Vacinal Poliomielite | P2: Doses Aplicadas Pneumo 10 | Q2: Cobertura Vacinal Pneumo 10 | R2: Doses Aplicadas Meningo C | S2: Cobertura Vacinal Meningo C | T2: Doses Aplicadas Febre Amarela | U2: Cobertura Vacinal Febre Amarela | V2: Doses Aplicadas Hepatite A | W2: Cobertura Vacinal Hepatite A | X2: Doses Aplicadas de Tríplice Viral | Y2: Cobertura Vacinal Tríplice Viral | Z2: Doses Aplicadas Varicela | AA2: Cobertura Varicela | AB2: Doses Aplicadas Rotavírus | AC2: Cobertura Vacinal Rotavírus | AE2: Doses Aplicadas COVID-19 | AF2: Cobertura Vacinal COVID-19 D1 | AH2: VACINAS QUE ATINGIRAM A META DE CV | AI2: HOMOGENEIDADE ENTRE AS 10 VACINAS | AJ2: VACINAS DO PQA-VS QUE ATINGIRAM A META DE CV | AK2: HOMOGENEIDADE ENTRE AS VACINAS DO PQA-VS
A3: Metropolitana | B3: Afonso Cláudio | C3: 88 | D3: 73 | E3: =D3/C3 -> 0.8295454545 | F3: 55 | G3: =F3/C3 -> 0.625 | H3: 39 | I3: =H3/C3 -> 0.4431818182 | J3: 72 | K3: =J3/C3 -> 0.8181818182 | L3: 76 | M3: =L3/C3 -> 0.8636363636 | N3: 74 | O3: =N3/C3 -> 0.8409090909 | P3: 90 | Q3: =P3/C3 -> 1.022727273 | R3: 78 | S3: =R3/C3 -> 0.8863636364 | T3: 95 | U3: =T3/C3 -> 1.079545455 | V3: 93 | W3: =V3/C3 -> 1.056818182 | X3: 90 | Y3: =X3/C3 -> 1.022727273 | Z3: 91 | AA3: =Z3/C3 -> 1.034090909 | AB3: 90 | AC3: =AB3/C3 -> 1.022727273 | AE3: 0 | AF3: =AE3/C3 -> 0 | AH3: =cálculos2!O3 -> 6 | AI3: =AH3*0.1 -> 0.6 | AJ3: =cálculos2!P3 -> 2 | AK3: =AJ3*0.25 -> 0.5 | AM3: LEGENDA / HOMOGENEIDADE PQA-VS
A4: Norte | B4: Água Doce do Norte | C4: 38 | D4: 30 | E4: =D4/C4 -> 0.7894736842 | F4: 12 | G4: =F4/C4 -> 0.3157894737 | H4: 8 | I4: =H4/C4 -> 0.2105263158 | J4: 32 | K4: =J4/C4 -> 0.8421052632 | L4: 30 | M4: 0.7894736842 | N4: 32 | O4: 0.8421052632 | P4: 40 | Q4: 1.052631579 | R4: 37 | S4: 0.9736842105 | T4: 19 | U4: 0.5 | V4: 41 | W4: 1.078947368 | X4: 33 | Y4: 0.8684210526 | Z4: 35 | AA4: 0.9210526316 | AB4: 42 | AC4: 1.105263158 | AE4: 0 | AF4: 0 | AH4: =cálculos2!O4 -> 4 | AI4: =AH4*0.1 -> 0.4 | AJ4: =cálculos2!P4 -> 1 | AK4: =AJ4*0.25 -> 0.25 | AM4: PERCENTUAL | AN4: Nº DE MUNICÍPIOS
A5: Central | B5: Águia Branca | C5: 52 | D5: 47 | E5: 0.9038461538 | F5: 16 | G5: 0.3076923077 | H5: 10 | I5: 0.1923076923 | J5: 45 | K5: 0.8653846154 | L5: 46 | M5: 0.8846153846 | N5: 46 | O5: 0.8846153846 | P5: 35 | Q5: 0.6730769231 | R5: 38 | S5: 0.7307692308 | T5: 46 | U5: 0.8846153846 | V5: 24 | W5: 0.4615384615 | X5: 38 | Y5: 0.7307692308 | Z5: 30 | AA5: 0.5769230769 | AB5: 35 | AC5: 0.6730769231 | AE5: 3 | AF5: 0.05769230769 | AH5: =cálculos2!O5 -> 0 | AI5: 0 | AJ5: =cálculos2!P5 -> 0 | AK5: 0 | AM5: 0 | AN5: =COUNTIF($AK$3:$AK$80,"=0") -> 20
A6: Sul | B6: Alegre | C6: 75 | D6: 63 | E6: 0.84 | F6: 32 | G6: 0.4266666667 | H6: 18 | I6: 0.24 | J6: 63 | K6: 0.84 | L6: 81 | M6: 1.08 | N6: 80 | O6: 1.066666667 | P6: 62 | Q6: 0.8266666667 | R6: 62 | S6: 0.8266666667 | T6: 76 | U6: 1.013333333 | V6: 76 | W6: 1.013333333 | X6: 69 | Y6: 0.92 | Z6: 72 | AA6: 0.96 | AB6: 62 | AC6: 0.8266666667 | AE6: 7 | AF6: 0.09333333333 | AH6: =cálculos2!O6 -> 5 | AI6: 0.5 | AJ6: =cálculos2!P6 -> 2 | AK6: 0.5 | AM6: 0.25 | AN6: =COUNTIF($AK$3:$AK$80,"=0,25") -> 23
A7: Sul | B7: Alfredo Chaves | C7: 32 | D7: 28 | E7: 0.875 | F7: 26 | G7: 0.8125 | H7: 18 | I7: 0.5625 | J7: 30 | K7: 0.9375 | L7: 30 | M7: 0.9375 | N7: 29 | O7: 0.90625 | P7: 23 | Q7: 0.71875 | R7: 20 | S7: 0.625 | T7: 25 | U7: 0.78125 | V7: 24 | W7: 0.75 | X7: 35 | Y7: 1.09375 | Z7: 27 | AA7: 0.84375 | AB7: 25 | AC7: 0.78125 | AE7: 0 | AF7: 0 | AH7: =cálculos2!O7 -> 2 | AI7: 0.2 | AJ7: =cálculos2!P7 -> 1 | AK7: 0.25 | AM7: 0.5 | AN7: =COUNTIF($AK$3:$AK$80,"=0,5") -> 6
A8: Central | B8: Alto Rio Novo | C8: 24 | D8: 28 | E8: 1.166666667 | F8: 19 | G8: 0.7916666667 | H8: 18 | I8: 0.75 | J8: 29 | K8: 1.208333333 | L8: 26 | M8: 1.083333333 | N8: 26 | O8: 1.083333333 | P8: 21 | Q8: 0.875 | R8: 26 | S8: 1.083333333 | T8: 23 | U8: 0.9583333333 | V8: 18 | W8: 0.75 | X8: 20 | Y8: 0.8333333333 | Z8: 16 | AA8: 0.6666666667 | AB8: 21 | AC8: 0.875 | AE8: 0 | AF8: 0 | AH8: =cálculos2!O8 -> 5 | AI8: 0.5 | AJ8: =cálculos2!P8 -> 2 | AK8: 0.5 | AM8: 0.75 | AN8: =COUNTIF($AK$3:$AK$80,"=0,75") -> 8
A9: Sul | B9: Anchieta | C9: 103 | D9: 85 | E9: 0.8252427184 | F9: 69 | G9: 0.6699029126 | H9: 54 | I9: 0.5242718447 | J9: 88 | K9: 0.854368932 | L9: 75 | M9: 0.7281553398 | N9: 71 | O9: 0.6893203883 | P9: 86 | Q9: 0.8349514563 | R9: 78 | S9: 0.7572815534 | T9: 80 | U9: 0.7766990291 | V9: 111 | W9: 1.077669903 | X9: 99 | Y9: 0.9611650485 | Z9: 119 | AA9: 1.155339806 | AB9: 86 | AC9: 0.8349514563 | AE9: 0 | AF9: 0 | AH9: =cálculos2!O9 -> 3 | AI9: 0.3 | AJ9: =cálculos2!P9 -> 1 | AK9: 0.25 | AM9: 1 | AN9: =COUNTIF($AK$3:$AK$80,"=1,0") -> 21
A10: Sul | B10: Apiacá | C10: 11 | D10: 5 | E10: 0.4545454545 | F10: 1 | G10: 0.09090909091 | H10: 1 | I10: 0.09090909091 | J10: 22 | K10: 2 | L10: 17 | M10: 1.545454545 | N10: 14 | O10: 1.272727273 | P10: 15 | Q10: 1.363636364 | R10: 22 | S10: 2 | T10: 11 | U10: 1 | V10: 20 | W10: 1.818181818 | X10: 20 | Y10: 1.818181818 | Z10: 12 | AA10: 1.090909091 | AB10: 15 | AC10: 1.363636364 | AE10: 0 | AF10: 0 | AH10: =cálculos2!O10 -> 10 | AI10: 1 | AJ10: =cálculos2!P10 -> 4 | AK10: 1
A11: Metropolitana | B11: Aracruz | C11: 387 | D11: 362 | E11: 0.9354005168 | F11: 171 | G11: 0.4418604651 | H11: 107 | I11: 0.2764857881 | J11: 366 | K11: 0.9457364341 | L11: 348 | M11: 0.8992248062 | N11: 335 | O11: 0.8656330749 | P11: 304 | Q11: 0.7855297158 | R11: 325 | S11: 0.8397932817 | T11: 296 | U11: 0.7648578811 | V11: 319 | W11: 0.8242894057 | X11: 359 | Y11: 0.9276485788 | Z11: 322 | AA11: 0.8320413437 | AB11: 315 | AC11: 0.8139534884 | AE11: 11 | AF11: 0.02842377261 | AH11: =cálculos2!O11 -> 1 | AI11: 0.1 | AJ11: =cálculos2!P11 -> 0 | AK11: 0
A12: Sul | B12: Atilio Vivacqua | C12: 47 | D12: 38 | E12: 0.8085106383 | F12: 34 | G12: 0.7234042553 | H12: 19 | I12: 0.4042553191 | J12: 37 | K12: 0.7872340426 | L12: 33 | M12: 0.7021276596 | N12: 33 | O12: 0.7021276596 | P12: 22 | Q12: 0.4680851064 | R12: 31 | S12: 0.6595744681 | T12: 39 | U12: 0.829787234 | V12: 45 | W12: 0.9574468085 | X12: 52 | Y12: 1.106382979 | Z12: 54 | AA12: 1.14893617 | AB12: 22 | AC12: 0.4680851064 | AE12: 1 | AF12: 0.02127659574 | AH12: =cálculos2!O12 -> 3 | AI12: 0.3 | AJ12: =cálculos2!P12 -> 1 | AK12: 0.25 | AM12: LEGENDA / HOMOGENEIDADE 10 VACINAS
A13: Central | B13: Baixo Guandu | C13: 89 | D13: 70 | E13: 0.7865168539 | F13: 55 | G13: 0.6179775281 | H13: 43 | I13: 0.4831460674 | J13: 90 | K13: 1.011235955 | L13: 73 | M13: 0.8202247191 | N13: 71 | O13: 0.797752809 | P13: 78 | Q13: 0.8764044944 | R13: 77 | S13: 0.8651685393 | T13: 100 | U13: 1.123595506 | V13: 75 | W13: 0.8426966292 | X13: 82 | Y13: 0.9213483146 | Z13: 80 | AA13: 0.8988764045 | AB13: 79 | AC13: 0.8876404494 | AE13: 0 | AF13: 0 | AH13: =cálculos2!O13 -> 2 | AI13: 0.2 | AJ13: =cálculos2!P13 -> 0 | AK13: 0 | AM13: PERCENTUAL | AN13: Nº DE MUNICÍPIOS
A14: Norte | B14: Barra de São Francisco | C14: 158 | D14: 110 | E14: 0.6962025316 | F14: 58 | G14: 0.3670886076 | H14: 40 | I14: 0.253164557 | J14: 112 | K14: 0.7088607595 | L14: 123 | M14: 0.7784810127 | N14: 125 | O14: 0.7911392405 | P14: 137 | Q14: 0.8670886076 | R14: 121 | S14: 0.7658227848 | T14: 147 | U14: 0.9303797468 | V14: 109 | W14: 0.6898734177 | X14: 134 | Y14: 0.8481012658 | Z14: 106 | AA14: 0.6708860759 | AB14: 138 | AC14: 0.8734177215 | AE14: 0 | AF14: 0 | AH14: =cálculos2!O14 -> 0 | AI14: 0 | AJ14: =cálculos2!P14 -> 0 | AK14: 0 | AM14: 0 | AN14: =COUNTIF($AI$3:$AI$80,"=0") -> 8
A15: Norte | B15: Boa Esperança | C15: 55 | D15: 43 | E15: 0.7818181818 | F15: 43 | G15: 0.7818181818 | H15: 42 | I15: 0.7636363636 | J15: 37 | K15: 0.6727272727 | L15: 47 | M15: 0.8545454545 | N15: 43 | O15: 0.7818181818 | P15: 49 | Q15: 0.8909090909 | R15: 50 | S15: 0.9090909091 | T15: 46 | U15: 0.8363636364 | V15: 50 | W15: 0.9090909091 | X15: 54 | Y15: 0.9818181818 | Z15: 52 | AA15: 0.9454545455 | AB15: 49 | AC15: 0.8909090909 | AE15: 0 | AF15: 0 | AH15: =cálculos2!O15 -> 1 | AI15: 0.1 | AJ15: =cálculos2!P15 -> 1 | AK15: 0.25 | AM15: 0.1 | AN15: =COUNTIFS($AI$3:$AI$80,">=0,10",$AI$3:$AI$80,"<0,20") -> 9
A16: Sul | B16: Bom Jesus do Norte | C16: 5 | D16: 9 | E16: 1.8 | F16: 2 | G16: 0.4 | H16: 2 | I16: 0.4 | J16: 16 | K16: 3.2 | L16: 21 | M16: 4.2 | N16: 21 | O16: 4.2 | P16: 24 | Q16: 4.8 | R16: 23 | S16: 4.6 | T16: 24 | U16: 4.8 | V16: 18 | W16: 3.6 | X16: 20 | Y16: 4 | Z16: 14 | AA16: 2.8 | AB16: 27 | AC16: 5.4 | AE16: 1 | AF16: 0.2 | AH16: =cálculos2!O16 -> 10 | AI16: 1 | AJ16: =cálculos2!P16 -> 4 | AK16: 1 | AM16: 0.2 | AN16: =COUNTIFS($AI$3:$AI$80,">=0,20",$AI$3:$AI$80,"<0,30") -> 11
A17: Metropolitana | B17: Brejetuba | C17: 53 | D17: 60 | E17: 1.132075472 | F17: 51 | G17: 0.9622641509 | H17: 49 | I17: 0.9245283019 | J17: 52 | K17: 0.9811320755 | L17: 71 | M17: 1.339622642 | N17: 69 | O17: 1.301886792 | P17: 66 | Q17: 1.245283019 | R17: 67 | S17: 1.264150943 | T17: 63 | U17: 1.188679245 | V17: 75 | W17: 1.41509434 | X17: 71 | Y17: 1.339622642 | Z17: 59 | AA17: 1.113207547 | AB17: 66 | AC17: 1.245283019 | AE17: 0 | AF17: 0 | AH17: =cálculos2!O17 -> 10 | AI17: 1 | AJ17: =cálculos2!P17 -> 4 | AK17: 1 | AM17: 0.3 | AN17: =COUNTIFS($AI$3:$AI$80,">=0,30",$AI$3:$AI$80,"<0,40") -> 11
A18: Sul | B18: Cachoeiro de Itapemirim | C18: 578 | D18: 570 | E18: 0.9861591696 | F18: 464 | G18: 0.8027681661 | H18: 258 | I18: 0.446366782 | J18: 585 | K18: 1.012110727 | L18: 557 | M18: 0.9636678201 | N18: 549 | O18: 0.9498269896 | P18: 538 | Q18: 0.9307958478 | R18: 553 | S18: 0.9567474048 | T18: 445 | U18: 0.7698961938 | V18: 486 | W18: 0.8408304498 | X18: 532 | Y18: 0.9204152249 | Z18: 481 | AA18: 0.8321799308 | AB18: 563 | AC18: 0.9740484429 | AE18: 12 | AF18: 0.02076124567 | AH18: =cálculos2!O18 -> 4 | AI18: 0.4 | AJ18: =cálculos2!P18 -> 1 | AK18: 0.25 | AM18: 0.4 | AN18: =COUNTIFS($AI$3:$AI$80,">=0,40",$AI$3:$AI$80,"<0,50") -> 5
A19: Metropolitana | B19: Cariacica | C19: 1202 | D19: 1070 | E19: 0.8901830283 | F19: 522 | G19: 0.4342762063 | H19: 370 | I19: 0.3078202995 | J19: 1067 | K19: 0.887687188 | L19: 1020 | M19: 0.8485856905 | N19: 1004 | O19: 0.8352745424 | P19: 1035 | Q19: 0.8610648918 | R19: 1061 | S19: 0.8826955075 | T19: 906 | U19: 0.7537437604 | V19: 984 | W19: 0.8186356073 | X19: 1126 | Y19: 0.9367720466 | Z19: 954 | AA19: 0.7936772047 | AB19: 1066 | AC19: 0.8868552413 | AE19: 17 | AF19: 0.01414309484 | AH19: =cálculos2!O19 -> 0 | AI19: 0 | AJ19: =cálculos2!P19 -> 0 | AK19: 0 | AM19: 0.5 | AN19: =COUNTIFS($AI$3:$AI$80,">=0,50",$AI$3:$AI$80,"<0,60") -> 4
A20: Sul | B20: Castelo | C20: 114 | D20: 100 | E20: 0.8771929825 | F20: 81 | G20: 0.7105263158 | H20: 47 | I20: 0.4122807018 | J20: 100 | K20: 0.8771929825 | L20: 102 | M20: 0.8947368421 | N20: 102 | O20: 0.8947368421 | P20: 116 | Q20: 1.01754386 | R20: 104 | S20: 0.9122807018 | T20: 96 | U20: 0.8421052632 | V20: 93 | W20: 0.8157894737 | X20: 111 | Y20: 0.9736842105 | Z20: 97 | AA20: 0.850877193 | AB20: 114 | AC20: 1 | AE20: 1 | AF20: 0.008771929825 | AH20: =cálculos2!O20 -> 3 | AI20: 0.3 | AJ20: =cálculos2!P20 -> 2 | AK20: 0.5 | AM20: 0.6 | AN20: =COUNTIFS($AI$3:$AI$80,">=0,60",$AI$3:$AI$80,"<0,70") -> 7
A21: Central | B21: Colatina | C21: 366 | D21: 392 | E21: 1.071038251 | F21: 222 | G21: 0.606557377 | H21: 170 | I21: 0.4644808743 | J21: 390 | K21: 1.06557377 | L21: 342 | M21: 0.9344262295 | N21: 343 | O21: 0.9371584699 | P21: 325 | Q21: 0.8879781421 | R21: 331 | S21: 0.9043715847 | T21: 309 | U21: 0.8442622951 | V21: 311 | W21: 0.849726776 | X21: 318 | Y21: 0.868852459 | Z21: 310 | AA21: 0.8469945355 | AB21: 344 | AC21: 0.9398907104 | AE21: 9 | AF21: 0.02459016393 | AH21: =cálculos2!O21 -> 2 | AI21: 0.2 | AJ21: =cálculos2!P21 -> 0 | AK21: 0 | AM21: 0.7 | AN21: =COUNTIFS($AI$3:$AI$80,">=0,70",$AI$3:$AI$80,"<0,80") -> 3
A22: Norte | B22: Conceição da Barra | C22: 99 | D22: 98 | E22: 0.9898989899 | F22: 92 | G22: 0.9292929293 | H22: 91 | I22: 0.9191919192 | J22: 93 | K22: 0.9393939394 | L22: 95 | M22: 0.9595959596 | N22: 95 | O22: 0.9595959596 | P22: 103 | Q22: 1.04040404 | R22: 104 | S22: 1.050505051 | T22: 115 | U22: 1.161616162 | V22: 97 | W22: 0.9797979798 | X22: 94 | Y22: 0.9494949495 | Z22: 112 | AA22: 1.131313131 | AB22: 106 | AC22: 1.070707071 | AE22: 0 | AF22: 0 | AH22: =cálculos2!O22 -> 9 | AI22: 0.9 | AJ22: =cálculos2!P22 -> 3 | AK22: 0.75 | AM22: 0.8 | AN22: =COUNTIFS($AI$3:$AI$80,">=0,80",$AI$3:$AI$80,"<0,90") -> 4
A23: Metropolitana | B23: Conceição do Castelo | C23: 41 | D23: 35 | E23: 0.8536585366 | F23: 33 | G23: 0.8048780488 | H23: 31 | I23: 0.756097561 | J23: 34 | K23: 0.8292682927 | L23: 39 | M23: 0.9512195122 | N23: 38 | O23: 0.9268292683 | P23: 37 | Q23: 0.9024390244 | R23: 39 | S23: 0.9512195122 | T23: 37 | U23: 0.9024390244 | V23: 40 | W23: 0.9756097561 | X23: 41 | Y23: 1 | Z23: 39 | AA23: 0.9512195122 | AB23: 40 | AC23: 0.9756097561 | AE23: 0 | AF23: 0 | AH23: =cálculos2!O23 -> 6 | AI23: 0.6 | AJ23: =cálculos2!P23 -> 2 | AK23: 0.5 | AM23: 0.9 | AN23: =COUNTIFS($AI$3:$AI$80,">=0,90",$AI$3:$AI$80,"<1,0") -> 5
A24: Sul | B24: Divino de São Lourenço | C24: 12 | D24: 14 | E24: 1.166666667 | F24: 5 | G24: 0.4166666667 | H24: 3 | I24: 0.25 | J24: 16 | K24: 1.333333333 | L24: 16 | M24: 1.333333333 | N24: 16 | O24: 1.333333333 | P24: 26 | Q24: 2.166666667 | R24: 24 | S24: 2 | T24: 12 | U24: 1 | V24: 12 | W24: 1 | X24: 14 | Y24: 1.166666667 | Z24: 13 | AA24: 1.083333333 | AB24: 26 | AC24: 2.166666667 | AE24: 1 | AF24: 0.08333333333 | AH24: =cálculos2!O24 -> 10 | AI24: 1 | AJ24: =cálculos2!P24 -> 4 | AK24: 1 | AM24: 1 | AN24: =COUNTIF($AI$3:$AI$80,">=1,0") -> 11
A25: Metropolitana | B25: Domingos Martins | C25: 111 | D25: 106 | E25: 0.954954955 | F25: 95 | G25: 0.8558558559 | H25: 83 | I25: 0.7477477477 | J25: 106 | K25: 0.954954955 | L25: 97 | M25: 0.8738738739 | N25: 95 | O25: 0.8558558559 | P25: 101 | Q25: 0.9099099099 | R25: 89 | S25: 0.8018018018 | T25: 105 | U25: 0.9459459459 | V25: 100 | W25: 0.9009009009 | X25: 92 | Y25: 0.8288288288 | Z25: 92 | AA25: 0.8288288288 | AB25: 100 | AC25: 0.9009009009 | AE25: 7 | AF25: 0.06306306306 | AH25: =cálculos2!O25 -> 2 | AI25: 0.2 | AJ25: =cálculos2!P25 -> 0 | AK25: 0
A26: Sul | B26: Dores do Rio Preto | C26: 25 | D26: 14 | E26: 0.56 | F26: 5 | G26: 0.2 | H26: 3 | I26: 0.12 | J26: 14 | K26: 0.56 | L26: 21 | M26: 0.84 | N26: 19 | O26: 0.76 | P26: 18 | Q26: 0.72 | R26: 21 | S26: 0.84 | T26: 20 | U26: 0.8 | V26: 29 | W26: 1.16 | X26: 33 | Y26: 1.32 | Z26: 21 | AA26: 0.84 | AB26: 17 | AC26: 0.68 | AE26: 4 | AF26: 0.16 | AH26: =cálculos2!O26 -> 2 | AI26: 0.2 | AJ26: =cálculos2!P26 -> 1 | AK26: 0.25
A27: Norte | B27: Ecoporanga | C27: 77 | D27: 64 | E27: 0.8311688312 | F27: 34 | G27: 0.4415584416 | H27: 27 | I27: 0.3506493506 | J27: 64 | K27: 0.8311688312 | L27: 54 | M27: 0.7012987013 | N27: 55 | O27: 0.7142857143 | P27: 44 | Q27: 0.5714285714 | R27: 53 | S27: 0.6883116883 | T27: 56 | U27: 0.7272727273 | V27: 71 | W27: 0.9220779221 | X27: 74 | Y27: 0.961038961 | Z27: 63 | AA27: 0.8181818182 | AB27: 48 | AC27: 0.6233766234 | AE27: 1 | AF27: 0.01298701299 | AH27: =cálculos2!O27 -> 1 | AI27: 0.1 | AJ27: =cálculos2!P27 -> 1 | AK27: 0.25
A28: Metropolitana | B28: Fundão | C28: 66 | D28: 55 | E28: 0.8333333333 | F28: 46 | G28: 0.696969697 | H28: 32 | I28: 0.4848484848 | J28: 57 | K28: 0.8636363636 | L28: 45 | M28: 0.6818181818 | N28: 45 | O28: 0.6818181818 | P28: 51 | Q28: 0.7727272727 | R28: 47 | S28: 0.7121212121 | T28: 49 | U28: 0.7424242424 | V28: 60 | W28: 0.9090909091 | X28: 61 | Y28: 0.9242424242 | Z28: 55 | AA28: 0.8333333333 | AB28: 54 | AC28: 0.8181818182 | AE28: 4 | AF28: 0.06060606061 | AH28: =cálculos2!O28 -> 0 | AI28: 0 | AJ28: =cálculos2!P28 -> 0 | AK28: 0
A29: Central | B29: Governador Lindenberg | C29: 37 | D29: 40 | E29: 1.081081081 | F29: 20 | G29: 0.5405405405 | H29: 17 | I29: 0.4594594595 | J29: 41 | K29: 1.108108108 | L29: 33 | M29: 0.8918918919 | N29: 34 | O29: 0.9189189189 | P29: 34 | Q29: 0.9189189189 | R29: 42 | S29: 1.135135135 | T29: 27 | U29: 0.7297297297 | V29: 27 | W29: 0.7297297297 | X29: 23 | Y29: 0.6216216216 | Z29: 23 | AA29: 0.6216216216 | AB29: 35 | AC29: 0.9459459459 | AE29: 0 | AF29: 0 | AH29: =cálculos2!O29 -> 3 | AI29: 0.3 | AJ29: =cálculos2!P29 -> 0 | AK29: 0
A30: Sul | B30: Guaçuí | C30: 79 | D30: 98 | E30: 1.240506329 | F30: 32 | G30: 0.4050632911 | H30: 18 | I30: 0.2278481013 | J30: 96 | K30: 1.215189873 | L30: 104 | M30: 1.316455696 | N30: 105 | O30: 1.329113924 | P30: 110 | Q30: 1.392405063 | R30: 104 | S30: 1.316455696 | T30: 82 | U30: 1.037974684 | V30: 79 | W30: 1 | X30: 80 | Y30: 1.012658228 | Z30: 94 | AA30: 1.189873418 | AB30: 110 | AC30: 1.392405063 | AE30: 0 | AF30: 0 | AH30: =cálculos2!O30 -> 10 | AI30: 1 | AJ30: =cálculos2!P30 -> 4 | AK30: 1
A31: Metropolitana | B31: Guarapari | C31: 471 | D31: 393 | E31: 0.8343949045 | F31: 354 | G31: 0.7515923567 | H31: 321 | I31: 0.6815286624 | J31: 381 | K31: 0.8089171975 | L31: 381 | M31: 0.8089171975 | N31: 372 | O31: 0.7898089172 | P31: 396 | Q31: 0.8407643312 | R31: 396 | S31: 0.8407643312 | T31: 282 | U31: 0.5987261146 | V31: 342 | W31: 0.7261146497 | X31: 395 | Y31: 0.838641189 | Z31: 280 | AA31: 0.5944798301 | AB31: 398 | AC31: 0.8450106157 | AE31: 5 | AF31: 0.01061571125 | AH31: =cálculos2!O31 -> 0 | AI31: 0 | AJ31: =cálculos2!P31 -> 0 | AK31: 0
A32: Metropolitana | B32: Ibatiba | C32: 83 | D32: 81 | E32: 0.9759036145 | F32: 23 | G32: 0.2771084337 | H32: 17 | I32: 0.2048192771 | J32: 82 | K32: 0.9879518072 | L32: 106 | M32: 1.277108434 | N32: 105 | O32: 1.265060241 | P32: 95 | Q32: 1.144578313 | R32: 94 | S32: 1.13253012 | T32: 99 | U32: 1.192771084 | V32: 93 | W32: 1.120481928 | X32: 96 | Y32: 1.156626506 | Z32: 119 | AA32: 1.43373494 | AB32: 95 | AC32: 1.144578313 | AE32: 0 | AF32: 0 | AH32: =cálculos2!O32 -> 10 | AI32: 1 | AJ32: =cálculos2!P32 -> 4 | AK32: 1
A33: Metropolitana | B33: Ibiraçu | C33: 26 | D33: 25 | E33: 0.9615384615 | F33: 11 | G33: 0.4230769231 | H33: 4 | I33: 0.1538461538 | J33: 27 | K33: 1.038461538 | L33: 27 | M33: 1.038461538 | N33: 27 | O33: 1.038461538 | P33: 30 | Q33: 1.153846154 | R33: 31 | S33: 1.192307692 | T33: 26 | U33: 1 | V33: 40 | W33: 1.538461538 | X33: 25 | Y33: 0.9615384615 | Z33: 38 | AA33: 1.461538462 | AB33: 31 | AC33: 1.192307692 | AE33: 0 | AF33: 0 | AH33: =cálculos2!O33 -> 10 | AI33: 1 | AJ33: =cálculos2!P33 -> 4 | AK33: 1
A34: Sul | B34: Ibitirama | C34: 38 | D34: 36 | E34: 0.9473684211 | F34: 7 | G34: 0.1842105263 | H34: 5 | I34: 0.1315789474 | J34: 40 | K34: 1.052631579 | L34: 35 | M34: 0.9210526316 | N34: 35 | O34: 0.9210526316 | P34: 31 | Q34: 0.8157894737 | R34: 30 | S34: 0.7894736842 | T34: 36 | U34: 0.9473684211 | V34: 42 | W34: 1.105263158 | X34: 43 | Y34: 1.131578947 | Z34: 49 | AA34: 1.289473684 | AB34: 31 | AC34: 0.8157894737 | AE34: 2 | AF34: 0.05263157895 | AH34: =cálculos2!O34 -> 4 | AI34: 0.4 | AJ34: =cálculos2!P34 -> 1 | AK34: 0.25
A35: Sul | B35: Iconha | C35: 26 | D35: 23 | E35: 0.8846153846 | F35: 15 | G35: 0.5769230769 | H35: 15 | I35: 0.5769230769 | J35: 27 | K35: 1.038461538 | L35: 34 | M35: =L35/C35 -> 1.307692308 | N35: 33 | O35: =N35/C35 -> 1.269230769 | P35: 36 | Q35: =P35/C35 -> 1.384615385 | R35: 38 | S35: =R35/C35 -> 1.461538462 | T35: 32 | U35: =T35/C35 -> 1.230769231 | V35: 32 | W35: =V35/C35 -> 1.230769231 | X35: 31 | Y35: =X35/C35 -> 1.192307692 | Z35: 32 | AA35: =Z35/C35 -> 1.230769231 | AB35: 36 | AC35: =AB35/C35 -> 1.384615385 | AE35: 1 | AF35: =AE35/C35 -> 0.03846153846 | AH35: =cálculos2!O35 -> 10 | AI35: 1 | AJ35: =cálculos2!P35 -> 4 | AK35: 1
A36: Sul | B36: Irupi | C36: 32 | D36: 34 | E36: 1.0625 | F36: 11 | G36: 0.34375 | H36: 9 | I36: 0.28125 | J36: 37 | K36: 1.15625 | L36: 65 | M36: 2.03125 | N36: 65 | O36: 2.03125 | P36: 57 | Q36: 1.78125 | R36: 63 | S36: 1.96875 | T36: 55 | U36: 1.71875 | V36: 31 | W36: 0.96875 | X36: 39 | Y36: 1.21875 | Z36: 40 | AA36: 1.25 | AB36: 57 | AC36: 1.78125 | AE36: 1 | AF36: 0.03125 | AH36: =cálculos2!O36 -> 10 | AI36: 1 | AJ36: =cálculos2!P36 -> 4 | AK36: 1
A37: Metropolitana | B37: Itaguaçu | C37: 36 | D37: 28 | E37: 0.7777777778 | F37: 22 | G37: 0.6111111111 | H37: 12 | I37: 0.3333333333 | J37: 28 | K37: 0.7777777778 | L37: 25 | M37: 0.6944444444 | N37: 25 | O37: 0.6944444444 | P37: 41 | Q37: 1.138888889 | R37: 28 | S37: 0.7777777778 | T37: 29 | U37: 0.8055555556 | V37: 29 | W37: 0.8055555556 | X37: 30 | Y37: 0.8333333333 | Z37: 28 | AA37: 0.7777777778 | AB37: 40 | AC37: 1.111111111 | AE37: 0 | AF37: 0 | AH37: =cálculos2!O37 -> 2 | AI37: 0.2 | AJ37: =cálculos2!P37 -> 1 | AK37: 0.25
A38: Sul | B38: Itapemirim | C38: 140 | D38: 141 | E38: 1.007142857 | F38: 130 | G38: 0.9285714286 | H38: 103 | I38: 0.7357142857 | J38: 148 | K38: 1.057142857 | L38: 138 | M38: 0.9857142857 | N38: 131 | O38: 0.9357142857 | P38: 126 | Q38: 0.9 | R38: 125 | S38: 0.8928571429 | T38: 91 | U38: 0.65 | V38: 134 | W38: 0.9571428571 | X38: 151 | Y38: 1.078571429 | Z38: 124 | AA38: 0.8857142857 | AB38: 129 | AC38: 0.9214285714 | AE38: 0 | AF38: 0 | AH38: =cálculos2!O38 -> 5 | AI38: 0.5 | AJ38: =cálculos2!P38 -> 2 | AK38: 0.5
A39: Metropolitana | B39: Itarana | C39: 37 | D39: 39 | E39: 1.054054054 | F39: 35 | G39: 0.9459459459 | H39: 27 | I39: 0.7297297297 | J39: 38 | K39: 1.027027027 | L39: 31 | M39: 0.8378378378 | N39: 31 | O39: 0.8378378378 | P39: 41 | Q39: 1.108108108 | R39: 36 | S39: 0.972972973 | T39: 33 | U39: 0.8918918919 | V39: 21 | W39: 0.5675675676 | X39: 27 | Y39: 0.7297297297 | Z39: 23 | AA39: 0.6216216216 | AB39: 39 | AC39: 1.054054054 | AE39: 0 | AF39: 0 | AH39: =cálculos2!O39 -> 4 | AI39: 0.4 | AJ39: =cálculos2!P39 -> 1 | AK39: 0.25
A40: Sul | B40: Iúna | C40: 71 | D40: 59 | E40: 0.8309859155 | F40: 11 | G40: 0.1549295775 | H40: 7 | I40: 0.0985915493 | J40: 63 | K40: 0.8873239437 | L40: 78 | M40: 1.098591549 | N40: 78 | O40: 1.098591549 | P40: 75 | Q40: 1.056338028 | R40: 85 | S40: 1.197183099 | T40: 102 | U40: 1.436619718 | V40: 93 | W40: 1.309859155 | X40: 96 | Y40: 1.352112676 | Z40: 95 | AA40: 1.338028169 | AB40: 77 | AC40: 1.084507042 | AE40: 0 | AF40: 0 | AH40: =cálculos2!O40 -> 9 | AI40: 0.9 | AJ40: =cálculos2!P40 -> 4 | AK40: 1
A41: Norte | B41: Jaguaré | C41: 141 | D41: 137 | E41: 0.9716312057 | F41: 118 | G41: 0.8368794326 | H41: 117 | I41: 0.829787234 | J41: 130 | K41: 0.9219858156 | L41: 108 | M41: 0.7659574468 | N41: 106 | O41: 0.7517730496 | P41: 124 | Q41: 0.8794326241 | R41: 116 | S41: 0.8226950355 | T41: 81 | U41: 0.5744680851 | V41: 92 | W41: 0.6524822695 | X41: 122 | Y41: 0.865248227 | Z41: 96 | AA41: 0.6808510638 | AB41: 127 | AC41: 0.9007092199 | AE41: 1 | AF41: 0.007092198582 | AH41: =cálculos2!O41 -> 2 | AI41: 0.2 | AJ41: =cálculos2!P41 -> 0 | AK41: 0
A42: Sul | B42: Jerônimo Monteiro | C42: 40 | D42: 50 | E42: 1.25 | F42: 40 | G42: 1 | H42: 21 | I42: 0.525 | J42: 51 | K42: 1.275 | L42: 28 | M42: 0.7 | N42: 29 | O42: 0.725 | P42: 26 | Q42: 0.65 | R42: 28 | S42: 0.7 | T42: 19 | U42: 0.475 | V42: 32 | W42: 0.8 | X42: 33 | Y42: 0.825 | Z42: 35 | AA42: 0.875 | AB42: 27 | AC42: 0.675 | AE42: 2 | AF42: 0.05 | AH42: =cálculos2!O42 -> 1 | AI42: 0.1 | AJ42: =cálculos2!P42 -> 0 | AK42: 0
A43: Metropolitana | B43: João Neiva | C43: 38 | D43: 34 | E43: 0.8947368421 | F43: 17 | G43: 0.4473684211 | H43: 12 | I43: 0.3157894737 | J43: 33 | K43: 0.8684210526 | L43: 33 | M43: 0.8684210526 | N43: 34 | O43: 0.8947368421 | P43: 35 | Q43: 0.9210526316 | R43: 33 | S43: 0.8684210526 | T43: 35 | U43: 0.9210526316 | V43: 28 | W43: 0.7368421053 | X43: 20 | Y43: 0.5263157895 | Z43: 24 | AA43: 0.6315789474 | AB43: 38 | AC43: 1 | AE43: 0 | AF43: 0 | AH43: =cálculos2!O43 -> 1 | AI43: 0.1 | AJ43: =cálculos2!P43 -> 0 | AK43: 0
A44: Metropolitana | B44: Laranja da Terra | C44: 25 | D44: 26 | E44: 1.04 | F44: 25 | G44: 1 | H44: 16 | I44: 0.64 | J44: 28 | K44: 1.12 | L44: 27 | M44: 1.08 | N44: 27 | O44: 1.08 | P44: 26 | Q44: 1.04 | R44: 23 | S44: 0.92 | T44: 40 | U44: 1.6 | V44: 34 | W44: 1.36 | X44: 27 | Y44: 1.08 | Z44: 35 | AA44: 1.4 | AB44: 31 | AC44: 1.24 | AE44: 3 | AF44: 0.12 | AH44: =cálculos2!O44 -> 9 | AI44: 0.9 | AJ44: =cálculos2!P44 -> 4 | AK44: 1
A45: Central | B45: Linhares | C45: 669 | D45: 759 | E45: 1.134529148 | F45: 573 | G45: 0.8565022422 | H45: 454 | I45: 0.6786248132 | J45: 761 | K45: 1.137518685 | L45: 652 | M45: 0.9745889387 | N45: 623 | O45: 0.9312406577 | P45: 584 | Q45: 0.8729446936 | R45: 626 | S45: 0.9357249626 | T45: 464 | U45: 0.6935724963 | V45: 561 | W45: 0.8385650224 | X45: 588 | Y45: 0.8789237668 | Z45: 584 | AA45: 0.8729446936 | AB45: 609 | AC45: 0.9103139013 | AE45: 4 | AF45: 0.005979073244 | AH45: =cálculos2!O45 -> 3 | AI45: 0.3 | AJ45: =cálculos2!P45 -> 1 | AK45: 0.25
A46: Central | B46: Mantenópolis | C46: 38 | D46: 40 | E46: 1.052631579 | F46: 24 | G46: 0.6315789474 | H46: 19 | I46: 0.5 | J46: 39 | K46: 1.026315789 | L46: 32 | M46: 0.8421052632 | N46: 30 | O46: 0.7894736842 | P46: 43 | Q46: 1.131578947 | R46: 41 | S46: 1.078947368 | T46: 35 | U46: 0.9210526316 | V46: 27 | W46: 0.7105263158 | X46: 36 | Y46: 0.9473684211 | Z46: 24 | AA46: 0.6315789474 | AB46: 41 | AC46: 1.078947368 | AE46: 0 | AF46: 0 | AH46: =cálculos2!O46 -> 4 | AI46: 0.4 | AJ46: =cálculos2!P46 -> 1 | AK46: 0.25
A47: Sul | B47: Marataízes | C47: 155 | D47: 135 | E47: 0.8709677419 | F47: 121 | G47: 0.7806451613 | H47: 96 | I47: 0.6193548387 | J47: 143 | K47: 0.9225806452 | L47: 138 | M47: 0.8903225806 | N47: 141 | O47: 0.9096774194 | P47: 155 | Q47: 1 | R47: 143 | S47: 0.9225806452 | T47: 70 | U47: 0.4516129032 | V47: 122 | W47: 0.7870967742 | X47: 120 | Y47: 0.7741935484 | Z47: 116 | AA47: 0.7483870968 | AB47: 154 | AC47: 0.9935483871 | AE47: 0 | AF47: 0 | AH47: =cálculos2!O47 -> 3 | AI47: 0.3 | AJ47: =cálculos2!P47 -> 1 | AK47: 0.25
A48: Metropolitana | B48: Marechal Floriano | C48: 44 | D48: 35 | E48: 0.7954545455 | F48: 27 | G48: 0.6136363636 | H48: 19 | I48: 0.4318181818 | J48: 34 | K48: 0.7727272727 | L48: 44 | M48: 1 | N48: 38 | O48: 0.8636363636 | P48: 47 | Q48: 1.068181818 | R48: 42 | S48: 0.9545454545 | T48: 48 | U48: 1.090909091 | V48: 32 | W48: 0.7272727273 | X48: 52 | Y48: 1.181818182 | Z48: 37 | AA48: 0.8409090909 | AB48: 44 | AC48: 1 | AE48: 2 | AF48: 0.04545454545 | AH48: =cálculos2!O48 -> 6 | AI48: 0.6 | AJ48: =cálculos2!P48 -> 3 | AK48: 0.75
A49: Central | B49: Marilândia | C49: 45 | D49: 33 | E49: 0.7333333333 | F49: 20 | G49: 0.4444444444 | H49: 16 | I49: 0.3555555556 | J49: 36 | K49: 0.8 | L49: 36 | M49: 0.8 | N49: 37 | O49: 0.8222222222 | P49: 40 | Q49: 0.8888888889 | R49: 34 | S49: 0.7555555556 | T49: 46 | U49: 1.022222222 | V49: 35 | W49: 0.7777777778 | X49: 39 | Y49: 0.8666666667 | Z49: 41 | AA49: 0.9111111111 | AB49: 38 | AC49: 0.8444444444 | AE49: 7 | AF49: 0.1555555556 | AH49: =cálculos2!O49 -> 1 | AI49: 0.1 | AJ49: =cálculos2!P49 -> 0 | AK49: 0
A50: Sul | B50: Mimoso do Sul | C50: 87 | D50: 70 | E50: 0.8045977011 | F50: 58 | G50: 0.6666666667 | H50: 41 | I50: 0.4712643678 | J50: 74 | K50: 0.8505747126 | L50: 65 | M50: 0.7471264368 | N50: 67 | O50: 0.7701149425 | P50: 42 | Q50: 0.4827586207 | R50: 49 | S50: 0.5632183908 | T50: 69 | U50: 0.7931034483 | V50: 54 | W50: 0.6206896552 | X50: 80 | Y50: 0.9195402299 | Z50: 52 | AA50: 0.5977011494 | AB50: 40 | AC50: 0.4597701149 | AE50: 1 | AF50: 0.01149425287 | AH50: =cálculos2!O50 -> 0 | AI50: 0 | AJ50: =cálculos2!P50 -> 0 | AK50: 0
A51: Norte | B51: Montanha | C51: 42 | D51: 43 | E51: 1.023809524 | F51: 27 | G51: 0.6428571429 | H51: 25 | I51: 0.5952380952 | J51: 42 | K51: 1 | L51: 60 | M51: 1.428571429 | N51: 62 | O51: 1.476190476 | P51: 71 | Q51: 1.69047619 | R51: 63 | S51: 1.5 | T51: 60 | U51: 1.428571429 | V51: 61 | W51: 1.452380952 | X51: 51 | Y51: 1.214285714 | Z51: 61 | AA51: 1.452380952 | AB51: 72 | AC51: 1.714285714 | AE51: 0 | AF51: 0 | AH51: =cálculos2!O51 -> 10 | AI51: 1 | AJ51: =cálculos2!P51 -> 4 | AK51: 1
A52: Norte | B52: Mucurici | C52: 20 | D52: 12 | E52: 0.6 | F52: 12 | G52: 0.6 | H52: 11 | I52: 0.55 | J52: 10 | K52: 0.5 | L52: 6 | M52: 0.3 | N52: 7 | O52: 0.35 | P52: 10 | Q52: 0.5 | R52: 10 | S52: 0.5 | T52: 14 | U52: 0.7 | V52: 18 | W52: 0.9 | X52: 10 | Y52: 0.5 | Z52: 14 | AA52: 0.7 | AB52: 10 | AC52: 0.5 | AE52: 0 | AF52: 0 | AH52: =cálculos2!O52 -> 0 | AI52: 0 | AJ52: =cálculos2!P52 -> 0 | AK52: 0
A53: Sul | B53: Muniz Freire | C53: 49 | D53: 69 | E53: 1.408163265 | F53: 41 | G53: 0.8367346939 | H53: 25 | I53: 0.5102040816 | J53: 71 | K53: 1.448979592 | L53: 84 | M53: 1.714285714 | N53: 83 | O53: 1.693877551 | P53: 59 | Q53: 1.204081633 | R53: 69 | S53: 1.408163265 | T53: 59 | U53: 1.204081633 | V53: 57 | W53: 1.163265306 | X53: 65 | Y53: 1.326530612 | Z53: 103 | AA53: 2.102040816 | AB53: 60 | AC53: 1.224489796 | AE53: 0 | AF53: 0 | AH53: =cálculos2!O53 -> 10 | AI53: 1 | AJ53: =cálculos2!P53 -> 4 | AK53: 1
A54: Sul | B54: Muqui | C54: 41 | D54: 36 | E54: 0.8780487805 | F54: 27 | G54: 0.6585365854 | H54: 9 | I54: 0.2195121951 | J54: 36 | K54: 0.8780487805 | L54: 37 | M54: 0.9024390244 | N54: 36 | O54: 0.8780487805 | P54: 28 | Q54: 0.6829268293 | R54: 33 | S54: 0.8048780488 | T54: 44 | U54: 1.073170732 | V54: 37 | W54: 0.9024390244 | X54: 47 | Y54: 1.146341463 | Z54: 31 | AA54: 0.756097561 | AB54: 28 | AC54: 0.6829268293 | AE54: 3 | AF54: 0.07317073171 | AH54: =cálculos2!O54 -> 2 | AI54: 0.2 | AJ54: =cálculos2!P54 -> 1 | AK54: 0.25
A55: Norte | B55: Nova Venécia | C55: 190 | D55: 174 | E55: 0.9157894737 | F55: 144 | G55: 0.7578947368 | H55: 139 | I55: 0.7315789474 | J55: 163 | K55: 0.8578947368 | L55: 183 | M55: 0.9631578947 | N55: 185 | O55: 0.9736842105 | P55: 175 | Q55: 0.9210526316 | R55: 186 | S55: 0.9789473684 | T55: 161 | U55: 0.8473684211 | V55: 166 | W55: 0.8736842105 | X55: 191 | Y55: 1.005263158 | Z55: 196 | AA55: 1.031578947 | AB55: 177 | AC55: 0.9315789474 | AE55: 0 | AF55: 0 | AH55: =cálculos2!O55 -> 6 | AI55: 0.6 | AJ55: =cálculos2!P55 -> 3 | AK55: 0.75
A56: Central | B56: Pancas | C56: 56 | D56: 39 | E56: 0.6964285714 | F56: 29 | G56: 0.5178571429 | H56: 23 | I56: 0.4107142857 | J56: 39 | K56: 0.6964285714 | L56: 58 | M56: 1.035714286 | N56: 57 | O56: 1.017857143 | P56: 51 | Q56: 0.9107142857 | R56: 55 | S56: 0.9821428571 | T56: 57 | U56: 1.017857143 | V56: 52 | W56: 0.9285714286 | X56: 64 | Y56: 1.142857143 | Z56: 53 | AA56: 0.9464285714 | AB56: 52 | AC56: 0.9285714286 | AE56: 2 | AF56: 0.03571428571 | AH56: =cálculos2!O56 -> 6 | AI56: 0.6 | AJ56: =cálculos2!P56 -> 3 | AK56: 0.75
A57: Norte | B57: Pedro Canário | C57: 77 | D57: 70 | E57: 0.9090909091 | F57: 64 | G57: 0.8311688312 | H57: 62 | I57: 0.8051948052 | J57: 65 | K57: 0.8441558442 | L57: 102 | M57: 1.324675325 | N57: 95 | O57: 1.233766234 | P57: 86 | Q57: 1.116883117 | R57: 80 | S57: 1.038961039 | T57: 66 | U57: 0.8571428571 | V57: 75 | W57: 0.974025974 | X57: 90 | Y57: 1.168831169 | Z57: 77 | AA57: 1 | AB57: 82 | AC57: 1.064935065 | AE57: 0 | AF57: 0 | AH57: =cálculos2!O57 -> 8 | AI57: 0.8 | AJ57: =cálculos2!P57 -> 4 | AK57: 1
A58: Norte | B58: Pinheiros | C58: 97 | D58: 59 | E58: 0.6082474227 | F58: 56 | G58: 0.5773195876 | H58: 56 | I58: 0.5773195876 | J58: 58 | K58: 0.5979381443 | L58: 96 | M58: 0.9896907216 | N58: 92 | O58: 0.9484536082 | P58: 89 | Q58: 0.9175257732 | R58: 97 | S58: 1 | T58: 72 | U58: 0.7422680412 | V58: 66 | W58: 0.6804123711 | X58: 81 | Y58: 0.8350515464 | Z58: 68 | AA58: 0.7010309278 | AB58: 94 | AC58: 0.9690721649 | AE58: 1 | AF58: 0.01030927835 | AH58: =cálculos2!O58 -> 3 | AI58: 0.3 | AJ58: =cálculos2!P58 -> 1 | AK58: 0.25
A59: Sul | B59: Piúma | C59: 82 | D59: 65 | E59: 0.7926829268 | F59: 59 | G59: 0.7195121951 | H59: 47 | I59: 0.5731707317 | J59: 56 | K59: 0.6829268293 | L59: 66 | M59: 0.8048780488 | N59: 66 | O59: 0.8048780488 | P59: 59 | Q59: 0.7195121951 | R59: 64 | S59: 0.7804878049 | T59: 67 | U59: 0.8170731707 | V59: 76 | W59: 0.9268292683 | X59: 81 | Y59: 0.987804878 | Z59: 76 | AA59: 0.9268292683 | AB59: 56 | AC59: 0.6829268293 | AE59: 7 | AF59: 0.08536585366 | AH59: =cálculos2!O59 -> 1 | AI59: 0.1 | AJ59: =cálculos2!P59 -> 1 | AK59: 0.25
A60: Norte | B60: Ponto Belo | C60: 14 | D60: 13 | E60: 0.9285714286 | F60: 8 | G60: 0.5714285714 | H60: 8 | I60: 0.5714285714 | J60: 12 | K60: 0.8571428571 | L60: 15 | M60: 1.071428571 | N60: 10 | O60: 0.7142857143 | P60: 25 | Q60: 1.785714286 | R60: 17 | S60: 1.214285714 | T60: 18 | U60: 1.285714286 | V60: 21 | W60: 1.5 | X60: 14 | Y60: 1 | Z60: 23 | AA60: 1.642857143 | AB60: 24 | AC60: 1.714285714 | AE60: 0 | AF60: 0 | AH60: =cálculos2!O60 -> 8 | AI60: 0.8 | AJ60: =cálculos2!P60 -> 3 | AK60: 0.75
A61: Sul | B61: Presidente Kennedy | C61: 59 | D61: 54 | E61: 0.9152542373 | F61: 46 | G61: 0.7796610169 | H61: 30 | I61: 0.5084745763 | J61: 54 | K61: 0.9152542373 | L61: 50 | M61: 0.8474576271 | N61: 49 | O61: 0.8305084746 | P61: 44 | Q61: 0.7457627119 | R61: 50 | S61: 0.8474576271 | T61: 43 | U61: 0.7288135593 | V61: 57 | W61: 0.9661016949 | X61: 71 | Y61: 1.203389831 | Z61: 55 | AA61: 0.9322033898 | AB61: 44 | AC61: 0.7457627119 | AE61: 0 | AF61: 0 | AH61: =cálculos2!O61 -> 3 | AI61: 0.3 | AJ61: =cálculos2!P61 -> 1 | AK61: 0.25
A62: Central | B62: Rio Bananal | C62: 78 | D62: 66 | E62: 0.8461538462 | F62: 49 | G62: 0.6282051282 | H62: 46 | I62: 0.5897435897 | J62: 63 | K62: 0.8076923077 | L62: 79 | M62: 1.012820513 | N62: 79 | O62: 1.012820513 | P62: 75 | Q62: 0.9615384615 | R62: 68 | S62: 0.8717948718 | T62: 58 | U62: 0.7435897436 | V62: 67 | W62: 0.858974359 | X62: 68 | Y62: 0.8717948718 | Z62: 105 | AA62: 1.346153846 | AB62: 72 | AC62: 0.9230769231 | AE62: 3 | AF62: 0.03846153846 | AH62: =cálculos2!O62 -> 5 | AI62: 0.5 | AJ62: =cálculos2!P62 -> 3 | AK62: 0.75
A63: Sul | B63: Rio Novo do Sul | C63: 31 | D63: 30 | E63: 0.9677419355 | F63: 20 | G63: 0.6451612903 | H63: 11 | I63: 0.3548387097 | J63: 30 | K63: 0.9677419355 | L63: 23 | M63: 0.7419354839 | N63: 23 | O63: 0.7419354839 | P63: 28 | Q63: 0.9032258065 | R63: 27 | S63: 0.8709677419 | T63: 21 | U63: 0.6774193548 | V63: 28 | W63: 0.9032258065 | X63: 37 | Y63: 1.193548387 | Z63: 25 | AA63: 0.8064516129 | AB63: 31 | AC63: 1 | AE63: 0 | AF63: 0 | AH63: =cálculos2!O63 -> 3 | AI63: 0.3 | AJ63: =cálculos2!P63 -> 1 | AK63: 0.25
A64: Metropolitana | B64: Santa Leopoldina | C64: 31 | D64: 24 | E64: 0.7741935484 | F64: 21 | G64: 0.6774193548 | H64: 18 | I64: 0.5806451613 | J64: 24 | K64: 0.7741935484 | L64: 28 | M64: 0.9032258065 | N64: 28 | O64: 0.9032258065 | P64: 21 | Q64: 0.6774193548 | R64: 21 | S64: 0.6774193548 | T64: 31 | U64: 1 | V64: 25 | W64: 0.8064516129 | X64: 24 | Y64: 0.7741935484 | Z64: 27 | AA64: 0.8709677419 | AB64: 21 | AC64: 0.6774193548 | AE64: 0 | AF64: 0 | AH64: =cálculos2!O64 -> 1 | AI64: 0.1 | AJ64: =cálculos2!P64 -> 0 | AK64: 0
A65: Metropolitana | B65: Santa Maria de Jetibá | C65: 171 | D65: 150 | E65: 0.8771929825 | F65: 147 | G65: 0.8596491228 | H65: 130 | I65: 0.7602339181 | J65: 156 | K65: 0.9122807018 | L65: 176 | M65: 1.029239766 | N65: 180 | O65: 1.052631579 | P65: 172 | Q65: 1.005847953 | R65: 174 | S65: 1.01754386 | T65: 149 | U65: 0.8713450292 | V65: 172 | W65: 1.005847953 | X65: 171 | Y65: 1 | Z65: 182 | AA65: 1.064327485 | AB65: 172 | AC65: 1.005847953 | AE65: 1 | AF65: 0.005847953216 | AH65: =cálculos2!O65 -> 9 | AI65: 0.9 | AJ65: =cálculos2!P65 -> 4 | AK65: 1
A66: Metropolitana | B66: Santa Teresa | C66: 74 | D66: 71 | E66: 0.9594594595 | F66: 65 | G66: 0.8783783784 | H66: 48 | I66: 0.6486486486 | J66: 72 | K66: 0.972972973 | L66: 62 | M66: 0.8378378378 | N66: 62 | O66: 0.8378378378 | P66: 59 | Q66: 0.7972972973 | R66: 55 | S66: 0.7432432432 | T66: 63 | U66: 0.8513513514 | V66: 65 | W66: 0.8783783784 | X66: 77 | Y66: 1.040540541 | Z66: 67 | AA66: 0.9054054054 | AB66: 59 | AC66: 0.7972972973 | AE66: 1 | AF66: 0.01351351351 | AH66: =cálculos2!O66 -> 2 | AI66: 0.2 | AJ66: =cálculos2!P66 -> 1 | AK66: 0.25
A67: Central | B67: São Domingos do Norte | C67: 29 | D67: 30 | E67: 1.034482759 | F67: 23 | G67: 0.7931034483 | H67: 18 | I67: 0.6206896552 | J67: 30 | K67: 1.034482759 | L67: 36 | M67: =L67/C67 -> 1.24137931 | N67: 35 | O67: =N67/C67 -> 1.206896552 | P67: 35 | Q67: =P67/C67 -> 1.206896552 | R67: 43 | S67: =R67/C67 -> 1.482758621 | T67: 20 | U67: =T67/C67 -> 0.6896551724 | V67: 24 | W67: =V67/C67 -> 0.8275862069 | X67: 33 | Y67: =X67/C67 -> 1.137931034 | Z67: 28 | AA67: =Z67/C67 -> 0.9655172414 | AB67: 37 | AC67: =AB67/C67 -> 1.275862069 | AE67: 0 | AF67: =AE67/C67 -> 0 | AH67: =cálculos2!O67 -> 8 | AI67: 0.8 | AJ67: =cálculos2!P67 -> 4 | AK67: 1
A68: Central | B68: São Gabriel da Palha | C68: 114 | D68: 129 | E68: =D68/C68 -> 1.131578947 | F68: 71 | G68: =F68/C68 -> 0.6228070175 | H68: 50 | I68: =H68/C68 -> 0.4385964912 | J68: 138 | K68: =J68/C68 -> 1.210526316 | L68: 92 | M68: 0.8070175439 | N68: 90 | O68: 0.7894736842 | P68: 127 | Q68: 1.114035088 | R68: 104 | S68: 0.9122807018 | T68: 101 | U68: 0.8859649123 | V68: 82 | W68: 0.7192982456 | X68: 78 | Y68: 0.6842105263 | Z68: 95 | AA68: 0.8333333333 | AB68: 128 | AC68: 1.122807018 | AE68: 0 | AF68: 0 | AH68: =cálculos2!O68 -> 3 | AI68: =AH68*0.1 -> 0.3 | AJ68: =cálculos2!P68 -> 1 | AK68: =AJ68*0.25 -> 0.25
A69: Sul | B69: São José do Calçado | C69: 19 | D69: 27 | E69: 1.421052632 | F69: 10 | G69: 0.5263157895 | H69: 3 | I69: 0.1578947368 | J69: 35 | K69: 1.842105263 | L69: 22 | M69: 1.157894737 | N69: 22 | O69: 1.157894737 | P69: 27 | Q69: 1.421052632 | R69: 26 | S69: 1.368421053 | T69: 17 | U69: 0.8947368421 | V69: 15 | W69: 0.7894736842 | X69: 26 | Y69: 1.368421053 | Z69: 11 | AA69: 0.5789473684 | AB69: 29 | AC69: 1.526315789 | AE69: 0 | AF69: 0 | AH69: =cálculos2!O69 -> 7 | AI69: 0.7 | AJ69: =cálculos2!P69 -> 4 | AK69: 1
A70: Norte | B70: São Mateus | C70: 487 | D70: 409 | E70: 0.839835729 | F70: 390 | G70: 0.8008213552 | H70: 387 | I70: 0.794661191 | J70: 385 | K70: 0.7905544148 | L70: 439 | M70: 0.9014373717 | N70: 428 | O70: 0.8788501027 | P70: 488 | Q70: 1.002053388 | R70: 457 | S70: 0.9383983573 | T70: 371 | U70: 0.7618069815 | V70: 393 | W70: 0.8069815195 | X70: 418 | Y70: 0.8583162218 | Z70: 337 | AA70: 0.6919917864 | AB70: 499 | AC70: 1.024640657 | AE70: 3 | AF70: 0.006160164271 | AH70: =cálculos2!O70 -> 2 | AI70: 0.2 | AJ70: =cálculos2!P70 -> 1 | AK70: 0.25
A71: Central | B71: São Roque do Canaã | C71: 32 | D71: 23 | E71: 0.71875 | F71: 12 | G71: 0.375 | H71: 9 | I71: 0.28125 | J71: 23 | K71: 0.71875 | L71: 33 | M71: 1.03125 | N71: 33 | O71: 1.03125 | P71: 34 | Q71: 1.0625 | R71: 29 | S71: 0.90625 | T71: 40 | U71: 1.25 | V71: 28 | W71: 0.875 | X71: 38 | Y71: 1.1875 | Z71: 27 | AA71: 0.84375 | AB71: 33 | AC71: 1.03125 | AE71: 0 | AF71: 0 | AH71: =cálculos2!O71 -> 6 | AI71: 0.6 | AJ71: =cálculos2!P71 -> 4 | AK71: 1
A72: Metropolitana | B72: Serra | C72: 1860 | D72: 1804 | E72: 0.9698924731 | F72: 1548 | G72: 0.8322580645 | H72: 1190 | I72: 0.6397849462 | J72: 1777 | K72: 0.9553763441 | L72: 1749 | M72: 0.9403225806 | N72: 1754 | O72: 0.9430107527 | P72: 1708 | Q72: 0.9182795699 | R72: 1736 | S72: 0.9333333333 | T72: 1321 | U72: 0.7102150538 | V72: 1586 | W72: 0.852688172 | X72: 1681 | Y72: 0.9037634409 | Z72: 1489 | AA72: 0.8005376344 | AB72: 1754 | AC72: 0.9430107527 | AE72: 32 | AF72: 0.01720430108 | AH72: =cálculos2!O72 -> 2 | AI72: 0.2 | AJ72: =cálculos2!P72 -> 0 | AK72: 0
A73: Central | B73: Sooretama | C73: 96 | D73: 66 | E73: 0.6875 | F73: 53 | G73: 0.5520833333 | H73: 39 | I73: 0.40625 | J73: 66 | K73: 0.6875 | L73: 97 | M73: 1.010416667 | N73: 95 | O73: 0.9895833333 | P73: 107 | Q73: 1.114583333 | R73: 110 | S73: 1.145833333 | T73: 87 | U73: 0.90625 | V73: 93 | W73: 0.96875 | X73: 97 | Y73: 1.010416667 | Z73: 83 | AA73: 0.8645833333 | AB73: 109 | AC73: 1.135416667 | AE73: 0 | AF73: 0 | AH73: =cálculos2!O73 -> 7 | AI73: 0.7 | AJ73: =cálculos2!P73 -> 4 | AK73: 1
A74: Sul | B74: Vargem Alta | C74: 73 | D74: 69 | E74: 0.9452054795 | F74: 59 | G74: 0.8082191781 | H74: 39 | I74: 0.5342465753 | J74: 68 | K74: 0.9315068493 | L74: 57 | M74: 0.7808219178 | N74: 58 | O74: 0.7945205479 | P74: 58 | Q74: 0.7945205479 | R74: 51 | S74: 0.698630137 | T74: 81 | U74: 1.109589041 | V74: 60 | W74: 0.8219178082 | X74: 73 | Y74: 1 | Z74: 62 | AA74: 0.8493150685 | AB74: 58 | AC74: 0.7945205479 | AE74: 1 | AF74: 0.01369863014 | AH74: =cálculos2!O74 -> 3 | AI74: 0.3 | AJ74: =cálculos2!P74 -> 1 | AK74: 0.25
A75: Metropolitana | B75: Venda Nova do Imigrante | C75: 84 | D75: 81 | E75: 0.9642857143 | F75: 69 | G75: 0.8214285714 | H75: 66 | I75: 0.7857142857 | J75: 81 | K75: 0.9642857143 | L75: 94 | M75: 1.119047619 | N75: 93 | O75: 1.107142857 | P75: 68 | Q75: 0.8095238095 | R75: 71 | S75: 0.8452380952 | T75: 85 | U75: 1.011904762 | V75: 89 | W75: 1.05952381 | X75: 85 | Y75: 1.011904762 | Z75: 114 | AA75: 1.357142857 | AB75: 71 | AC75: 0.8452380952 | AE75: 5 | AF75: 0.05952380952 | AH75: =cálculos2!O75 -> 7 | AI75: 0.7 | AJ75: =cálculos2!P75 -> 3 | AK75: 0.75
A76: Metropolitana | B76: Viana | C76: 216 | D76: 218 | E76: 1.009259259 | F76: 101 | G76: 0.4675925926 | H76: 80 | I76: 0.3703703704 | J76: 211 | K76: 0.9768518519 | L76: 212 | M76: 0.9814814815 | N76: 207 | O76: 0.9583333333 | P76: 219 | Q76: 1.013888889 | R76: 200 | S76: 0.9259259259 | T76: 175 | U76: 0.8101851852 | V76: 229 | W76: 1.060185185 | X76: 220 | Y76: 1.018518519 | Z76: 239 | AA76: 1.106481481 | AB76: 219 | AC76: 1.013888889 | AE76: 2 | AF76: 0.009259259259 | AH76: =cálculos2!O76 -> 8 | AI76: 0.8 | AJ76: =cálculos2!P76 -> 4 | AK76: 1
A77: Norte | B77: Vila Pavão | C77: 38 | D77: 26 | E77: 0.6842105263 | F77: 21 | G77: 0.5526315789 | H77: 17 | I77: 0.4473684211 | J77: 28 | K77: 0.7368421053 | L77: 31 | M77: 0.8157894737 | N77: 29 | O77: 0.7631578947 | P77: 28 | Q77: 0.7368421053 | R77: 29 | S77: 0.7631578947 | T77: 28 | U77: 0.7368421053 | V77: 30 | W77: 0.7894736842 | X77: 28 | Y77: 0.7368421053 | Z77: 41 | AA77: 1.078947368 | AB77: 29 | AC77: 0.7631578947 | AE77: 0 | AF77: 0 | AH77: =cálculos2!O77 -> 1 | AI77: 0.1 | AJ77: =cálculos2!P77 -> 0 | AK77: 0
A78: Central | B78: Vila Valério | C78: 66 | D78: 58 | E78: 0.8787878788 | F78: 40 | G78: 0.6060606061 | H78: 35 | I78: 0.5303030303 | J78: 54 | K78: 0.8181818182 | L78: 64 | M78: 0.9696969697 | N78: 64 | O78: 0.9696969697 | P78: 67 | Q78: 1.015151515 | R78: 63 | S78: 0.9545454545 | T78: 63 | U78: 0.9545454545 | V78: 50 | W78: 0.7575757576 | X78: 49 | Y78: 0.7424242424 | Z78: 54 | AA78: 0.8181818182 | AB78: 67 | AC78: 1.015151515 | AE78: 0 | AF78: 0 | AH78: =cálculos2!O78 -> 6 | AI78: 0.6 | AJ78: =cálculos2!P78 -> 3 | AK78: 0.75
A79: Metropolitana | B79: Vila Velha | C79: 1434 | D79: 1233 | E79: 0.859832636 | F79: 935 | G79: 0.6520223152 | H79: 600 | I79: 0.4184100418 | J79: 1239 | K79: 0.8640167364 | L79: 1078 | M79: 0.7517433752 | N79: 1044 | O79: 0.7280334728 | P79: 1174 | Q79: 0.8186889819 | R79: 1193 | S79: 0.8319386332 | T79: 912 | U79: 0.6359832636 | V79: 1116 | W79: 0.7782426778 | X79: 1204 | Y79: 0.839609484 | Z79: 983 | AA79: 0.6854951185 | AB79: 1202 | AC79: 0.8382147838 | AE79: 42 | AF79: 0.02928870293 | AH79: =cálculos2!O79 -> 0 | AI79: 0 | AJ79: =cálculos2!P79 -> 0 | AK79: 0
A80: Metropolitana | B80: Vitória | C80: 889 | D80: 881 | E80: 0.9910011249 | F80: 735 | G80: 0.8267716535 | H80: 592 | I80: 0.6659167604 | J80: 878 | K80: 0.9876265467 | L80: 998 | M80: 1.122609674 | N80: 985 | O80: 1.107986502 | P80: 998 | Q80: 1.122609674 | R80: 981 | S80: 1.103487064 | T80: 647 | U80: 0.727784027 | V80: 929 | W80: 1.044994376 | X80: 1017 | Y80: 1.143982002 | Z80: 1014 | AA80: 1.140607424 | AB80: 1027 | AC80: 1.155230596 | AE80: 53 | AF80: 0.05961754781 | AH80: =cálculos2!O80 -> 9 | AI80: 0.9 | AJ80: =cálculos2!P80 -> 4 | AK80: 1
B82: Total Norte | C82: =SUMIF($A$3:$A$80,"Norte",C$3:C$80) -> 1533 | D82: =SUMIF($A$3:$A$80,"Norte",D$3:D$80) -> 1288 | E82: =D82/C82 -> 0.8401826484 | F82: =SUMIF($A$3:$A$80,"Norte",F$3:F$80) -> 1079 | G82: =F82/C82 -> 0.7038486628 | H82: =SUMIF($A$3:$A$80,"Norte",H$3:H$80) -> 1030 | I82: =H82/C82 -> 0.6718851924 | J82: =SUMIF($A$3:$A$80,"Norte",J$3:J$80) -> 1231 | K82: =J82/C82 -> 0.8030006523 | L82: =SUMIF($A$3:$A$80,"Norte",L$3:L$80) -> 1389 | M82: =L82/C82 -> 0.9060665362 | N82: =SUMIF($A$3:$A$80,"Norte",N$3:N$80) -> 1364 | O82: =N82/C82 -> 0.8897586432 | P82: =SUMIF($A$3:$A$80,"Norte",P$3:P$80) -> 1469 | Q82: =P82/C82 -> 0.9582517939 | R82: =SUMIF($A$3:$A$80,"Norte",R$3:R$80) -> 1420 | S82: =R82/C82 -> 0.9262883235 | T82: =SUMIF($A$3:$A$80,"Norte",T$3:T$80) -> 1254 | U82: =T82/C82 -> 0.8180039139 | V82: =SUMIF($A$3:$A$80,"Norte",V$3:V$80) -> 1290 | W82: =V82/C82 -> 0.8414872798 | X82: =SUMIF($A$3:$A$80,"Norte",X$3:X$80) -> 1394 | Y82: =X82/C82 -> 0.9093281148 | Z82: =SUMIF($A$3:$A$80,"Norte",Z$3:Z$80) -> 1281 | AA82: =Z82/C82 -> 0.8356164384 | AB82: =SUMIF($A$3:$A$80,"Norte",AB$3:AB$80) -> 1497 | AC82: =AB82/C82 -> 0.9765166341 | AE82: =SUMIF($A$3:$A$80,"Norte",AE$3:AE$80) -> 6 | AF82: =AE82/C82 -> 0.003913894325 | AH82: =cálculos2!O82 -> 2 | AI82: =AH82*0.1 -> 0.2 | AJ82: =cálculos2!P82 -> 1 | AK82: 0.25
B83: Total Central | C83: =SUMIF($A$3:$A$80,"Central",C$3:C$80) -> 1791 | D83: =SUMIF($A$3:$A$80,"Central",D$3:D$80) -> 1820 | E83: =D83/C83 -> 1.016192071 | F83: =SUMIF($A$3:$A$80,"Central",F$3:F$80) -> 1226 | G83: =F83/C83 -> 0.68453378 | H83: =SUMIF($A$3:$A$80,"Central",H$3:H$80) -> 967 | I83: =H83/C83 -> 0.5399218314 | J83: =SUMIF($A$3:$A$80,"Central",J$3:J$80) -> 1844 | K83: =J83/C83 -> 1.029592406 | L83: =SUMIF($A$3:$A$80,"Central",L$3:L$80) -> 1699 | M83: =L83/C83 -> 0.9486320491 | N83: =SUMIF($A$3:$A$80,"Central",N$3:N$80) -> 1663 | O83: =N83/C83 -> 0.9285315466 | P83: =SUMIF($A$3:$A$80,"Central",P$3:P$80) -> 1656 | Q83: =P83/C83 -> 0.9246231156 | R83: =SUMIF($A$3:$A$80,"Central",R$3:R$80) -> 1687 | S83: =R83/C83 -> 0.9419318816 | T83: =SUMIF($A$3:$A$80,"Central",T$3:T$80) -> 1476 | U83: =T83/C83 -> 0.824120603 | V83: =SUMIF($A$3:$A$80,"Central",V$3:V$80) -> 1474 | W83: =V83/C83 -> 0.8230039084 | X83: =SUMIF($A$3:$A$80,"Central",X$3:X$80) -> 1571 | Y83: =X83/C83 -> 0.8771635958 | Z83: =SUMIF($A$3:$A$80,"Central",Z$3:Z$80) -> 1553 | AA83: =Z83/C83 -> 0.8671133445 | AB83: =SUMIF($A$3:$A$80,"Central",AB$3:AB$80) -> 1700 | AC83: =AB83/C83 -> 0.9491903964 | AE83: =SUMIF($A$3:$A$80,"Central",AE$3:AE$80) -> 28 | AF83: =AE83/C83 -> 0.01563372418 | AH83: =cálculos2!O83 -> 2 | AI83: =AH83*0.1 -> 0.2 | AJ83: =cálculos2!P83 -> 0 | AK83: 0
B84: Total Metropolitana | C84: =SUMIF($A$3:$A$80,"Metropolitana",C$3:C$80) -> 7467 | D84: =SUMIF($A$3:$A$80,"Metropolitana",D$3:D$80) -> 6884 | E84: =D84/C84 -> 0.9219231284 | F84: =SUMIF($A$3:$A$80,"Metropolitana",F$3:F$80) -> 5108 | G84: =F84/C84 -> 0.6840766037 | H84: =SUMIF($A$3:$A$80,"Metropolitana",H$3:H$80) -> 3863 | I84: 0.5173429758 | J84: =SUMIF($A$3:$A$80,"Metropolitana",J$3:J$80) -> 6843 | K84: =J84/C84 -> 0.9164323021 | L84: =SUMIF($A$3:$A$80,"Metropolitana",L$3:L$80) -> 6767 | M84: =L84/C84 -> 0.9062541851 | N84: =SUMIF($A$3:$A$80,"Metropolitana",N$3:N$80) -> 6672 | O84: =N84/C84 -> 0.8935315388 | P84: =SUMIF($A$3:$A$80,"Metropolitana",P$3:P$80) -> 6814 | Q84: =P84/C84 -> 0.9125485469 | R84: =SUMIF($A$3:$A$80,"Metropolitana",R$3:R$80) -> 6820 | S84: =R84/C84 -> 0.9133520825 | T84: =SUMIF($A$3:$A$80,"Metropolitana",T$3:T$80) -> 5526 | U84: =T84/C84 -> 0.7400562475 | V84: =SUMIF($A$3:$A$80,"Metropolitana",V$3:V$80) -> 6501 | W84: =V84/C84 -> 0.8706307754 | X84: =SUMIF($A$3:$A$80,"Metropolitana",X$3:X$80) -> 6991 | Y84: =X84/C84 -> 0.9362528459 | Z84: =SUMIF($A$3:$A$80,"Metropolitana",Z$3:Z$80) -> 6311 | AA84: =Z84/C84 -> 0.8451854828 | AB84: =SUMIF($A$3:$A$80,"Metropolitana",AB$3:AB$80) -> 6972 | AC84: =AB84/C84 -> 0.9337083166 | AE84: =SUMIF($A$3:$A$80,"Metropolitana",AE$3:AE$80) -> 185 | AF84: =AE84/C84 -> 0.02477567966 | AH84: =cálculos2!O84 -> 2 | AI84: 0.2 | AJ84: =cálculos2!P84 -> 0 | AK84: 0
B85: Total Sul | C85: =SUMIF($A$3:$A$80,"sul",C$3:C$80) -> 2024 | D85: =SUMIF($A$3:$A$80,"Sul",D$3:D$80) -> 1922 | E85: =D85/C85 -> 0.9496047431 | F85: =SUMIF($A$3:$A$80,"Sul",F$3:F$80) -> 1406 | G85: =F85/C85 -> 0.6946640316 | H85: =SUMIF($A$3:$A$80,"Sul",H$3:H$80) -> 902 | I85: 0.4456521739 | J85: =SUMIF($A$3:$A$80,"Sul",J$3:J$80) -> 2000 | K85: =J85/C85 -> 0.9881422925 | L85: =SUMIF($A$3:$A$80,"Sul",L$3:L$80) -> 1977 | M85: =L85/C85 -> 0.9767786561 | N85: =SUMIF($A$3:$A$80,"Sul",N$3:N$80) -> 1955 | O85: =N85/C85 -> 0.9659090909 | P85: =SUMIF($A$3:$A$80,"Sul",P$3:P$80) -> 1891 | Q85: =P85/C85 -> 0.9342885375 | R85: =SUMIF($A$3:$A$80,"Sul",R$3:R$80) -> 1923 | S85: =R85/C85 -> 0.9500988142 | T85: =SUMIF($A$3:$A$80,"Sul",T$3:T$80) -> 1716 | U85: =T85/C85 -> 0.847826087 | V85: =SUMIF($A$3:$A$80,"Sul",V$3:V$80) -> 1863 | W85: =V85/C85 -> 0.9204545455 | X85: =SUMIF($A$3:$A$80,"Sul",X$3:X$80) -> 2058 | Y85: =X85/C85 -> 1.016798419 | Z85: =SUMIF($A$3:$A$80,"Sul",Z$3:Z$80) -> 1910 | AA85: =Z85/C85 -> 0.9436758893 | AB85: =SUMIF($A$3:$A$80,"Sul",AB$3:AB$80) -> 1924 | AC85: =AB85/C85 -> 0.9505928854 | AE85: =SUMIF($A$3:$A$80,"Sul",AE$3:AE$80) -> 45 | AF85: =AE85/C85 -> 0.02223320158 | AH85: =cálculos2!O85 -> 6 | AI85: 0.6 | AJ85: =cálculos2!P85 -> 3 | AK85: 0.75
B86: Total Espírito Santo | C86: =SUM(C3:C80) -> 12815 | D86: =SUM(D82:D85) -> 11914 | E86: =D86/C86 -> 0.9296917675 | F86: =SUM(F82:F85) -> 8819 | G86: =F86/C86 -> 0.6881779165 | H86: =SUM(H82:H85) -> 6762 | I86: 0.527662895 | J86: =SUM(J82:J85) -> 11918 | K86: =J86/C86 -> 0.9300039017 | L86: =SUM(L82:L85) -> 11832 | M86: =L86/C86 -> 0.923293016 | N86: =SUM(N82:N85) -> 11654 | O86: =N86/C86 -> 0.9094030433 | P86: =SUM(P82:P85) -> 11830 | Q86: =P86/C86 -> 0.9231369489 | R86: =SUM(R82:R85) -> 11850 | S86: =R86/C86 -> 0.92469762 | T86: =SUM(T82:T85) -> 9972 | U86: =T86/C86 -> 0.7781506048 | V86: =SUM(V82:V85) -> 11128 | W86: =V86/C86 -> 0.8683573937 | X86: =SUM(X82:X85) -> 12014 | Y86: =X86/C86 -> 0.9374951229 | Z86: =SUM(Z82:Z85) -> 11055 | AA86: =Z86/C86 -> 0.8626609442 | AB86: =SUM(AB82:AB85) -> 12093 | AC86: =AB86/C86 -> 0.9436597737 | AE86: =SUM(AE82:AE85) -> 264 | AF86: =AE86/C86 -> 0.02060085837 | AH86: =cálculos2!O86 -> 2 | AI86: 0.2 | AJ86: =cálculos2!P86 -> 0 | AK86: 0
D87: =COUNTIF(E3:E80,">=0,95") -> 31 | F87: =COUNTIF(G3:G80,">=0,95") -> 3 | H87: =COUNTIF(I3:I80,">=0,95") -> 0 | J87: =COUNTIF(K3:K80,">=0,9") -> 41 | L87: =COUNTIF(M3:M80,">=0,95") -> 36 | N87: =COUNTIF(O3:O80,">=0,95") -> 29 | P87: =COUNTIF(Q3:Q80,">=0,95") -> 35 | R87: =COUNTIF(S3:S80,">=0,95") -> 32 | T87: =COUNTIF(U3:U80,">=0,95") -> 28 | V87: =COUNTIF(W3:W80,">=0,95") -> 31 | X87: =COUNTIF(Y3:Y80,">=0,95") -> 43 | Z87: =COUNTIF(AA3:AA80,">=0,95") -> 30 | AB87: =COUNTIF(AC3:AC80,">=0,9") -> 49 | AE87: =COUNTIF(AF3:AF80,">=0,9") -> 0
B88: HOMOGENEIDADE ENTRE MUNICÍPIOS | D88: =D87/78 -> 0.3974358974 | F88: =F87/78 -> 0.03846153846 | H88: =H87/78 -> 0 | J88: =J87/78 -> 0.5256410256 | L88: =L87/78 -> 0.4615384615 | N88: =N87/78 -> 0.3717948718 | P88: =P87/78 -> 0.4487179487 | R88: =R87/78 -> 0.4102564103 | T88: =T87/78 -> 0.358974359 | V88: =V87/78 -> 0.3974358974 | X88: =X87/78 -> 0.5512820513 | Z88: =Z87/78 -> 0.3846153846 | AB88: =AB87/78 -> 0.6282051282 | AE88: =AE87/78 -> 0
A91: Fonte: Vacina e Confia, em 15 de abril de 2026.**<https://vacinaeconfia.saude.es.gov.br/>
A92: **Dados referente às doses aplicadas no período de janeiro a março de 2026
A93: Cobertura Calculada por município de residência do vacinado
A94: 1 População estimada extraída do MS/SVS/DASIS - SINASC/DASIS/SVS/MS 2025 referente ao período de janeiro de 2026 a fevereiro e março de 2025.
A95: Sinasc, atualizado em 06/04/2026
A96: Método de Cálculo Simples
A97: Homogeineidade: O cálculo da Homogeineidade entre vacinas é feito de acordo com a pactuação estabelecida no Plano Plurianual (PPA) vigente no período 2024-2027.
A100: Observações referente a distribuição de imunobiológicos que podem afetar a cobertura vacinal:
A102: 1. Vacinas que foram recebidas parcialmente pelo estado no mês de Março/2026, sendo distribuídos em quantidades reduzidas às regionais e municípios:
A103: IMUNOGLOBULINA ANTIRRÁBICA HUMANA; SORO ANTIRRÁBICO HUMANO
A104: 2. Vacinas indisponíveis no mês de março/2026, não sendo possível a distribuição às regionais e municípios:
A105: IMUNOGLOBULINA HUMANA ANTIVARICELA (ZOSTER) – 125UI
A106: 3. Vacinas enviadas por Pautas aguardando abastecimento do estoque estadual;
A107: VACINA COVID-19 PFIZER PEDIÁTRICA MENOR QUE 5 ANOS; VACINA COVID-19 PFIZER PEDIÁTRICA, VACINA COVID-19 PFIZER MAIORES QUE 12 ANOS, VACINA VÍRUS SINCICIAL RESPIRATÓRIO A E B - VSR
A109: Fonte: Informes situacionais de distribuição de imunobiológicos em https://saude.es.gov.br/GrupodeArquivos/informes-situacionais-de-distribuicao-de-imunobiologicos

Sheet CV REF 1A e 4A - procedência
E1: D2 | I1: REFORÇOS 1 ANO | Q1: REFORÇOS 4 ANOS
A2: Regional | B2: Município | C2: ¹População 1 ano | D2: ²População 4 anos | E2: DOSES APLICADAS D2 TRÍPLICE VIRAL | F2: COBERTURA D2 TRÍPLICE VIRAL | G2: DOSES APLICADAS D2 VARICELA | H2: COBERTURA D2 VARICELA | I2: DOSES APLICADAS REF PNEUMO | J2: COBERTURA REF PNEUMO | K2: DOSES APLICADAS REF MENINGO | L2: COBERTURA REF MENINGO | M2: DOSES APLICADAS REF POLIO | N2: COBERTURA REF POLIO | O2: DOSES APLICADAS R1 TRÍPLICE BACTERIANA | P2: COBERTURA R1 TRÍPLICE BACTERIANA | Q2: DOSES APLICADAS REF FEBRE AMARELA | R2: COBERTURA REF FEBRE AMARELA | S2: DOSES APLICADAS R2 TRÍPLICE BACTERIANA | T2: COBERTURA R2 TRÍPLICE BACTERIANA
A3: Metropolitana | B3: Afonso Cláudio | C3: 88 | D3: 104 | E3: 87 | F3: =E3/C3 -> 0.9886363636 | G3: 92 | H3: =G3/D3 -> 0.8846153846 | I3: 83 | J3: =I3/C3 -> 0.9431818182 | K3: 88 | L3: =K3/C3 -> 1 | M3: 90 | N3: =M3/C3 -> 1.022727273 | O3: 86 | P3: =O3/C3 -> 0.9772727273 | Q3: 92 | R3: =Q3/D3 -> 0.8846153846 | S3: 94 | T3: =S3/D3 -> 0.9038461538
A4: Norte | B4: Água Doce do Norte | C4: 38 | D4: 37.75 | E4: 47 | F4: 1.236842105 | G4: 30 | H4: 0.7947019868 | I4: 29 | J4: 0.7631578947 | K4: 33 | L4: 0.8684210526 | M4: 35 | N4: 0.9210526316 | O4: 45 | P4: 1.184210526 | Q4: 44 | R4: 1.165562914 | S4: 48 | T4: 1.271523179
A5: Central | B5: Águia Branca | C5: 52 | D5: 32.25 | E5: 26 | F5: 0.5 | G5: 37 | H5: 1.147286822 | I5: 34 | J5: 0.6538461538 | K5: 37 | L5: 0.7115384615 | M5: 24 | N5: 0.4615384615 | O5: 25 | P5: 0.4807692308 | Q5: 35 | R5: 1.085271318 | S5: 34 | T5: 1.054263566
A6: Sul | B6: Alegre | C6: 75 | D6: 93 | E6: 65 | F6: 0.8666666667 | G6: 88 | H6: 0.9462365591 | I6: 75 | J6: 1 | K6: 75 | L6: 1 | M6: 70 | N6: 0.9333333333 | O6: 66 | P6: 0.88 | Q6: 67 | R6: 0.7204301075 | S6: 59 | T6: 0.6344086022
A7: Sul | B7: Alfredo Chaves | C7: 32 | D7: 34.5 | E7: 29 | F7: 0.90625 | G7: 33 | H7: 0.9565217391 | I7: 27 | J7: 0.84375 | K7: 38 | L7: 1.1875 | M7: 26 | N7: 0.8125 | O7: 24 | P7: 0.75 | Q7: 26 | R7: 0.7536231884 | S7: 32 | T7: 0.9275362319
A8: Central | B8: Alto Rio Novo | C8: 24 | D8: 25.5 | E8: 20 | F8: 0.8333333333 | G8: 21 | H8: 0.8235294118 | I8: 19 | J8: 0.7916666667 | K8: 21 | L8: 0.875 | M8: 17 | N8: 0.7083333333 | O8: 17 | P8: 0.7083333333 | Q8: 19 | R8: 0.7450980392 | S8: 20 | T8: 0.7843137255
A9: Sul | B9: Anchieta | C9: 103 | D9: 97.5 | E9: 123 | F9: 1.194174757 | G9: 117 | H9: 1.2 | I9: 87 | J9: 0.8446601942 | K9: 95 | L9: 0.9223300971 | M9: 104 | N9: 1.009708738 | O9: 100 | P9: 0.9708737864 | Q9: 90 | R9: 0.9230769231 | S9: 108 | T9: 1.107692308
A10: Sul | B10: Apiacá | C10: 11 | D10: 22.5 | E10: 18 | F10: 1.636363636 | G10: 20 | H10: 0.8888888889 | I10: 22 | J10: 2 | K10: 22 | L10: 2 | M10: 18 | N10: 1.636363636 | O10: 16 | P10: 1.454545455 | Q10: 2 | R10: 0.08888888889 | S10: 17 | T10: 0.7555555556
A11: Metropolitana | B11: Aracruz | C11: 387 | D11: 355 | E11: 313 | F11: 0.8087855297 | G11: 279 | H11: 0.785915493 | I11: 316 | J11: 0.8165374677 | K11: 347 | L11: 0.8966408269 | M11: 285 | N11: 0.7364341085 | O11: 266 | P11: 0.6873385013 | Q11: 246 | R11: 0.6929577465 | S11: 283 | T11: 0.7971830986
A12: Sul | B12: Atilio Vivacqua | C12: 47 | D12: 34.5 | E12: 49 | F12: 1.042553191 | G12: 38 | H12: 1.101449275 | I12: 49 | J12: 1.042553191 | K12: 36 | L12: 0.7659574468 | M12: 44 | N12: 0.9361702128 | O12: 43 | P12: 0.914893617 | Q12: 31 | R12: 0.8985507246 | S12: 30 | T12: 0.8695652174
A13: Central | B13: Baixo Guandu | C13: 89 | D13: 106.75 | E13: 79 | F13: 0.8876404494 | G13: 91 | H13: 0.8524590164 | I13: 103 | J13: 1.157303371 | K13: 97 | L13: 1.08988764 | M13: 80 | N13: 0.8988764045 | O13: 76 | P13: 0.8539325843 | Q13: 82 | R13: 0.7681498829 | S13: 89 | T13: 0.8337236534
A14: Norte | B14: Barra de São Francisco | C14: 158 | D14: 147.25 | E14: 115 | F14: 0.7278481013 | G14: 83 | H14: 0.5636672326 | I14: 137 | J14: 0.8670886076 | K14: 137 | L14: 0.8670886076 | M14: 115 | N14: 0.7278481013 | O14: 111 | P14: 0.7025316456 | Q14: 75 | R14: 0.5093378608 | S14: 77 | T14: 0.5229202037
A15: Norte | B15: Boa Esperança | C15: 55 | D15: 50 | E15: 48 | F15: 0.8727272727 | G15: 36 | H15: 0.72 | I15: 53 | J15: 0.9636363636 | K15: 59 | L15: 1.072727273 | M15: 50 | N15: 0.9090909091 | O15: 36 | P15: 0.6545454545 | Q15: 20 | R15: 0.4 | S15: 27 | T15: 0.54
A16: Sul | B16: Bom Jesus do Norte | C16: 5 | D16: 36.5 | E16: 16 | F16: 3.2 | G16: 28 | H16: 0.7671232877 | I16: 22 | J16: 4.4 | K16: 20 | L16: 4 | M16: 20 | N16: 4 | O16: 19 | P16: 3.8 | Q16: 25 | R16: 0.6849315068 | S16: 31 | T16: 0.8493150685
A17: Metropolitana | B17: Brejetuba | C17: 53 | D17: 42.25 | E17: 72 | F17: 1.358490566 | G17: 67 | H17: 1.585798817 | I17: 72 | J17: 1.358490566 | K17: 75 | L17: 1.41509434 | M17: 65 | N17: 1.226415094 | O17: 66 | P17: 1.245283019 | Q17: 69 | R17: 1.633136095 | S17: 63 | T17: 1.49112426
A18: Sul | B18: Cachoeiro de Itapemirim | C18: 578 | D18: 604.25 | E18: 504 | F18: 0.8719723183 | G18: 455 | H18: 0.7529995863 | I18: 549 | J18: 0.9498269896 | K18: 486 | L18: 0.8408304498 | M18: 490 | N18: 0.8477508651 | O18: 445 | P18: 0.7698961938 | Q18: 410 | R18: 0.6785270997 | S18: 478 | T18: 0.7910633016
A19: Metropolitana | B19: Cariacica | C19: 1202 | D19: 1251.25 | E19: 954 | F19: 0.7936772047 | G19: 1225 | H19: 0.979020979 | I19: 1147 | J19: 0.9542429285 | K19: 1184 | L19: 0.9850249584 | M19: 954 | N19: 0.7936772047 | O19: 972 | P19: 0.8086522463 | Q19: 1021 | R19: 0.815984016 | S19: 1230 | T19: 0.983016983
A20: Sul | B20: Castelo | C20: 114 | D20: 99.75 | E20: 89 | F20: 0.7807017544 | G20: 97 | H20: 0.9724310777 | I20: 108 | J20: 0.9473684211 | K20: 113 | L20: 0.9912280702 | M20: 90 | N20: 0.7894736842 | O20: 90 | P20: 0.7894736842 | Q20: 73 | R20: 0.7318295739 | S20: 95 | T20: 0.9523809524
A21: Central | B21: Colatina | C21: 366 | D21: 390.25 | E21: 308 | F21: 0.8415300546 | G21: 264 | H21: 0.6764894299 | I21: 300 | J21: 0.8196721311 | K21: 309 | L21: 0.8442622951 | M21: 271 | N21: 0.7404371585 | O21: 255 | P21: 0.6967213115 | Q21: 253 | R21: 0.6483023703 | S21: 254 | T21: 0.6508648302
A22: Norte | B22: Conceição da Barra | C22: 99 | D22: 97.75 | E22: 109 | F22: 1.101010101 | G22: 120 | H22: 1.227621483 | I22: 90 | J22: 0.9090909091 | K22: 94 | L22: 0.9494949495 | M22: 97 | N22: 0.9797979798 | O22: 91 | P22: 0.9191919192 | Q22: 78 | R22: 0.7979539642 | S22: 113 | T22: 1.15601023
A23: Metropolitana | B23: Conceição do Castelo | C23: 41 | D23: 36 | E23: 39 | F23: 0.9512195122 | G23: 34 | H23: 0.9444444444 | I23: 36 | J23: 0.8780487805 | K23: 35 | L23: 0.8536585366 | M23: 37 | N23: 0.9024390244 | O23: 39 | P23: 0.9512195122 | Q23: 32 | R23: 0.8888888889 | S23: 30 | T23: 0.8333333333
A24: Sul | B24: Divino de São Lourenço | C24: 12 | D24: 17 | E24: 12 | F24: 1 | G24: 16 | H24: 0.9411764706 | I24: 15 | J24: 1.25 | K24: 15 | L24: 1.25 | M24: 12 | N24: 1 | O24: 12 | P24: 1 | Q24: 16 | R24: 0.9411764706 | S24: 17 | T24: 1
A25: Metropolitana | B25: Domingos Martins | C25: 111 | D25: 102.75 | E25: 88 | F25: 0.7927927928 | G25: 61 | H25: 0.5936739659 | I25: 91 | J25: 0.8198198198 | K25: 98 | L25: 0.8828828829 | M25: 88 | N25: 0.7927927928 | O25: 90 | P25: 0.8108108108 | Q25: 70 | R25: 0.6812652068 | S25: 69 | T25: 0.6715328467
A26: Sul | B26: Dores do Rio Preto | C26: 25 | D26: 23 | E26: 30 | F26: 1.2 | G26: 19 | H26: 0.8260869565 | I26: 32 | J26: 1.28 | K26: 31 | L26: 1.24 | M26: 28 | N26: 1.12 | O26: 28 | P26: 1.12 | Q26: 18 | R26: 0.7826086957 | S26: 17 | T26: 0.7391304348
A27: Norte | B27: Ecoporanga | C27: 77 | D27: 70.75 | E27: 65 | F27: 0.8441558442 | G27: 55 | H27: 0.777385159 | I27: 59 | J27: 0.7662337662 | K27: 61 | L27: 0.7922077922 | M27: 67 | N27: 0.8701298701 | O27: 70 | P27: 0.9090909091 | Q27: 54 | R27: 0.7632508834 | S27: 54 | T27: 0.7632508834
A28: Metropolitana | B28: Fundão | C28: 66 | D28: 54.5 | E28: 62 | F28: 0.9393939394 | G28: 48 | H28: 0.880733945 | I28: 68 | J28: 1.03030303 | K28: 68 | L28: 1.03030303 | M28: 54 | N28: 0.8181818182 | O28: 55 | P28: 0.8333333333 | Q28: 57 | R28: 1.04587156 | S28: 63 | T28: 1.155963303
A29: Central | B29: Governador Lindenberg | C29: 37 | D29: 35.5 | E29: 24 | F29: 0.6486486486 | G29: 31 | H29: 0.8732394366 | I29: 23 | J29: 0.6216216216 | K29: 23 | L29: 0.6216216216 | M29: 24 | N29: 0.6486486486 | O29: 23 | P29: 0.6216216216 | Q29: 29 | R29: 0.8169014085 | S29: 27 | T29: 0.7605633803
A30: Sul | B30: Guaçuí | C30: 79 | D30: 101.75 | E30: 77 | F30: 0.9746835443 | G30: 78 | H30: 0.7665847666 | I30: 81 | J30: 1.025316456 | K30: 86 | L30: 1.088607595 | M30: 76 | N30: 0.9620253165 | O30: 78 | P30: 0.9873417722 | Q30: 64 | R30: 0.628992629 | S30: 66 | T30: 0.6486486486
A31: Metropolitana | B31: Guarapari | C31: 471 | D31: 389.25 | E31: 268 | F31: 0.5690021231 | G31: 284 | H31: 0.7296082209 | I31: 385 | J31: 0.8174097665 | K31: 362 | L31: 0.7685774947 | M31: 341 | N31: 0.7239915074 | O31: 331 | P31: 0.7027600849 | Q31: 226 | R31: 0.5806037251 | S31: 320 | T31: 0.8220937701
A32: Metropolitana | B32: Ibatiba | C32: 83 | D32: 88.5 | E32: 112 | F32: 1.34939759 | G32: 122 | H32: 1.378531073 | I32: 105 | J32: 1.265060241 | K32: 106 | L32: 1.277108434 | M32: 87 | N32: 1.048192771 | O32: 90 | P32: 1.084337349 | Q32: 75 | R32: 0.8474576271 | S32: 89 | T32: 1.005649718
A33: Metropolitana | B33: Ibiraçu | C33: 26 | D33: 40 | E33: 44 | F33: 1.692307692 | G33: 28 | H33: 0.7 | I33: 24 | J33: 0.9230769231 | K33: 27 | L33: 1.038461538 | M33: 40 | N33: 1.538461538 | O33: 41 | P33: 1.576923077 | Q33: 25 | R33: 0.625 | S33: 26 | T33: 0.65
A34: Sul | B34: Ibitirama | C34: 38 | D34: 37 | E34: 44 | F34: 1.157894737 | G34: 40 | H34: 1.081081081 | I34: 37 | J34: 0.9736842105 | K34: 38 | L34: 1 | M34: 44 | N34: 1.157894737 | O34: 46 | P34: 1.210526316 | Q34: 27 | R34: 0.7297297297 | S34: 35 | T34: 0.9459459459
A35: Sul | B35: Iconha | C35: 26 | D35: 39 | E35: 30 | F35: =E35/C35 -> 1.153846154 | G35: 25 | H35: =G35/D35 -> 0.641025641 | I35: 27 | J35: =I35/C35 -> 1.038461538 | K35: 26 | L35: =K35/C35 -> 1 | M35: 27 | N35: =M35/C35 -> 1.038461538 | O35: 27 | P35: =O35/C35 -> 1.038461538 | Q35: 23 | R35: =Q35/D35 -> 0.5897435897 | S35: 26 | T35: =S35/D35 -> 0.6666666667
A36: Sul | B36: Irupi | C36: 32 | D36: 50 | E36: 38 | F36: 1.1875 | G36: 49 | H36: 0.98 | I36: 38 | J36: 1.1875 | K36: 33 | L36: 1.03125 | M36: 32 | N36: 1 | O36: 31 | P36: 0.96875 | Q36: 44 | R36: 0.88 | S36: 43 | T36: 0.86
A37: Metropolitana | B37: Itaguaçu | C37: 36 | D37: 38.5 | E37: 30 | F37: 0.8333333333 | G37: 28 | H37: 0.7272727273 | I37: 25 | J37: 0.6944444444 | K37: 30 | L37: 0.8333333333 | M37: 24 | N37: 0.6666666667 | O37: 24 | P37: 0.6666666667 | Q37: 28 | R37: 0.7272727273 | S37: 24 | T37: 0.6233766234
A38: Sul | B38: Itapemirim | C38: 140 | D38: 139 | E38: 121 | F38: 0.8642857143 | G38: 101 | H38: 0.726618705 | I38: 137 | J38: 0.9785714286 | K38: 147 | L38: 1.05 | M38: 117 | N38: 0.8357142857 | O38: 122 | P38: 0.8714285714 | Q38: 83 | R38: 0.5971223022 | S38: 112 | T38: 0.8057553957
A39: Metropolitana | B39: Itarana | C39: 37 | D39: 32 | E39: 19 | F39: 0.5135135135 | G39: 24 | H39: 0.75 | I39: 23 | J39: 0.6216216216 | K39: 27 | L39: 0.7297297297 | M39: 21 | N39: 0.5675675676 | O39: 19 | P39: 0.5135135135 | Q39: 27 | R39: 0.84375 | S39: 27 | T39: 0.84375
A40: Sul | B40: Iúna | C40: 71 | D40: 102.5 | E40: 97 | F40: 1.366197183 | G40: 87 | H40: 0.8487804878 | I40: 96 | J40: 1.352112676 | K40: 98 | L40: 1.38028169 | M40: 87 | N40: 1.225352113 | O40: 88 | P40: 1.23943662 | Q40: 58 | R40: 0.5658536585 | S40: 83 | T40: 0.8097560976
A41: Norte | B41: Jaguaré | C41: 141 | D41: 111.25 | E41: 97 | F41: 0.6879432624 | G41: 124 | H41: 1.114606742 | I41: 113 | J41: 0.8014184397 | K41: 128 | L41: 0.9078014184 | M41: 91 | N41: 0.6453900709 | O41: 89 | P41: 0.6312056738 | Q41: 84 | R41: 0.7550561798 | S41: 112 | T41: 1.006741573
A42: Sul | B42: Jerônimo Monteiro | C42: 40 | D42: 39.25 | E42: 32 | F42: 0.8 | G42: 28 | H42: 0.7133757962 | I42: 28 | J42: 0.7 | K42: 22 | L42: 0.55 | M42: 37 | N42: 0.925 | O42: 38 | P42: 0.95 | Q42: 26 | R42: 0.6624203822 | S42: 27 | T42: 0.6878980892
A43: Metropolitana | B43: João Neiva | C43: 38 | D43: 35.5 | E43: 29 | F43: 0.7631578947 | G43: 23 | H43: 0.6478873239 | I43: 26 | J43: 0.6842105263 | K43: 24 | L43: 0.6315789474 | M43: 28 | N43: 0.7368421053 | O43: 28 | P43: 0.7368421053 | Q43: 26 | R43: 0.7323943662 | S43: 27 | T43: 0.7605633803
A44: Metropolitana | B44: Laranja da Terra | C44: 25 | D44: 33.25 | E44: 37 | F44: 1.48 | G44: 29 | H44: 0.8721804511 | I44: 25 | J44: 1 | K44: 26 | L44: 1.04 | M44: 34 | N44: 1.36 | O44: 34 | P44: 1.36 | Q44: 22 | R44: 0.6616541353 | S44: 28 | T44: 0.8421052632
A45: Central | B45: Linhares | C45: 669 | D45: 613 | E45: 516 | F45: 0.7713004484 | G45: 444 | H45: 0.7243066884 | I45: 568 | J45: 0.8490284006 | K45: 576 | L45: 0.8609865471 | M45: 522 | N45: 0.7802690583 | O45: 488 | P45: 0.7294469357 | Q45: 315 | R45: 0.5138662316 | S45: 434 | T45: 0.7079934747
A46: Central | B46: Mantenópolis | C46: 38 | D46: 41.5 | E46: 29 | F46: 0.7631578947 | G46: 71 | H46: 1.710843373 | I46: 37 | J46: 0.9736842105 | K46: 37 | L46: 0.9736842105 | M46: 26 | N46: 0.6842105263 | O46: 28 | P46: 0.7368421053 | Q46: 48 | R46: 1.156626506 | S46: 39 | T46: 0.9397590361
A47: Sul | B47: Marataízes | C47: 155 | D47: 144.75 | E47: 122 | F47: 0.7870967742 | G47: 93 | H47: 0.6424870466 | I47: 127 | J47: 0.8193548387 | K47: 123 | L47: 0.7935483871 | M47: 113 | N47: 0.7290322581 | O47: 111 | P47: 0.7161290323 | Q47: 56 | R47: 0.3868739206 | S47: 87 | T47: 0.6010362694
A48: Metropolitana | B48: Marechal Floriano | C48: 44 | D48: 59 | E48: 37 | F48: 0.8409090909 | G48: 58 | H48: 0.9830508475 | I48: 54 | J48: 1.227272727 | K48: 59 | L48: 1.340909091 | M48: 26 | N48: 0.5909090909 | O48: 28 | P48: 0.6363636364 | Q48: 54 | R48: 0.9152542373 | S48: 47 | T48: 0.7966101695
A49: Central | B49: Marilândia | C49: 45 | D49: 41 | E49: 38 | F49: 0.8444444444 | G49: 27 | H49: 0.6585365854 | I49: 30 | J49: 0.6666666667 | K49: 35 | L49: 0.7777777778 | M49: 33 | N49: 0.7333333333 | O49: 33 | P49: 0.7333333333 | Q49: 27 | R49: 0.6585365854 | S49: 31 | T49: 0.756097561
A50: Sul | B50: Mimoso do Sul | C50: 87 | D50: 69 | E50: 56 | F50: 0.6436781609 | G50: 42 | H50: 0.6086956522 | I50: 78 | J50: 0.8965517241 | K50: 71 | L50: 0.816091954 | M50: 53 | N50: 0.6091954023 | O50: 51 | P50: 0.5862068966 | Q50: 38 | R50: 0.5507246377 | S50: 49 | T50: 0.7101449275
A51: Norte | B51: Montanha | C51: 42 | D51: 69.5 | E51: 59 | F51: 1.404761905 | G51: 68 | H51: 0.9784172662 | I51: 65 | J51: 1.547619048 | K51: 56 | L51: 1.333333333 | M51: 62 | N51: 1.476190476 | O51: 61 | P51: 1.452380952 | Q51: 72 | R51: 1.035971223 | S51: 71 | T51: 1.021582734
A52: Norte | B52: Mucurici | C52: 20 | D52: 24.25 | E52: 18 | F52: 0.9 | G52: 15 | H52: 0.618556701 | I52: 12 | J52: 0.6 | K52: 10 | L52: 0.5 | M52: 20 | N52: 1 | O52: 21 | P52: 1.05 | Q52: 16 | R52: 0.6597938144 | S52: 16 | T52: 0.6597938144
A53: Sul | B53: Muniz Freire | C53: 49 | D53: 68.75 | E53: 55 | F53: 1.12244898 | G53: 115 | H53: 1.672727273 | I53: 62 | J53: 1.265306122 | K53: 62 | L53: 1.265306122 | M53: 56 | N53: 1.142857143 | O53: 57 | P53: 1.163265306 | Q53: 47 | R53: 0.6836363636 | S53: 46 | T53: 0.6690909091
A54: Sul | B54: Muqui | C54: 41 | D54: 38 | E54: 35 | F54: 0.8536585366 | G54: 46 | H54: 1.210526316 | I54: 34 | J54: 0.8292682927 | K54: 39 | L54: 0.9512195122 | M54: 33 | N54: 0.8048780488 | O54: 34 | P54: 0.8292682927 | Q54: 38 | R54: 1 | S54: 43 | T54: 1.131578947
A55: Norte | B55: Nova Venécia | C55: 190 | D55: 164 | E55: 178 | F55: 0.9368421053 | G55: 182 | H55: 1.109756098 | I55: 154 | J55: 0.8105263158 | K55: 170 | L55: 0.8947368421 | M55: 158 | N55: 0.8315789474 | O55: 161 | P55: 0.8473684211 | Q55: 121 | R55: 0.737804878 | S55: 165 | T55: 1.006097561
A56: Central | B56: Pancas | C56: 56 | D56: 61 | E56: 52 | F56: 0.9285714286 | G56: 45 | H56: 0.737704918 | I56: 60 | J56: 1.071428571 | K56: 64 | L56: 1.142857143 | M56: 48 | N56: 0.8571428571 | O56: 50 | P56: 0.8928571429 | Q56: 35 | R56: 0.5737704918 | S56: 45 | T56: 0.737704918
A57: Norte | B57: Pedro Canário | C57: 77 | D57: 84.5 | E57: 81 | F57: 1.051948052 | G57: 109 | H57: 1.289940828 | I57: 92 | J57: 1.194805195 | K57: 100 | L57: 1.298701299 | M57: 73 | N57: 0.9480519481 | O57: 73 | P57: 0.9480519481 | Q57: 81 | R57: 0.9585798817 | S57: 115 | T57: 1.360946746
A58: Norte | B58: Pinheiros | C58: 97 | D58: 95.75 | E58: 63 | F58: 0.6494845361 | G58: 72 | H58: 0.7519582245 | I58: 63 | J58: 0.6494845361 | K58: 65 | L58: 0.6701030928 | M58: 65 | N58: 0.6701030928 | O58: 63 | P58: 0.6494845361 | Q58: 50 | R58: 0.5221932115 | S58: 71 | T58: 0.7415143603
A59: Sul | B59: Piúma | C59: 82 | D59: 77.75 | E59: 76 | F59: 0.9268292683 | G59: 82 | H59: 1.054662379 | I59: 77 | J59: 0.9390243902 | K59: 52 | L59: 0.6341463415 | M59: 74 | N59: 0.9024390244 | O59: 75 | P59: 0.9146341463 | Q59: 60 | R59: 0.7717041801 | S59: 87 | T59: 1.118971061
A60: Norte | B60: Ponto Belo | C60: 14 | D60: 21.25 | E60: 23 | F60: 1.642857143 | G60: 23 | H60: 1.082352941 | I60: 16 | J60: 1.142857143 | K60: 18 | L60: 1.285714286 | M60: 13 | N60: 0.9285714286 | O60: 18 | P60: 1.285714286 | Q60: 23 | R60: 1.082352941 | S60: 21 | T60: 0.9882352941
A61: Sul | B61: Presidente Kennedy | C61: 59 | D61: 59.75 | E61: 53 | F61: 0.8983050847 | G61: 58 | H61: 0.9707112971 | I61: 72 | J61: 1.220338983 | K61: 74 | L61: 1.254237288 | M61: 49 | N61: 0.8305084746 | O61: 46 | P61: 0.7796610169 | Q61: 58 | R61: 0.9707112971 | S61: 54 | T61: 0.9037656904
A62: Central | B62: Rio Bananal | C62: 78 | D62: 57.25 | E62: 68 | F62: 0.8717948718 | G62: 123 | H62: 2.148471616 | I62: 64 | J62: 0.8205128205 | K62: 68 | L62: 0.8717948718 | M62: 59 | N62: 0.7564102564 | O62: 57 | P62: 0.7307692308 | Q62: 57 | R62: 0.9956331878 | S62: 61 | T62: 1.065502183
A63: Sul | B63: Rio Novo do Sul | C63: 31 | D63: 36 | E63: 27 | F63: 0.8709677419 | G63: 41 | H63: 1.138888889 | I63: 40 | J63: 1.290322581 | K63: 38 | L63: 1.225806452 | M63: 26 | N63: 0.8387096774 | O63: 24 | P63: 0.7741935484 | Q63: 32 | R63: 0.8888888889 | S63: 45 | T63: 1.25
A64: Metropolitana | B64: Santa Leopoldina | C64: 31 | D64: 38.75 | E64: 22 | F64: 0.7096774194 | G64: 19 | H64: 0.4903225806 | I64: 19 | J64: 0.6129032258 | K64: 22 | L64: 0.7096774194 | M64: 23 | N64: 0.7419354839 | O64: 25 | P64: 0.8064516129 | Q64: 17 | R64: 0.4387096774 | S64: 23 | T64: 0.5935483871
A65: Metropolitana | B65: Santa Maria de Jetibá | C65: 171 | D65: 171.25 | E65: 178 | F65: 1.040935673 | G65: 176 | H65: 1.027737226 | I65: 160 | J65: 0.9356725146 | K65: 166 | L65: 0.9707602339 | M65: 154 | N65: 0.9005847953 | O65: 161 | P65: 0.9415204678 | Q65: 117 | R65: 0.6832116788 | S65: 145 | T65: 0.8467153285
A66: Metropolitana | B66: Santa Teresa | C66: 74 | D66: 65 | E66: 64 | F66: 0.8648648649 | G66: 50 | H66: 0.7692307692 | I66: 64 | J66: 0.8648648649 | K66: 73 | L66: 0.9864864865 | M66: 58 | N66: 0.7837837838 | O66: 57 | P66: 0.7702702703 | Q66: 44 | R66: 0.6769230769 | S66: 53 | T66: 0.8153846154
A67: Central | B67: São Domingos do Norte | C67: 29 | D67: 29.25 | E67: 22 | F67: =E67/C67 -> 0.7586206897 | G67: 26 | H67: =G67/D67 -> 0.8888888889 | I67: 24 | J67: =I67/C67 -> 0.8275862069 | K67: 27 | L67: =K67/C67 -> 0.9310344828 | M67: 23 | N67: =M67/C67 -> 0.7931034483 | O67: 22 | P67: =O67/C67 -> 0.7586206897 | Q67: 24 | R67: =Q67/D67 -> 0.8205128205 | S67: 25 | T67: =S67/D67 -> 0.8547008547
A68: Central | B68: São Gabriel da Palha | C68: 114 | D68: 106.5 | E68: 80 | F68: 0.701754386 | G68: 75 | H68: 0.7042253521 | I68: 89 | J68: 0.7807017544 | K68: 86 | L68: 0.7543859649 | M68: 79 | N68: 0.6929824561 | O68: 82 | P68: 0.7192982456 | Q68: 50 | R68: 0.4694835681 | S68: 63 | T68: 0.5915492958
A69: Sul | B69: São José do Calçado | C69: 19 | D69: 37.5 | E69: 15 | F69: 0.7894736842 | G69: 30 | H69: 0.8 | I69: 25 | J69: 1.315789474 | K69: 25 | L69: 1.315789474 | M69: 13 | N69: 0.6842105263 | O69: 13 | P69: 0.6842105263 | Q69: 32 | R69: 0.8533333333 | S69: 32 | T69: 0.8533333333
A70: Norte | B70: São Mateus | C70: 487 | D70: 441.5 | E70: 348 | F70: 0.7145790554 | G70: 387 | H70: 0.8765571914 | I70: 434 | J70: 0.8911704312 | K70: 419 | L70: 0.8603696099 | M70: 380 | N70: 0.7802874743 | O70: 350 | P70: 0.7186858316 | Q70: 332 | R70: 0.75198188 | S70: 396 | T70: 0.8969422424
A71: Central | B71: São Roque do Canaã | C71: 32 | D71: 25 | E71: 28 | F71: 0.875 | G71: 30 | H71: 1.2 | I71: 31 | J71: 0.96875 | K71: 36 | L71: 1.125 | M71: 26 | N71: 0.8125 | O71: 25 | P71: 0.78125 | Q71: 29 | R71: 1.16 | S71: 29 | T71: 1.16
A72: Metropolitana | B72: Serra | C72: 1860 | D72: 1887.5 | E72: 1464 | F72: 0.7870967742 | G72: 1368 | H72: 0.7247682119 | I72: 1600 | J72: 0.8602150538 | K72: 1571 | L72: 0.8446236559 | M72: 1505 | N72: 0.8091397849 | O72: 1471 | P72: 0.7908602151 | Q72: 1271 | R72: 0.6733774834 | S72: 1585 | T72: 0.8397350993
A73: Central | B73: Sooretama | C73: 96 | D73: 103.75 | E73: 90 | F73: 0.9375 | G73: 84 | H73: 0.8096385542 | I73: 104 | J73: 1.083333333 | K73: 91 | L73: 0.9479166667 | M73: 87 | N73: 0.90625 | O73: 91 | P73: 0.9479166667 | Q73: 86 | R73: 0.8289156627 | S73: 86 | T73: 0.8289156627
A74: Sul | B74: Vargem Alta | C74: 73 | D74: 69.5 | E74: 65 | F74: 0.8904109589 | G74: 76 | H74: 1.09352518 | I74: 72 | J74: 0.9863013699 | K74: 73 | L74: 1 | M74: 52 | N74: 0.7123287671 | O74: 52 | P74: 0.7123287671 | Q74: 27 | R74: 0.3884892086 | S74: 67 | T74: 0.964028777
A75: Metropolitana | B75: Venda Nova do Imigrante | C75: 84 | D75: 82 | E75: 100 | F75: 1.19047619 | G75: 100 | H75: 1.219512195 | I75: 79 | J75: 0.9404761905 | K75: 76 | L75: 0.9047619048 | M75: 86 | N75: 1.023809524 | O75: 87 | P75: 1.035714286 | Q75: 46 | R75: 0.5609756098 | S75: 57 | T75: 0.6951219512
A76: Metropolitana | B76: Viana | C76: 216 | D76: 266 | E76: 259 | F76: 1.199074074 | G76: 207 | H76: 0.7781954887 | I76: 236 | J76: 1.092592593 | K76: 232 | L76: 1.074074074 | M76: 242 | N76: 1.12037037 | O76: 229 | P76: 1.060185185 | Q76: 180 | R76: 0.6766917293 | S76: 212 | T76: 0.7969924812
A77: Norte | B77: Vila Pavão | C77: 38 | D77: 31.75 | E77: 45 | F77: 1.184210526 | G77: 27 | H77: 0.8503937008 | I77: 29 | J77: 0.7631578947 | K77: 31 | L77: 0.8157894737 | M77: 30 | N77: 0.7894736842 | O77: 29 | P77: 0.7631578947 | Q77: 23 | R77: 0.7244094488 | S77: 23 | T77: 0.7244094488
A78: Central | B78: Vila Valério | C78: 66 | D78: 42.25 | E78: 50 | F78: 0.7575757576 | G78: 58 | H78: 1.372781065 | I78: 38 | J78: 0.5757575758 | K78: 46 | L78: 0.696969697 | M78: 39 | N78: 0.5909090909 | O78: 44 | P78: 0.6666666667 | Q78: 44 | R78: 1.041420118 | S78: 44 | T78: 1.041420118
A79: Metropolitana | B79: Vila Velha | C79: 1434 | D79: 1418.75 | E79: 990 | F79: 0.690376569 | G79: 879 | H79: 0.6195594714 | I79: 1210 | J79: 0.8437935844 | K79: 1219 | L79: 0.850069735 | M79: 1032 | N79: 0.719665272 | O79: 964 | P79: 0.6722454672 | Q79: 840 | R79: 0.5920704846 | S79: 965 | T79: 0.6801762115
A80: Metropolitana | B80: Vitória | C80: 889 | D80: 958.25 | E80: 847 | F80: 0.9527559055 | G80: 574 | H80: 0.5990086094 | I80: 908 | J80: 1.021372328 | K80: 792 | L80: 0.8908886389 | M80: 792 | N80: 0.8908886389 | O80: 668 | P80: 0.7514060742 | Q80: 583 | R80: 0.6084007305 | S80: 742 | T80: 0.7743282025
B82: Total Norte | C82: =SUMIF($A$3:$A$80,"Norte",C$3:C$80) -> 1533 | D82: =SUMIF($A$3:$A$80,"Norte",D$3:D$80) -> 1447.25 | E82: =SUMIF($A$3:$A$80,"Norte",E$3:E$80) -> 1296 | F82: =E82/C82 -> 0.8454011742 | G82: =SUMIF($A$3:$A$80,"Norte",G$3:G$80) -> 1331 | H82: =G82/D82 -> 0.9196752462 | I82: =SUMIF($A$3:$A$80,"Norte",I$3:I$80) -> 1346 | J82: =I82/C82 -> 0.8780169602 | K82: =SUMIF($A$3:$A$80,"Norte",K$3:K$80) -> 1381 | L82: =K82/C82 -> 0.9008480104 | M82: =SUMIF($A$3:$A$80,"Norte",M$3:M$80) -> 1256 | N82: =M82/C82 -> 0.8193085453 | O82: =SUMIF($A$3:$A$80,"Norte",O$3:O$80) -> 1218 | P82: =O82/C82 -> 0.7945205479 | Q82: =SUMIF($A$3:$A$80,"Norte",Q$3:Q$80) -> 1073 | R82: =Q82/D82 -> 0.741406115 | S82: =SUMIF($A$3:$A$80,"Norte",S$3:S$80) -> 1309 | T82: =S82/D82 -> 0.9044740024
B83: Total Central | C83: =SUMIF($A$3:$A$80,"Central",C$3:C$80) -> 1791 | D83: =SUMIF($A$3:$A$80,"Central",D$3:D$80) -> 1710.75 | E83: =SUMIF($A$3:$A$80,"Central",E$3:E$80) -> 1430 | F83: =E83/C83 -> 0.7984366276 | G83: =SUMIF($A$3:$A$80,"Central",G$3:G$80) -> 1427 | H83: =G83/D83 -> 0.8341370744 | I83: =SUMIF($A$3:$A$80,"Central",I$3:I$80) -> 1524 | J83: =I83/C83 -> 0.850921273 | K83: =SUMIF($A$3:$A$80,"Central",K$3:K$80) -> 1553 | L83: =K83/C83 -> 0.8671133445 | M83: =SUMIF($A$3:$A$80,"Central",M$3:M$80) -> 1358 | N83: =M83/C83 -> 0.7582356226 | O83: =SUMIF($A$3:$A$80,"Central",O$3:O$80) -> 1316 | P83: =O83/C83 -> 0.7347850363 | Q83: =SUMIF($A$3:$A$80,"Central",Q$3:Q$80) -> 1133 | R83: =Q83/D83 -> 0.6622826246 | S83: =SUMIF($A$3:$A$80,"Central",S$3:S$80) -> 1281 | T83: =S83/D83 -> 0.7487943884
B84: Total Metropolitana | C84: =SUMIF($A$3:$A$80,"Metropolitana",C$3:C$80) -> 7467 | D84: =SUMIF($A$3:$A$80,"Metropolitana",D$3:D$80) -> 7549.25 | E84: =SUMIF($A$3:$A$80,"Metropolitana",E$3:E$80) -> 6115 | F84: =E84/C84 -> 0.8189366546 | G84: =SUMIF($A$3:$A$80,"Metropolitana",G$3:G$80) -> 5775 | H84: =G84/D84 -> 0.7649766533 | I84: =SUMIF($A$3:$A$80,"Metropolitana",I$3:I$80) -> 6756 | J84: =I84/C84 -> 0.9047810366 | K84: =SUMIF($A$3:$A$80,"Metropolitana",K$3:K$80) -> 6707 | L84: =K84/C84 -> 0.8982188295 | M84: =SUMIF($A$3:$A$80,"Metropolitana",M$3:M$80) -> 6066 | N84: =M84/C84 -> 0.8123744476 | O84: =SUMIF($A$3:$A$80,"Metropolitana",O$3:O$80) -> 5831 | P84: =O84/C84 -> 0.7809026383 | Q84: =SUMIF($A$3:$A$80,"Metropolitana",Q$3:Q$80) -> 5168 | R84: =Q84/D84 -> 0.684571315 | S84: =SUMIF($A$3:$A$80,"Metropolitana",S$3:S$80) -> 6202 | T84: =S84/D84 -> 0.8215385634
B85: Total Sul | C85: =SUMIF($A$3:$A$80,"sul",C$3:C$80) -> 2024 | D85: =SUMIF($A$3:$A$80,"sul",D$3:D$80) -> 2172 | E85: =SUMIF($A$3:$A$80,"sul",E$3:E$80) -> 1878 | F85: =E85/C85 -> 0.9278656126 | G85: =SUMIF($A$3:$A$80,"sul",G$3:G$80) -> 1902 | H85: =G85/D85 -> 0.8756906077 | I85: =SUMIF($A$3:$A$80,"Sul",I$3:I$80) -> 2017 | J85: =I85/C85 -> 0.996541502 | K85: =SUMIF($A$3:$A$80,"Sul",K$3:K$80) -> 1938 | L85: =K85/C85 -> 0.9575098814 | M85: =SUMIF($A$3:$A$80,"Sul",M$3:M$80) -> 1791 | N85: =M85/C85 -> 0.8848814229 | O85: =SUMIF($A$3:$A$80,"Sul",O$3:O$80) -> 1736 | P85: =O85/C85 -> 0.8577075099 | Q85: =SUMIF($A$3:$A$80,"Sul",Q$3:Q$80) -> 1471 | R85: =Q85/D85 -> 0.6772559853 | S85: =SUMIF($A$3:$A$80,"Sul",S$3:S$80) -> 1786 | T85: =S85/D85 -> 0.8222836096
B86: Total Espírito Santo | C86: =SUM(C3:C80) -> 12815 | D86: =SUM(D3:D80) -> 12879.25 | E86: =SUM(E3:E80) -> 10719 | F86: =E86/C86 -> 0.8364416699 | G86: =SUM(G3:G80) -> 10435 | H86: =G86/D86 -> 0.8102179863 | I86: =SUM(I3:I80) -> 11643 | J86: =I86/C86 -> 0.9085446742 | K86: =SUM(K3:K80) -> 11579 | L86: =K86/C86 -> 0.9035505267 | M86: =SUM(M3:M80) -> 10471 | N86: =M86/C86 -> 0.8170893484 | O86: =SUM(O3:O80) -> 10101 | P86: =O86/C86 -> 0.7882169333 | Q86: =SUM(Q3:Q80) -> 8845 | R86: =Q86/D86 -> 0.6867635926 | S86: =SUM(S3:S80) -> 10578 | T86: =S86/D86 -> 0.8213211173
A91: Fonte: Vacina e Confia, em 15 de abril de 2026.**<https://vacinaeconfia.saude.es.gov.br/>
A92: **Dados referente às doses aplicadasem janeiro a março de 2026
A93: Cobertura Calculada por município de procedência/ocorrência da vacinação
A94: 1 População estimada extraída do MS/SVS/DASIS - SINASC/DASIS/SVS/MS 2025 referente ao período de janeiro de 2026 e Fevereiro e março de 2025.
A95: Sinasc, atualizado em 06/04/2026
A96: ²População estimada extraída do Censo IBGE 2022.
A97: Método de Cálculo Simples
A98: Homogeineidade: O cálculo da Homogeineidade entre vacinas é feito de acordo com a pactuação estabelecida no Plano Plurianual (PPA) vigente no período 2024-2027.
A101: Observações referente a distribuição de imunobiológicos que podem afetar a cobertura vacinal:
A103: 1. Vacinas que foram recebidas parcialmente pelo estado no mês de Março/2026, sendo distribuídos em quantidades reduzidas às regionais e municípios:
A104: IMUNOGLOBULINA ANTIRRÁBICA HUMANA; SORO ANTIRRÁBICO HUMANO
A105: 2. Vacinas indisponíveis no mês de março/2026, não sendo possível a distribuição às regionais e municípios:
A106: IMUNOGLOBULINA HUMANA ANTIVARICELA (ZOSTER) – 125UI
A107: 3. Vacinas enviadas por Pautas aguardando abastecimento do estoque estadual;
A108: VACINA COVID-19 PFIZER PEDIÁTRICA MENOR QUE 5 ANOS; VACINA COVID-19 PFIZER PEDIÁTRICA, VACINA COVID-19 PFIZER MAIORES QUE 12 ANOS, VACINA VÍRUS SINCICIAL RESPIRATÓRIO A E B - VSR
A110: Fonte: Informes situacionais de distribuição de imunobiológicos em https://saude.es.gov.br/GrupodeArquivos/informes-situacionais-de-distribuicao-de-imunobiologicos

Sheet CV REF 1A e 4A - residência
E1: D2 | I1: REFORÇOS 1 ANO | Q1: REFORÇOS 4 ANOS
A2: Regional | B2: Município | C2: ¹População 1 ano proporcional | D2: ²População 4 anos proporcional | E2: DOSES APLICADAS D2 TRÍPLICE VIRAL | F2: COBERTURA D2 TRÍPLICE VIRAL | G2: DOSES APLICADAS D2 VARICELA | H2: COBERTURA D2 VARICELA | I2: DOSES APLICADAS REF PNEUMO | J2: COBERTURA REF PNEUMO | K2: DOSES APLICADAS REF MENINGO | L2: COBERTURA REF MENINGO | M2: DOSES APLICADAS REF POLIO | N2: COBERTURA REF POLIO | O2: DOSES APLICADAS R1 TRÍPLICE BACTERIANA | P2: COBERTURA R1 TRÍPLICE BACTERIANA | Q2: DOSES APLICADAS REF FEBRE AMARELA | R2: COBERTURA REF FEBRE AMARELA | S2: DOSES APLICADAS R2 TRÍPLICE BACTERIANA | T2: COBERTURA R2 TRÍPLICE BACTERIANA
A3: Metropolitana | B3: Afonso Cláudio | C3: 88 | D3: 104 | E3: 88 | F3: =E3/C3 -> 1 | G3: 101 | H3: =G3/D3 -> 0.9711538462 | I3: 82 | J3: =I3/C3 -> 0.9318181818 | K3: 87 | L3: =K3/C3 -> 0.9886363636 | M3: 86 | N3: =M3/C3 -> 0.9772727273 | O3: 86 | P3: =O3/C3 -> 0.9772727273 | Q3: 100 | R3: =Q3/D3 -> 0.9615384615 | S3: 103 | T3: =S3/D3 -> 0.9903846154
A4: Norte | B4: Água Doce do Norte | C4: 38 | D4: 37.75 | E4: 44 | F4: 1.157894737 | G4: 28 | H4: 0.7417218543 | I4: 24 | J4: 0.6315789474 | K4: 27 | L4: 0.7105263158 | M4: 35 | N4: 0.9210526316 | O4: 44 | P4: 1.157894737 | Q4: 41 | R4: 1.086092715 | S4: 43 | T4: 1.139072848
A5: Central | B5: Águia Branca | C5: 52 | D5: 32.25 | E5: 29 | F5: 0.5576923077 | G5: 31 | H5: 0.9612403101 | I5: 34 | J5: 0.6538461538 | K5: 37 | L5: 0.7115384615 | M5: 28 | N5: 0.5384615385 | O5: 29 | P5: 0.5576923077 | Q5: 29 | R5: 0.8992248062 | S5: 30 | T5: 0.9302325581
A6: Sul | B6: Alegre | C6: 75 | D6: 93 | E6: 66 | F6: 0.88 | G6: 99 | H6: 1.064516129 | I6: 71 | J6: 0.9466666667 | K6: 72 | L6: 0.96 | M6: 67 | N6: 0.8933333333 | O6: 67 | P6: 0.8933333333 | Q6: 78 | R6: 0.8387096774 | S6: 70 | T6: 0.752688172
A7: Sul | B7: Alfredo Chaves | C7: 32 | D7: 34.5 | E7: 27 | F7: 0.84375 | G7: 29 | H7: 0.8405797101 | I7: 31 | J7: 0.96875 | K7: 34 | L7: 1.0625 | M7: 25 | N7: 0.78125 | O7: 23 | P7: 0.71875 | Q7: 21 | R7: 0.6086956522 | S7: 26 | T7: 0.7536231884
A8: Central | B8: Alto Rio Novo | C8: 24 | D8: 25.5 | E8: 17 | F8: 0.7083333333 | G8: 21 | H8: 0.8235294118 | I8: 19 | J8: 0.7916666667 | K8: 21 | L8: 0.875 | M8: 17 | N8: 0.7083333333 | O8: 17 | P8: 0.7083333333 | Q8: 17 | R8: 0.6666666667 | S8: 20 | T8: 0.7843137255
A9: Sul | B9: Anchieta | C9: 103 | D9: 97.5 | E9: 123 | F9: 1.194174757 | G9: 125 | H9: 1.282051282 | I9: 92 | J9: 0.8932038835 | K9: 94 | L9: 0.9126213592 | M9: 108 | N9: 1.048543689 | O9: 105 | P9: 1.019417476 | Q9: 98 | R9: 1.005128205 | S9: 116 | T9: 1.18974359
A10: Sul | B10: Apiacá | C10: 11 | D10: 22.5 | E10: 17 | F10: 1.545454545 | G10: 14 | H10: 0.6222222222 | I10: 19 | J10: 1.727272727 | K10: 19 | L10: 1.727272727 | M10: 17 | N10: 1.545454545 | O10: 16 | P10: 1.454545455 | Q10: 2 | R10: 0.08888888889 | S10: 13 | T10: 0.5777777778
A11: Metropolitana | B11: Aracruz | C11: 387 | D11: 355 | E11: 313 | F11: 0.8087855297 | G11: 264 | H11: 0.7436619718 | I11: 306 | J11: 0.7906976744 | K11: 333 | L11: 0.8604651163 | M11: 288 | N11: 0.7441860465 | O11: 278 | P11: 0.7183462532 | Q11: 240 | R11: 0.676056338 | S11: 277 | T11: 0.7802816901
A12: Sul | B12: Atilio Vivacqua | C12: 47 | D12: 34.5 | E12: 54 | F12: 1.14893617 | G12: 44 | H12: 1.275362319 | I12: 52 | J12: 1.106382979 | K12: 40 | L12: 0.8510638298 | M12: 49 | N12: 1.042553191 | O12: 48 | P12: 1.021276596 | Q12: 36 | R12: 1.043478261 | S12: 33 | T12: 0.9565217391
A13: Central | B13: Baixo Guandu | C13: 89 | D13: 106.75 | E13: 76 | F13: 0.8539325843 | G13: 87 | H13: 0.8149882904 | I13: 89 | J13: 1 | K13: 88 | L13: 0.9887640449 | M13: 73 | N13: 0.8202247191 | O13: 73 | P13: 0.8202247191 | Q13: 76 | R13: 0.7119437939 | S13: 80 | T13: 0.7494145199
A14: Norte | B14: Barra de São Francisco | C14: 158 | D14: 147.25 | E14: 114 | F14: 0.7215189873 | G14: 89 | H14: 0.6044142615 | I14: 133 | J14: 0.8417721519 | K14: 134 | L14: 0.8481012658 | M14: 114 | N14: 0.7215189873 | O14: 111 | P14: 0.7025316456 | Q14: 81 | R14: 0.5500848896 | S14: 86 | T14: 0.584040747
A15: Norte | B15: Boa Esperança | C15: 55 | D15: 50 | E15: 53 | F15: 0.9636363636 | G15: 37 | H15: 0.74 | I15: 49 | J15: 0.8909090909 | K15: 53 | L15: 0.9636363636 | M15: 55 | N15: 1 | O15: 42 | P15: 0.7636363636 | Q15: 19 | R15: 0.38 | S15: 28 | T15: 0.56
A16: Sul | B16: Bom Jesus do Norte | C16: 5 | D16: 36.5 | E16: 15 | F16: 3 | G16: 22 | H16: 0.602739726 | I16: 20 | J16: 4 | K16: 18 | L16: 3.6 | M16: 18 | N16: 3.6 | O16: 17 | P16: 3.4 | Q16: 20 | R16: 0.5479452055 | S16: 22 | T16: 0.602739726
A17: Metropolitana | B17: Brejetuba | C17: 53 | D17: 42.25 | E17: 62 | F17: 1.169811321 | G17: 57 | H17: 1.349112426 | I17: 68 | J17: 1.283018868 | K17: 71 | L17: 1.339622642 | M17: 58 | N17: 1.094339623 | O17: 58 | P17: 1.094339623 | Q17: 58 | R17: 1.372781065 | S17: 55 | T17: 1.301775148
A18: Sul | B18: Cachoeiro de Itapemirim | C18: 578 | D18: 604.25 | E18: 486 | F18: 0.8408304498 | G18: 470 | H18: 0.7778237484 | I18: 524 | J18: 0.9065743945 | K18: 478 | L18: 0.8269896194 | M18: 470 | N18: 0.8131487889 | O18: 466 | P18: 0.8062283737 | Q18: 411 | R18: 0.6801820439 | S18: 489 | T18: 0.8092676872
A19: Metropolitana | B19: Cariacica | C19: 1202 | D19: 1251.25 | E19: 915 | F19: 0.7612312812 | G19: 1164 | H19: 0.9302697303 | I19: 1126 | J19: 0.9367720466 | K19: 1113 | L19: 0.9259567388 | M19: 911 | N19: 0.7579034942 | O19: 929 | P19: 0.7728785358 | Q19: 986 | R19: 0.788011988 | S19: 1195 | T19: 0.955044955
A20: Sul | B20: Castelo | C20: 114 | D20: 99.75 | E20: 84 | F20: 0.7368421053 | G20: 100 | H20: 1.002506266 | I20: 103 | J20: 0.9035087719 | K20: 106 | L20: 0.9298245614 | M20: 82 | N20: 0.7192982456 | O20: 82 | P20: 0.7192982456 | Q20: 74 | R20: 0.7418546366 | S20: 99 | T20: 0.992481203
A21: Central | B21: Colatina | C21: 366 | D21: 390.25 | E21: 312 | F21: 0.8524590164 | G21: 252 | H21: 0.6457399103 | I21: 286 | J21: 0.781420765 | K21: 306 | L21: 0.8360655738 | M21: 276 | N21: 0.7540983607 | O21: 280 | P21: 0.7650273224 | Q21: 240 | R21: 0.6149903908 | S21: 241 | T21: 0.6175528507
A22: Norte | B22: Conceição da Barra | C22: 99 | D22: 97.75 | E22: 110 | F22: 1.111111111 | G22: 127 | H22: 1.299232737 | I22: 94 | J22: 0.9494949495 | K22: 96 | L22: 0.9696969697 | M22: 97 | N22: 0.9797979798 | O22: 93 | P22: 0.9393939394 | Q22: 86 | R22: 0.8797953964 | S22: 123 | T22: 1.25831202
A23: Metropolitana | B23: Conceição do Castelo | C23: 41 | D23: 36 | E23: 39 | F23: 0.9512195122 | G23: 32 | H23: 0.8888888889 | I23: 36 | J23: 0.8780487805 | K23: 33 | L23: 0.8048780488 | M23: 39 | N23: 0.9512195122 | O23: 41 | P23: 1 | Q23: 29 | R23: 0.8055555556 | S23: 28 | T23: 0.7777777778
A24: Sul | B24: Divino de São Lourenço | C24: 12 | D24: 17 | E24: 13 | F24: 1.083333333 | G24: 16 | H24: 0.9411764706 | I24: 14 | J24: 1.166666667 | K24: 14 | L24: 1.166666667 | M24: 12 | N24: 1 | O24: 13 | P24: 1.083333333 | Q24: 16 | R24: 0.9411764706 | S24: 16 | T24: 0.9411764706
A25: Metropolitana | B25: Domingos Martins | C25: 111 | D25: 102.75 | E25: 91 | F25: 0.8198198198 | G25: 64 | H25: 0.6228710462 | I25: 90 | J25: 0.8108108108 | K25: 89 | L25: 0.8018018018 | M25: 91 | N25: 0.8198198198 | O25: 92 | P25: 0.8288288288 | Q25: 73 | R25: 0.7104622871 | S25: 74 | T25: 0.7201946472
A26: Sul | B26: Dores do Rio Preto | C26: 25 | D26: 23 | E26: 24 | F26: 0.96 | G26: 8 | H26: 0.347826087 | I26: 31 | J26: 1.24 | K26: 30 | L26: 1.2 | M26: 22 | N26: 0.88 | O26: 22 | P26: 0.88 | Q26: 7 | R26: 0.3043478261 | S26: 8 | T26: 0.347826087
A27: Norte | B27: Ecoporanga | C27: 77 | D27: 70.75 | E27: 65 | F27: 0.8441558442 | G27: 49 | H27: 0.6925795053 | I27: 70 | J27: 0.9090909091 | K27: 71 | L27: 0.9220779221 | M27: 66 | N27: 0.8571428571 | O27: 69 | P27: 0.8961038961 | Q27: 50 | R27: 0.7067137809 | S27: 51 | T27: 0.7208480565
A28: Metropolitana | B28: Fundão | C28: 66 | D28: 54.5 | E28: 58 | F28: 0.8787878788 | G28: 38 | H28: 0.6972477064 | I28: 62 | J28: 0.9393939394 | K28: 63 | L28: 0.9545454545 | M28: 46 | N28: 0.696969697 | O28: 50 | P28: 0.7575757576 | Q28: 43 | R28: 0.7889908257 | S28: 45 | T28: 0.8256880734
A29: Central | B29: Governador Lindenberg | C29: 37 | D29: 35.5 | E29: 23 | F29: 0.6216216216 | G29: 24 | H29: 0.676056338 | I29: 24 | J29: 0.6486486486 | K29: 22 | L29: 0.5945945946 | M29: 23 | N29: 0.6216216216 | O29: 21 | P29: 0.5675675676 | Q29: 23 | R29: 0.6478873239 | S29: 22 | T29: 0.6197183099
A30: Sul | B30: Guaçuí | C30: 79 | D30: 101.75 | E30: 79 | F30: 1 | G30: 80 | H30: 0.7862407862 | I30: 83 | J30: 1.050632911 | K30: 86 | L30: 1.088607595 | M30: 79 | N30: 1 | O30: 81 | P30: 1.025316456 | Q30: 64 | R30: 0.628992629 | S30: 67 | T30: 0.6584766585
A31: Metropolitana | B31: Guarapari | C31: 471 | D31: 389.25 | E31: 263 | F31: 0.5583864119 | G31: 261 | H31: 0.6705202312 | I31: 382 | J31: 0.8110403397 | K31: 366 | L31: 0.7770700637 | M31: 327 | N31: 0.6942675159 | O31: 330 | P31: 0.7006369427 | Q31: 214 | R31: 0.5497752087 | S31: 294 | T31: 0.7552986513
A32: Metropolitana | B32: Ibatiba | C32: 83 | D32: 88.5 | E32: 101 | F32: 1.21686747 | G32: 125 | H32: 1.412429379 | I32: 97 | J32: 1.168674699 | K32: 98 | L32: 1.180722892 | M32: 78 | N32: 0.9397590361 | O32: 80 | P32: 0.9638554217 | Q32: 75 | R32: 0.8474576271 | S32: 84 | T32: 0.9491525424
A33: Metropolitana | B33: Ibiraçu | C33: 26 | D33: 40 | E33: 42 | F33: 1.615384615 | G33: 30 | H33: 0.75 | I33: 23 | J33: 0.8846153846 | K33: 25 | L33: 0.9615384615 | M33: 36 | N33: 1.384615385 | O33: 37 | P33: 1.423076923 | Q33: 28 | R33: 0.7 | S33: 27 | T33: 0.675
A34: Sul | B34: Ibitirama | C34: 38 | D34: 37 | E34: 47 | F34: 1.236842105 | G34: 38 | H34: 1.027027027 | I34: 44 | J34: 1.157894737 | K34: 44 | L34: 1.157894737 | M34: 47 | N34: 1.236842105 | O34: 50 | P34: 1.315789474 | Q34: 24 | R34: 0.6486486486 | S34: 34 | T34: 0.9189189189
A35: Sul | B35: Iconha | C35: 26 | D35: 39 | E35: 34 | F35: =E35/C35 -> 1.307692308 | G35: 24 | H35: =G35/D35 -> 0.6153846154 | I35: 26 | J35: =I35/C35 -> 1 | K35: 25 | L35: =K35/C35 -> 0.9615384615 | M35: 32 | N35: =M35/C35 -> 1.230769231 | O35: 32 | P35: =O35/C35 -> 1.230769231 | Q35: 24 | R35: =Q35/D35 -> 0.6153846154 | S35: 25 | T35: =S35/D35 -> 0.641025641
A36: Sul | B36: Irupi | C36: 32 | D36: 50 | E36: 40 | F36: 1.25 | G36: 45 | H36: 0.9 | I36: 38 | J36: 1.1875 | K36: 33 | L36: 1.03125 | M36: 30 | N36: 0.9375 | O36: 31 | P36: 0.96875 | Q36: 41 | R36: 0.82 | S36: 42 | T36: 0.84
A37: Metropolitana | B37: Itaguaçu | C37: 36 | D37: 38.5 | E37: 28 | F37: 0.7777777778 | G37: 26 | H37: 0.6753246753 | I37: 27 | J37: 0.75 | K37: 31 | L37: 0.8611111111 | M37: 23 | N37: 0.6388888889 | O37: 23 | P37: 0.6388888889 | Q37: 25 | R37: 0.6493506494 | S37: 23 | T37: 0.5974025974
A38: Sul | B38: Itapemirim | C38: 140 | D38: 139 | E38: 123 | F38: 0.8785714286 | G38: 97 | H38: 0.6978417266 | I38: 136 | J38: 0.9714285714 | K38: 143 | L38: 1.021428571 | M38: 119 | N38: 0.85 | O38: 125 | P38: 0.8928571429 | Q38: 81 | R38: 0.5827338129 | S38: 104 | T38: 0.7482014388
A39: Metropolitana | B39: Itarana | C39: 37 | D39: 32 | E39: 24 | F39: 0.6486486486 | G39: 18 | H39: 0.5625 | I39: 30 | J39: 0.8108108108 | K39: 29 | L39: 0.7837837838 | M39: 26 | N39: 0.7027027027 | O39: 24 | P39: 0.6486486486 | Q39: 23 | R39: 0.71875 | S39: 23 | T39: 0.71875
A40: Sul | B40: Iúna | C40: 71 | D40: 102.5 | E40: 96 | F40: 1.352112676 | G40: 85 | H40: 0.8292682927 | I40: 93 | J40: 1.309859155 | K40: 96 | L40: 1.352112676 | M40: 87 | N40: 1.225352113 | O40: 86 | P40: 1.211267606 | Q40: 55 | R40: 0.5365853659 | S40: 78 | T40: 0.7609756098
A41: Norte | B41: Jaguaré | C41: 141 | D41: 111.25 | E41: 94 | F41: 0.6666666667 | G41: 125 | H41: 1.123595506 | I41: 126 | J41: 0.8936170213 | K41: 131 | L41: 0.9290780142 | M41: 87 | N41: 0.6170212766 | O41: 84 | P41: 0.5957446809 | Q41: 81 | R41: 0.7280898876 | S41: 109 | T41: 0.9797752809
A42: Sul | B42: Jerônimo Monteiro | C42: 40 | D42: 39.25 | E42: 31 | F42: 0.775 | G42: 27 | H42: 0.6878980892 | I42: 29 | J42: 0.725 | K42: 22 | L42: 0.55 | M42: 36 | N42: 0.9 | O42: 37 | P42: 0.925 | Q42: 24 | R42: 0.6114649682 | S42: 27 | T42: 0.6878980892
A43: Metropolitana | B43: João Neiva | C43: 38 | D43: 35.5 | E43: 26 | F43: 0.6842105263 | G43: 18 | H43: 0.5070422535 | I43: 25 | J43: 0.6578947368 | K43: 21 | L43: 0.5526315789 | M43: 26 | N43: 0.6842105263 | O43: 27 | P43: 0.7105263158 | Q43: 22 | R43: 0.6197183099 | S43: 24 | T43: 0.676056338
A44: Metropolitana | B44: Laranja da Terra | C44: 25 | D44: 33.25 | E44: 38 | F44: 1.52 | G44: 31 | H44: 0.9323308271 | I44: 30 | J44: 1.2 | K44: 28 | L44: 1.12 | M44: 36 | N44: 1.44 | O44: 36 | P44: 1.44 | Q44: 24 | R44: 0.7218045113 | S44: 29 | T44: 0.8721804511
A45: Central | B45: Linhares | C45: 669 | D45: 613 | E45: 513 | F45: 0.7668161435 | G45: 432 | H45: 0.704730832 | I45: 556 | J45: 0.8310911809 | K45: 552 | L45: 0.8251121076 | M45: 517 | N45: 0.7727952167 | O45: 528 | P45: 0.7892376682 | Q45: 319 | R45: 0.5203915171 | S45: 421 | T45: 0.6867862969
A46: Central | B46: Mantenópolis | C46: 38 | D46: 41.5 | E46: 30 | F46: 0.7894736842 | G46: 61 | H46: 1.469879518 | I46: 35 | J46: 0.9210526316 | K46: 35 | L46: 0.9210526316 | M46: 26 | N46: 0.6842105263 | O46: 28 | P46: 0.7368421053 | Q46: 39 | R46: 0.9397590361 | S46: 32 | T46: 0.7710843373
A47: Sul | B47: Marataízes | C47: 155 | D47: 144.75 | E47: 119 | F47: 0.7677419355 | G47: 87 | H47: 0.6010362694 | I47: 119 | J47: 0.7677419355 | K47: 118 | L47: 0.7612903226 | M47: 113 | N47: 0.7290322581 | O47: 115 | P47: 0.7419354839 | Q47: 60 | R47: 0.414507772 | S47: 84 | T47: 0.5803108808
A48: Metropolitana | B48: Marechal Floriano | C48: 44 | D48: 59 | E48: 36 | F48: 0.8181818182 | G48: 48 | H48: 0.813559322 | I48: 54 | J48: 1.227272727 | K48: 55 | L48: 1.25 | M48: 33 | N48: 0.75 | O48: 36 | P48: 0.8181818182 | Q48: 48 | R48: 0.813559322 | S48: 41 | T48: 0.6949152542
A49: Central | B49: Marilândia | C49: 45 | D49: 41 | E49: 37 | F49: 0.8222222222 | G49: 28 | H49: 0.6829268293 | I49: 34 | J49: 0.7555555556 | K49: 36 | L49: 0.8 | M49: 32 | N49: 0.7111111111 | O49: 32 | P49: 0.7111111111 | Q49: 28 | R49: 0.6829268293 | S49: 28 | T49: 0.6829268293
A50: Sul | B50: Mimoso do Sul | C50: 87 | D50: 69 | E50: 55 | F50: 0.632183908 | G50: 47 | H50: 0.6811594203 | I50: 81 | J50: 0.9310344828 | K50: 74 | L50: 0.8505747126 | M50: 55 | N50: 0.632183908 | O50: 53 | P50: 0.6091954023 | Q50: 44 | R50: 0.6376811594 | S50: 58 | T50: 0.8405797101
A51: Norte | B51: Montanha | C51: 42 | D51: 69.5 | E51: 57 | F51: 1.357142857 | G51: 76 | H51: 1.09352518 | I51: 52 | J51: 1.238095238 | K51: 52 | L51: 1.238095238 | M51: 55 | N51: 1.30952381 | O51: 56 | P51: 1.333333333 | Q51: 79 | R51: 1.136690647 | S51: 80 | T51: 1.151079137
A52: Norte | B52: Mucurici | C52: 20 | D52: 24.25 | E52: 17 | F52: 0.85 | G52: 14 | H52: 0.5773195876 | I52: 12 | J52: 0.6 | K52: 10 | L52: 0.5 | M52: 18 | N52: 0.9 | O52: 20 | P52: 1 | Q52: 14 | R52: 0.5773195876 | S52: 14 | T52: 0.5773195876
A53: Sul | B53: Muniz Freire | C53: 49 | D53: 68.75 | E53: 60 | F53: 1.224489796 | G53: 106 | H53: 1.541818182 | I53: 62 | J53: 1.265306122 | K53: 63 | L53: 1.285714286 | M53: 62 | N53: 1.265306122 | O53: 64 | P53: 1.306122449 | Q53: 47 | R53: 0.6836363636 | S53: 47 | T53: 0.6836363636
A54: Sul | B54: Muqui | C54: 41 | D54: 38 | E54: 33 | F54: 0.8048780488 | G54: 41 | H54: 1.078947368 | I54: 44 | J54: 1.073170732 | K54: 45 | L54: 1.097560976 | M54: 34 | N54: 0.8292682927 | O54: 35 | P54: 0.8536585366 | Q54: 34 | R54: 0.8947368421 | S54: 41 | T54: 1.078947368
A55: Norte | B55: Nova Venécia | C55: 190 | D55: 164 | E55: 183 | F55: 0.9631578947 | G55: 162 | H55: 0.987804878 | I55: 170 | J55: 0.8947368421 | K55: 175 | L55: 0.9210526316 | M55: 169 | N55: 0.8894736842 | O55: 169 | P55: 0.8894736842 | Q55: 118 | R55: 0.7195121951 | S55: 148 | T55: 0.9024390244
A56: Central | B56: Pancas | C56: 56 | D56: 61 | E56: 53 | F56: 0.9464285714 | G56: 44 | H56: 0.7213114754 | I56: 60 | J56: 1.071428571 | K56: 61 | L56: 1.089285714 | M56: 51 | N56: 0.9107142857 | O56: 53 | P56: 0.9464285714 | Q56: 34 | R56: 0.5573770492 | S56: 47 | T56: 0.7704918033
A57: Norte | B57: Pedro Canário | C57: 77 | D57: 84.5 | E57: 72 | F57: 0.9350649351 | G57: 101 | H57: 1.195266272 | I57: 92 | J57: 1.194805195 | K57: 97 | L57: 1.25974026 | M57: 68 | N57: 0.8831168831 | O57: 67 | P57: 0.8701298701 | Q57: 76 | R57: 0.899408284 | S57: 109 | T57: 1.289940828
A58: Norte | B58: Pinheiros | C58: 97 | D58: 95.75 | E58: 74 | F58: 0.7628865979 | G58: 76 | H58: 0.7937336815 | I58: 84 | J58: 0.8659793814 | K58: 82 | L58: 0.8453608247 | M58: 80 | N58: 0.824742268 | O58: 78 | P58: 0.8041237113 | Q58: 55 | R58: 0.5744125326 | S58: 75 | T58: 0.7832898172
A59: Sul | B59: Piúma | C59: 82 | D59: 77.75 | E59: 78 | F59: 0.9512195122 | G59: 67 | H59: 0.8617363344 | I59: 82 | J59: 1 | K59: 58 | L59: 0.7073170732 | M59: 76 | N59: 0.9268292683 | O59: 76 | P59: 0.9268292683 | Q59: 51 | R59: 0.6559485531 | S59: 76 | T59: 0.9774919614
A60: Norte | B60: Ponto Belo | C60: 14 | D60: 21.25 | E60: 21 | F60: 1.5 | G60: 24 | H60: 1.129411765 | I60: 18 | J60: 1.285714286 | K60: 16 | L60: 1.142857143 | M60: 14 | N60: 1 | O60: 18 | P60: 1.285714286 | Q60: 23 | R60: 1.082352941 | S60: 22 | T60: 1.035294118
A61: Sul | B61: Presidente Kennedy | C61: 59 | D61: 59.75 | E61: 54 | F61: 0.9152542373 | G61: 56 | H61: 0.9372384937 | I61: 69 | J61: 1.169491525 | K61: 68 | L61: 1.152542373 | M61: 51 | N61: 0.8644067797 | O61: 45 | P61: 0.7627118644 | Q61: 51 | R61: 0.8535564854 | S61: 54 | T61: 0.9037656904
A62: Central | B62: Rio Bananal | C62: 78 | D62: 57.25 | E62: 73 | F62: 0.9358974359 | G62: 116 | H62: 2.026200873 | I62: 66 | J62: 0.8461538462 | K62: 66 | L62: 0.8461538462 | M62: 67 | N62: 0.858974359 | O62: 67 | P62: 0.858974359 | Q62: 55 | R62: 0.96069869 | S62: 61 | T62: 1.065502183
A63: Sul | B63: Rio Novo do Sul | C63: 31 | D63: 36 | E63: 28 | F63: 0.9032258065 | G63: 37 | H63: 1.027777778 | I63: 35 | J63: 1.129032258 | K63: 34 | L63: 1.096774194 | M63: 25 | N63: 0.8064516129 | O63: 23 | P63: 0.7419354839 | Q63: 26 | R63: 0.7222222222 | S63: 40 | T63: 1.111111111
A64: Metropolitana | B64: Santa Leopoldina | C64: 31 | D64: 38.75 | E64: 26 | F64: 0.8387096774 | G64: 28 | H64: 0.7225806452 | I64: 27 | J64: 0.8709677419 | K64: 28 | L64: 0.9032258065 | M64: 28 | N64: 0.9032258065 | O64: 30 | P64: 0.9677419355 | Q64: 25 | R64: 0.6451612903 | S64: 32 | T64: 0.8258064516
A65: Metropolitana | B65: Santa Maria de Jetibá | C65: 171 | D65: 171.25 | E65: 173 | F65: 1.011695906 | G65: 173 | H65: 1.010218978 | I65: 159 | J65: 0.9298245614 | K65: 168 | L65: 0.9824561404 | M65: 153 | N65: 0.8947368421 | O65: 159 | P65: 0.9298245614 | Q65: 116 | R65: 0.6773722628 | S65: 144 | T65: 0.8408759124
A66: Metropolitana | B66: Santa Teresa | C66: 74 | D66: 65 | E66: 69 | F66: 0.9324324324 | G66: 48 | H66: 0.7384615385 | I66: 65 | J66: 0.8783783784 | K66: 75 | L66: 1.013513514 | M66: 60 | N66: 0.8108108108 | O66: 60 | P66: 0.8108108108 | Q66: 43 | R66: 0.6615384615 | S66: 49 | T66: 0.7538461538
A67: Central | B67: São Domingos do Norte | C67: 29 | D67: 29.25 | E67: 26 | F67: =E67/C67 -> 0.8965517241 | G67: 34 | H67: =G67/D67 -> 1.162393162 | I67: 29 | J67: =I67/C67 -> 1 | K67: 29 | L67: =K67/C67 -> 1 | M67: 27 | N67: =M67/C67 -> 0.9310344828 | O67: 26 | P67: =O67/C67 -> 0.8965517241 | Q67: 29 | R67: =Q67/D67 -> 0.9914529915 | S67: 31 | T67: =S67/D67 -> 1.05982906
A68: Central | B68: São Gabriel da Palha | C68: 114 | D68: 106.5 | E68: 76 | F68: 0.6666666667 | G68: 72 | H68: 0.676056338 | I68: 78 | J68: 0.6842105263 | K68: 80 | L68: 0.701754386 | M68: 71 | N68: 0.6228070175 | O68: 75 | P68: 0.6578947368 | Q68: 47 | R68: 0.441314554 | S68: 57 | T68: 0.5352112676
A69: Sul | B69: São José do Calçado | C69: 19 | D69: 37.5 | E69: 16 | F69: 0.8421052632 | G69: 27 | H69: 0.72 | I69: 25 | J69: 1.315789474 | K69: 25 | L69: 1.315789474 | M69: 15 | N69: 0.7894736842 | O69: 14 | P69: 0.7368421053 | Q69: 29 | R69: 0.7733333333 | S69: 29 | T69: 0.7733333333
A70: Norte | B70: São Mateus | C70: 487 | D70: 441.5 | E70: 327 | F70: 0.6714579055 | G70: 361 | H70: 0.8176670442 | I70: 398 | J70: 0.81724846 | K70: 403 | L70: 0.8275154004 | M70: 348 | N70: 0.7145790554 | O70: 344 | P70: 0.7063655031 | Q70: 301 | R70: 0.6817667044 | S70: 364 | T70: 0.8244620612
A71: Central | B71: São Roque do Canaã | C71: 32 | D71: 25 | E71: 27 | F71: 0.84375 | G71: 32 | H71: 1.28 | I71: 33 | J71: 1.03125 | K71: 37 | L71: 1.15625 | M71: 26 | N71: 0.8125 | O71: 25 | P71: 0.78125 | Q71: 32 | R71: 1.28 | S71: 30 | T71: 1.2
A72: Metropolitana | B72: Serra | C72: 1860 | D72: 1887.5 | E72: 1482 | F72: 0.7967741935 | G72: 1348 | H72: 0.7141721854 | I72: 1621 | J72: 0.8715053763 | K72: 1547 | L72: 0.8317204301 | M72: 1522 | N72: 0.8182795699 | O72: 1530 | P72: 0.8225806452 | Q72: 1244 | R72: 0.6590728477 | S72: 1562 | T72: 0.8275496689
A73: Central | B73: Sooretama | C73: 96 | D73: 103.75 | E73: 88 | F73: 0.9166666667 | G73: 86 | H73: 0.8289156627 | I73: 94 | J73: 0.9791666667 | K73: 82 | L73: 0.8541666667 | M73: 90 | N73: 0.9375 | O73: 94 | P73: 0.9791666667 | Q73: 83 | R73: 0.8 | S73: 82 | T73: 0.7903614458
A74: Sul | B74: Vargem Alta | C74: 73 | D74: 69.5 | E74: 64 | F74: 0.8767123288 | G74: 67 | H74: 0.964028777 | I74: 74 | J74: 1.01369863 | K74: 73 | L74: 1 | M74: 52 | N74: 0.7123287671 | O74: 53 | P74: 0.7260273973 | Q74: 29 | R74: 0.4172661871 | S74: 66 | T74: 0.9496402878
A75: Metropolitana | B75: Venda Nova do Imigrante | C75: 84 | D75: 82 | E75: 104 | F75: 1.238095238 | G75: 106 | H75: 1.292682927 | I75: 85 | J75: 1.011904762 | K75: 85 | L75: 1.011904762 | M75: 91 | N75: 1.083333333 | O75: 93 | P75: 1.107142857 | Q75: 47 | R75: 0.5731707317 | S75: 60 | T75: 0.7317073171
A76: Metropolitana | B76: Viana | C76: 216 | D76: 266 | E76: 242 | F76: 1.12037037 | G76: 196 | H76: 0.7368421053 | I76: 214 | J76: 0.9907407407 | K76: 214 | L76: 0.9907407407 | M76: 234 | N76: 1.083333333 | O76: 221 | P76: 1.023148148 | Q76: 172 | R76: 0.6466165414 | S76: 197 | T76: 0.7406015038
A77: Norte | B77: Vila Pavão | C77: 38 | D77: 31.75 | E77: 42 | F77: 1.105263158 | G77: 28 | H77: 0.8818897638 | I77: 26 | J77: 0.6842105263 | K77: 27 | L77: 0.7105263158 | M77: 25 | N77: 0.6578947368 | O77: 26 | P77: 0.6842105263 | Q77: 22 | R77: 0.6929133858 | S77: 26 | T77: 0.8188976378
A78: Central | B78: Vila Valério | C78: 66 | D78: 42.25 | E78: 52 | F78: 0.7878787879 | G78: 46 | H78: 1.088757396 | I78: 44 | J78: 0.6666666667 | K78: 52 | L78: 0.7878787879 | M78: 43 | N78: 0.6515151515 | O78: 47 | P78: 0.7121212121 | Q78: 39 | R78: 0.9230769231 | S78: 35 | T78: 0.8284023669
A79: Metropolitana | B79: Vila Velha | C79: 1434 | D79: 1418.75 | E79: 946 | F79: 0.659693166 | G79: 886 | H79: 0.6244933921 | I79: 1161 | J79: 0.809623431 | K79: 1165 | L79: 0.8124128312 | M79: 1000 | N79: 0.6973500697 | O79: 1030 | P79: 0.7182705718 | Q79: 844 | R79: 0.5948898678 | S79: 962 | T79: 0.678061674
A80: Metropolitana | B80: Vitória | C80: 889 | D80: 958.25 | E80: 877 | F80: 0.9865016873 | G80: 546 | H80: 0.5697886773 | I80: 891 | J80: 1.002249719 | K80: 911 | L80: 1.024746907 | M80: 769 | N80: 0.8650168729 | O80: 775 | P80: 0.8717660292 | Q80: 544 | R80: 0.5677015393 | S80: 667 | T80: 0.696060527
B82: Total Norte | C82: =SUMIF($A$3:$A$80,"Norte",C$3:C$80) -> 1533 | D82: =SUMIF($A$3:$A$80,"Norte",D$3:D$80) -> 1447.25 | E82: =SUMIF($A$3:$A$80,"Norte",E$3:E$80) -> 1273 | F82: =E82/C82 -> 0.8303979126 | G82: =SUMIF($A$3:$A$80,"Norte",G$3:G$80) -> 1297 | H82: =G82/D82 -> 0.8961824149 | I82: =SUMIF($A$3:$A$80,"Norte",I$3:I$80) -> 1348 | J82: =I82/C82 -> 0.8793215917 | K82: =SUMIF($A$3:$A$80,"Norte",K$3:K$80) -> 1374 | L82: =K82/C82 -> 0.8962818004 | M82: =SUMIF($A$3:$A$80,"Norte",M$3:M$80) -> 1231 | N82: =M82/C82 -> 0.8030006523 | O82: =SUMIF($A$3:$A$80,"Norte",O$3:O$80) -> 1221 | P82: =O82/C82 -> 0.7964774951 | Q82: =SUMIF($A$3:$A$80,"Norte",Q$3:Q$80) -> 1046 | R82: =Q82/D82 -> 0.7227500432 | S82: =SUMIF($A$3:$A$80,"Norte",S$3:S$80) -> 1278 | T82: =S82/D82 -> 0.8830540681
B83: Total Central | C83: =SUMIF($A$3:$A$80,"Central",C$3:C$80) -> 1791 | D83: =SUMIF($A$3:$A$80,"Central",D$3:D$80) -> 1710.75 | E83: =SUMIF($A$3:$A$80,"Central",E$3:E$80) -> 1432 | F83: =E83/C83 -> 0.7995533222 | G83: =SUMIF($A$3:$A$80,"Central",G$3:G$80) -> 1366 | H83: =G83/D83 -> 0.7984801987 | I83: =SUMIF($A$3:$A$80,"Central",I$3:I$80) -> 1481 | J83: =I83/C83 -> 0.8269123395 | K83: =SUMIF($A$3:$A$80,"Central",K$3:K$80) -> 1504 | L83: =K83/C83 -> 0.8397543272 | M83: =SUMIF($A$3:$A$80,"Central",M$3:M$80) -> 1367 | N83: =M83/C83 -> 0.7632607482 | O83: =SUMIF($A$3:$A$80,"Central",O$3:O$80) -> 1395 | P83: =O83/C83 -> 0.7788944724 | Q83: =SUMIF($A$3:$A$80,"Central",Q$3:Q$80) -> 1090 | R83: =Q83/D83 -> 0.6371474499 | S83: =SUMIF($A$3:$A$80,"Central",S$3:S$80) -> 1217 | T83: =S83/D83 -> 0.711383896
B84: Total Metropolitana | C84: =SUMIF($A$3:$A$80,"Metropolitana",C$3:C$80) -> 7467 | D84: =SUMIF($A$3:$A$80,"Metropolitana",D$3:D$80) -> 7549.25 | E84: =SUMIF($A$3:$A$80,"Metropolitana",E$3:E$80) -> 6043 | F84: =E84/C84 -> 0.8092942279 | G84: =SUMIF($A$3:$A$80,"Metropolitana",G$3:G$80) -> 5608 | H84: =G84/D84 -> 0.7428552505 | I84: =SUMIF($A$3:$A$80,"Metropolitana",I$3:I$80) -> 6661 | J84: =I84/C84 -> 0.8920583903 | K84: =SUMIF($A$3:$A$80,"Metropolitana",K$3:K$80) -> 6635 | L84: =K84/C84 -> 0.8885764028 | M84: =SUMIF($A$3:$A$80,"Metropolitana",M$3:M$80) -> 5961 | N84: =M84/C84 -> 0.7983125753 | O84: =SUMIF($A$3:$A$80,"Metropolitana",O$3:O$80) -> 6025 | P84: =O84/C84 -> 0.8068836213 | Q84: =SUMIF($A$3:$A$80,"Metropolitana",Q$3:Q$80) -> 5023 | R84: =Q84/D84 -> 0.665364109 | S84: =SUMIF($A$3:$A$80,"Metropolitana",S$3:S$80) -> 5995 | T84: =S84/D84 -> 0.7941186211
B85: Total Sul | C85: =SUMIF($A$3:$A$80,"sul",C$3:C$80) -> 2024 | D85: =SUMIF($A$3:$A$80,"sul",D$3:D$80) -> 2172 | E85: =SUMIF($A$3:$A$80,"sul",E$3:E$80) -> 1866 | F85: =E85/C85 -> 0.9219367589 | G85: =SUMIF($A$3:$A$80,"sul",G$3:G$80) -> 1858 | H85: =G85/D85 -> 0.8554327808 | I85: =SUMIF($A$3:$A$80,"sul",I$3:I$80) -> 1997 | J85: =I85/C85 -> 0.9866600791 | K85: =SUMIF($A$3:$A$80,"sul",K$3:K$80) -> 1912 | L85: =K85/C85 -> 0.9446640316 | M85: =SUMIF($A$3:$A$80,"sul",M$3:M$80) -> 1783 | N85: =M85/C85 -> 0.8809288538 | O85: =SUMIF($A$3:$A$80,"sul",O$3:O$80) -> 1779 | P85: =O85/C85 -> 0.8789525692 | Q85: =SUMIF($A$3:$A$80,"sul",Q$3:Q$80) -> 1447 | R85: =Q85/D85 -> 0.6662062615 | S85: =SUMIF($A$3:$A$80,"sul",S$3:S$80) -> 1764 | T85: =S85/D85 -> 0.8121546961
B86: Total Espírito Santo | C86: =SUM(C3:C80) -> 12815 | D86: =SUM(D3:D80) -> 12879.25 | E86: =SUM(E3:E80) -> 10614 | F86: =E86/C86 -> 0.8282481467 | G86: =SUM(G3:G80) -> 10129 | H86: =G86/D86 -> 0.7864588388 | I86: =SUM(I3:I80) -> 11487 | J86: =I86/C86 -> 0.8963714397 | K86: =SUM(K3:K80) -> 11425 | L86: =K86/C86 -> 0.8915333593 | M86: =SUM(M3:M80) -> 10342 | N86: =M86/C86 -> 0.8070230199 | O86: =SUM(O3:O80) -> 10420 | P86: =O86/C86 -> 0.8131096371 | Q86: =SUM(Q3:Q80) -> 8606 | R86: =Q86/D86 -> 0.6682066114 | S86: =SUM(S3:S80) -> 10254 | T86: =S86/D86 -> 0.7961643729
A91: Fonte: Vacina e Confia, em 15 de Abril de 2026.**<https://vacinaeconfia.saude.es.gov.br/>
A92: **Dados referente às doses aplicadas no período de janeiro a março de 2026
A93: Cobertura Calculada por município de residência do vacinado
A94: 1 População estimada extraída do MS/SVS/DASIS - SINASC/DASIS/SVS/MS 2025 referente ao período de janeiro de 2026 e Fevereiro e março de 2025.
A95: Sinasc, atualizado em 06/04/2026
A96: ²População estimada extraída do Censo IBGE 2022.
A97: Método de Cálculo Simples
A98: Homogeineidade: O cálculo da Homogeineidade entre vacinas é feito de acordo com a pactuação estabelecida no Plano Plurianual (PPA) vigente no período 2024-2027.
A100: Observações referente a distribuição de imunobiológicos que podem afetar a cobertura vacinal:
A102: 1. Vacinas que foram recebidas parcialmente pelo estado no mês de Março/2026, sendo distribuídos em quantidades reduzidas às regionais e municípios:
A103: IMUNOGLOBULINA ANTIRRÁBICA HUMANA; SORO ANTIRRÁBICO HUMANO
A104: 2. Vacinas indisponíveis no mês de março/2026, não sendo possível a distribuição às regionais e municípios:
A105: IMUNOGLOBULINA HUMANA ANTIVARICELA (ZOSTER) – 125UI
A106: 3. Vacinas enviadas por Pautas aguardando abastecimento do estoque estadual;
A107: VACINA COVID-19 PFIZER PEDIÁTRICA MENOR QUE 5 ANOS; VACINA COVID-19 PFIZER PEDIÁTRICA, VACINA COVID-19 PFIZER MAIORES QUE 12 ANOS, VACINA VÍRUS SINCICIAL RESPIRATÓRIO A E B - VSR
A109: Fonte: Informes situacionais de distribuição de imunobiológicos em https://saude.es.gov.br/GrupodeArquivos/informes-situacionais-de-distribuicao-de-imunobiologicos

Sheet Cobert. COVID-19 Menores 4 anos (hidden)
A1: Regional | B1: Município | C1: Série Histórica
A2: Região Metropolitana | B2: Afonso Cláudio
A3: Região Norte | B3: Água Doce do Norte
A4: Região Central | B4: Águia Branca
A5: Região Sul | B5: Alegre
A6: Região Sul | B6: Alfredo Chaves
A7: Região Central | B7: Alto Rio Novo
A8: Região Sul | B8: Anchieta
A9: Região Sul | B9: Apiacá
A10: Região Metropolitana | B10: Aracruz
A11: Região Sul | B11: Atilio Vivacqua
A12: Região Central | B12: Baixo Guandu
A13: Região Norte | B13: Barra de São Francisco
A14: Região Norte | B14: Boa Esperança
A15: Região Sul | B15: Bom Jesus do Norte
A16: Região Metropolitana | B16: Brejetuba
A17: Região Sul | B17: Cachoeiro de Itapemirim
A18: Região Metropolitana | B18: Cariacica
A19: Região Sul | B19: Castelo
A20: Região Central | B20: Colatina
A21: Região Norte | B21: Conceição da Barra
A22: Região Metropolitana | B22: Conceição do Castelo
A23: Região Sul | B23: Divino de São Lourenço
A24: Região Metropolitana | B24: Domingos Martins
A25: Região Sul | B25: Dores do Rio Preto
A26: Região Norte | B26: Ecoporanga
A27: Região Metropolitana | B27: Fundão
A28: Região Central | B28: Governador Lindenberg
A29: Região Sul | B29: Guaçuí
A30: Região Metropolitana | B30: Guarapari
A31: Região Metropolitana | B31: Ibatiba
A32: Região Metropolitana | B32: Ibiraçu
A33: Região Sul | B33: Ibitirama
A34: Região Sul | B34: Iconha
A35: Região Sul | B35: Irupi
A36: Região Metropolitana | B36: Itaguaçu
A37: Região Sul | B37: Itapemirim
A38: Região Metropolitana | B38: Itarana
A39: Região Sul | B39: Iúna
A40: Região Norte | B40: Jaguaré
A41: Região Sul | B41: Jerônimo Monteiro
A42: Região Metropolitana | B42: João Neiva
A43: Região Metropolitana | B43: Laranja da Terra
A44: Região Central | B44: Linhares
A45: Região Central | B45: Mantenópolis
A46: Região Sul | B46: Marataízes
A47: Região Metropolitana | B47: Marechal Floriano
A48: Região Central | B48: Marilândia
A49: Região Sul | B49: Mimoso do Sul
A50: Região Norte | B50: Montanha
A51: Região Norte | B51: Mucurici
A52: Região Sul | B52: Muniz Freire
A53: Região Sul | B53: Muqui
A54: Região Norte | B54: Nova Venécia
A55: Região Central | B55: Pancas
A56: Região Norte | B56: Pedro Canário
A57: Região Norte | B57: Pinheiros
A58: Região Sul | B58: Piúma
A59: Região Norte | B59: Ponto Belo
A60: Região Sul | B60: Presidente Kennedy
A61: Região Central | B61: Rio Bananal
A62: Região Sul | B62: Rio Novo do Sul
A63: Região Metropolitana | B63: Santa Leopoldina
A64: Região Metropolitana | B64: Santa Maria de Jetibá
A65: Região Metropolitana | B65: Santa Teresa
A66: Região Central | B66: São Domingos do Norte
A67: Região Central | B67: São Gabriel da Palha
A68: Região Sul | B68: São José do Calçado
A69: Região Norte | B69: São Mateus
A70: Região Central | B70: São Roque do Canaã
A71: Região Metropolitana | B71: Serra
A72: Região Central | B72: Sooretama
A73: Região Sul | B73: Vargem Alta
A74: Região Metropolitana | B74: Venda Nova do Imigrante
A75: Região Metropolitana | B75: Viana
A76: Região Norte | B76: Vila Pavão
A77: Região Central | B77: Vila Valério
A78: Região Metropolitana | B78: Vila Velha
A79: Região Metropolitana | B79: Vitória
B81: Espírito Santo
B82: Região Norte
B83: Região Central
B84: Região Metropolitana
B85: Região Sul
A87: Pfizer Pediátrica Menor de 5 anos e Coronavac
A88: Período avaliado: 2021-2024
A89: Fonte: https://www.vacinaeconfia.es.gov.br
A90: *Dados de janeiro/2024 extraídos do Vacina e Confia em 04/01/2024
A91: População proporcional extraída do SINASC 2022 (menores de 1 ano) e Censo IBGE 2022 (demais idades)
A92: Cobertura Calculada por município de procedência da vacinação

Sheet dTpa gestantes - procedência
A1: Regional | B1: Município | C1: ¹População | D1: Doses Aplicadas | E1: Cobertura Vacinal %
A2: Metropolitana | B2: Afonso Cláudio | C2: 88 | D2: 94 | E2: =D2/C2 -> 1.068181818
A3: Norte | B3: Água Doce do Norte | C3: 38 | D3: 48 | E3: =D3/C3 -> 1.263157895
A4: Central | B4: Águia Branca | C4: 52 | D4: 43 | E4: 0.8269230769
A5: Sul | B5: Alegre | C5: 75 | D5: 101 | E5: 1.346666667
A6: Sul | B6: Alfredo Chaves | C6: 32 | D6: 42 | E6: 1.3125
A7: Central | B7: Alto Rio Novo | C7: 24 | D7: 25 | E7: 1.041666667
A8: Sul | B8: Anchieta | C8: 103 | D8: 119 | E8: 1.155339806
A9: Sul | B9: Apiacá | C9: 11 | D9: 11 | E9: 1
A10: Metropolitana | B10: Aracruz | C10: 387 | D10: 429 | E10: 1.108527132
A11: Sul | B11: Atilio Vivacqua | C11: 47 | D11: 32 | E11: 0.6808510638
A12: Central | B12: Baixo Guandu | C12: 89 | D12: 83 | E12: 0.9325842697
A13: Norte | B13: Barra de São Francisco | C13: 158 | D13: 138 | E13: 0.8734177215
A14: Norte | B14: Boa Esperança | C14: 55 | D14: 51 | E14: 0.9272727273
A15: Sul | B15: Bom Jesus do Norte | C15: 5 | D15: 20 | E15: 4
A16: Metropolitana | B16: Brejetuba | C16: 53 | D16: 85 | E16: 1.603773585
A17: Sul | B17: Cachoeiro de Itapemirim | C17: 578 | D17: 598 | E17: 1.034602076
A18: Metropolitana | B18: Cariacica | C18: 1202 | D18: 1123 | E18: 0.9342762063
A19: Sul | B19: Castelo | C19: 114 | D19: 112 | E19: 0.9824561404
A20: Central | B20: Colatina | C20: 366 | D20: 355 | E20: 0.9699453552
A21: Norte | B21: Conceição da Barra | C21: 99 | D21: 122 | E21: 1.232323232
A22: Metropolitana | B22: Conceição do Castelo | C22: 41 | D22: 48 | E22: 1.170731707
A23: Sul | B23: Divino de São Lourenço | C23: 12 | D23: 15 | E23: 1.25
A24: Metropolitana | B24: Domingos Martins | C24: 111 | D24: 128 | E24: 1.153153153
A25: Sul | B25: Dores do Rio Preto | C25: 25 | D25: 24 | E25: 0.96
A26: Norte | B26: Ecoporanga | C26: 77 | D26: 61 | E26: 0.7922077922
A27: Metropolitana | B27: Fundão | C27: 66 | D27: 74 | E27: 1.121212121
A28: Central | B28: Governador Lindenberg | C28: 37 | D28: 33 | E28: 0.8918918919
A29: Sul | B29: Guaçuí | C29: 79 | D29: 111 | E29: 1.405063291
A30: Metropolitana | B30: Guarapari | C30: 471 | D30: 430 | E30: 0.9129511677
A31: Metropolitana | B31: Ibatiba | C31: 83 | D31: 129 | E31: 1.554216867
A32: Metropolitana | B32: Ibiraçu | C32: 26 | D32: 30 | E32: 1.153846154
A33: Sul | B33: Ibitirama | C33: 38 | D33: 41 | E33: 1.078947368
A34: Sul | B34: Iconha | C34: 26 | D34: 39 | E34: 1.5
A35: Sul | B35: Irupi | C35: 32 | D35: 59 | E35: 1.84375
A36: Metropolitana | B36: Itaguaçu | C36: 36 | D36: 36 | E36: 1
A37: Sul | B37: Itapemirim | C37: 140 | D37: 130 | E37: 0.9285714286
A38: Metropolitana | B38: Itarana | C38: 37 | D38: 30 | E38: 0.8108108108
A39: Sul | B39: Iúna | C39: 71 | D39: 106 | E39: 1.492957746
A40: Norte | B40: Jaguaré | C40: 141 | D40: 136 | E40: 0.9645390071
A41: Sul | B41: Jerônimo Monteiro | C41: 40 | D41: 42 | E41: 1.05
A42: Metropolitana | B42: João Neiva | C42: 38 | D42: 42 | E42: 1.105263158
A43: Metropolitana | B43: Laranja da Terra | C43: 25 | D43: 26 | E43: 1.04
A44: Central | B44: Linhares | C44: 669 | D44: 649 | E44: 0.9701046338
A45: Central | B45: Mantenópolis | C45: 38 | D45: 48 | E45: 1.263157895
A46: Sul | B46: Marataízes | C46: 155 | D46: 148 | E46: 0.9548387097
A47: Metropolitana | B47: Marechal Floriano | C47: 44 | D47: 49 | E47: 1.113636364
A48: Central | B48: Marilândia | C48: 45 | D48: 47 | E48: 1.044444444
A49: Sul | B49: Mimoso do Sul | C49: 87 | D49: 67 | E49: 0.7701149425
A50: Norte | B50: Montanha | C50: 42 | D50: 79 | E50: 1.880952381
A51: Norte | B51: Mucurici | C51: 20 | D51: 28 | E51: 1.4
A52: Sul | B52: Muniz Freire | C52: 49 | D52: 60 | E52: 1.224489796
A53: Sul | B53: Muqui | C53: 41 | D53: 44 | E53: 1.073170732
A54: Norte | B54: Nova Venécia | C54: 190 | D54: 182 | E54: 0.9578947368
A55: Central | B55: Pancas | C55: 56 | D55: 59 | E55: 1.053571429
A56: Norte | B56: Pedro Canário | C56: 77 | D56: 79 | E56: 1.025974026
A57: Norte | B57: Pinheiros | C57: 97 | D57: 87 | E57: 0.8969072165
A58: Sul | B58: Piúma | C58: 82 | D58: 76 | E58: 0.9268292683
A59: Norte | B59: Ponto Belo | C59: 14 | D59: 21 | E59: 1.5
A60: Sul | B60: Presidente Kennedy | C60: 59 | D60: 47 | E60: 0.7966101695
A61: Central | B61: Rio Bananal | C61: 78 | D61: 95 | E61: 1.217948718
A62: Sul | B62: Rio Novo do Sul | C62: 31 | D62: 37 | E62: 1.193548387
A63: Metropolitana | B63: Santa Leopoldina | C63: 31 | D63: 40 | E63: 1.290322581
A64: Metropolitana | B64: Santa Maria de Jetibá | C64: 171 | D64: 168 | E64: 0.9824561404
A65: Metropolitana | B65: Santa Teresa | C65: 74 | D65: 78 | E65: 1.054054054
A66: Central | B66: São Domingos do Norte | C66: 29 | D66: 47 | E66: 1.620689655
A67: Central | B67: São Gabriel da Palha | C67: 114 | D67: 119 | E67: =D67/C67 -> 1.043859649
A68: Sul | B68: São José do Calçado | C68: 19 | D68: 33 | E68: 1.736842105
A69: Norte | B69: São Mateus | C69: 487 | D69: 472 | E69: 0.9691991786
A70: Central | B70: São Roque do Canaã | C70: 32 | D70: 29 | E70: 0.90625
A71: Metropolitana | B71: Serra | C71: 1860 | D71: 1825 | E71: 0.9811827957
A72: Central | B72: Sooretama | C72: 96 | D72: 141 | E72: 1.46875
A73: Sul | B73: Vargem Alta | C73: 73 | D73: 76 | E73: 1.04109589
A74: Metropolitana | B74: Venda Nova do Imigrante | C74: 84 | D74: 88 | E74: 1.047619048
A75: Metropolitana | B75: Viana | C75: 216 | D75: 279 | E75: 1.291666667
A76: Norte | B76: Vila Pavão | C76: 38 | D76: 35 | E76: 0.9210526316
A77: Central | B77: Vila Valério | C77: 66 | D77: 60 | E77: 0.9090909091
A78: Metropolitana | B78: Vila Velha | C78: 1434 | D78: 1369 | E78: 0.9546722455
A79: Metropolitana | B79: Vitória | C79: 889 | D79: 979 | E79: 1.101237345
B81: Total Norte | C81: =SUMIF($A$2:$A$79,"Norte",C$2:C$79) -> 1533 | D81: =SUMIF($A$2:$A$79,"Norte",D$2:D$79) -> 1539 | E81: 1.003913894
B82: Total Central | C82: =SUMIF($A$2:$A$79,"CENTRAL",C$2:C$79) -> 1791 | D82: =SUMIF($A$2:$A$79,"CENTRAL",D$2:D$79) -> 1833 | E82: 1.023450586
B83: Total Metropolitana | C83: =SUMIF($A$2:$A$79,"METROPOLITANA",C$2:C$79) -> 7467 | D83: =SUMIF($A$2:$A$79,"METROPOLITANA",D$2:D$79) -> 7579 | E83: =D83/C83 -> 1.01499933
B84: Total Sul | C84: =SUMIF($A$2:$A$79,"SUL",C$2:C$79) -> 2024 | D84: =SUMIF($A$2:$A$79,"SUL",D$2:D$79) -> 2190 | E84: 1.08201581
B85: TOTAL ES | C85: =SUM(C2:C79) -> 12815 | D85: =SUM(D2:D79) -> 13141 | E85: 1.025438939
B86: HOMOGENEIDADE ENTRE MUNICÍPIOS | E86: =COUNTIF(E2:E79,">=0,95")/78 -> 0.7692307692
A91: Fonte: Vacina e Confia, em 30 de Abril de 2026.**<https://vacinaeconfia.saude.es.gov.br/>
A92: **Dados referente às doses aplicadasem janeiro a Março de 2026
A93: Cobertura Calculada por município de procedência/ocorrência da vacinação
A94: 1 População estimada extraída do MS/SVS/DASIS - SINASC/DASIS/SVS/MS 2025 referente ao período de janeiro de 2026 e Fevereiro e março de 2025.
A95: Sinasc, atualizado em 06/04/2026
A96: Método de Cálculo Simples
A97: Homogeineidade: O cálculo da Homogeineidade entre vacinas é feito de acordo com a pactuação estabelecida no Plano Plurianual (PPA) vigente no período 2024-2027.
A100: Observações referente a distribuição de imunobiológicos que podem afetar a cobertura vacinal:
A102: 1. Vacinas que foram recebidas parcialmente pelo estado no mês de Março/2026, sendo distribuídos em quantidades reduzidas às regionais e municípios:
A103: IMUNOGLOBULINA ANTIRRÁBICA HUMANA; SORO ANTIRRÁBICO HUMANO
A104: 2. Vacinas indisponíveis no mês de março/2026, não sendo possível a distribuição às regionais e municípios:
A105: IMUNOGLOBULINA HUMANA ANTIVARICELA (ZOSTER) – 125UI
A106: 3. Vacinas enviadas por Pautas aguardando abastecimento do estoque estadual;
A107: VACINA COVID-19 PFIZER PEDIÁTRICA MENOR QUE 5 ANOS; VACINA COVID-19 PFIZER PEDIÁTRICA, VACINA COVID-19 PFIZER MAIORES QUE 12 ANOS, VACINA VÍRUS SINCICIAL RESPIRATÓRIO A E B - VSR
A109: Fonte: Informes situacionais de distribuição de imunobiológicos em https://saude.es.gov.br/GrupodeArquivos/informes-situacionais-de-distribuicao-de-imunobiologicos

Sheet dTpa gestantes - residência
A1: Regional | B1: Município | C1: ¹População | D1: Total de Doses Aplicadas | E1: Cobertura Vacinal %
A2: Metropolitana | B2: Afonso Cláudio | C2: 88 | D2: 101 | E2: =D2/C2 -> 1.147727273
A3: Norte | B3: Água Doce do Norte | C3: 38 | D3: 41 | E3: =D3/C3 -> 1.078947368
A4: Central | B4: Águia Branca | C4: 52 | D4: 35 | E4: 0.6730769231
A5: Sul | B5: Alegre | C5: 75 | D5: 112 | E5: 1.493333333
A6: Sul | B6: Alfredo Chaves | C6: 32 | D6: 38 | E6: 1.1875
A7: Central | B7: Alto Rio Novo | C7: 24 | D7: 27 | E7: 1.125
A8: Sul | B8: Anchieta | C8: 103 | D8: 115 | E8: 1.116504854
A9: Sul | B9: Apiacá | C9: 11 | D9: 14 | E9: 1.272727273
A10: Metropolitana | B10: Aracruz | C10: 387 | D10: 395 | E10: 1.020671835
A11: Sul | B11: Atilio Vivacqua | C11: 47 | D11: 34 | E11: 0.7234042553
A12: Central | B12: Baixo Guandu | C12: 89 | D12: 75 | E12: 0.8426966292
A13: Norte | B13: Barra de São Francisco | C13: 158 | D13: 129 | E13: 0.8164556962
A14: Norte | B14: Boa Esperança | C14: 55 | D14: 46 | E14: 0.8363636364
A15: Sul | B15: Bom Jesus do Norte | C15: 5 | D15: 16 | E15: 3.2
A16: Metropolitana | B16: Brejetuba | C16: 53 | D16: 73 | E16: 1.377358491
A17: Sul | B17: Cachoeiro de Itapemirim | C17: 578 | D17: 613 | E17: 1.060553633
A18: Metropolitana | B18: Cariacica | C18: 1202 | D18: 1257 | E18: 1.045757072
A19: Sul | B19: Castelo | C19: 114 | D19: 122 | E19: 1.070175439
A20: Central | B20: Colatina | C20: 366 | D20: 355 | E20: 0.9699453552
A21: Norte | B21: Conceição da Barra | C21: 99 | D21: 133 | E21: 1.343434343
A22: Metropolitana | B22: Conceição do Castelo | C22: 41 | D22: 45 | E22: 1.097560976
A23: Sul | B23: Divino de São Lourenço | C23: 12 | D23: 13 | E23: 1.083333333
A24: Metropolitana | B24: Domingos Martins | C24: 111 | D24: 127 | E24: 1.144144144
A25: Sul | B25: Dores do Rio Preto | C25: 25 | D25: 16 | E25: 0.64
A26: Norte | B26: Ecoporanga | C26: 77 | D26: 73 | E26: 0.9480519481
A27: Metropolitana | B27: Fundão | C27: 66 | D27: 55 | E27: 0.8333333333
A28: Central | B28: Governador Lindenberg | C28: 37 | D28: 38 | E28: 1.027027027
A29: Sul | B29: Guaçuí | C29: 79 | D29: 112 | E29: 1.417721519
A30: Metropolitana | B30: Guarapari | C30: 471 | D30: 384 | E30: 0.8152866242
A31: Metropolitana | B31: Ibatiba | C31: 83 | D31: 122 | E31: 1.469879518
A32: Metropolitana | B32: Ibiraçu | C32: 26 | D32: 32 | E32: 1.230769231
A33: Sul | B33: Ibitirama | C33: 38 | D33: 54 | E33: 1.421052632
A34: Sul | B34: Iconha | C34: 26 | D34: 43 | E34: 1.653846154
A35: Sul | B35: Irupi | C35: 32 | D35: 46 | E35: 1.4375
A36: Metropolitana | B36: Itaguaçu | C36: 36 | D36: 38 | E36: 1.055555556
A37: Sul | B37: Itapemirim | C37: 140 | D37: 133 | E37: 0.95
A38: Metropolitana | B38: Itarana | C38: 37 | D38: 26 | E38: 0.7027027027
A39: Sul | B39: Iúna | C39: 71 | D39: 102 | E39: 1.436619718
A40: Norte | B40: Jaguaré | C40: 141 | D40: 129 | E40: 0.914893617
A41: Sul | B41: Jerônimo Monteiro | C41: 40 | D41: 37 | E41: 0.925
A42: Metropolitana | B42: João Neiva | C42: 38 | D42: 43 | E42: 1.131578947
A43: Metropolitana | B43: Laranja da Terra | C43: 25 | D43: 28 | E43: 1.12
A44: Central | B44: Linhares | C44: 669 | D44: 624 | E44: 0.932735426
A45: Central | B45: Mantenópolis | C45: 38 | D45: 40 | E45: 1.052631579
A46: Sul | B46: Marataízes | C46: 155 | D46: 124 | E46: 0.8
A47: Metropolitana | B47: Marechal Floriano | C47: 44 | D47: 49 | E47: 1.113636364
A48: Central | B48: Marilândia | C48: 45 | D48: 32 | E48: 0.7111111111
A49: Sul | B49: Mimoso do Sul | C49: 87 | D49: 64 | E49: 0.7356321839
A50: Norte | B50: Montanha | C50: 42 | D50: 95 | E50: 2.261904762
A51: Norte | B51: Mucurici | C51: 20 | D51: 21 | E51: 1.05
A52: Sul | B52: Muniz Freire | C52: 49 | D52: 60 | E52: 1.224489796
A53: Sul | B53: Muqui | C53: 41 | D53: 41 | E53: 1
A54: Norte | B54: Nova Venécia | C54: 190 | D54: 198 | E54: 1.042105263
A55: Central | B55: Pancas | C55: 56 | D55: 75 | E55: 1.339285714
A56: Norte | B56: Pedro Canário | C56: 77 | D56: 78 | E56: 1.012987013
A57: Norte | B57: Pinheiros | C57: 97 | D57: 99 | E57: 1.020618557
A58: Sul | B58: Piúma | C58: 82 | D58: 62 | E58: 0.756097561
A59: Norte | B59: Ponto Belo | C59: 14 | D59: 27 | E59: 1.928571429
A60: Sul | B60: Presidente Kennedy | C60: 59 | D60: 38 | E60: 0.6440677966
A61: Central | B61: Rio Bananal | C61: 78 | D61: 97 | E61: 1.243589744
A62: Sul | B62: Rio Novo do Sul | C62: 31 | D62: 36 | E62: 1.161290323
A63: Metropolitana | B63: Santa Leopoldina | C63: 31 | D63: 33 | E63: 1.064516129
A64: Metropolitana | B64: Santa Maria de Jetibá | C64: 171 | D64: 152 | E64: 0.8888888889
A65: Metropolitana | B65: Santa Teresa | C65: 74 | D65: 85 | E65: 1.148648649
A66: Central | B66: São Domingos do Norte | C66: 29 | D66: 45 | E66: 1.551724138
A67: Central | B67: São Gabriel da Palha | C67: 114 | D67: 105 | E67: =D67/C67 -> 0.9210526316
A68: Sul | B68: São José do Calçado | C68: 19 | D68: 37 | E68: 1.947368421
A69: Norte | B69: São Mateus | C69: 487 | D69: 386 | E69: 0.7926078029
A70: Central | B70: São Roque do Canaã | C70: 32 | D70: 37 | E70: 1.15625
A71: Metropolitana | B71: Serra | C71: 1860 | D71: 1662 | E71: 0.8935483871
A72: Central | B72: Sooretama | C72: 96 | D72: 138 | E72: 1.4375
A73: Sul | B73: Vargem Alta | C73: 73 | D73: 70 | E73: 0.9589041096
A74: Metropolitana | B74: Venda Nova do Imigrante | C74: 84 | D74: 96 | E74: 1.142857143
A75: Metropolitana | B75: Viana | C75: 216 | D75: 265 | E75: 1.226851852
A76: Norte | B76: Vila Pavão | C76: 38 | D76: 36 | E76: 0.9473684211
A77: Central | B77: Vila Valério | C77: 66 | D77: 57 | E77: 0.8636363636
A78: Metropolitana | B78: Vila Velha | C78: 1434 | D78: 1201 | E78: 0.8375174338
A79: Metropolitana | B79: Vitória | C79: 889 | D79: 816 | E79: 0.9178852643
B81: Total Norte | C81: =SUMIF($A$2:$A$79,"Norte",C$2:C$79) -> 1533 | D81: =SUMIF($A$2:$A$79,"Norte",D$2:D$79) -> 1491 | E81: 0.9726027397
B82: Total Central | C82: =SUMIF($A$2:$A$79,"CENTRAL",C$2:C$79) -> 1791 | D82: =SUMIF($A$2:$A$79,"CENTRAL",D$2:D$79) -> 1780 | E82: 0.9938581798
B83: Total Metropolitana | C83: =SUMIF($A$2:$A$79,"METROPOLITANA",C$2:C$79) -> 7467 | D83: =SUMIF($A$2:$A$79,"METROPOLITANA",D$2:D$79) -> 7085 | E83: 0.9488415696
B84: Total Sul | C84: =SUMIF($A$2:$A$79,"SUL",C$2:C$79) -> 2024 | D84: =SUMIF($A$2:$A$79,"SUL",D$2:D$79) -> 2152 | E84: 1.063241107
B85: TOTAL ES | C85: =SUM(C2:C79) -> 12815 | D85: =SUM(D2:D79) -> 12508 | E85: 0.9760436988
B86: HOMOGENEIDADE ENTRE MUNICÍPIOS | D86: =COUNTIF(E2:E79,">=0,95") -> 52 | E86: =COUNTIF(E2:E79,">=0,95")/78 -> 0.6666666667
A91: Fonte: Vacina e Confia, em 30 de Abril de 2026.**<https://vacinaeconfia.saude.es.gov.br/>
A92: **Dados referente às doses aplicadas no período de janeiro a março de 2026
A93: Cobertura Calculada por município de residência do vacinado
A94: 1 População estimada extraída do MS/SVS/DASIS - SINASC/DASIS/SVS/MS 2025 referente ao período de janeiro de 2026 e Fevereiro e março de 2025.
A95: Sinasc, atualizado em 06/04/2026
A96: Método de Cálculo Simples
A97: Homogeineidade: O cálculo da Homogeineidade entre vacinas é feito de acordo com a pactuação estabelecida no Plano Plurianual (PPA) vigente no período 2024-2027.
A100: Observações referente a distribuição de imunobiológicos que podem afetar a cobertura vacinal:
A102: 1. Vacinas que foram recebidas parcialmente pelo estado no mês de Março/2026, sendo distribuídos em quantidades reduzidas às regionais e municípios:
A103: IMUNOGLOBULINA ANTIRRÁBICA HUMANA; SORO ANTIRRÁBICO HUMANO
A104: 2. Vacinas indisponíveis no mês de março/2026, não sendo possível a distribuição às regionais e municípios:
A105: IMUNOGLOBULINA HUMANA ANTIVARICELA (ZOSTER) – 125UI
A106: 3. Vacinas enviadas por Pautas aguardando abastecimento do estoque estadual;
A107: VACINA COVID-19 PFIZER PEDIÁTRICA MENOR QUE 5 ANOS; VACINA COVID-19 PFIZER PEDIÁTRICA, VACINA COVID-19 PFIZER MAIORES QUE 12 ANOS, VACINA VÍRUS SINCICIAL RESPIRATÓRIO A E B - VSR
A109: Fonte: Informes situacionais de distribuição de imunobiológicos em https://saude.es.gov.br/GrupodeArquivos/informes-situacionais-de-distribuicao-de-imunobiologicos

Sheet VSR gestante - Procedência
A1: Regional | B1: Município | C1: ¹População | D1: Doses Aplicadas | E1: Cobertura Vacinal %
A2: Metropolitana | B2: Afonso Cláudio | C2: 88 | D2: 89 | E2: =D2/C2 -> 1.011363636
A3: Norte | B3: Água Doce do Norte | C3: 38 | D3: 32 | E3: =D3/C3 -> 0.8421052632
A4: Central | B4: Águia Branca | C4: 52 | D4: 43 | E4: 0.8269230769
A5: Sul | B5: Alegre | C5: 75 | D5: 97 | E5: 1.293333333
A6: Sul | B6: Alfredo Chaves | C6: 32 | D6: 35 | E6: 1.09375
A7: Central | B7: Alto Rio Novo | C7: 24 | D7: 26 | E7: 1.083333333
A8: Sul | B8: Anchieta | C8: 103 | D8: 101 | E8: 0.9805825243
A9: Sul | B9: Apiacá | C9: 11 | D9: 14 | E9: 1.272727273
A10: Metropolitana | B10: Aracruz | C10: 387 | D10: 429 | E10: 1.108527132
A11: Sul | B11: Atilio Vivacqua | C11: 47 | D11: 43 | E11: 0.914893617
A12: Central | B12: Baixo Guandu | C12: 89 | D12: 89 | E12: 1
A13: Norte | B13: Barra de São Francisco | C13: 158 | D13: 133 | E13: 0.8417721519
A14: Norte | B14: Boa Esperança | C14: 55 | D14: 45 | E14: 0.8181818182
A15: Sul | B15: Bom Jesus do Norte | C15: 5 | D15: 16 | E15: 3.2
A16: Metropolitana | B16: Brejetuba | C16: 53 | D16: 64 | E16: 1.20754717
A17: Sul | B17: Cachoeiro de Itapemirim | C17: 578 | D17: 561 | E17: 0.9705882353
A18: Metropolitana | B18: Cariacica | C18: 1202 | D18: 1116 | E18: 0.928452579
A19: Sul | B19: Castelo | C19: 114 | D19: 113 | E19: 0.9912280702
A20: Central | B20: Colatina | C20: 366 | D20: 335 | E20: 0.9153005464
A21: Norte | B21: Conceição da Barra | C21: 99 | D21: 119 | E21: 1.202020202
A22: Metropolitana | B22: Conceição do Castelo | C22: 41 | D22: 33 | E22: 0.8048780488
A23: Sul | B23: Divino de São Lourenço | C23: 12 | D23: 14 | E23: 1.166666667
A24: Metropolitana | B24: Domingos Martins | C24: 111 | D24: 84 | E24: 0.7567567568
A25: Sul | B25: Dores do Rio Preto | C25: 25 | D25: 25 | E25: 1
A26: Norte | B26: Ecoporanga | C26: 77 | D26: 63 | E26: 0.8181818182
A27: Metropolitana | B27: Fundão | C27: 66 | D27: 60 | E27: 0.9090909091
A28: Central | B28: Governador Lindenberg | C28: 37 | D28: 37 | E28: 1
A29: Sul | B29: Guaçuí | C29: 79 | D29: 90 | E29: 1.139240506
A30: Metropolitana | B30: Guarapari | C30: 471 | D30: 398 | E30: 0.8450106157
A31: Metropolitana | B31: Ibatiba | C31: 83 | D31: 106 | E31: 1.277108434
A32: Metropolitana | B32: Ibiraçu | C32: 26 | D32: 29 | E32: 1.115384615
A33: Sul | B33: Ibitirama | C33: 38 | D33: 45 | E33: 1.184210526
A34: Sul | B34: Iconha | C34: 26 | D34: 32 | E34: 1.230769231
A35: Sul | B35: Irupi | C35: 32 | D35: 48 | E35: 1.5
A36: Metropolitana | B36: Itaguaçu | C36: 36 | D36: 35 | E36: 0.9722222222
A37: Sul | B37: Itapemirim | C37: 140 | D37: 120 | E37: 0.8571428571
A38: Metropolitana | B38: Itarana | C38: 37 | D38: 41 | E38: 1.108108108
A39: Sul | B39: Iúna | C39: 71 | D39: 92 | E39: 1.295774648
A40: Norte | B40: Jaguaré | C40: 141 | D40: 138 | E40: 0.9787234043
A41: Sul | B41: Jerônimo Monteiro | C41: 40 | D41: 50 | E41: 1.25
A42: Metropolitana | B42: João Neiva | C42: 38 | D42: 52 | E42: 1.368421053
A43: Metropolitana | B43: Laranja da Terra | C43: 25 | D43: 26 | E43: 1.04
A44: Central | B44: Linhares | C44: 669 | D44: 645 | E44: 0.9641255605
A45: Central | B45: Mantenópolis | C45: 38 | D45: 37 | E45: 0.9736842105
A46: Sul | B46: Marataízes | C46: 155 | D46: 127 | E46: 0.8193548387
A47: Metropolitana | B47: Marechal Floriano | C47: 44 | D47: 45 | E47: 1.022727273
A48: Central | B48: Marilândia | C48: 45 | D48: 45 | E48: 1
A49: Sul | B49: Mimoso do Sul | C49: 87 | D49: 58 | E49: 0.6666666667
A50: Norte | B50: Montanha | C50: 42 | D50: 77 | E50: 1.833333333
A51: Norte | B51: Mucurici | C51: 20 | D51: 17 | E51: 0.85
A52: Sul | B52: Muniz Freire | C52: 49 | D52: 61 | E52: 1.244897959
A53: Sul | B53: Muqui | C53: 41 | D53: 37 | E53: 0.9024390244
A54: Norte | B54: Nova Venécia | C54: 190 | D54: 177 | E54: 0.9315789474
A55: Central | B55: Pancas | C55: 56 | D55: 60 | E55: 1.071428571
A56: Norte | B56: Pedro Canário | C56: 77 | D56: 90 | E56: 1.168831169
A57: Norte | B57: Pinheiros | C57: 97 | D57: 97 | E57: 1
A58: Sul | B58: Piúma | C58: 82 | D58: 73 | E58: 0.8902439024
A59: Norte | B59: Ponto Belo | C59: 14 | D59: 24 | E59: 1.714285714
A60: Sul | B60: Presidente Kennedy | C60: 59 | D60: 51 | E60: 0.8644067797
A61: Central | B61: Rio Bananal | C61: 78 | D61: 78 | E61: 1
A62: Sul | B62: Rio Novo do Sul | C62: 31 | D62: 38 | E62: 1.225806452
A63: Metropolitana | B63: Santa Leopoldina | C63: 31 | D63: 31 | E63: 1
A64: Metropolitana | B64: Santa Maria de Jetibá | C64: 171 | D64: 146 | E64: 0.8538011696
A65: Metropolitana | B65: Santa Teresa | C65: 74 | D65: 65 | E65: 0.8783783784
A66: Central | B66: São Domingos do Norte | C66: 29 | D66: 25 | E66: 0.8620689655
A67: Central | B67: São Gabriel da Palha | C67: 114 | D67: 112 | E67: =D67/C67 -> 0.9824561404
A68: Sul | B68: São José do Calçado | C68: 19 | D68: 30 | E68: 1.578947368
A69: Norte | B69: São Mateus | C69: 487 | D69: 445 | E69: 0.9137577002
A70: Central | B70: São Roque do Canaã | C70: 32 | D70: 26 | E70: 0.8125
A71: Metropolitana | B71: Serra | C71: 1860 | D71: 1731 | E71: 0.9306451613
A72: Central | B72: Sooretama | C72: 96 | D72: 124 | E72: 1.291666667
A73: Sul | B73: Vargem Alta | C73: 73 | D73: 70 | E73: 0.9589041096
A74: Metropolitana | B74: Venda Nova do Imigrante | C74: 84 | D74: 84 | E74: 1
A75: Metropolitana | B75: Viana | C75: 216 | D75: 241 | E75: 1.115740741
A76: Norte | B76: Vila Pavão | C76: 38 | D76: 30 | E76: 0.7894736842
A77: Central | B77: Vila Valério | C77: 66 | D77: 73 | E77: 1.106060606
A78: Metropolitana | B78: Vila Velha | C78: 1434 | D78: 1398 | E78: 0.9748953975
A79: Metropolitana | B79: Vitória | C79: 889 | D79: 967 | E79: 1.087739033
B81: Total Norte | C81: =SUMIF($A$2:$A$79,"Norte",C$2:C$79) -> 1533 | D81: =SUMIF($A$2:$A$79,"Norte",D$2:D$79) -> 1487 | E81: =D81/C81 -> 0.9699934768
B82: Total Central | C82: =SUMIF($A$2:$A$79,"CENTRAL",C$2:C$79) -> 1791 | D82: =SUMIF($A$2:$A$79,"CENTRAL",D$2:D$79) -> 1755 | E82: =D82/C82 -> 0.9798994975
B83: Total Metropolitana | C83: =SUMIF($A$2:$A$79,"METROPOLITANA",C$2:C$79) -> 7467 | D83: =SUMIF($A$2:$A$79,"METROPOLITANA",D$2:D$79) -> 7270 | E83: 0.9736172492
B84: Total Sul | C84: =SUMIF($A$2:$A$79,"SUL",C$2:C$79) -> 2024 | D84: =SUMIF($A$2:$A$79,"SUL",D$2:D$79) -> 2041 | E84: 1.008399209
B85: TOTAL ES | C85: =SUM(C2:C79) -> 12815 | D85: =SUM(D2:D79) -> 12553 | E85: 0.9795552087
B86: HOMOGENEIDADE ENTRE MUNICÍPIOS | E86: =COUNTIF(E2:E79,">=0,95")/78 -> 0.6538461538
A91: Fonte: Vacina e Confia, em 04 de maio de 2026.**<https://vacinaeconfia.saude.es.gov.br/>
A92: **Dados referente às doses aplicadasem janeiro a março de 2026
A93: Cobertura Calculada por município de procedência/ocorrência da vacinação
A94: 1 População estimada extraída do MS/SVS/DASIS - SINASC/DASIS/SVS/MS 2025 referente ao período de janeiro de 2026 e fevereiro e março de 2025.
A95: Sinasc, atualizado em 06/04/2026
A96: Método de Cálculo Simples
A97: Homogeineidade: O cálculo da Homogeineidade entre vacinas é feito de acordo com a pactuação estabelecida no Plano Plurianual (PPA) vigente no período 2024-2027.
A100: Observações referente a distribuição de imunobiológicos que podem afetar a cobertura vacinal:
A102: 1. Vacinas que foram recebidas parcialmente pelo estado no mês de Março/2026, sendo distribuídos em quantidades reduzidas às regionais e municípios:
A103: IMUNOGLOBULINA ANTIRRÁBICA HUMANA; SORO ANTIRRÁBICO HUMANO
A104: 2. Vacinas indisponíveis no mês de março/2026, não sendo possível a distribuição às regionais e municípios:
A105: IMUNOGLOBULINA HUMANA ANTIVARICELA (ZOSTER) – 125UI
A106: 3. Vacinas enviadas por Pautas aguardando abastecimento do estoque estadual;
A107: VACINA COVID-19 PFIZER PEDIÁTRICA MENOR QUE 5 ANOS; VACINA COVID-19 PFIZER PEDIÁTRICA, VACINA COVID-19 PFIZER MAIORES QUE 12 ANOS, VACINA VÍRUS SINCICIAL RESPIRATÓRIO A E B - VSR
A109: Fonte: Informes situacionais de distribuição de imunobiológicos em https://saude.es.gov.br/GrupodeArquivos/informes-situacionais-de-distribuicao-de-imunobiologicos

Sheet VSR gestante - residência
A1: Regional | B1: Município | C1: ¹População | D1: Doses Aplicadas | E1: Cobertura Vacinal %
A2: Metropolitana | B2: Afonso Cláudio | C2: 88 | D2: 84 | E2: =D2/C2 -> 0.9545454545
A3: Norte | B3: Água Doce do Norte | C3: 38 | D3: 26 | E3: =D3/C3 -> 0.6842105263
A4: Central | B4: Águia Branca | C4: 52 | D4: 33 | E4: 0.6346153846
A5: Sul | B5: Alegre | C5: 75 | D5: 110 | E5: 1.466666667
A6: Sul | B6: Alfredo Chaves | C6: 32 | D6: 36 | E6: 1.125
A7: Central | B7: Alto Rio Novo | C7: 24 | D7: 25 | E7: 1.041666667
A8: Sul | B8: Anchieta | C8: 103 | D8: 103 | E8: 1
A9: Sul | B9: Apiacá | C9: 11 | D9: 11 | E9: 1
A10: Metropolitana | B10: Aracruz | C10: 387 | D10: 399 | E10: 1.031007752
A11: Sul | B11: Atilio Vivacqua | C11: 47 | D11: 47 | E11: 1
A12: Central | B12: Baixo Guandu | C12: 89 | D12: 70 | E12: 0.7865168539
A13: Norte | B13: Barra de São Francisco | C13: 158 | D13: 135 | E13: 0.8544303797
A14: Norte | B14: Boa Esperança | C14: 55 | D14: 38 | E14: 0.6909090909
A15: Sul | B15: Bom Jesus do Norte | C15: 5 | D15: 13 | E15: 2.6
A16: Metropolitana | B16: Brejetuba | C16: 53 | D16: 58 | E16: 1.094339623
A17: Sul | B17: Cachoeiro de Itapemirim | C17: 578 | D17: 549 | E17: 0.9498269896
A18: Metropolitana | B18: Cariacica | C18: 1202 | D18: 1216 | E18: 1.011647255
A19: Sul | B19: Castelo | C19: 114 | D19: 123 | E19: 1.078947368
A20: Central | B20: Colatina | C20: 366 | D20: 346 | E20: 0.9453551913
A21: Norte | B21: Conceição da Barra | C21: 99 | D21: 125 | E21: 1.262626263
A22: Metropolitana | B22: Conceição do Castelo | C22: 41 | D22: 31 | E22: 0.756097561
A23: Sul | B23: Divino de São Lourenço | C23: 12 | D23: 14 | E23: 1.166666667
A24: Metropolitana | B24: Domingos Martins | C24: 111 | D24: 105 | E24: 0.9459459459
A25: Sul | B25: Dores do Rio Preto | C25: 25 | D25: 19 | E25: 0.76
A26: Norte | B26: Ecoporanga | C26: 77 | D26: 74 | E26: 0.961038961
A27: Metropolitana | B27: Fundão | C27: 66 | D27: 54 | E27: 0.8181818182
A28: Central | B28: Governador Lindenberg | C28: 37 | D28: 41 | E28: 1.108108108
A29: Sul | B29: Guaçuí | C29: 79 | D29: 93 | E29: 1.17721519
